Workbook

Sheet Accueil
E3: BF Manufacturiers TC4 / ÉTÉ & TTS
E4: Actualisation au 04/04/2024
B26: Profil Plus France - 19b Avenue Léon Gambetta - 92120 MONTROUGE
B27: Version : 1.0 - YB - Février 2024

Sheet Tutoriel
D3: Tutoriel
C7: Vous trouverez ici comment utiliser le fichier de synthèse des BF
C8: et toutes les astuces disponibles
C10: Entrer les remises
C12: Nous vous invitons à entrer les remises en premier,
C13: ainsi les tarifs affichés correspondront au prix qui vous sera facturé.
C15: Sur l'onglet "Accueil", cliquer sur
C16: Par manufacturier, vous pourrez alors entrer les remises négociées.
C18: Vous avez ensuite intérêt à enregistrer le fichier.
C19: Cela vous évitera d'entrer à nouveau les remises lors de la prochaine utilisation.
C21: Si vous souhaitez ré-initialiser les remises, il vous suffit de cliquer sur le bouton :
C22: Toutes les remises seront alors remises à 0.
C24: Retour à l'accueil
C26: Sur chaque onglet figure le bouton suivant :
C27: En cliquant dessus, vous retournez à l'accueil.
C29: Trouver les pneumatiques disponibles dans la dimension voulue
C31: Depuis l'accueil, cliquer sur
C33: Entrer les caractéristiques du pneumatique dans le tableau suivant :
C36: Toutes les informations ne sont pas indispensables.
C37: Vous pouvez par exemple n'entrer que le diamètre.
C39: Cliquez ensuite sur
C40: L'ensemble des pneumatiques correspondants aux caractéristiques saisies s'affichent en dessous.
C42: Pour supprimer le filtre, et afficher tous les pneumatiques, cliquer sur
C44: Consulter le barème d'un manufacturier
C46: Depuis l'accueil cliquer sur
C47: Pour accéder au barème de l'un des manufacturiers, cliquer sur son logo
C48: Depuis l'onglet présentant le barème d'un manufacturier, vous pouvez :
C49: Consulter les tarifs,
C50: Revenir à l'accueil en cliquant sur le bouton
C51: Consulter le barème d'un autre manufacturier
C52: en cliquant sur le bouton
C54: Modifier la remise en cliquant sur le bouton

Sheet Index
D3: Index TC4
D7: ABREVIATION | F7: DEFINITION
D9: CAI | F9: Code Article International
D10: EAN | F10: European Article Number (code Barre)
D11: BF | F11: Barème de Facturation
D12: TD | F12: Tarif de distribution
D13: IC | F13: Indice de Charge
D14: IV | F14: Indice de Vitesse
D15: Bruit. | F15: Classe de Bruit
D16: Conso. | F16: Efficacité Energetique
D17: PL | F17: Poids Lourd
D18: TT/TL | F18: Tube Type / TubeLess
D19: 3PMSF | F19: 3 Pics Moutain Snow Flakes
F20: Label garantissant de hautes performances
F21: hivernales (adhérence & sécurité)
D22: AdM | F22: Adhérence sur sol Mouillé
D23: M+S | F23: Mud & Snow
D24: RFT | F24: Run Flat Technology (Bridgestone)
D25: ROF | F25: Run On Falt (Runflat Goodyear/Dunlop)
D26: SRS | F26: Support Ring-tyre System (Runflat Bridgestone)
D27: TC4 | F27: Tourisme - Camionnette - 4x4
D28: XSE | F28: X : Technologie radiale
F29: S : Sécurité
F30: E : Economie
D31: ZP | F31: Zero Pressure (Run Flat Michelin)

Sheet Remises
B2: TC4 ÉTÉ & TOUTES SAISONS - Remises
B6: TOURISME - CAMIONNETTE - 4x4 / NEUF
E8: 0.285 | J8: 0.42 | O8: 0.31 | T8: 0.345
E10: 0.32 | J10: 0.345 | O10: 0.23 | T10: 0.22
E12: 0.18 | J12: 0.305 | O12: 0.4

Sheet Manufacturiers
B2: BF Manufacturiers TC4 / ÉTÉ & TTS
B3: Actualisation au 04/04/2024
B6: TOURISME - CAMIONNETTE - 4x4 / NEUF

Sheet Pneus par dim.
F2: BF Manufacturiers TC4 / ÉTÉ & TTS
F3: Actualisation au 04/04/2024
B4: Largeur | C4: Hauteur | D4: Diamètre | E4: Charge | F4: Vitesse
A7: REFERENCES PNEUMATIQUES
A8: Manufacturier | B8: Largeur | C8: Hauteur | D8: Diam. | E8: IC | F8: IV | G8: Désignation | H8: Profil | I8: Prix BF ou TD | J8: Prix remisé | K8: CAI | L8: EAN/Gencode | M8: Famille | N8: Catégorie
A9: BRIDGESTONE | B9: 225 | C9: 50 | D9: 17 | E9: 98 | F9: Y | G9: PN BRI 225/50R17 XL 98Y TURANZA 6 | H9: BS TURANZA 6 | I9: 203 | J9: =I9*(1-VLOOKUP(A9,Datas_Remises,4,0)) -> 145.145 | K9: 21317 | L9: 3286342131719 | M9: Neuf | N9: TOURISME ÉTÉ
A10: BRIDGESTONE | B10: 215 | C10: 60 | D10: 17 | E10: 96 | F10: V | G10: PN BRI 215/60R17 96 V D-SPORT | H10: BS DHPSPO | I10: 202 | J10: 144.43 | K10: 7215 | L10: 3286340721516 | M10: Neuf | N10: 4x4
A11: BRIDGESTONE | B11: 225 | C11: 55 | D11: 17 | E11: 101 | F11: W | G11: PN BRI 225/55R17 XL 101W TURANZA 6 | H11: BS TURANZA 6 | I11: 213.5 | J11: 152.6525 | K11: 21314 | L11: 3286342131412 | M11: Neuf | N11: TOURISME ÉTÉ
A12: BRIDGESTONE | B12: 265 | C12: 70 | D12: 16 | E12: 112 | F12: T | G12: PN BRI 265/70R16 112T D AT 002 | H12: BS D AT 002 | I12: 255.5 | J12: 182.6825 | K12: 20354 | L12: 3286342035413 | M12: Neuf | N12: 4x4 TOUTES SAISONS
A13: BRIDGESTONE | B13: 255 | C13: 60 | D13: 18 | E13: 112 | F13: T | G13: PN BRI 255/60R18 XL 112T D AT 002 | H13: BS D AT 002 | I13: 243 | J13: 173.745 | K13: 20373 | L13: 3286342037318 | M13: Neuf | N13: 4x4 TOUTES SAISONS
A14: BRIDGESTONE | B14: 285 | C14: 45 | D14: 21 | E14: 113 | F14: Y | G14: PN BRI 285/45R21 XL 113Y TURANZA 6 | H14: BS TURANZA 6 | I14: 507.5 | J14: 362.8625 | K14: 26043 | L14: 3286342604312 | M14: Neuf | N14: TOURISME ÉTÉ
A15: BRIDGESTONE | B15: 195 | C15: 80 | D15: 15 | E15: 96 | F15: T | G15: PN BRI 195/80R15 96T D AT 002 | H15: BS D AT 002 | I15: 196.5 | J15: 140.4975 | K15: 20329 | L15: 3286342032917 | M15: Neuf | N15: 4x4 TOUTES SAISONS
A16: BRIDGESTONE | B16: 225 | C16: 70 | D16: 15 | E16: 100 | F16: T | G16: PN BRI 225/70R15 100T D AT 002 | H16: BS D AT 002 | I16: 201 | J16: 143.715 | K16: 20335 | L16: 3286342033518 | M16: Neuf | N16: 4x4 TOUTES SAISONS
A17: BRIDGESTONE | B17: 215 | C17: 65 | D17: 16 | E17: 98 | F17: H | G17: PN BRI 215/65R16 98H D AT 002 | H17: BS D AT 002 | I17: 202 | J17: 144.43 | K17: 20344 | L17: 3286342034416 | M17: Neuf | N17: 4x4 TOUTES SAISONS
A18: BRIDGESTONE | B18: 245 | C18: 70 | D18: 16 | E18: 111 | F18: T | G18: PN BRI 245/70R16 XL 111T D AT 002 | H18: BS D AT 002 | I18: 245 | J18: 175.175 | K18: 20351 | L18: 3286342035116 | M18: Neuf | N18: 4x4 TOUTES SAISONS
A19: BRIDGESTONE | B19: 225 | C19: 45 | D19: 17 | E19: 91 | F19: Y | G19: PN BRI 225/45R17 91Y TURANZA 6 | H19: BS TURANZA 6 | I19: 138.5 | J19: 99.0275 | K19: 21311 | L19: 3286342131115 | M19: Neuf | N19: TOURISME ÉTÉ
A20: BRIDGESTONE | B20: 225 | C20: 45 | D20: 17 | E20: 91 | F20: W | G20: PN BRI 225/45R17 91W TURANZA 6 | H20: BS TURANZA 6 | I20: 138.5 | J20: 99.0275 | K20: 21313 | L20: 3286342131313 | M20: Neuf | N20: TOURISME ÉTÉ
A21: BRIDGESTONE | B21: 245 | C21: 40 | D21: 18 | E21: 97 | F21: Y | G21: PN BRI 245/40R18 XL 97Y TURANZA 6 | H21: BS TURANZA 6 | I21: 203 | J21: 145.145 | K21: 22381 | L21: 3286342238111 | M21: Neuf | N21: TOURISME ÉTÉ
A22: BRIDGESTONE | B22: 245 | C22: 50 | D22: 18 | E22: 100 | F22: Y | G22: PN BRI 245/50R18 100Y TURANZA 6 | H22: BS TURANZA 6 | I22: 288.5 | J22: 206.2775 | K22: 22383 | L22: 3286342238319 | M22: Neuf | N22: TOURISME ÉTÉ
A23: BRIDGESTONE | B23: 235 | C23: 40 | D23: 18 | E23: 95 | F23: Y | G23: PN BRI 235/40R18 XL 95Y TURANZA 6 | H23: BS TURANZA 6 | I23: 199 | J23: 142.285 | K23: 22379 | L23: 3286342237916 | M23: Neuf | N23: TOURISME ÉTÉ
A24: BRIDGESTONE | B24: 235 | C24: 45 | D24: 18 | E24: 98 | F24: Y | G24: PN BRI 235/45R18 XL 98Y TURANZA 6 | H24: BS TURANZA 6 | I24: 245.5 | J24: 175.5325 | K24: 22380 | L24: 3286342238012 | M24: Neuf | N24: TOURISME ÉTÉ
A25: BRIDGESTONE | B25: 225 | C25: 35 | D25: 19 | E25: 88 | F25: Y | G25: PN BRI 225/35R19 XL 88Y TURANZA 6 | H25: BS TURANZA 6 | I25: 259 | J25: 185.185 | K25: 22389 | L25: 3286342238913 | M25: Neuf | N25: TOURISME ÉTÉ
A26: BRIDGESTONE | B26: 245 | C26: 70 | D26: 17 | E26: 114 | F26: T | G26: PN BRI 245/70R17 XL 114T D AT 002 | H26: BS D AT 002 | I26: 294.5 | J26: 210.5675 | K26: 20363 | L26: 3286342036311 | M26: Neuf | N26: 4x4 TOUTES SAISONS
A27: BRIDGESTONE | B27: 245 | C27: 45 | D27: 18 | E27: 100 | F27: Y | G27: PN BRI 245/45R18 XL 100Y TURANZA 6 | H27: BS TURANZA 6 | I27: 217.5 | J27: 155.5125 | K27: 22384 | L27: 3286342238418 | M27: Neuf | N27: TOURISME ÉTÉ
A28: BRIDGESTONE | B28: 255 | C28: 45 | D28: 18 | E28: 103 | F28: Y | G28: PN BRI 255/45R18 XL 103Y TURANZA 6 | H28: BS TURANZA 6 | I28: 294.5 | J28: 210.5675 | K28: 22386 | L28: 3286342238616 | M28: Neuf | N28: TOURISME ÉTÉ
A29: BRIDGESTONE | B29: 235 | C29: 45 | D29: 17 | E29: 97 | F29: Y | G29: PN BRI 235/45R17 XL 97Y TURANZA 6 | H29: BS TURANZA 6 | I29: 171 | J29: 122.265 | K29: 22354 | L29: 3286342235417 | M29: Neuf | N29: TOURISME ÉTÉ
A30: BRIDGESTONE | B30: 245 | C30: 45 | D30: 17 | E30: 99 | F30: Y | G30: PN BRI 245/45R17 XL 99Y TURANZA 6 | H30: BS TURANZA 6 | I30: 237 | J30: 169.455 | K30: 22356 | L30: 3286342235615 | M30: Neuf | N30: TOURISME ÉTÉ
A31: BRIDGESTONE | B31: 205 | C31: 55 | D31: 17 | E31: 95 | F31: V | G31: PN BRI 205/55R17 XL 95V TURANZA 6 | H31: BS TURANZA 6 | I31: 189 | J31: 135.135 | K31: 22351 | L31: 3286342235110 | M31: Neuf | N31: TOURISME ÉTÉ
A32: BRIDGESTONE | B32: 235 | C32: 55 | D32: 17 | E32: 99 | F32: W | G32: PN BRI 235/55R17 99W TURANZA 6 | H32: BS TURANZA 6 | I32: 208 | J32: 148.72 | K32: 22353 | L32: 3286342235318 | M32: Neuf | N32: TOURISME ÉTÉ
A33: BRIDGESTONE | B33: 225 | C33: 40 | D33: 18 | E33: 92 | F33: Y | G33: PN BRI 225/40R18 XL 92Y TURANZA 6 | H33: BS TURANZA 6 | I33: 147.5 | J33: 105.4625 | K33: 22377 | L33: 3286342237718 | M33: Neuf | N33: TOURISME ÉTÉ
A34: BRIDGESTONE | B34: 235 | C34: 50 | D34: 18 | E34: 97 | F34: V | G34: PN BRI 235/50R18 97V TURANZA 6 | H34: BS TURANZA 6 | I34: 225.5 | J34: 161.2325 | K34: 22378 | L34: 3286342237817 | M34: Neuf | N34: TOURISME ÉTÉ
A35: BRIDGESTONE | B35: 225 | C35: 45 | D35: 18 | E35: 95 | F35: Y | G35: PN BRI 225/45R18 XL 95Y TURANZA 6 | H35: BS TURANZA 6 | I35: 223 | J35: 159.445 | K35: 22375 | L35: 3286342237510 | M35: Neuf | N35: TOURISME ÉTÉ
A36: BRIDGESTONE | B36: 225 | C36: 50 | D36: 18 | E36: 99 | F36: W | G36: PN BRI 225/50R18 XL 99W TURANZA 6 | H36: BS TURANZA 6 | I36: 252 | J36: 180.18 | K36: 22376 | L36: 3286342237619 | M36: Neuf | N36: TOURISME ÉTÉ
A37: BRIDGESTONE | B37: 325 | C37: 30 | D37: 21 | E37: 108 | F37: Y | G37: PN BRI 325/30R21 XL 108Y POTENZA SPORT | H37: BS POTENZA SPORT | I37: 495 | J37: 353.925 | K37: 27883 | L37: 3286342788319 | M37: Neuf | N37: TOURISME ÉTÉ
A38: BRIDGESTONE | B38: 255 | C38: 40 | D38: 19 | E38: 100 | F38: Y | G38: PN BRI 255/40R19 XL 100Y POTENZA SPORT | H38: BS POTENZA SPORT | I38: 286 | J38: 204.49 | K38: 27848 | L38: 3286342784816 | M38: Neuf | N38: TOURISME ÉTÉ
A39: BRIDGESTONE | B39: 285 | C39: 35 | D39: 20 | E39: 104 | F39: Y | G39: PN BRI 285/35R20 XL 104Y T005 MO- | H39: BS T005 | I39: 479.5 | J39: 342.8425 | K39: 24450 | L39: 3286342445014 | M39: Neuf | N39: TOURISME ÉTÉ
A40: BRIDGESTONE | B40: 235 | C40: 35 | D40: 19 | E40: 91 | F40: Y | G40: PN BRI 235/35ZR19 XL 91Y POTENZA RACE | H40: BS POTENZA RACE | I40: 447.5 | J40: 319.9625 | K40: 28281 | L40: 3286342828114 | M40: Neuf | N40: TOURISME ÉTÉ
A41: BRIDGESTONE | B41: 215 | C41: 75 | D41: 16 | E41: 113/111 | F41: R | G41: PN BRI 215/75R16C 113/111R DURAVIS VAN | H41: BS DURAVIS VAN | I41: 254.5 | J41: 181.9675 | K41: 20900 | L41: 3286342090016 | M41: Neuf | N41: CAMIONNETTE ETE
A42: BRIDGESTONE | B42: 215 | C42: 65 | D42: 16 | E42: 106/104 | F42: T | G42: PN BRI 215/65R16C 106/104T DURAVIS VAN | H42: BS DURAVIS VAN | I42: 233.5 | J42: 166.9525 | K42: 20899 | L42: 3286342089911 | M42: Neuf | N42: CAMIONNETTE ETE
A43: BRIDGESTONE | B43: 255 | C43: 35 | D43: 18 | E43: 94 | F43: Y | G43: PN BRI 255/35R18 XL 94Y TURANZA 6 | H43: BS TURANZA 6 | I43: 250.5 | J43: 179.1075 | K43: 22385 | L43: 3286342238517 | M43: Neuf | N43: TOURISME ÉTÉ
A44: BRIDGESTONE | B44: 235 | C44: 45 | D44: 19 | E44: 99 | F44: V | G44: PN BRI 235/45R19 XL 99V T005 AR | H44: BS T005 | I44: 346 | J44: 247.39 | K44: 21985 | L44: 3286342198514 | M44: Neuf | N44: 4x4
A45: BRIDGESTONE | B45: 255 | C45: 40 | D45: 18 | E45: 99 | F45: Y | G45: PN BRI 255/40R18 XL 99Y EXT TRZ T005 MOE | H45: BS T005 | I45: 362 | J45: 258.83 | K45: 19649 | L45: 3286341964912 | M45: Neuf | N45: TOURISME ÉTÉ
A46: BRIDGESTONE | B46: 235 | C46: 60 | D46: 17 | E46: 117/115 | F46: R | G46: PN BRI 235/60R17C 117/115R DURAVIS VAN | H46: BS DURAVIS VAN | I46: 321 | J46: 229.515 | K46: 25771 | L46: 3286342577111 | M46: Neuf | N46: CAMIONNETTE ETE
A47: BRIDGESTONE | B47: 235 | C47: 40 | D47: 20 | E47: 96 | F47: V | G47: PN BRI 235/40R20 96V T005 | H47: BS T005 | I47: 366.5 | J47: 262.0475 | K47: 21986 | L47: 3286342198613 | M47: Neuf | N47: 4x4
A48: BRIDGESTONE | B48: 215 | C48: 60 | D48: 16 | E48: 103/101 | F48: T | G48: PN BRI 215/60R16C 103/101T DURAVIS VAN | H48: BS DURAVIS VAN | I48: 251.5 | J48: 179.8225 | K48: 20897 | L48: 3286342089713 | M48: Neuf | N48: CAMIONNETTE ETE
A49: BRIDGESTONE | B49: 255 | C49: 40 | D49: 20 | E49: 101 | F49: Y | G49: PN BRI 255/40R20 XL 101Y T005 MO- | H49: BS T005 | I49: 390 | J49: 278.85 | K49: 23440 | L49: 3286342344010 | M49: Neuf | N49: TOURISME ÉTÉ
A50: BRIDGESTONE | B50: 205 | C50: 65 | D50: 16 | E50: 95 | F50: H | G50: PN BRI 205/65R16 95H T005A | H50: BS T005A | I50: 200 | J50: 143 | K50: 22824 | L50: 3286342282411 | M50: Neuf | N50: TOURISME ÉTÉ
A51: BRIDGESTONE | B51: 265 | C51: 65 | D51: 17 | E51: 112 | F51: T | G51: PN BRI 265/65R17 112T D AT 002 | H51: BS D AT 002 | I51: 256 | J51: 183.04 | K51: 20366 | L51: 3286342036618 | M51: Neuf | N51: 4x4 TOUTES SAISONS
A52: BRIDGESTONE | B52: 205 | C52: 70 | D52: 15 | E52: 96 | F52: T | G52: PN BRI 205/70R15 96T D AT 002 | H52: BS D AT 002 | I52: 186 | J52: 132.99 | K52: 20330 | L52: 3286342033013 | M52: Neuf | N52: 4x4 TOUTES SAISONS
A53: BRIDGESTONE | B53: 215 | C53: 55 | D53: 17 | E53: 98 | F53: W | G53: PN BRI 215/55R17 XL 98W TURANZA 6 | H53: BS TURANZA 6 | I53: 214 | J53: 153.01 | K53: 21303 | L53: 3286342130316 | M53: Neuf | N53: TOURISME ÉTÉ
A54: BRIDGESTONE | B54: 215 | C54: 50 | D54: 18 | E54: 96 | F54: W | G54: PN BRI 215/50R18 XL 96W TURANZA ECO | H54: BS TURANZA ECO | I54: 257 | J54: 183.755 | K54: 23310 | L54: 3286342331010 | M54: Neuf | N54: 4x4
A55: BRIDGESTONE | B55: 225 | C55: 45 | D55: 17 | E55: 94 | F55: Y | G55: PN BRI 225/45R17 XL 94Y TURANZA 6 | H55: BS TURANZA 6 | I55: 142 | J55: 101.53 | K55: 21310 | L55: 3286342131016 | M55: Neuf | N55: TOURISME ÉTÉ
A56: BRIDGESTONE | B56: 215 | C56: 50 | D56: 17 | E56: 95 | F56: W | G56: PN BRI 215/50R17 XL 95W TURANZA 6 | H56: BS TURANZA 6 | I56: 201.5 | J56: 144.0725 | K56: 21305 | L56: 3286342130514 | M56: Neuf | N56: TOURISME ÉTÉ
A57: BRIDGESTONE | B57: 215 | C57: 40 | D57: 17 | E57: 87 | F57: W | G57: PN BRI 215/40R17 XL 87W TURANZA 6 | H57: BS TURANZA 6 | I57: 203 | J57: 145.145 | K57: 21304 | L57: 3286342130415 | M57: Neuf | N57: TOURISME ÉTÉ
A58: BRIDGESTONE | B58: 235 | C58: 65 | D58: 16 | E58: 121/119 | F58: R | G58: PN BRI 235/65R16C 121/119R DURAVIS VAN | H58: BS DURAVIS VAN | I58: 276.5 | J58: 197.6975 | K58: 20906 | L58: 3286342090610 | M58: Neuf | N58: CAMIONNETTE ETE
A59: BRIDGESTONE | B59: 235 | C59: 65 | D59: 16 | E59: 115/113 | F59: R | G59: PN BRI 235/65R16C 115/113R DURAVIS VAN | H59: BS DURAVIS VAN | I59: 262 | J59: 187.33 | K59: 20905 | L59: 3286342090511 | M59: Neuf | N59: CAMIONNETTE ETE
A60: BRIDGESTONE | B60: 225 | C60: 75 | D60: 16 | E60: 121/120 | F60: R | G60: PN BRI 225/75R16C 121/120R DURAVIS VAN | H60: BS DURAVIS VAN | I60: 294 | J60: 210.21 | K60: 20903 | L60: 3286342090313 | M60: Neuf | N60: CAMIONNETTE ETE
A61: BRIDGESTONE | B61: 205 | C61: 50 | D61: 17 | E61: 89 | F61: V | G61: PN BRI 205/50R17 89V TURANZA 6 | H61: BS TURANZA 6 | I61: 186.5 | J61: 133.3475 | K61: 21300 | L61: 3286342130019 | M61: Neuf | N61: TOURISME ÉTÉ
A62: BRIDGESTONE | B62: 265 | C62: 70 | D62: 16 | E62: 112 | F62: H | G62: PN BRI 265/70R16 112H D689 G-MODE | H62: BS D689 | I62: 245.5 | J62: 175.5325 | K62: 6704 | L62: 3286340670418 | M62: Neuf | N62: 4x4
A63: BRIDGESTONE | B63: 195 | C63: 75 | D63: 16 | E63: 110/108 | F63: R | G63: PN BRI 195/75R16C 110/108R DURAVIS VAN | H63: BS DURAVIS VAN | I63: 188.5 | J63: 134.7775 | K63: 20890 | L63: 3286342089010 | M63: Neuf | N63: CAMIONNETTE ETE
A64: BRIDGESTONE | B64: 205 | C64: 50 | D64: 17 | E64: 93 | F64: W | G64: PN BRI 205/50R17 XL 93W TURANZA 6 | H64: BS TURANZA 6 | I64: 190 | J64: 135.85 | K64: 21302 | L64: 3286342130217 | M64: Neuf | N64: TOURISME ÉTÉ
A65: BRIDGESTONE | B65: 255 | C65: 65 | D65: 17 | E65: 110 | F65: T | G65: PN BRI 255/65R17 110T D AT 002 | H65: BS D AT 002 | I65: 238 | J65: 170.17 | K65: 20364 | L65: 3286342036410 | M65: Neuf | N65: 4x4 TOUTES SAISONS
A66: BRIDGESTONE | B66: 315 | C66: 35 | D66: 20 | E66: 106 | F66: Y | G66: PN BRI 315/35R20 106 Y S007 | H66: BS S007 | I66: 649.5 | J66: 464.3925 | K66: 6714 | L66: 3286340671415 | M66: Neuf | N66: TOURISME ÉTÉ
A67: BRIDGESTONE | B67: 315 | C67: 35 | D67: 20 | E67: 106 | F67: Y | G67: PN BRI 315/35R20 106 Y RFT S007 | H67: BS S007 | I67: 660 | J67: 471.9 | K67: 6713 | L67: 3286340671316 | M67: Neuf | N67: TOURISME ÉTÉ
A68: BRIDGESTONE | B68: 225 | C68: 65 | D68: 17 | E68: 102 | F68: H | G68: PN BRI 225/65R17 102H D AT 002 | H68: BS D AT 002 | I68: 213.5 | J68: 152.6525 | K68: 20360 | L68: 3286342036014 | M68: Neuf | N68: 4x4 TOUTES SAISONS
A69: BRIDGESTONE | B69: 195 | C69: 75 | D69: 16 | E69: 107/105 | F69: T | G69: PN BRI 195/75R16C 107/105T DURAVIS VAN | H69: BS DURAVIS VAN | I69: 177.5 | J69: 126.9125 | K69: 20889 | L69: 3286342088914 | M69: Neuf | N69: CAMIONNETTE ETE
A70: BRIDGESTONE | B70: 275 | C70: 60 | D70: 20 | E70: 115 | F70: H | G70: PN BRI 275/60R20 115H TURANZA 6 | H70: BS TURANZA 6 | I70: 373 | J70: 266.695 | K70: 20580 | L70: 3286342058016 | M70: Neuf | N70: 4x4
A71: BRIDGESTONE | B71: 255 | C71: 50 | D71: 19 | E71: 107 | F71: Y | G71: PN BRI 255/50R19 XL 107Y TURANZA 6 | H71: BS TURANZA 6 | I71: 273 | J71: 195.195 | K71: 20564 | L71: 3286342056418 | M71: Neuf | N71: 4x4
A72: BRIDGESTONE | B72: 255 | C72: 40 | D72: 21 | E72: 102 | F72: Y | G72: PN BRI 255/40R21 XL 102Y TURANZA 6 | H72: BS TURANZA 6 | I72: 424.5 | J72: 303.5175 | K72: 20585 | L72: 3286342058511 | M72: Neuf | N72: 4x4
A73: BRIDGESTONE | B73: 225 | C73: 55 | D73: 17 | E73: 97 | F73: W | G73: PN BRI 225/55R17 97 W RFT S001 | H73: BS S001 | I73: 235 | J73: =I73*(1-VLOOKUP(A73,Datas_Remises,4,0)) -> 168.025 | K73: 6734 | L73: 3286340673419 | M73: Neuf | N73: TOURISME ÉTÉ
A74: BRIDGESTONE | B74: 275 | C74: 40 | D74: 19 | E74: 105 | F74: Y | G74: PN BRI 275/40R19 XL 105Y TURANZA 6 | H74: BS TURANZA 6 | I74: 328 | J74: 234.52 | K74: 22399 | L74: 3286342239910 | M74: Neuf | N74: TOURISME ÉTÉ
A75: BRIDGESTONE | B75: 225 | C75: 65 | D75: 16 | E75: 112/110 | F75: T | G75: PN BRI 225/65R16C 112/110T DURAVIS VAN | H75: BS DURAVIS VAN | I75: 258 | J75: 184.47 | K75: 20902 | L75: 3286342090214 | M75: Neuf | N75: CAMIONNETTE ETE
A76: BRIDGESTONE | B76: 215 | C76: 55 | D76: 17 | E76: 98 | F76: H | G76: PN BRI 215/55R17 XL 98H T005 | H76: BS T005 | I76: 210 | J76: 150.15 | K76: 14067 | L76: 3286341406719 | M76: Neuf | N76: TOURISME ÉTÉ
A77: BRIDGESTONE | B77: 255 | C77: 35 | D77: 20 | E77: 97 | F77: Y | G77: PN BRI 255/35R20 XL 97Y TURANZA 6 | H77: BS TURANZA 6 | I77: 285 | J77: 203.775 | K77: 22400 | L77: 3286342240015 | M77: Neuf | N77: TOURISME ÉTÉ
A78: BRIDGESTONE | B78: 225 | C78: 40 | D78: 18 | E78: 92 | F78: Y | G78: PN BRI 225/40R18 XL 92Y POTENZA S005 | H78: BS POTENZA S005 | I78: 154 | J78: 110.11 | K78: 28541 | L78: 3286342854113 | M78: Neuf | N78: TOURISME ÉTÉ
A79: BRIDGESTONE | B79: 205 | C79: 45 | D79: 17 | E79: 88 | F79: H | G79: PN BRI 205/45R17 XL 88H POTENZA SPORT | H79: BS POTENZA SPORT | I79: 192 | J79: 137.28 | K79: 28544 | L79: 3286342854410 | M79: Neuf | N79: TOURISME ÉTÉ
A80: BRIDGESTONE | B80: 255 | C80: 70 | D80: 16 | E80: 111 | F80: T | G80: PN BRI 255/70R16 111T D AT 002 | H80: BS D AT 002 | I80: 246 | J80: 175.89 | K80: 20352 | L80: 3286342035215 | M80: Neuf | N80: 4x4 TOUTES SAISONS
A81: BRIDGESTONE | B81: 255 | C81: 70 | D81: 18 | E81: 116 | F81: S | G81: PN BRI 255/70R18 XL 116S D AT 002 | H81: BS D AT 002 | I81: 267 | J81: 190.905 | K81: 26836 | L81: 3286342683614 | M81: Neuf | N81: 4x4 TOUTES SAISONS
A82: BRIDGESTONE | B82: 275 | C82: 55 | D82: 17 | E82: 109 | F82: V | G82: PN BRI 275/55R17 109V TURANZA 6 | H82: BS TURANZA 6 | I82: 272 | J82: 194.48 | K82: 20544 | L82: 3286342054414 | M82: Neuf | N82: 4x4
A83: BRIDGESTONE | B83: 255 | C83: 45 | D83: 20 | E83: 105 | F83: Y | G83: PN BRI 255/45R20 XL 105Y TURANZA 6 * TL | H83: BS TURANZA 6 | I83: 465 | J83: 332.475 | K83: 28431 | L83: 3286342843117 | M83: Neuf | N83: TOURISME ÉTÉ
A84: BRIDGESTONE | B84: 285 | C84: 45 | D84: 20 | E84: 112 | F84: Y | G84: PN BRI 285/45R20 XL 112 Y D-SPORT TL | H84: BS DHPSPO | I84: 400 | J84: 286 | K84: 7298 | L84: 3286340729819 | M84: Neuf | N84: 4x4
A85: BRIDGESTONE | B85: 245 | C85: 55 | D85: 19 | E85: 103 | F85: H | G85: PN BRI 245/55R19 103H TURANZA 6 | H85: BS TURANZA 6 | I85: 262 | J85: 187.33 | K85: 20563 | L85: 3286342056319 | M85: Neuf | N85: 4x4
A86: BRIDGESTONE | B86: 255 | C86: 35 | D86: 22 | E86: 102 | F86: Y | G86: PN BRI HL255/35R22 XL 102Y TURANZA 6 *TL | H86: BS TURANZA 6 | I86: 544.5 | J86: 389.3175 | K86: 22772 | L86: 3286342277219 | M86: Neuf | N86: TOURISME ÉTÉ
A87: BRIDGESTONE | B87: 255 | C87: 40 | D87: 21 | E87: 102 | F87: Y | G87: PN BRI 255/40R21 XL 102Y TURANZA 6 * TL | H87: BS TURANZA 6 | I87: 478 | J87: 341.77 | K87: 22770 | L87: 3286342277011 | M87: Neuf | N87: TOURISME ÉTÉ
A88: BRIDGESTONE | B88: 235 | C88: 40 | D88: 20 | E88: 96 | F88: Y | G88: PN BRI 235/40R20 XL 96Y POTENZA SPORT | H88: BS POTENZA SPORT | I88: 374.5 | J88: 267.7675 | K88: 27856 | L88: 3286342785615 | M88: Neuf | N88: TOURISME ÉTÉ
A89: BRIDGESTONE | B89: 285 | C89: 30 | D89: 22 | E89: 104 | F89: Y | G89: PN BRI HL285/30R22 XL 104Y TURANZA 6 *TL | H89: BS TURANZA 6 | I89: 513 | J89: 366.795 | K89: 22773 | L89: 3286342277318 | M89: Neuf | N89: TOURISME ÉTÉ
A90: BRIDGESTONE | B90: 265 | C90: 70 | D90: 15 | E90: 112 | F90: T | G90: PN BRI 265/70R15 112T D AT 002 | H90: BS D AT 002 | I90: 248 | J90: 177.32 | K90: 20338 | L90: 3286342033815 | M90: Neuf | N90: 4x4 TOUTES SAISONS
A91: BRIDGESTONE | B91: 245 | C91: 35 | D91: 19 | E91: 93 | F91: Y | G91: PN BRI 245/35ZR19 XL 93Y PTZ SPORT RS | H91: BS POTENZA SPORT | I91: 332 | J91: 237.38 | K91: 23116 | L91: 3286342311616 | M91: Neuf | N91: TOURISME ÉTÉ
A92: BRIDGESTONE | B92: 225 | C92: 45 | D92: 17 | E92: 91 | F92: W | G92: PN BRI 225/45R17 91 W RFT ER33 | H92: BS TRZ ER33 | I92: 197 | J92: 140.855 | K92: 6725 | L92: 3286340672511 | M92: Neuf | N92: TOURISME ÉTÉ
A93: BRIDGESTONE | B93: 215 | C93: 75 | D93: 15 | E93: 100 | F93: T | G93: PN BRI 215/75R15 100T D AT 002 | H93: BS D AT 002 | I93: 216 | J93: 154.44 | K93: 20332 | L93: 3286342033211 | M93: Neuf | N93: 4x4 TOUTES SAISONS
A94: BRIDGESTONE | B94: 225 | C94: 35 | D94: 18 | E94: 87 | F94: W | G94: PN BRI 225/35R18 XL 87 W S001 TL | H94: BS S001 | I94: 255 | J94: 182.325 | K94: 7535 | L94: 3286340753517 | M94: Neuf | N94: TOURISME ÉTÉ
A95: BRIDGESTONE | B95: 225 | C95: 40 | D95: 18 | E95: 92 | F95: W | G95: PN BRI 225/40R18 XL 92 W EXT T001 | H95: BS T001 | I95: 182 | J95: 130.13 | K95: 8045 | L95: 3286340804516 | M95: Neuf | N95: TOURISME ÉTÉ
A96: BRIDGESTONE | B96: 265 | C96: 30 | D96: 19 | E96: 93 | F96: Y | G96: PN BRI 265/30ZR19 XL 93Y PTZ SPORT RS | H96: BS POTENZA SPORT | I96: 379 | J96: 270.985 | K96: 23114 | L96: 3286342311418 | M96: Neuf | N96: TOURISME ÉTÉ
A97: BRIDGESTONE | B97: 215 | C97: 40 | D97: 18 | E97: 89 | F97: Y | G97: PN BRI 215/40R18 XL 89Y TRZ T005 POLO | H97: BS T005 | I97: 217.5 | J97: 155.5125 | K97: 14053 | L97: 3286341405316 | M97: Neuf | N97: TOURISME ÉTÉ
A98: BRIDGESTONE | B98: 235 | C98: 50 | D98: 18 | E98: 101 | F98: H | G98: PN BRI 235/50R18 XL 101H TRZ T005 BUL | H98: BS T005 | I98: 245 | J98: 175.175 | K98: 14064 | L98: 3286341406412 | M98: Neuf | N98: TOURISME ÉTÉ
A99: BRIDGESTONE | B99: 235 | C99: 40 | D99: 19 | E99: 96 | F99: Y | G99: PN BRI 235/40R19 XL 96Y TURANZA 6 | H99: BS TURANZA 6 | I99: 286 | J99: 204.49 | K99: 22392 | L99: 3286342239217 | M99: Neuf | N99: TOURISME ÉTÉ
A100: BRIDGESTONE | B100: 245 | C100: 40 | D100: 19 | E100: 98 | F100: Y | G100: PN BRI 245/40R19 XL 98Y TURANZA 6 | H100: BS TURANZA 6 | I100: 267 | J100: 190.905 | K100: 22393 | L100: 3286342239316 | M100: Neuf | N100: TOURISME ÉTÉ
A101: BRIDGESTONE | B101: 225 | C101: 45 | D101: 19 | E101: 96 | F101: W | G101: PN BRI 225/45R19 XL 96W TURANZA 6 | H101: BS TURANZA 6 | I101: 281.5 | J101: 201.2725 | K101: 22390 | L101: 3286342239019 | M101: Neuf | N101: TOURISME ÉTÉ
A102: BRIDGESTONE | B102: 235 | C102: 35 | D102: 19 | E102: 91 | F102: Y | G102: PN BRI 235/35R19 XL 91Y TURANZA 6 | H102: BS TURANZA 6 | I102: 226.5 | J102: 161.9475 | K102: 22391 | L102: 3286342239118 | M102: Neuf | N102: TOURISME ÉTÉ
A103: BRIDGESTONE | B103: 255 | C103: 35 | D103: 19 | E103: 96 | F103: Y | G103: PN BRI 255/35R19 XL 96Y TURANZA 6 | H103: BS TURANZA 6 | I103: 247 | J103: 176.605 | K103: 22397 | L103: 3286342239712 | M103: Neuf | N103: TOURISME ÉTÉ
A104: BRIDGESTONE | B104: 255 | C104: 40 | D104: 19 | E104: 100 | F104: Y | G104: PN BRI 255/40R19 XL 100Y TURANZA 6 | H104: BS TURANZA 6 | I104: 270.5 | J104: 193.4075 | K104: 22398 | L104: 3286342239811 | M104: Neuf | N104: TOURISME ÉTÉ
A105: BRIDGESTONE | B105: 245 | C105: 35 | D105: 19 | E105: 93 | F105: Y | G105: PN BRI 245/35R19 XL 93Y TURANZA 6 | H105: BS TURANZA 6 | I105: 313 | J105: 223.795 | K105: 22394 | L105: 3286342239415 | M105: Neuf | N105: TOURISME ÉTÉ
A106: BRIDGESTONE | B106: 245 | C106: 45 | D106: 19 | E106: 102 | F106: Y | G106: PN BRI 245/45R19 XL 102Y TURANZA 6 | H106: BS TURANZA 6 | I106: 296 | J106: 211.64 | K106: 22395 | L106: 3286342239514 | M106: Neuf | N106: TOURISME ÉTÉ
A107: BRIDGESTONE | B107: 235 | C107: 60 | D107: 18 | E107: 107 | F107: H | G107: PN BRI 235/60R18 XL 107H D AT 002 | H107: BS D AT 002 | I107: 234 | J107: 167.31 | K107: 20371 | L107: 3286342037110 | M107: Neuf | N107: 4x4 TOUTES SAISONS
A108: BRIDGESTONE | B108: 235 | C108: 75 | D108: 15 | E108: 109 | F108: T | G108: PN BRI 235/75R15 XL 109T D AT 002 | H108: BS D AT 002 | I108: 214 | J108: 153.01 | K108: 20336 | L108: 3286342033617 | M108: Neuf | N108: 4x4 TOUTES SAISONS
A109: BRIDGESTONE | B109: 265 | C109: 70 | D109: 17 | E109: 116 | F109: S | G109: PN BRI 265/70R17 XL 116S D AT 002 | H109: BS D AT 002 | I109: 271.5 | J109: 194.1225 | K109: 20365 | L109: 3286342036519 | M109: Neuf | N109: 4x4 TOUTES SAISONS
A110: BRIDGESTONE | B110: 235 | C110: 55 | D110: 18 | E110: 104 | F110: H | G110: PN BRI 235/55R18 XL 104H D AT 002 | H110: BS D AT 002 | I110: 230.5 | J110: 164.8075 | K110: 20370 | L110: 3286342037011 | M110: Neuf | N110: 4x4 TOUTES SAISONS
A111: BRIDGESTONE | B111: 255 | C111: 55 | D111: 19 | E111: 111 | F111: H | G111: PN BRI 255/55R19 XL 111H D AT 002 | H111: BS D AT 002 | I111: 316 | J111: 225.94 | K111: 20377 | L111: 3286342037714 | M111: Neuf | N111: 4x4 TOUTES SAISONS
A112: BRIDGESTONE | B112: 195 | C112: 60 | D112: 16 | E112: 99/97 | F112: H | G112: PN BRI 195/60R16C 99/97H DURAVIS VAN | H112: BS DURAVIS VAN | I112: 215 | J112: 153.725 | K112: 20892 | L112: 3286342089218 | M112: Neuf | N112: CAMIONNETTE ETE
A113: BRIDGESTONE | B113: 255 | C113: 55 | D113: 18 | E113: 109 | F113: H | G113: PN BRI 255/55R18 XL 109H D AT 002 | H113: BS D AT 002 | I113: 247.5 | J113: 176.9625 | K113: 20374 | L113: 3286342037417 | M113: Neuf | N113: 4x4 TOUTES SAISONS
A114: BRIDGESTONE | B114: 265 | C114: 60 | D114: 18 | E114: 114 | F114: H | G114: PN BRI 265/60R18 XL 114H D AT 002 | H114: BS D AT 002 | I114: 277 | J114: 198.055 | K114: 20375 | L114: 3286342037516 | M114: Neuf | N114: 4x4 TOUTES SAISONS
A115: BRIDGESTONE | B115: 235 | C115: 45 | D115: 21 | E115: 101 | F115: T | G115: PN BRI 235/45R21 XL 101T TURANZA ECO + | H115: BS TURANZA ECO | I115: 508 | J115: 363.22 | K115: 28772 | L115: 3286342877211 | M115: Neuf | N115: TOURISME ÉTÉ
A116: BRIDGESTONE | B116: 235 | C116: 50 | D116: 21 | E116: 101 | F116: W | G116: PN BRI 235/50R21 101W ALENZA1 | H116: BS ALENZA 001 | I116: 496.5 | J116: 354.9975 | K116: 30790 | L116: 3286343079010 | M116: Neuf | N116: 4x4
A117: BRIDGESTONE | B117: 235 | C117: 50 | D117: 20 | E117: 100 | F117: T | G117: PN BRI 235/50R20 100T TURANZA ECO + | H117: BS TURANZA ECO | I117: 438 | J117: 313.17 | K117: 28768 | L117: 3286342876818 | M117: Neuf | N117: TOURISME ÉTÉ
A118: BRIDGESTONE | B118: 255 | C118: 45 | D118: 20 | E118: 101 | F118: T | G118: PN BRI 255/45R20 101T TURANZA ECO + | H118: BS TURANZA ECO | I118: 409.5 | J118: 292.7925 | K118: 28770 | L118: 3286342877013 | M118: Neuf | N118: TOURISME ÉTÉ
A119: BRIDGESTONE | B119: 245 | C119: 50 | D119: 19 | E119: 105 | F119: W | G119: PN BRI 245/50R19 XL 105W TURANZA 6 | H119: BS TURANZA 6 | I119: 323.5 | J119: 231.3025 | K119: 26035 | L119: 3286342603513 | M119: Neuf | N119: TOURISME ÉTÉ
A120: BRIDGESTONE | B120: 225 | C120: 55 | D120: 17 | E120: 109/107 | F120: H | G120: PN BRI 225/55R17C 109/107H DURAVIS VAN | H120: BS DURAVIS VAN | I120: 302 | J120: 215.93 | K120: 25773 | L120: 3286342577319 | M120: Neuf | N120: CAMIONNETTE ETE
A121: BRIDGESTONE | B121: 255 | C121: 35 | D121: 21 | E121: 98 | F121: Y | G121: PN BRI 255/35R21 XL 98Y TURANZA 6 | H121: BS TURANZA 6 | I121: 420 | J121: 300.3 | K121: 26046 | L121: 3286342604619 | M121: Neuf | N121: TOURISME ÉTÉ
A122: BRIDGESTONE | B122: 255 | C122: 45 | D122: 19 | E122: 100 | F122: V | G122: PN BRI 255/45R19 100V TURANZA 6 | H122: BS TURANZA 6 | I122: 300.5 | J122: 214.8575 | K122: 26038 | L122: 3286342603810 | M122: Neuf | N122: TOURISME ÉTÉ
A123: BRIDGESTONE | B123: 235 | C123: 45 | D123: 19 | E123: 99 | F123: V | G123: PN BRI 235/45R19 XL 99V TURANZA 6 | H123: BS TURANZA 6 | I123: 328.5 | J123: 234.8775 | K123: 26021 | L123: 3286342602110 | M123: Neuf | N123: TOURISME ÉTÉ
A124: BRIDGESTONE | B124: 225 | C124: 40 | D124: 19 | E124: 93 | F124: Y | G124: PN BRI 225/40R19 XL 93Y TURANZA 6 | H124: BS TURANZA 6 | I124: 270.5 | J124: 193.4075 | K124: 26022 | L124: 3286342602219 | M124: Neuf | N124: TOURISME ÉTÉ
A125: BRIDGESTONE | B125: 215 | C125: 50 | D125: 18 | E125: 92 | F125: W | G125: PN BRI 215/50R18 92W TURANZA 6 | H125: BS TURANZA 6 | I125: 233.5 | J125: 166.9525 | K125: 26012 | L125: 3286342601212 | M125: Neuf | N125: TOURISME ÉTÉ
A126: BRIDGESTONE | B126: 205 | C126: 55 | D126: 19 | E126: 97 | F126: V | G126: PN BRI 205/55R19 XL 97V TURANZA 6 | H126: BS TURANZA 6 | I126: 214 | J126: 153.01 | K126: 26019 | L126: 3286342601915 | M126: Neuf | N126: TOURISME ÉTÉ
A127: BRIDGESTONE | B127: 245 | C127: 40 | D127: 21 | E127: 100 | F127: Y | G127: PN BRI 245/40R21 XL 100Y TURANZA 6 | H127: BS TURANZA 6 | I127: 442.5 | J127: 316.3875 | K127: 26047 | L127: 3286342604718 | M127: Neuf | N127: TOURISME ÉTÉ
A128: BRIDGESTONE | B128: 315 | C128: 30 | D128: 21 | E128: 105 | F128: Y | G128: PN BRI 315/30R21 XL 105Y TURANZA 6 | H128: BS TURANZA 6 | I128: 512.5 | J128: 366.4375 | K128: 26057 | L128: 3286342605715 | M128: Neuf | N128: TOURISME ÉTÉ
A129: BRIDGESTONE | B129: 245 | C129: 45 | D129: 20 | E129: 103 | F129: Y | G129: PN BRI 245/45R20 XL 103Y TURANZA 6 | H129: BS TURANZA 6 | I129: 361.5 | J129: 258.4725 | K129: 26040 | L129: 3286342604015 | M129: Neuf | N129: TOURISME ÉTÉ
A130: BRIDGESTONE | B130: 275 | C130: 50 | D130: 20 | E130: 113 | F130: W | G130: PN BRI 275/50R20 XL 113W TURANZA 6 | H130: BS TURANZA 6 | I130: 410 | J130: 293.15 | K130: 26041 | L130: 3286342604114 | M130: Neuf | N130: TOURISME ÉTÉ
A131: BRIDGESTONE | B131: 245 | C131: 45 | D131: 17 | E131: 95 | F131: Y | G131: PN BRI 245/45R17 95 Y S001 TT | H131: BS S001 | I131: 234.5 | J131: 167.6675 | K131: 6472 | L131: 3286340647212 | M131: Neuf | N131: TOURISME ÉTÉ
A132: BRIDGESTONE | B132: 235 | C132: 40 | D132: 19 | E132: 96 | F132: W | G132: PN BRI 235/40R19 XL 96 W PTZ S001 | H132: BS S001 | I132: 292 | J132: 208.78 | K132: 7295 | L132: 3286340729512 | M132: Neuf | N132: TOURISME ÉTÉ
A133: BRIDGESTONE | B133: 225 | C133: 50 | D133: 18 | E133: 95 | F133: W | G133: PN BRI 225/50R18 95 W RFT T001 X1 | H133: BS T001 | I133: 318 | J133: 227.37 | K133: 7833 | L133: 3286340783316 | M133: Neuf | N133: TOURISME ÉTÉ
A134: BRIDGESTONE | B134: 185 | C134: 50 | D134: 16 | E134: 81 | F134: H | G134: PN BRI 185/50R16 81 H T001 VW UP | H134: BS T001 | I134: 203.5 | J134: 145.5025 | K134: 7861 | L134: 3286340786119 | M134: Neuf | N134: TOURISME ÉTÉ
A135: BRIDGESTONE | B135: 225 | C135: 40 | D135: 18 | E135: 92 | F135: Y | G135: PN BRI 225/40R18 XL 92 Y RFT S001 1SE | H135: BS S001 | I135: 180 | J135: 128.7 | K135: 7542 | L135: 3286340754217 | M135: Neuf | N135: TOURISME ÉTÉ
A136: BRIDGESTONE | B136: 245 | C136: 35 | D136: 18 | E136: 92 | F136: Y | G136: PN BRI 245/35R18 XL 92 Y RFT S001 1SE | H136: BS S001 | I136: 269.5 | J136: 192.6925 | K136: 7282 | L136: 3286340728218 | M136: Neuf | N136: TOURISME ÉTÉ
A137: BRIDGESTONE | B137: 225 | C137: 35 | D137: 18 | E137: 87 | F137: Y | G137: PN BRI 225/35R18 XL 87 Y S001 S1 | H137: BS S001 | I137: 255 | J137: =I137*(1-VLOOKUP(A137,Datas_Remises,4,0)) -> 182.325 | K137: 7290 | L137: 3286340729017 | M137: Neuf | N137: TOURISME ÉTÉ
A138: BRIDGESTONE | B138: 215 | C138: 40 | D138: 17 | E138: 87 | F138: V | G138: PN BRI 215/40R17 XL 87 V RE050A POLO | H138: BS RE050A | I138: 201.5 | J138: 144.0725 | K138: 7303 | L138: 3286340730310 | M138: Neuf | N138: TOURISME ÉTÉ
A139: BRIDGESTONE | B139: 245 | C139: 35 | D139: 19 | E139: 93 | F139: Y | G139: PN BRI 245/35R19 XL 93 Y S001 TT | H139: BS S001 | I139: 313 | J139: 223.795 | K139: 6469 | L139: 3286340646918 | M139: Neuf | N139: TOURISME ÉTÉ
A140: BRIDGESTONE | B140: 255 | C140: 55 | D140: 18 | E140: 109 | F140: W | G140: PN BRI 255/55R18 XL 109 W D-SPORT TOUA | H140: BS DHPSPO | I140: 227.5 | J140: 162.6625 | K140: 6477 | L140: 3286340647717 | M140: Neuf | N140: 4x4
A141: BRIDGESTONE | B141: 235 | C141: 50 | D141: 18 | E141: 97 | F141: H | G141: PN BRI 235/50R18 97 H EXT D400 MER BLK | H141: BS DUEL HL 400 | I141: 259 | J141: 185.185 | K141: 7403 | L141: 3286340740319 | M141: Neuf | N141: 4x4
A142: BRIDGESTONE | B142: 205 | C142: 60 | D142: 16 | E142: 92 | F142: V | G142: PN BRI 205/60R16 92V TRZ ECO T-ROC | H142: BS TURANZA ECO | I142: 186.5 | J142: 133.3475 | K142: 13966 | L142: 3286341396614 | M142: Neuf | N142: TOURISME ÉTÉ
A143: BRIDGESTONE | B143: 205 | C143: 65 | D143: 17 | E143: 100 | F143: Y | G143: PN BRI 205/65R17 XL 100Y TURANZA 6 * TL | H143: BS TURANZA 6 | I143: 222.5 | J143: 159.0875 | K143: 22784 | L143: 3286342278414 | M143: Neuf | N143: TOURISME ÉTÉ
A144: BRIDGESTONE | B144: 235 | C144: 55 | D144: 17 | E144: 103 | F144: V | G144: PN BRI 235/55R17 XL 103 V ER300 ECO VW | H144: BS ER300 | I144: 213 | J144: 152.295 | K144: 6625 | L144: 3286340662512 | M144: Neuf | N144: TOURISME ÉTÉ
A145: BRIDGESTONE | B145: 245 | C145: 50 | D145: 18 | E145: 100 | F145: Y | G145: PN BRI 245/50R18 100 Y S001 7SER | H145: BS S001 | I145: 303.5 | J145: 217.0025 | K145: 7830 | L145: 3286340783019 | M145: Neuf | N145: TOURISME ÉTÉ
A146: BRIDGESTONE | B146: 245 | C146: 50 | D146: 18 | E146: 100 | F146: Y | G146: PN BRI 245/50R18 100 Y RFT S001 7SER15 | H146: BS S001 | I146: 337.5 | J146: 241.3125 | K146: 7829 | L146: 3286340782913 | M146: Neuf | N146: TOURISME ÉTÉ
A147: BRIDGESTONE | B147: 195 | C147: 55 | D147: 16 | E147: 87 | F147: W | G147: PN BRI 195/55R16 87 W ER300A ECO 1SE | H147: BS TRZ ER300A | I147: 201 | J147: 143.715 | K147: 7473 | L147: 3286340747318 | M147: Neuf | N147: TOURISME ÉTÉ
A148: BRIDGESTONE | B148: 185 | C148: 55 | D148: 16 | E148: 87 | F148: H | G148: PN BRI 185/55R16 XL 87 H EP150 | H148: BS EP 150 | I148: 200.5 | J148: 143.3575 | K148: 7756 | L148: 3286340775618 | M148: Neuf | N148: TOURISME ÉTÉ
A149: BRIDGESTONE | B149: 225 | C149: 60 | D149: 17 | E149: 99 | F149: V | G149: PN BRI 225/60R17 99V TURANZA 6 | H149: BS TURANZA 6 | I149: 236 | J149: 168.74 | K149: 20530 | L149: 3286342053011 | M149: Neuf | N149: 4x4
A150: BRIDGESTONE | B150: 225 | C150: 65 | D150: 17 | E150: 102 | F150: H | G150: PN BRI 225/65R17 102H TURANZA 6 | H150: BS TURANZA 6 | I150: 190 | J150: 135.85 | K150: 20531 | L150: 3286342053110 | M150: Neuf | N150: 4x4
A151: BRIDGESTONE | B151: 215 | C151: 65 | D151: 17 | E151: 99 | F151: V | G151: PN BRI 215/65R17 99V TURANZA 6 | H151: BS TURANZA 6 | I151: 187.5 | J151: 134.0625 | K151: 20527 | L151: 3286342052717 | M151: Neuf | N151: 4x4
A152: BRIDGESTONE | B152: 215 | C152: 60 | D152: 17 | E152: 100 | F152: H | G152: PN BRI 215/60R17 XL 100H TURANZA 6 | H152: BS TURANZA 6 | I152: 190.5 | J152: 136.2075 | K152: 20528 | L152: 3286342052816 | M152: Neuf | N152: 4x4
A153: BRIDGESTONE | B153: 235 | C153: 65 | D153: 17 | E153: 108 | F153: V | G153: PN BRI 235/65R17 XL 108V TURANZA 6 | H153: BS TURANZA 6 | I153: 194 | J153: 138.71 | K153: 20533 | L153: 3286342053318 | M153: Neuf | N153: 4x4
A154: BRIDGESTONE | B154: 195 | C154: 70 | D154: 15 | E154: 104/102 | F154: S | G154: PN BRI 195/70R15C 104/102S DURAVIS VAN | H154: BS DURAVIS VAN | I154: 155.5 | J154: 111.1825 | K154: 20881 | L154: 3286342088112 | M154: Neuf | N154: CAMIONNETTE ETE
A155: BRIDGESTONE | B155: 225 | C155: 70 | D155: 15 | E155: 112/110 | F155: S | G155: PN BRI 225/70R15C 112/110S DURAVIS VAN | H155: BS DURAVIS VAN | I155: 219.5 | J155: 156.9425 | K155: 20887 | L155: 3286342088716 | M155: Neuf | N155: CAMIONNETTE ETE
A156: BRIDGESTONE | B156: 235 | C156: 55 | D156: 17 | E156: 103 | F156: Y | G156: PN BRI 235/55R17 XL 103Y TURANZA 6 | H156: BS TURANZA 6 | I156: 212.5 | J156: 151.9375 | K156: 20535 | L156: 3286342053516 | M156: Neuf | N156: 4x4
A157: BRIDGESTONE | B157: 295 | C157: 40 | D157: 21 | E157: 111 | F157: Y | G157: PN BRI 295/40R21 XL 111Y TURANZA 6 | H157: BS TURANZA 6 | I157: 422.5 | J157: 302.0875 | K157: 20589 | L157: 3286342058917 | M157: Neuf | N157: 4x4
A158: BRIDGESTONE | B158: 285 | C158: 45 | D158: 20 | E158: 112 | F158: H | G158: PN BRI 285/45R20 XL 112H ALENZA1 Q6 | H158: BS ALENZA 001 | I158: 424.5 | J158: 303.5175 | K158: 13236 | L158: 3286341323610 | M158: Neuf | N158: 4x4
A159: BRIDGESTONE | B159: 285 | C159: 60 | D159: 18 | E159: 116 | F159: V | G159: PN BRI 285/60R18 116V TURANZA 6 | H159: BS TURANZA 6 | I159: 312.5 | J159: 223.4375 | K159: 20559 | L159: 3286342055916 | M159: Neuf | N159: 4x4
A160: BRIDGESTONE | B160: 255 | C160: 70 | D160: 18 | E160: 116 | F160: S | G160: PN BRI LT255/70R18 XL 116S D AT 001 | H160: BS D AT 001 | I160: 267 | J160: 190.905 | K160: 22847 | L160: 3286342284712 | M160: Neuf | N160: 4x4 TOUTES SAISONS
A161: BRIDGESTONE | B161: 265 | C161: 70 | D161: 17 | E161: 116 | F161: S | G161: PN BRI 265/70R17 XL 116S D AT 001 | H161: BS D AT 001 | I161: 271.5 | J161: 194.1225 | K161: 22848 | L161: 3286342284811 | M161: Neuf | N161: 4x4 TOUTES SAISONS
A162: BRIDGESTONE | B162: 235 | C162: 55 | D162: 19 | E162: 105 | F162: Y | G162: PN BRI 235/55R19 XL 105Y TRZ T005 GL | H162: BS T005 | I162: 279.5 | J162: 199.8425 | K162: 18388 | L162: 3286341838817 | M162: Neuf | N162: TOURISME ÉTÉ
A163: BRIDGESTONE | B163: 255 | C163: 40 | D163: 21 | E163: 102 | F163: T | G163: PN BRI 255/40R21 XL 102T TURANZA ECO | H163: BS TURANZA ECO | I163: 413 | J163: 295.295 | K163: 28774 | L163: 3286342877419 | M163: Neuf | N163: TOURISME ÉTÉ
A164: BRIDGESTONE | B164: 205 | C164: 45 | D164: 17 | E164: 88 | F164: W | G164: PN BRI 205/45R17 XL 88W TURANZA 6 | H164: BS TURANZA 6 | I164: 192 | J164: 137.28 | K164: 20526 | L164: 3286342052618 | M164: Neuf | N164: TOURISME ÉTÉ
A165: BRIDGESTONE | B165: 255 | C165: 50 | D165: 20 | E165: 109 | F165: V | G165: PN BRI 255/50R20 XL 109V POTENZA SPORT | H165: BS POTENZA SPORT | I165: 359.5 | J165: 257.0425 | K165: 27357 | L165: 3286342735719 | M165: Neuf | N165: TOURISME ÉTÉ
A166: BRIDGESTONE | B166: 255 | C166: 45 | D166: 22 | E166: 107 | F166: W | G166: PN BRI 255/45R22 107W POTENZA SPORT | H166: BS POTENZA SPORT | I166: 451.5 | J166: 322.8225 | K166: 27359 | L166: 3286342735917 | M166: Neuf | N166: TOURISME ÉTÉ
A167: BRIDGESTONE | B167: 235 | C167: 50 | D167: 20 | E167: 104 | F167: V | G167: PN BRI 235/50R20 XL 104V ALENZA1 TL | H167: BS ALENZA 001 | I167: 328 | J167: 234.52 | K167: 30880 | L167: 3286343088012 | M167: Neuf | N167: 4x4
A168: BRIDGESTONE | B168: 235 | C168: 55 | D168: 18 | E168: 100 | F168: H | G168: PN BRI 235/55R18 100 H D687 | H168: BS D687 | I168: 217.5 | J168: 155.5125 | K168: 7404 | L168: 3286340740418 | M168: Neuf | N168: 4x4
A169: BRIDGESTONE | B169: 265 | C169: 30 | D169: 20 | E169: 94 | F169: Y | G169: PN BRI 265/30 ZR 20 XL 94 Y S007 | H169: BS S007 | I169: 400 | J169: 286 | K169: 7363 | L169: 3286340736312 | M169: Neuf | N169: TOURISME ÉTÉ
A170: BRIDGESTONE | B170: 225 | C170: 55 | D170: 16 | E170: 95 | F170: W | G170: PN BRI 225/55R16 95 W RFT ER300A | H170: BS TRZ ER300A | I170: 269.5 | J170: 192.6925 | K170: 7423 | L170: 3286340742313 | M170: Neuf | N170: TOURISME ÉTÉ
A171: BRIDGESTONE | B171: 205 | C171: 50 | D171: 17 | E171: 89 | F171: W | G171: PN BRI 205/50R17 89 W RFT S001 | H171: BS S001 | I171: 218.5 | J171: 156.2275 | K171: 7424 | L171: 3286340742412 | M171: Neuf | N171: TOURISME ÉTÉ
A172: BRIDGESTONE | B172: 275 | C172: 45 | D172: 21 | E172: 110 | F172: Y | G172: PN BRI 275/45R21 XL 110Y TURANZA 6 | H172: BS TURANZA 6 | I172: 373.5 | J172: 267.0525 | K172: 20586 | L172: 3286342058610 | M172: Neuf | N172: 4x4
A173: BRIDGESTONE | B173: 205 | C173: 50 | D173: 17 | E173: 89 | F173: Y | G173: PN BRI 205/50R17 89 Y S001 SER 12 WAR | H173: BS S001 | I173: 210.5 | J173: 150.5075 | K173: 7779 | L173: 3286340777919 | M173: Neuf | N173: TOURISME ÉTÉ
A174: BRIDGESTONE | B174: 215 | C174: 40 | D174: 17 | E174: 87 | F174: Y | G174: PN BRI 215/40R17 XL 87 Y S001 AUD S1 W | H174: BS S001 | I174: 205.5 | J174: 146.9325 | K174: 7289 | L174: 3286340728911 | M174: Neuf | N174: TOURISME ÉTÉ
A175: BRIDGESTONE | B175: 195 | C175: 55 | D175: 16 | E175: 87 | F175: V | G175: PN BRI 195/55 - 16 87 V RFT ER300A ECO 1 | H175: BS TRZ ER300A | I175: 229 | J175: 163.735 | K175: 7425 | L175: 3286340742511 | M175: Neuf | N175: TOURISME ÉTÉ
A176: BRIDGESTONE | B176: 205 | C176: 60 | D176: 16 | E176: 96 | F176: V | G176: PN BRI 205/60R16 XL 96V ECOPIA 422+ | H176: BS ECOPIA 422+ | I176: 210.5 | J176: 150.5075 | K176: 28367 | L176: 3286342836713 | M176: Neuf | N176: TOURISME ÉTÉ
A177: BRIDGESTONE | B177: 315 | C177: 30 | D177: 20 | E177: 101 | F177: Y | G177: PN BRI 315/30ZR20 101Y RFT PTZ S005 F17 | H177: BS POTENZA S005 | I177: 577 | J177: 412.555 | K177: 25766 | L177: 3286342576619 | M177: Neuf | N177: TOURISME ÉTÉ
A178: BRIDGESTONE | B178: 265 | C178: 35 | D178: 18 | E178: 97 | F178: Y | G178: PN BRI 265/35R18 XL 97Y TURANZA 6 | H178: BS TURANZA 6 | I178: 290 | J178: 207.35 | K178: 22388 | L178: 3286342238814 | M178: Neuf | N178: TOURISME ÉTÉ
A179: BRIDGESTONE | B179: 215 | C179: 60 | D179: 17 | E179: 96 | F179: H | G179: PN BRI 215/60R17 96H ALENZA1 | H179: BS ALENZA 001 | I179: 189.5 | J179: 135.4925 | K179: 28605 | L179: 3286342860510 | M179: Neuf | N179: 4x4
A180: BRIDGESTONE | B180: 235 | C180: 55 | D180: 19 | E180: 101 | F180: V | G180: PN BRI 235/55R19 101V ALENZA1 | H180: BS ALENZA 001 | I180: 259.5 | J180: 185.5425 | K180: 28368 | L180: 3286342836812 | M180: Neuf | N180: 4x4
A181: BRIDGESTONE | B181: 295 | C181: 35 | D181: 21 | E181: 107 | F181: Y | G181: PN BRI 295/35R21 XL 107Y TURANZA 6 | H181: BS TURANZA 6 | I181: 350.5 | J181: 250.6075 | K181: 20588 | L181: 3286342058818 | M181: Neuf | N181: 4x4
A182: BRIDGESTONE | B182: 225 | C182: 50 | D182: 18 | E182: 95 | F182: V | G182: PN BRI 225/50R18 95V RFT ALENZA1 | H182: BS ALENZA 001 | I182: 311 | J182: 222.365 | K182: 30808 | L182: 3286343080818 | M182: Neuf | N182: 4x4
A183: BRIDGESTONE | B183: 205 | C183: 60 | D183: 16 | E183: 92 | F183: W | G183: PN BRI 205/60R16 92 W RFT ER300A ECO 3 | H183: BS TRZ ER300A | I183: 268.5 | J183: 191.9775 | K183: 7426 | L183: 3286340742610 | M183: Neuf | N183: TOURISME ÉTÉ
A184: BRIDGESTONE | B184: 245 | C184: 45 | D184: 18 | E184: 100 | F184: Y | G184: PN BRI 245/45R18 XL 100 Y ER300 | H184: BS ER300 | I184: 228.5 | J184: 163.3775 | K184: 7297 | L184: 3286340729710 | M184: Neuf | N184: TOURISME ÉTÉ
A185: BRIDGESTONE | B185: 235 | C185: 50 | D185: 18 | E185: 97 | F185: V | G185: PN BRI 235/50R18 97 V D-SPORT Q3 WAR | H185: BS DHPSPO | I185: 237 | J185: 169.455 | K185: 6419 | L185: 3286340641913 | M185: Neuf | N185: 4x4
A186: BRIDGESTONE | B186: 265 | C186: 35 | D186: 18 | E186: 97 | F186: Y | G186: PN BRI 265/35R18 XL 97Y POTENZA RACE | H186: BS POTENZA RACE | I186: 542 | J186: 387.53 | K186: 28280 | L186: 3286342828015 | M186: Neuf | N186: TOURISME ÉTÉ
A187: BRIDGESTONE | B187: 215 | C187: 60 | D187: 17 | E187: 96 | F187: H | G187: PN BRI 215/60R17 96H T005 DUS | H187: BS T005 | I187: 189.5 | J187: 135.4925 | K187: 22830 | L187: 3286342283012 | M187: Neuf | N187: 4x4
A188: BRIDGESTONE | B188: 305 | C188: 35 | D188: 20 | E188: 104 | F188: Y | G188: PN BRI 305/35R20 104Y POTENZA SPORT | H188: BS POTENZA SPORT | I188: 534 | J188: 381.81 | K188: 21994 | L188: 3286342199412 | M188: Neuf | N188: TOURISME ÉTÉ
A189: BRIDGESTONE | B189: 245 | C189: 35 | D189: 20 | E189: 91 | F189: Y | G189: PN BRI 245/35R20 91Y POTENZA SPORT | H189: BS POTENZA SPORT | I189: 380 | J189: 271.7 | K189: 21993 | L189: 3286342199313 | M189: Neuf | N189: TOURISME ÉTÉ
A190: BRIDGESTONE | B190: 195 | C190: 75 | D190: 16 | E190: 110/108 | F190: R | G190: PN BRI 195/75R16C 110/108R DURAVIS ALL S | H190: BS DURAVIS ALL SEA | I190: 204.5 | J190: 146.2175 | K190: 28537 | L190: 3286342853710 | M190: Neuf | N190: CAMIONNETTE TOUTES SAISONS
A191: BRIDGESTONE | B191: 225 | C191: 55 | D191: 18 | E191: 102 | F191: Y | G191: PN BRI 225/55R18 102Y TURANZA 6 | H191: BS TURANZA 6 | I191: 235.5 | J191: 168.3825 | K191: 22785 | L191: 3286342278513 | M191: Neuf | N191: TOURISME ÉTÉ
A192: BRIDGESTONE | B192: 235 | C192: 60 | D192: 18 | E192: 103 | F192: H | G192: PN BRI 235/60R18 103H ALENZA1 TL | H192: BS ALENZA 001 | I192: 239 | J192: 170.885 | K192: 30846 | L192: 3286343084618 | M192: Neuf | N192: 4x4
A193: BRIDGESTONE | B193: 225 | C193: 45 | D193: 18 | E193: 95 | F193: Y | G193: PN BRI 225/45R18 XL 95Y T005 MO | H193: BS T005 | I193: 234 | J193: 167.31 | K193: 18815 | L193: 3286341881516 | M193: Neuf | N193: TOURISME ÉTÉ
A194: BRIDGESTONE | B194: 245 | C194: 40 | D194: 18 | E194: 97 | F194: Y | G194: PN BRI 245/40R18 XL 97Y T005 MO | H194: BS T005 | I194: 213 | J194: 152.295 | K194: 18816 | L194: 3286341881615 | M194: Neuf | N194: TOURISME ÉTÉ
A195: BRIDGESTONE | B195: 255 | C195: 40 | D195: 20 | E195: 104 | F195: Y | G195: PN BRI HL255/40R20 XL 104Y TRZ T005 A6+ | H195: BS T005 | I195: 366.5 | J195: 262.0475 | K195: 21756 | L195: 3286342175614 | M195: Neuf | N195: TOURISME ÉTÉ
A196: BRIDGESTONE | B196: 235 | C196: 50 | D196: 20 | E196: 100 | F196: W | G196: PN BRI 235/50R20 100W ALENZA1 | H196: BS ALENZA 001 | I196: 400 | J196: 286 | K196: 28804 | L196: 3286342880419 | M196: Neuf | N196: 4x4
A197: BRIDGESTONE | B197: 215 | C197: 45 | D197: 16 | E197: 90 | F197: V | G197: PN BRI 215/45R16 90 V T001 A1 14 WAR | H197: BS T001 | I197: 240 | J197: 171.6 | K197: 7296 | L197: 3286340729611 | M197: Neuf | N197: TOURISME ÉTÉ
A198: BRIDGESTONE | B198: 215 | C198: 45 | D198: 17 | E198: 91 | F198: W | G198: PN BRI 215/45R17 XL 91W T005 AO | H198: BS T005 | I198: 179 | J198: 127.985 | K198: 19266 | L198: 3286341926613 | M198: Neuf | N198: TOURISME ÉTÉ
A199: BRIDGESTONE | B199: 235 | C199: 65 | D199: 17 | E199: 104 | F199: V | G199: PN BRI 235/65R17 104V DUEL H/P SPORT GL | H199: BS DHPSPO | I199: 199 | J199: 142.285 | K199: 23156 | L199: 3286342315614 | M199: Neuf | N199: 4x4
A200: BRIDGESTONE | B200: 245 | C200: 35 | D200: 20 | E200: 95 | F200: Y | G200: PN BRI 245/35R20 XL 95Y POTENZA SPORT * | H200: BS POTENZA SPORT | I200: 340 | J200: 243.1 | K200: 23121 | L200: 3286342312118 | M200: Neuf | N200: TOURISME ÉTÉ
A201: BRIDGESTONE | B201: 275 | C201: 30 | D201: 20 | E201: 97 | F201: Y | G201: PN BRI 275/30R20 XL 97Y POTENZA SPORT * | H201: BS POTENZA SPORT | I201: 449.5 | J201: =I201*(1-VLOOKUP(A201,Datas_Remises,4,0)) -> 321.3925 | K201: 23117 | L201: 3286342311715 | M201: Neuf | N201: TOURISME ÉTÉ
A202: BRIDGESTONE | B202: 245 | C202: 40 | D202: 18 | E202: 97 | F202: Y | G202: PN BRI 245/40R18 XL 97Y POTENZA RACE | H202: BS POTENZA RACE | I202: 384.5 | J202: 274.9175 | K202: 28278 | L202: 3286342827810 | M202: Neuf | N202: TOURISME ÉTÉ
A203: BRIDGESTONE | B203: 265 | C203: 45 | D203: 21 | E203: 108 | F203: H | G203: PN BRI 265/45R21 XL 108H ALENZA1 AO | H203: BS ALENZA 001 | I203: 394 | J203: 281.71 | K203: 25560 | L203: 3286342556017 | M203: Neuf | N203: TOURISME ÉTÉ
... 4297 more rows

Sheet BRI
D2: Remise
D3: =Remises!$E$8 -> 0.285
A5: Actualisation au 04/04/2024
A7: REFERENCES PNEUMATIQUES | Q7: TARIFS
A8: CAI | B8: EAN | C8: Désignation | D8: Appellation | E8: Catégorie | F8: Profil | G8: Largeur | H8: Hauteur | I8: Structure | J8: Diamètre | K8: IC | L8: IV | M8: Conso. | N8: Frein. | O8: Bruit. | P8: Décibels. | Q8: Prix BF | R8: Prix Remisé
A9: 10050 | B9: 3286341005011 | C9: PN BRI P245/70R17 108S D HT 684-II LCRUI | D9: 2457017SD6842108 | E9: 4x4 | F9: BS DUEL HT 684-II | G9: 245 | H9: 70 | I9: R | J9: 17 | K9: 108 | L9: S | M9: D | N9: D | O9: B | P9: 71 | Q9: 290.5 | R9: =Q9*(1-$D$3) -> 207.7075
A10: 10056 | B10: 3286341005615 | C10: PN BRI 225/65R17 102V TRZ T005 FOR KUG | D10: 2256517VT005102 | E10: TOURISME ÉTÉ | F10: BS T005 | G10: 225 | H10: 65 | I10: R | J10: 17 | K10: 102 | L10: V | M10: A | N10: B | O10: B | P10: 71 | Q10: 207 | R10: =Q10*(1-$D$3) -> 148.005
A11: 10060 | B11: 3286341006018 | C11: PN BRI 245/40R21 XL 100Y RFT ALENZA 001 | D11: 2454021YAL001*100RU | E11: TOURISME ÉTÉ | F11: BS ALENZA 001 | G11: 245 | H11: 40 | I11: R | J11: 21 | K11: 100 | L11: Y | M11: B | N11: B | O11: B | P11: 72 | Q11: 507 | R11: 362.505
A12: 10063 | B12: 3286341006315 | C12: PN BRI 275/35R21 XL 103Y RFT ALENZA 001 | D12: 2753521YAL001*103RU | E12: TOURISME ÉTÉ | F12: BS ALENZA 001 | G12: 275 | H12: 35 | I12: R | J12: 21 | K12: 103 | L12: Y | M12: B | N12: B | O12: B | P12: 73 | Q12: 553 | R12: 395.395
A13: 10095 | B13: 3286341009514 | C13: PN BRI 235/50R19 99V ALENZA1 SLT TIG16 | D13: 2355019VALENZA199 | E13: 4x4 | F13: BS ALENZA 001 | G13: 235 | H13: 50 | I13: R | J13: 19 | K13: 99 | L13: V | M13: C | N13: A | O13: B | P13: 71 | Q13: 267.5 | R13: 191.2625
A14: 10096 | B14: 3286341009613 | C14: PN BRI 235/55R18 100V ALENZA 001 TIGUA | D14: 2355518VALENZ1100 | E14: 4x4 | F14: BS ALENZA 001 | G14: 235 | H14: 55 | I14: R | J14: 18 | K14: 100 | L14: V | M14: C | N14: A | O14: B | P14: 70 | Q14: 237 | R14: 169.455
A15: 10163 | B15: 3286341016314 | C15: PN BRI 195/65R15 XL 95H TRZ T005 | D15: 1956515HT00595 | E15: TOURISME ÉTÉ | F15: BS T005 | G15: 195 | H15: 65 | I15: R | J15: 15 | K15: 95 | L15: H | M15: B | N15: A | O15: B | P15: 72 | Q15: 133.5 | R15: 95.4525
A16: 10165 | B16: 3286341016512 | C16: PN BRI 205/55R16 XL 94V TRZ T005 | D16: 2055516VT00594 | E16: TOURISME ÉTÉ | F16: BS T005 | G16: 205 | H16: 55 | I16: R | J16: 16 | K16: 94 | L16: V | M16: B | N16: A | O16: B | P16: 71 | Q16: 156 | R16: 111.54
A17: 10169 | B17: 3286341016918 | C17: PN BRI 205/55R16 91H TRZ T005 | D17: 2055516HT00591 | E17: TOURISME ÉTÉ | F17: BS T005 | G17: 205 | H17: 55 | I17: R | J17: 16 | K17: 91 | L17: H | M17: B | N17: A | O17: B | P17: 71 | Q17: 130.5 | R17: 93.3075
A18: 10291 | B18: 3286341029116 | C18: PN BRI 195/55R16 XL 91V T005 AUD A | D18: 1955516VT00591 | E18: TOURISME ÉTÉ | F18: BS T005 | G18: 195 | H18: 55 | I18: R | J18: 16 | K18: 91 | L18: V | M18: B | N18: A | O18: B | P18: 72 | Q18: 210 | R18: 150.15
A19: 10295 | B19: 3286341029512 | C19: PN BRI 235/55R18 100V ALZ 001 AUD Q | D19: 2355518VALZ001AO100 | E19: 4x4 | F19: BS ALENZA 001 | G19: 235 | H19: 55 | I19: R | J19: 18 | K19: 100 | L19: V | M19: B | N19: A | O19: B | P19: 71 | Q19: 212.5 | R19: 151.9375
A20: 10303 | B20: 3286341030310 | C20: PN BRI 215/75R15 100S DUEL A/T 001 | D20: 2157515SAT001100 | E20: 4x4 TOUTES SAISONS | F20: BS D AT 001 | G20: 215 | H20: 75 | I20: R | J20: 15 | K20: 100 | L20: S | M20: D | N20: C | O20: B | P20: 72 | Q20: 205.5 | R20: 146.9325
A21: 10305 | B21: 3286341030518 | C21: PN BRI 255/70R15 108S DUEL A/T 001 | D21: 2557015SAT001108 | E21: 4x4 TOUTES SAISONS | F21: BS D AT 001 | G21: 255 | H21: 70 | I21: R | J21: 15 | K21: 108 | L21: S | M21: C | N21: C | O21: B | P21: 73 | Q21: 221.5 | R21: 158.3725
A22: 10418 | B22: 3286341041811 | C22: PN BRI 215/40R18 XL 89Y T005 A1 | D22: 2154018YT00589 | E22: TOURISME ÉTÉ | F22: BS T005 | G22: 215 | H22: 40 | I22: R | J22: 18 | K22: 89 | L22: Y | M22: C | N22: A | O22: B | P22: 72 | Q22: 229 | R22: 163.735
A23: 10426 | B23: 3286341042610 | C23: PN BRI 235/50R19 99V ALENZA1 Q3 1 | D23: 2355019VALZ001AO99 | E23: 4x4 | F23: BS ALENZA 001 | G23: 235 | H23: 50 | I23: R | J23: 19 | K23: 99 | L23: V | M23: C | N23: A | O23: B | P23: 71 | Q23: 263 | R23: 188.045
A24: 10427 | B24: 3286341042719 | C24: PN BRI 255/50R20 XL 109H ALZ 001 Q6 | D24: 2555020HALZ001AO109 | E24: 4x4 | F24: BS ALENZA 001 | G24: 255 | H24: 50 | I24: R | J24: 20 | K24: 109 | L24: H | M24: B | N24: A | O24: B | P24: 72 | Q24: 342 | R24: 244.53
A25: 10428 | B25: 3286341042818 | C25: PN BRI 255/55R19 XL 111H ALZ 001 Q6 | D25: 2555519HALZ001AO111 | E25: 4x4 | F25: BS ALENZA 001 | G25: 255 | H25: 55 | I25: R | J25: 19 | K25: 111 | L25: H | M25: A | N25: A | O25: B | P25: 72 | Q25: 238 | R25: 170.17
A26: 10430 | B26: 3286341043013 | C26: PN BRI 215/50R17 91V ER33 CIVIC | D26: 2155017VER3391 | E26: TOURISME ÉTÉ | F26: BS TRZ ER33 | G26: 215 | H26: 50 | I26: R | J26: 17 | K26: 91 | L26: V | M26: D | N26: C | O26: A | P26: 68 | Q26: 192 | R26: 137.28
A27: 10433 | B27: 3286341043310 | C27: PN BRI 205/55R17 91W TRZ T005 A/B 1 | D27: 2055517WT005MO91 | E27: TOURISME ÉTÉ | F27: BS T005 | G27: 205 | H27: 55 | I27: R | J27: 17 | K27: 91 | L27: W | M27: B | N27: B | O27: B | P27: 70 | Q27: 193 | R27: 137.995
A28: 10435 | B28: 3286341043518 | C28: PN BRI 225/45R18 91W EXT TRZ T005 MOE | D28: 2254518WT005MO91RU | E28: TOURISME ÉTÉ | F28: BS T005 | G28: 225 | H28: 45 | I28: R | J28: 18 | K28: 91 | L28: W | M28: B | N28: A | O28: B | P28: 70 | Q28: 260.5 | R28: 186.2575
A29: 10441 | B29: 3286341044119 | C29: PN BRI 315/35ZR21 XL 111Y D-SPORT CAY | D29: 3153521YDHPSPO111 | E29: 4x4 | F29: BS DHPSPO | G29: 315 | H29: 35 | I29: ZR | J29: 21 | K29: 111 | L29: Y | M29: C | N29: A | O29: B | P29: 75 | Q29: 548 | R29: 391.82
A30: 10444 | B30: 3286341044416 | C30: PN BRI 255/55R19 107W ALENZA 001 TOUAR | D30: 2555519WALENZ1107 | E30: 4x4 | F30: BS ALENZA 001 | G30: 255 | H30: 55 | I30: R | J30: 19 | K30: 107 | L30: W | M30: B | N30: A | O30: B | P30: 71 | Q30: 239.5 | R30: 171.2425
A31: 10480 | B31: 3286341048018 | C31: PN BRI 235/55R18 100Y TRZ T005 AUD A | D31: 2355518YT005AO100 | E31: TOURISME ÉTÉ | F31: BS T005 | G31: 235 | H31: 55 | I31: R | J31: 18 | K31: 100 | L31: Y | M31: B | N31: A | O31: B | P31: 71 | Q31: 232 | R31: 165.88
A32: 10523 | B32: 3286341052312 | C32: PN BRI 275/40F20 102Y RFT TRZ T005 LEX | D32: 2754020YT005LE102RU | E32: TOURISME ÉTÉ | F32: BS T005 | G32: 275 | H32: 40 | I32: R | J32: 20 | K32: 102 | L32: Y | M32: D | N32: B | O32: B | P32: 72 | Q32: 445.5 | R32: 318.5325
A33: 10525 | B33: 3286341052510 | C33: PN BRID 245/35R19 XL 93Y S001 MEGAN | D33: 2453519YS00193 | E33: TOURISME ÉTÉ | F33: BS S001 | G33: 245 | H33: 35 | I33: R | J33: 19 | K33: 93 | L33: Y | M33: D | N33: B | O33: B | P33: 72 | Q33: 313 | R33: 223.795
A34: 10741 | B34: 3286341074116 | C34: PN BRI 235/35R19 XL 91Y PTZ S005 SER1 | D34: 2353519YS005*91 | E34: TOURISME ÉTÉ | F34: BS POTENZA S005 | G34: 235 | H34: 35 | I34: R | J34: 19 | K34: 91 | L34: Y | M34: B | N34: B | O34: B | P34: 71 | Q34: 237 | R34: 169.455
A35: 10753 | B35: 3286341075311 | C35: PN BRI 185/65R15 XL 92V ECOP EP0015 A1 | D35: 1856515VEP001SAO92 | E35: TOURISME ÉTÉ | F35: BS EP001S | G35: 185 | H35: 65 | I35: R | J35: 15 | K35: 92 | L35: V | M35: B | N35: A | O35: B | P35: 70 | Q35: 126.5 | R35: 90.4475
A36: 10755 | B36: 3286341075519 | C36: PN BRI 245/40R21 96Y RFT S001 LC500 | D36: 2454021YS001LLCR96RU | E36: TOURISME ÉTÉ | F36: BS S001 | G36: 245 | H36: 40 | I36: R | J36: 21 | K36: 96 | L36: Y | M36: D | N36: B | O36: B | P36: 70 | Q36: 500 | R36: 357.5
A37: 10756 | B37: 3286341075618 | C37: PN BRI 275/35R21 99Y RFT S001 LC500 | D37: 2753521YS001LLCR99RU | E37: TOURISME ÉTÉ | F37: BS S001 | G37: 275 | H37: 35 | I37: R | J37: 21 | K37: 99 | L37: Y | M37: D | N37: B | O37: B | P37: 72 | Q37: 466.5 | R37: 333.5475
A38: 10769 | B38: 3286341076912 | C38: PN BRI 235/60R16 100H D H/T 687 | D38: 2356016HD687HT100 | E38: 4x4 | F38: BS D687 | G38: 235 | H38: 60 | I38: R | J38: 16 | K38: 100 | L38: H | M38: D | N38: B | O38: B | P38: 71 | Q38: 212 | R38: 151.58
A39: 10867 | B39: 3286341086713 | C39: PN BRI 205/60R15 91V TRZ T005 | D39: 2056015VT00591 | E39: TOURISME ÉTÉ | F39: BS T005 | G39: 205 | H39: 60 | I39: R | J39: 15 | K39: 91 | L39: V | M39: B | N39: A | O39: B | P39: 71 | Q39: 186 | R39: 132.99
A40: 10873 | B40: 3286341087314 | C40: PN BRI 195/60R15 88V TRZ T005 | D40: 1956015VT00588 | E40: TOURISME ÉTÉ | F40: BS T005 | G40: 195 | H40: 60 | I40: R | J40: 15 | K40: 88 | L40: V | M40: B | N40: A | O40: B | P40: 71 | Q40: 151.5 | R40: 108.3225
A41: 10874 | B41: 3286341087413 | C41: PN BRI 205/65R15 94V TRZ T005 | D41: 2056515VT00594 | E41: TOURISME ÉTÉ | F41: BS T005 | G41: 205 | H41: 65 | I41: R | J41: 15 | K41: 94 | L41: V | M41: B | N41: A | O41: B | P41: 71 | Q41: 190 | R41: 135.85
A42: 10875 | B42: 3286341087512 | C42: PN BRI 195/55R15 85V TRZ T005 | D42: 1955515VT00585 | E42: TOURISME ÉTÉ | F42: BS T005 | G42: 195 | H42: 55 | I42: R | J42: 15 | K42: 85 | L42: V | M42: B | N42: A | O42: B | P42: 71 | Q42: 177.5 | R42: 126.9125
A43: 10876 | B43: 3286341087611 | C43: PN BRI 195/50R15 82V TRZ T005 | D43: 1955015VT00582 | E43: TOURISME ÉTÉ | F43: BS T005 | G43: 195 | H43: 50 | I43: R | J43: 15 | K43: 82 | L43: V | M43: B | N43: A | O43: B | P43: 71 | Q43: 124.5 | R43: 89.0175
A44: 10877 | B44: 3286341087710 | C44: PN BRI 205/60R16 XL 96H TRZ T005 | D44: 2056016HT00596 | E44: TOURISME ÉTÉ | F44: BS T005 | G44: 205 | H44: 60 | I44: R | J44: 16 | K44: 96 | L44: H | M44: B | N44: A | O44: B | P44: 72 | Q44: 200.5 | R44: 143.3575
A45: 10878 | B45: 3286341087819 | C45: PN BRI 195/55R16 87V TRZ T005 | D45: 1955516VT00587 | E45: TOURISME ÉTÉ | F45: BS T005 | G45: 195 | H45: 55 | I45: R | J45: 16 | K45: 87 | L45: V | M45: B | N45: A | O45: B | P45: 71 | Q45: 190.5 | R45: 136.2075
A46: 10879 | B46: 3286341087918 | C46: PN BRI 225/55R16 95Y TRZ T005 | D46: 2255516YT00595 | E46: TOURISME ÉTÉ | F46: BS T005 | G46: 225 | H46: 55 | I46: R | J46: 16 | K46: 95 | L46: Y | M46: B | N46: A | O46: B | P46: 71 | Q46: 245 | R46: 175.175
A47: 10881 | B47: 3286341088113 | C47: PN BRI 225/55R16 XL 99V TRZ T005 | D47: 2255516VT00599 | E47: TOURISME ÉTÉ | F47: BS T005 | G47: 225 | H47: 55 | I47: R | J47: 16 | K47: 99 | L47: V | M47: B | N47: A | O47: B | P47: 72 | Q47: 246.5 | R47: 176.2475
A48: 10882 | B48: 3286341088212 | C48: PN BRI 215/55R16 XL 97W TRZ T005 | D48: 2155516WT00597 | E48: TOURISME ÉTÉ | F48: BS T005 | G48: 215 | H48: 55 | I48: R | J48: 16 | K48: 97 | L48: W | M48: B | N48: A | O48: B | P48: 72 | Q48: 236 | R48: 168.74
A49: 10886 | B49: 3286341088618 | C49: PN BRI 215/55R16 93W TRZ T005 | D49: 2155516WT00593 | E49: TOURISME ÉTÉ | F49: BS T005 | G49: 215 | H49: 55 | I49: R | J49: 16 | K49: 93 | L49: W | M49: B | N49: A | O49: B | P49: 71 | Q49: 231.5 | R49: 165.5225
A50: 10887 | B50: 3286341088717 | C50: PN BRI 215/55R16 93H TRZ T005 | D50: 2155516HT00593 | E50: TOURISME ÉTÉ | F50: BS T005 | G50: 215 | H50: 55 | I50: R | J50: 16 | K50: 93 | L50: H | M50: B | N50: A | O50: B | P50: 71 | Q50: 242.5 | R50: 173.3875
A51: 10888 | B51: 3286341088816 | C51: PN BRI 215/60R16 XL 99V TRZ T005 | D51: 2156016VT00599 | E51: TOURISME ÉTÉ | F51: BS T005 | G51: 215 | H51: 60 | I51: R | J51: 16 | K51: 99 | L51: V | M51: B | N51: A | O51: B | P51: 72 | Q51: 233.5 | R51: 166.9525
A52: 10889 | B52: 3286341088915 | C52: PN BRI 205/50R16 87W TRZ T005 | D52: 2055016WT00587 | E52: TOURISME ÉTÉ | F52: BS T005 | G52: 205 | H52: 50 | I52: R | J52: 16 | K52: 87 | L52: W | M52: B | N52: A | O52: B | P52: 71 | Q52: 206 | R52: 147.29
A53: 10890 | B53: 3286341089011 | C53: PN BRI 225/60R16 XL 102W TRZ T005 | D53: 2256016WT005102 | E53: TOURISME ÉTÉ | F53: BS T005 | G53: 225 | H53: 60 | I53: R | J53: 16 | K53: 102 | L53: W | M53: B | N53: A | O53: B | P53: 72 | Q53: 260.5 | R53: 186.2575
A54: 10892 | B54: 3286341089219 | C54: PN BRI 205/60R16 XL 96V TRZ T005 | D54: 2056016VT00596 | E54: TOURISME ÉTÉ | F54: BS T005 | G54: 205 | H54: 60 | I54: R | J54: 16 | K54: 96 | L54: V | M54: B | N54: A | O54: B | P54: 72 | Q54: 210.5 | R54: 150.5075
A55: 10893 | B55: 3286341089318 | C55: PN BRI 205/60R16 92V TRZ T005 | D55: 2056016VT00592 | E55: TOURISME ÉTÉ | F55: BS T005 | G55: 205 | H55: 60 | I55: R | J55: 16 | K55: 92 | L55: V | M55: B | N55: A | O55: B | P55: 71 | Q55: 186.5 | R55: 133.3475
A56: 10894 | B56: 3286341089417 | C56: PN BRI 215/55R16 XL 97H TRZ T005 | D56: 2155516HT00597 | E56: TOURISME ÉTÉ | F56: BS T005 | G56: 215 | H56: 55 | I56: R | J56: 16 | K56: 97 | L56: H | M56: B | N56: A | O56: B | P56: 72 | Q56: 235 | R56: 168.025
A57: 10895 | B57: 3286341089516 | C57: PN BRI 225/55R16 95V TRZ T005 | D57: 2255516VT00595 | E57: TOURISME ÉTÉ | F57: BS T005 | G57: 225 | H57: 55 | I57: R | J57: 16 | K57: 95 | L57: V | M57: B | N57: A | O57: B | P57: 71 | Q57: 234.5 | R57: 167.6675
A58: 10896 | B58: 3286341089615 | C58: PN BRI 215/55R16 93V TRZ T005 | D58: 2155516VT00593 | E58: TOURISME ÉTÉ | F58: BS T005 | G58: 215 | H58: 55 | I58: R | J58: 16 | K58: 93 | L58: V | M58: B | N58: A | O58: B | P58: 71 | Q58: 224.5 | R58: 160.5175
A59: 10897 | B59: 3286341089714 | C59: PN BRI 195/55R16 XL 91H TRZ T005 | D59: 1955516HT00591 | E59: TOURISME ÉTÉ | F59: BS T005 | G59: 195 | H59: 55 | I59: R | J59: 16 | K59: 91 | L59: H | M59: B | N59: A | O59: B | P59: 72 | Q59: 194 | R59: 138.71
A60: 10989 | B60: 3286341098914 | C60: PN BRI 175/55R20 XL 89T ECOP EP500 I3S1 | D60: 1755520TEP500*89 | E60: TOURISME ÉTÉ | F60: BS ECOP EP500 | G60: 175 | H60: 55 | I60: R | J60: 20 | K60: 89 | L60: T | M60: B | N60: B | O60: B | P60: 69 | Q60: 205 | R60: 146.575
A61: 11086 | B61: 3286341108613 | C61: PN BRI 245/50R18 100W RFT PTZ S001 | D61: 2455018WS001100RU | E61: TOURISME ÉTÉ | F61: BS S001 | G61: 245 | H61: 50 | I61: R | J61: 18 | K61: 100 | L61: W | M61: C | N61: A | O61: B | P61: 69 | Q61: 327.5 | R61: 234.1625
A62: 11095 | B62: 3286341109511 | C62: PN BRI 205/60R16 XL 96W RFT TRZ ER300A * | D62: 2056016WER300A*96RU | E62: TOURISME ÉTÉ | F62: BS TRZ ER300A | G62: 205 | H62: 60 | I62: R | J62: 16 | K62: 96 | L62: W | M62: C | N62: B | O62: B | P62: 70 | Q62: 278 | R62: 198.77
A63: 11145 | B63: 3286341114515 | C63: PN BRI 235/40R19 XL 96Y TRZ T005 SQ2 | D63: 2354019YT005AO96 | E63: TOURISME ÉTÉ | F63: BS T005 | G63: 235 | H63: 40 | I63: R | J63: 19 | K63: 96 | L63: Y | M63: B | N63: B | O63: B | P63: 72 | Q63: 306 | R63: 218.79
A64: 11156 | B64: 3286341115611 | C64: PN BRI 215/60R17C 109T/104H DUR R660ECO | D64: 2156017TR660EC109 | E64: CAMIONNETTE ETE | F64: BS DURAVIS R660 EC | G64: 215 | H64: 60 | I64: R | J64: 17 | K64: 109/107 | L64: T | M64: A | N64: A | O64: B | P64: 72 | Q64: 281.5 | R64: 201.2725
A65: 11163 | B65: 3286341116311 | C65: PN BRI 245/40R20 XL 99Y RFT S001 7SER 1 | D65: 2454020YS001*99RU | E65: TOURISME ÉTÉ | F65: BS S001 | G65: 245 | H65: 40 | I65: R | J65: 20 | K65: 99 | L65: Y | M65: C | N65: B | O65: B | P65: 72 | Q65: 460 | R65: 328.9
A66: 11165 | B66: 3286341116519 | C66: PN BRI 275/35R20 XL 102Y RFT S001 SER1 | D66: 2753520YS001102*RU | E66: TOURISME ÉTÉ | F66: BS S001 | G66: 275 | H66: 35 | I66: R | J66: 20 | K66: 102 | L66: Y | M66: C | N66: B | O66: B | P66: 73 | Q66: 427 | R66: 305.305
A67: 11167 | B67: 3286341116717 | C67: PN BRI 205/55R17 XL 95W RFT TRZ T001 * | D67: 2055517WT001*95RU | E67: TOURISME ÉTÉ | F67: BS T001 | G67: 205 | H67: 55 | I67: R | J67: 17 | K67: 95 | L67: W | M67: B | N67: B | O67: B | P67: 70 | Q67: 248.5 | R67: 177.6775
A68: 11174 | B68: 3286341117417 | C68: PN BRI 275/55R19 111H EXT ALZ SPA/S GLE | D68: 2755519HALZSPMO111RU | E68: TOURISME TOUTES SAISONS | F68: BS ALENZA SPORT AL | G68: 275 | H68: 55 | I68: R | J68: 19 | K68: 111 | L68: H | M68: C | N68: B | O68: B | P68: 71 | Q68: 361.5 | R68: 258.4725
A69: 11180 | B69: 3286341118018 | C69: PN BRI 275/50R20 XL 113W EXT ALENZA1 GLE | D69: 2755020WAL001MO113RU | E69: TOURISME ÉTÉ | F69: BS ALENZA 001 | G69: 275 | H69: 50 | I69: R | J69: 20 | K69: 113 | L69: W | M69: B | N69: A | O69: B | P69: 71 | Q69: 495.5 | R69: 354.2825
A70: 12710 | B70: 3286341271010 | C70: PN BRI 225/65R16C 112/110T R660 ECO RE | D70: 2256516TR660ECRE112 | E70: CAMIONNETTE ETE | F70: BS DURAVIS R660 EC | G70: 225 | H70: 65 | I70: R | J70: 16 | K70: 112/110 | L70: T | M70: A | N70: A | O70: B | P70: 72 | Q70: 258 | R70: 184.47
A71: 12750 | B71: 3286341275018 | C71: PN BRI 195/60R16 89H TRZ T001 CRLAND | D71: 1956016HT00189 | E71: TOURISME ÉTÉ | F71: BS T001 | G71: 195 | H71: 60 | I71: R | J71: 16 | K71: 89 | L71: H | M71: A | N71: A | O71: B | P71: 69 | Q71: 209 | R71: 149.435
A72: 12823 | B72: 3286341282313 | C72: PN BRI 225/50R17 94Y TRZ T005 C-CL2 | D72: 2255017YT005MO94 | E72: TOURISME ÉTÉ | F72: BS T005 | G72: 225 | H72: 50 | I72: R | J72: 17 | K72: 94 | L72: Y | M72: A | N72: B | O72: B | P72: 69 | Q72: 200.5 | R72: 143.3575
A73: 12827 | B73: 3286341282719 | C73: PN BRI 255/45R19 XL 104Y T005 S-CL 2 | D73: 2554519YT005MO104 | E73: 4x4 | F73: BS T005 | G73: 255 | H73: 45 | I73: R | J73: 19 | K73: 104 | L73: Y | M73: A | N73: A | O73: A | P73: 69 | Q73: 350 | R73: 250.25
A74: 12829 | B74: 3286341282917 | C74: PN BRI 255/50R18 XL 106Y TRZ T005 CL 2 | D74: 2555018YT005MO106 | E74: TOURISME ÉTÉ | F74: BS T005 | G74: 255 | H74: 50 | I74: R | J74: 18 | K74: 106 | L74: Y | M74: A | N74: A | O74: A | P74: 69 | Q74: 288.5 | R74: =Q74*(1-$D$3) -> 206.2775
A75: 12831 | B75: 3286341283112 | C75: PN BRI 255/40R20 XL 101Y EXT TRZ T005 MO | D75: 2554020YT005MO101RU | E75: 4x4 | F75: BS T005 | G75: 255 | H75: 40 | I75: R | J75: 20 | K75: 101 | L75: Y | M75: B | N75: A | O75: A | P75: 69 | Q75: 431 | R75: 308.165
A76: 12833 | B76: 3286341283310 | C76: PN BRI 255/40R20 XL 101Y TRZ T005 CL 2 | D76: 2554020YT005MO101 | E76: TOURISME ÉTÉ | F76: BS T005 | G76: 255 | H76: 40 | I76: R | J76: 20 | K76: 101 | L76: Y | M76: B | N76: A | O76: A | P76: 69 | Q76: 390 | R76: 278.85
A77: 12848 | B77: 3286341284812 | C77: PN BRI 235/55R18 100Y TRZ T005 CL 2 | D77: 2355518YT005MO100 | E77: 4x4 | F77: BS T005 | G77: 235 | H77: 55 | I77: R | J77: 18 | K77: 100 | L77: Y | M77: A | N77: B | O77: A | P77: 68 | Q77: 232 | R77: 165.88
A78: 12861 | B78: 3286341286113 | C78: PN BRI 225/60R18 100H ALENZA1 LHD X-TRAI | D78: 2256018HALEN1XTRA | E78: 4x4 | F78: BS ALENZA 001 | G78: 225 | H78: 60 | I78: R | J78: 18 | K78: 100 | L78: H | M78: B | N78: C | O78: A | P78: 67 | Q78: 223.5 | R78: 159.8025
A79: 12943 | B79: 3286341294316 | C79: PN BRI 255/45R18 XL 103H TRZ T005 | D79: 2554518HT005103 | E79: TOURISME ÉTÉ | F79: BS T005 | G79: 255 | H79: 45 | I79: R | J79: 18 | K79: 103 | L79: H | M79: A | N79: A | O79: B | P79: 73 | Q79: 282 | R79: 201.63
A80: 13016 | B80: 3286341301618 | C80: PN BRI 225/45R17 91Y TRZ T005 A3 1 | D80: 2254517YT005AO91 | E80: TOURISME ÉTÉ | F80: BS T005 | G80: 225 | H80: 45 | I80: R | J80: 17 | K80: 91 | L80: Y | M80: B | N80: A | O80: B | P80: 71 | Q80: 145.5 | R80: 104.0325
A81: 13017 | B81: 3286341301717 | C81: PN BRI 225/45R18 91Y TRZ T005 OCTAV | D81: 2254518YT005OC91 | E81: TOURISME ÉTÉ | F81: BS T005 | G81: 225 | H81: 45 | I81: R | J81: 18 | K81: 91 | L81: Y | M81: B | N81: A | O81: B | P81: 70 | Q81: 216 | R81: 154.44
A82: 13189 | B82: 3286341318913 | C82: PN BRI 225/40R19 XL 93Y PTZ S005 OCT RS | D82: 2254019YS005OCR93 | E82: TOURISME ÉTÉ | F82: BS POTENZA S005 | G82: 225 | H82: 40 | I82: R | J82: 19 | K82: 93 | L82: Y | M82: C | N82: A | O82: B | P82: 72 | Q82: 270.5 | R82: 193.4075
A83: 13190 | B83: 3286341319019 | C83: PN BRI 215/50R19 93T TRZ ECO VW NE | D83: 2155019TTECOC+93 | E83: TOURISME ÉTÉ | F83: BS TURANZA ECO | G83: 215 | H83: 50 | I83: R | J83: 19 | K83: 93 | L83: T | M83: A | N83: B | O83: B | P83: 71 | Q83: 267.5 | R83: 191.2625
A84: 13191 | B84: 3286341319118 | C84: PN BRI 215/45R20 XL 95T TRZ ECO C+ | D84: 2154520TTECOC+95 | E84: TOURISME ÉTÉ | F84: BS TURANZA ECO | G84: 215 | H84: 45 | I84: R | J84: 20 | K84: 95 | L84: T | M84: A | N84: B | O84: B | P84: 71 | Q84: 329.5 | R84: 235.5925
A85: 13195 | B85: 3286341319514 | C85: PN BRI 235/50R19 XL 103Y TRZ T005 AO | D85: 2355019YT005AO103 | E85: TOURISME ÉTÉ | F85: BS T005 | G85: 235 | H85: 50 | I85: R | J85: 19 | K85: 103 | L85: Y | M85: B | N85: A | O85: B | P85: 71 | Q85: 288 | R85: 205.92
A86: 13196 | B86: 3286341319613 | C86: PN BRI 245/45R20 XL 103Y TRZ T005 AO | D86: 2454520YT005AO103 | E86: TOURISME ÉTÉ | F86: BS T005 | G86: 245 | H86: 45 | I86: R | J86: 20 | K86: 103 | L86: Y | M86: B | N86: A | O86: B | P86: 71 | Q86: 450 | R86: 321.75
A87: 13197 | B87: 3286341319712 | C87: PN BRI 245/40R21 XL 100Y TRZ T005 AO | D87: 2454021YT005AO100 | E87: TOURISME ÉTÉ | F87: BS T005 | G87: 245 | H87: 40 | I87: R | J87: 21 | K87: 100 | L87: Y | M87: B | N87: A | O87: B | P87: 70 | Q87: 500 | R87: 357.5
A88: 13205 | B88: 3286341320510 | C88: PN BRI 225/55R17 97W TRZ T005 * | D88: 2255517WT005*97 | E88: TOURISME ÉTÉ | F88: BS T005 | G88: 225 | H88: 55 | I88: R | J88: 17 | K88: 97 | L88: W | M88: A | N88: A | O88: B | P88: 70 | Q88: 211.5 | R88: 151.2225
A89: 13236 | B89: 3286341323610 | C89: PN BRI 285/45R20 XL 112H ALENZA1 Q6 | D89: 2854520HALENZA1AO112 | E89: 4x4 | F89: BS ALENZA 001 | G89: 285 | H89: 45 | I89: R | J89: 20 | K89: 112 | L89: H | M89: C | N89: A | O89: B | P89: 74 | Q89: 424.5 | R89: 303.5175
A90: 13238 | B90: 3286341323818 | C90: PN BRI 285/40R21 109H ALENZA1 NB E-TRO | D90: 2854021HALENZA1AO109 | E90: 4x4 | F90: BS ALENZA 001 | G90: 285 | H90: 40 | I90: R | J90: 21 | K90: 109 | L90: H | M90: C | N90: A | O90: B | P90: 74 | Q90: 474.5 | R90: 339.2675
A91: 13253 | B91: 3286341325317 | C91: PN BRI 285/40ZR21 109Y D-SPORT CAYENN | D91: 2854021YDHPSPON-109 | E91: 4x4 | F91: BS DHPSPO | G91: 285 | H91: 40 | I91: ZR | J91: 21 | K91: 109 | L91: Y | M91: C | N91: A | O91: B | P91: 75 | Q91: 481 | R91: 343.915
A92: 13285 | B92: 3286341328516 | C92: PN BRI 235/55R17 XL 103H TRZ T005 VW B | D92: 2355517HT005BU103 | E92: TOURISME ÉTÉ | F92: BS T005 | G92: 235 | H92: 55 | I92: R | J92: 17 | K92: 103 | L92: H | M92: A | N92: A | O92: B | P92: 71 | Q92: 208.5 | R92: 149.0775
A93: 13289 | B93: 3286341328912 | C93: PN BRI 265/55R19 109V D A/T 693-III LCRU | D93: 2655519VD6933109 | E93: 4x4 | F93: BS DUEL AT 693 III | G93: 265 | H93: 55 | I93: R | J93: 19 | K93: 109 | L93: V | M93: B | N93: C | O93: B | P93: 72 | Q93: 309 | R93: 220.935
A94: 13370 | B94: 3286341337013 | C94: PN BRI 185/65R15 XL 92T TRZ T005 | D94: 1856515TT00592 | E94: TOURISME ÉTÉ | F94: BS T005 | G94: 185 | H94: 65 | I94: R | J94: 15 | K94: 92 | L94: T | M94: B | N94: A | O94: B | P94: 71 | Q94: 132.5 | R94: 94.7375
A95: 13371 | B95: 3286341337112 | C95: PN BRI 185/65R15 88T TRZ T005 | D95: 1856515TT00588 | E95: TOURISME ÉTÉ | F95: BS T005 | G95: 185 | H95: 65 | I95: R | J95: 15 | K95: 88 | L95: T | M95: B | N95: A | O95: B | P95: 70 | Q95: 119 | R95: 85.085
A96: 13384 | B96: 3286341338416 | C96: PN BRI 215/45R20 XL 95W PTZ S001* BMW I | D96: 2154520WS001*95BMWI | E96: TOURISME ÉTÉ | F96: BS S001 | G96: 215 | H96: 45 | I96: R | J96: 20 | K96: 95 | L96: W | M96: C | N96: A | O96: B | P96: 72 | Q96: 405.5 | R96: 289.9325
A97: 13385 | B97: 3286341338515 | C97: PN BRI 245/40R20 XL 99W PTZ S001* BMW I | D97: 2454020WS001*99BMWI | E97: TOURISME ÉTÉ | F97: BS S001 | G97: 245 | H97: 40 | I97: R | J97: 20 | K97: 99 | L97: W | M97: C | N97: A | O97: B | P97: 72 | Q97: 374 | R97: 267.41
A98: 1348 | B98: 3286340134811 | C98: PN BRI 285/45R19XL 111V RFT D-SPORT X5 | D98: 2854519VDSPOR111XLRU | E98: 4x4 | F98: BS DHPSPO | G98: 285 | H98: 45 | I98: R | J98: 19 | K98: 111 | L98: V | M98: D | N98: C | O98: B | P98: 73 | Q98: 401 | R98: 286.715
A99: 1349 | B99: 3286340134910 | C99: PN BRI 255/50R19XL 107W RFT D-SPORT X5 | D99: 2555019WDSPOR107XLRU | E99: 4x4 | F99: BS DHPSPO | G99: 255 | H99: 50 | I99: R | J99: 19 | K99: 107 | L99: W | M99: D | N99: C | O99: B | P99: 73 | Q99: 353 | R99: 252.395
A100: 1350 | B100: 3286340135016 | C100: PN BRI 285/45R19XL 111W RFT D-SPORT X5 | D100: 2854519WDSPOR111XLRU | E100: 4x4 | F100: BS DHPSPO | G100: 285 | H100: 45 | I100: R | J100: 19 | K100: 111 | L100: W | M100: D | N100: C | O100: B | P100: 73 | Q100: 393 | R100: 280.995
A101: 1351 | B101: 3286340135115 | C101: PN BRI 275/40R20 XL 106 W RFT D-SPORT | D101: 2754020WDSPOR106XLRU | E101: 4x4 | F101: BS DHPSPO | G101: 275 | H101: 40 | I101: R | J101: 20 | K101: 106 | L101: W | M101: D | N101: B | O101: B | P101: 72 | Q101: 365 | R101: 260.975
A102: 1353 | B102: 3286340135313 | C102: PN BRI 255/55R18 XL 109 H RFT D400 | D102: 2555518HD400109XLRU | E102: 4x4 | F102: BS DUEL HL 400 | G102: 255 | H102: 55 | I102: R | J102: 18 | K102: 109 | L102: H | M102: D | N102: D | O102: B | P102: 72 | Q102: 309.5 | R102: 221.2925
A103: 1354 | B103: 3286340135412 | C103: PN BRI 255/50R19 XL 107 H RFT D400 | D103: 2555019HD400107XLRU | E103: 4x4 | F103: BS DUEL HL 400 | G103: 255 | H103: 50 | I103: R | J103: 19 | K103: 107 | L103: H | M103: D | N103: D | O103: B | P103: 72 | Q103: 349 | R103: 249.535
A104: 13547 | B104: 3286341354713 | C104: PN BRI 245/35R19 XL 93Y PTZ S007 MEGAN R | D104: 2453519YS007RE93 | E104: TOURISME ÉTÉ | F104: BS PTZ S007 | G104: 245 | H104: 35 | I104: R | J104: 19 | K104: 93 | L104: Y | M104: D | N104: B | O104: B | P104: 72 | Q104: 313 | R104: 223.795
A105: 13549 | B105: 3286341354911 | C105: PN BRI 195/55R16 87H TRZ T005 MICR | D105: 1955516HT00587LHD | E105: TOURISME ÉTÉ | F105: BS T005 | G105: 195 | H105: 55 | I105: R | J105: 16 | K105: 87 | L105: H | M105: B | N105: B | O105: B | P105: 71 | Q105: 172.5 | R105: 123.3375
A106: 13649 | B106: 3286341364910 | C106: PN BRI 255/40R18 XL 99Y TRZ T005 SER1 | D106: 2554018YT005*99 | E106: TOURISME ÉTÉ | F106: BS T005 | G106: 255 | H106: 40 | I106: R | J106: 18 | K106: 99 | L106: Y | M106: A | N106: B | O106: B | P106: 71 | Q106: 310 | R106: 221.65
A107: 13677 | B107: 3286341367713 | C107: PN BRI 255/55R18 XL 109W ALZ 001 * | D107: 2555518WALZ001*109 | E107: 4x4 | F107: BS ALENZA 001 | G107: 255 | H107: 55 | I107: R | J107: 18 | K107: 109 | L107: W | M107: A | N107: A | O107: B | P107: 72 | Q107: 238.5 | R107: 170.5275
A108: 13679 | B108: 3286341367911 | C108: PN BRI 265/50R19 XL 110W ALENZA1 X | D108: 2655019WALENZ1110 | E108: 4x4 | F108: BS ALENZA 001 | G108: 265 | H108: 50 | I108: R | J108: 19 | K108: 110 | L108: W | M108: A | N108: B | O108: B | P108: 73 | Q108: 303.5 | R108: 217.0025
A109: 13682 | B109: 3286341368215 | C109: PN BRI 275/50R20 XL 113W RFT ALENZA1 X7 | D109: 2755020WALENZ1*103RU | E109: 4x4 | F109: BS ALENZA 001 | G109: 275 | H109: 50 | I109: R | J109: 20 | K109: 113 | L109: W | M109: B | N109: B | O109: B | P109: 71 | Q109: 495.5 | R109: 354.2825
A110: 13683 | B110: 3286341368314 | C110: PN BRI 305/40R20 XL 112Y RFT ALZ 001 * | D110: 3054020YALZ001*112RU | E110: 4x4 | F110: BS ALENZA 001 | G110: 305 | H110: 40 | I110: R | J110: 20 | K110: 112 | L110: Y | M110: B | N110: B | O110: B | P110: 74 | Q110: 606 | R110: 433.29
A111: 13686 | B111: 3286341368611 | C111: PN BRI 215/70R16 100H TRZ T005 | D111: 2157016HT005100 | E111: 4x4 | F111: BS T005 | G111: 215 | H111: 70 | I111: R | J111: 16 | K111: 100 | L111: H | M111: B | N111: A | O111: B | P111: 71 | Q111: 203 | R111: 145.145
A112: 13710 | B112: 3286341371017 | C112: PN BRI 255/35R19 XL 96Y RFT TRZ T005 3SE | D112: 2553519YT0053S96RU | E112: TOURISME ÉTÉ | F112: BS T005 | G112: 255 | H112: 35 | I112: R | J112: 19 | K112: 96 | L112: Y | M112: B | N112: B | O112: B | P112: 71 | Q112: 321.5 | R112: 229.8725
A113: 13742 | B113: 3286341374216 | C113: PN BRI 255/35R19 XL 96Y RFT TRZ T005 DG | D113: 2553519YT005DG96RU | E113: TOURISME ÉTÉ | F113: BS TURANZA T005 DR | G113: 255 | H113: 35 | I113: R | J113: 19 | K113: 96 | L113: Y | M113: C | N113: A | O113: B | P113: 73 | Q113: 290 | R113: 207.35
A114: 13744 | B114: 3286341374414 | C114: PN BRI 245/45R18 XL 100Y RFT TRZ T005 DG | D114: 2454518YT005DG100RU | E114: TOURISME ÉTÉ | F114: BS TURANZA T005 DR | G114: 245 | H114: 45 | I114: R | J114: 18 | K114: 100 | L114: Y | M114: C | N114: A | O114: B | P114: 72 | Q114: 255 | R114: 182.325
A115: 13746 | B115: 3286341374612 | C115: PN BRI 205/55R16 XL 94W RFT TRZ T005 DG | D115: 2055516WT005DG94RU | E115: TOURISME ÉTÉ | F115: BS TURANZA T005 DR | G115: 205 | H115: 55 | I115: R | J115: 16 | K115: 94 | L115: W | M115: C | N115: A | O115: B | P115: 72 | Q115: 181 | R115: 129.415
A116: 13747 | B116: 3286341374711 | C116: PN BRI 225/45R17 XL 94Y RFT TRZ T005 DG | D116: 2254517YT005DG94RUFR | E116: TOURISME ÉTÉ | F116: BS TURANZA T005 DR | G116: 225 | H116: 45 | I116: R | J116: 17 | K116: 94 | L116: Y | M116: C | N116: A | O116: B | P116: 72 | Q116: 165 | R116: 117.975
A117: 13750 | B117: 3286341375015 | C117: PN BRI 235/35R19 XL 91Y PTZ S005 AUD A | D117: 2353519YS005AO91 | E117: TOURISME ÉTÉ | F117: BS POTENZA S005 | G117: 235 | H117: 35 | I117: R | J117: 19 | K117: 91 | L117: Y | M117: C | N117: A | O117: B | P117: 72 | Q117: 237 | R117: 169.455
A118: 13751 | B118: 3286341375114 | C118: PN BRI 225/40R18 XL 92Y TRZ T005 AUD A | D118: 2254018YT005AO922 | E118: TOURISME ÉTÉ | F118: BS T005 | G118: 225 | H118: 40 | I118: R | J118: 18 | K118: 92 | L118: Y | M118: C | N118: A | O118: B | P118: 72 | Q118: 154 | R118: 110.11
A119: 13757 | B119: 3286341375718 | C119: PN BRI 275/35R19 XL 100W RE050A 370Z1 | D119: 2753519WRE050ASY100 | E119: TOURISME ÉTÉ | F119: BS RE050A | G119: 275 | H119: 35 | I119: R | J119: 19 | K119: 100 | L119: W | M119: D | N119: C | O119: B | P119: 72 | Q119: 350.5 | R119: 250.6075
A120: 13776 | B120: 3286341377613 | C120: PN BRI 205/50R19 XL 94H TRZ T001 ECO | D120: 2055019HT001ECO94 | E120: TOURISME ÉTÉ | F120: BS TURANZA ECO | G120: 205 | H120: 50 | I120: R | J120: 19 | K120: 94 | L120: H | M120: A | N120: A | O120: B | P120: 72 | Q120: 221 | R120: 158.015
A121: 13778 | B121: 3286341377811 | C121: PN BRI 205/55R19 XL 97H TRZ T001 ECO | D121: 2055519HT001ECO97 | E121: TOURISME ÉTÉ | F121: BS TURANZA ECO | G121: 205 | H121: 55 | I121: R | J121: 19 | K121: 97 | L121: H | M121: A | N121: A | O121: B | P121: 72 | Q121: 221 | R121: 158.015
A122: 13782 | B122: 3286341378214 | C122: PN BRI 255/55R19 XL 111V ALZ SP AS CAYEN | D122: 2555519VALZSPASN111 | E122: 4x4 TOUTES SAISONS | F122: BS ALENZA SPORT AL | G122: 255 | H122: 55 | I122: R | J122: 19 | K122: 111 | L122: V | M122: B | N122: A | O122: B | P122: 71 | Q122: 263.5 | R122: 188.4025
A123: 13784 | B123: 3286341378412 | C123: PN BRI 275/50R19 XL 112V ALZ SP AS CAY 1 | D123: 2755019VALESPASPO112 | E123: 4x4 TOUTES SAISONS | F123: BS ALENZA SPORT AL | G123: 275 | H123: 50 | I123: R | J123: 19 | K123: 112 | L123: V | M123: B | N123: A | O123: B | P123: 71 | Q123: 398.5 | R123: 284.9275
A124: 13800 | B124: 3286341380019 | C124: PN BRI 155/60R15 74T TRZ T005 | D124: 1556015TT00574 | E124: TOURISME ÉTÉ | F124: BS T005 | G124: 155 | H124: 60 | I124: R | J124: 15 | K124: 74 | L124: T | M124: C | N124: A | O124: B | P124: 70 | Q124: 134 | R124: 95.81
A125: 13801 | B125: 3286341380118 | C125: PN BRI 165/65R15 81T TRZ T005 | D125: 1656515TT00581 | E125: TOURISME ÉTÉ | F125: BS T005 | G125: 165 | H125: 65 | I125: R | J125: 15 | K125: 81 | L125: T | M125: C | N125: A | O125: B | P125: 70 | Q125: 141 | R125: 100.815
A126: 13802 | B126: 3286341380217 | C126: PN BRI 175/55R15 77T TRZ T005 | D126: 1755515TT00577 | E126: TOURISME ÉTÉ | F126: BS T005 | G126: 175 | H126: 55 | I126: R | J126: 15 | K126: 77 | L126: T | M126: C | N126: A | O126: B | P126: 70 | Q126: 159.5 | R126: 114.0425
A127: 13803 | B127: 3286341380316 | C127: PN BRI 175/65R15 84H TRZ T005 | D127: 1756515HT00584 | E127: TOURISME ÉTÉ | F127: BS T005 | G127: 175 | H127: 65 | I127: R | J127: 15 | K127: 84 | L127: H | M127: C | N127: A | O127: B | P127: 70 | Q127: 133.5 | R127: 95.4525
A128: 13805 | B128: 3286341380514 | C128: PN BRI 185/55R15 82V TRZ T005 | D128: 1855515VT00582 | E128: TOURISME ÉTÉ | F128: BS T005 | G128: 185 | H128: 55 | I128: R | J128: 15 | K128: 82 | L128: V | M128: C | N128: A | O128: B | P128: 70 | Q128: 167.5 | R128: 119.7625
A129: 13883 | B129: 3286341388312 | C129: PN BRI 215/50R18 92W TRZ T001 T-ROC | D129: 2155018WT00192 | E129: TOURISME ÉTÉ | F129: BS T001 | G129: 215 | H129: 50 | I129: R | J129: 18 | K129: 92 | L129: W | M129: C | N129: A | O129: B | P129: 71 | Q129: 233.5 | R129: 166.9525
A130: 13884 | B130: 3286341388411 | C130: PN BRI 235/55R19 101V DUEL H/P SPT GLC1 | D130: 2355519VDHPSPOMO101 | E130: 4x4 | F130: BS DHPSPO | G130: 235 | H130: 55 | I130: R | J130: 19 | K130: 101 | L130: V | M130: B | N130: A | O130: B | P130: 70 | Q130: 246.5 | R130: 176.2475
A131: 13885 | B131: 3286341388510 | C131: PN BRI 235/60R18 103V D H/P SPORT MO | D131: 2356018VDHPSPOMO103 | E131: 4x4 | F131: BS DHPSPO | G131: 235 | H131: 60 | I131: R | J131: 18 | K131: 103 | L131: V | M131: A | N131: B | O131: B | P131: 70 | Q131: 209 | R131: 149.435
A132: 13887 | B132: 3286341388718 | C132: PN BRI 255/35ZR20 93Y RFT PTZ S005 F17 | D132: 2553520YS00593RU | E132: TOURISME ÉTÉ | F132: BS POTENZA S005 | G132: 255 | H132: 35 | I132: ZR | J132: 20 | K132: 93 | L132: Y | M132: D | N132: B | O132: B | P132: 72 | Q132: 552.5 | R132: 395.0375
A133: 13892 | B133: 3286341389210 | C133: PN BRI 225/45R18 91W TRZ T005 MO | D133: 2254518WT005MOAB91 | E133: TOURISME ÉTÉ | F133: BS T005 | G133: 225 | H133: 45 | I133: R | J133: 18 | K133: 91 | L133: W | M133: A | N133: B | O133: A | P133: 68 | Q133: 223 | R133: 159.445
A134: 13894 | B134: 3286341389418 | C134: PN BRI 235/45R18 XL 98Y RFT TRZ T005 DG | D134: 2354518YT005DG98RU | E134: TOURISME ÉTÉ | F134: BS TURANZA T005 DR | G134: 235 | H134: 45 | I134: R | J134: 18 | K134: 98 | L134: Y | M134: C | N134: A | O134: B | P134: 72 | Q134: 280.5 | R134: 200.5575
A135: 13895 | B135: 3286341389517 | C135: PN BRI 205/55R17 XL 95V RFT TRZ T005 DG | D135: 2055517VT005DG95RU | E135: TOURISME ÉTÉ | F135: BS TURANZA T005 DR | G135: 205 | H135: 55 | I135: R | J135: 17 | K135: 95 | L135: V | M135: C | N135: A | O135: B | P135: 72 | Q135: 214 | R135: 153.01
A136: 13896 | B136: 3286341389616 | C136: PN BRI 235/55R17 XL 103W RFT TRZ T005 DG | D136: 2355517WT005DG103RU | E136: 4x4 | F136: BS TURANZA T005 DR | G136: 235 | H136: 55 | I136: R | J136: 17 | K136: 103 | L136: W | M136: C | N136: A | O136: B | P136: 72 | Q136: 237.5 | R136: 169.8125
A137: 13897 | B137: 3286341389715 | C137: PN BRI 245/45R17 XL 99Y RFT TRZ T005 DRI | D137: 2454517YT005DRIV99RU | E137: TOURISME ÉTÉ | F137: BS TURANZA T005 DR | G137: 245 | H137: 45 | I137: R | J137: 17 | K137: 99 | L137: Y | M137: C | N137: A | O137: B | P137: 72 | Q137: 264 | R137: 188.76
A138: 13899 | B138: 3286341389913 | C138: PN BRI 215/50R17 XL 95W RFT TRZ T005 DG | D138: 2155017WT005DG95RU | E138: TOURISME ÉTÉ | F138: BS TURANZA T005 DR | G138: 215 | H138: 50 | I138: R | J138: 17 | K138: 95 | L138: W | M138: B | N138: A | O138: B | P138: 72 | Q138: 225 | R138: =Q138*(1-$D$3) -> 160.875
A139: 13900 | B139: 3286341390018 | C139: PN BRI 215/60R17 XL 100V RFT TRZ T005 DG | D139: 2156017VT005DG100RU | E139: 4x4 | F139: BS TURANZA T005 DR | G139: 215 | H139: 60 | I139: R | J139: 17 | K139: 100 | L139: V | M139: C | N139: A | O139: B | P139: 72 | Q139: 212 | R139: 151.58
A140: 13901 | B140: 3286341390117 | C140: PN BRI 225/45R18 XL 95Y RFT TRZ T005 DG | D140: 2254518YT005DG95RU | E140: TOURISME ÉTÉ | F140: BS TURANZA T005 DR | G140: 225 | H140: 45 | I140: R | J140: 18 | K140: 95 | L140: Y | M140: C | N140: A | O140: B | P140: 72 | Q140: 260 | R140: 185.9
A141: 13904 | B141: 3286341390414 | C141: PN BRI 245/40R18 XL 97Y RFT TRZ T005 DG | D141: 2454018YT005DG97RU | E141: TOURISME ÉTÉ | F141: BS TURANZA T005 DR | G141: 245 | H141: 40 | I141: R | J141: 18 | K141: 97 | L141: Y | M141: C | N141: A | O141: B | P141: 72 | Q141: 235 | R141: 168.025
A142: 13905 | B142: 3286341390513 | C142: PN BRI 215/60R16 XL 99V RFT TRZ T005 DG | D142: 2156016VT005DG99RU | E142: TOURISME ÉTÉ | F142: BS TURANZA T005 DR | G142: 215 | H142: 60 | I142: R | J142: 16 | K142: 99 | L142: V | M142: C | N142: A | O142: B | P142: 72 | Q142: 260 | R142: 185.9
A143: 13906 | B143: 3286341390612 | C143: PN BRI 225/40R18 XL 92Y RFT TRZ T005 DG | D143: 2254018YT005DG92RUFR | E143: TOURISME ÉTÉ | F143: BS TURANZA T005 DR | G143: 225 | H143: 40 | I143: R | J143: 18 | K143: 92 | L143: Y | M143: C | N143: A | O143: B | P143: 72 | Q143: 172 | R143: 122.98
A144: 13907 | B144: 3286341390711 | C144: PN BRI 225/55R16 XL 99W RFT TRZ T005 DG | D144: 2255516WT005DG99RU | E144: TOURISME ÉTÉ | F144: BS TURANZA T005 DR | G144: 225 | H144: 55 | I144: R | J144: 16 | K144: 99 | L144: W | M144: C | N144: A | O144: B | P144: 72 | Q144: 269 | R144: 192.335
A145: 13908 | B145: 3286341390810 | C145: PN BRI 205/60R16 XL 96V RFT TRZ T005 DG | D145: 2056016VT005DG96RU | E145: TOURISME ÉTÉ | F145: BS TURANZA T005 DR | G145: 205 | H145: 60 | I145: R | J145: 16 | K145: 96 | L145: V | M145: B | N145: A | O145: B | P145: 72 | Q145: 235 | R145: 168.025
A146: 13909 | B146: 3286341390919 | C146: PN BRI 205/50R17 XL 93W RFT TRZ T005 DG | D146: 2055017WT005DG93RUFR | E146: TOURISME ÉTÉ | F146: BS TURANZA T005 DR | G146: 205 | H146: 50 | I146: R | J146: 17 | K146: 93 | L146: W | M146: C | N146: A | O146: B | P146: 72 | Q146: 215 | R146: 153.725
A147: 13910 | B147: 3286341391015 | C147: PN BRI 225/55R17 XL 101W RFT TRZ T005 DG | D147: 2255517WT005DG101RU | E147: TOURISME ÉTÉ | F147: BS TURANZA T005 DR | G147: 225 | H147: 55 | I147: R | J147: 17 | K147: 101 | L147: W | M147: C | N147: A | O147: B | P147: 72 | Q147: 240 | R147: 171.6
A148: 13911 | B148: 3286341391114 | C148: PN BRI 235/45R17 XL 97Y RFT TRZ T005 DG | D148: 2354517YT005DG97RU | E148: TOURISME ÉTÉ | F148: BS TURANZA T005 DR | G148: 235 | H148: 45 | I148: R | J148: 17 | K148: 97 | L148: Y | M148: C | N148: A | O148: B | P148: 72 | Q148: 192 | R148: 137.28
A149: 13913 | B149: 3286341391312 | C149: PN BRI 195/55R16 XL 91V RFT TRZ T005 DG | D149: 1955516VT005DG91RU | E149: TOURISME ÉTÉ | F149: BS TURANZA T005 DR | G149: 195 | H149: 55 | I149: R | J149: 16 | K149: 91 | L149: V | M149: C | N149: A | O149: B | P149: 72 | Q149: 235 | R149: 168.025
A150: 13914 | B150: 3286341391411 | C150: PN BRI 225/50R17 XL 98Y RFT TRZ T005 DG | D150: 2255017YT005DG98RUFR | E150: TOURISME ÉTÉ | F150: BS TURANZA T005 DR | G150: 225 | H150: 50 | I150: R | J150: 17 | K150: 98 | L150: Y | M150: C | N150: A | O150: B | P150: 72 | Q150: 235 | R150: 168.025
A151: 13916 | B151: 3286341391619 | C151: PN BRI 215/55R16 XL 97W RFT TRZ T005 DG | D151: 2155516WT005DG97RU | E151: TOURISME ÉTÉ | F151: BS TURANZA T005 DR | G151: 215 | H151: 55 | I151: R | J151: 16 | K151: 97 | L151: W | M151: C | N151: A | O151: B | P151: 72 | Q151: 264 | R151: 188.76
A152: 13917 | B152: 3286341391718 | C152: PN BRI 205/45R17 XL 88W RFT TRZ T005 DG | D152: 2054517WT005DG88RU | E152: TOURISME ÉTÉ | F152: BS TURANZA T005 DR | G152: 205 | H152: 45 | I152: R | J152: 17 | K152: 88 | L152: W | M152: C | N152: A | O152: B | P152: 72 | Q152: 217 | R152: 155.155
A153: 13918 | B153: 3286341391817 | C153: PN BRI 215/55R17 XL 98W RFT TRZ T005 DG | D153: 2155517WT005DG98RU | E153: TOURISME ÉTÉ | F153: BS TURANZA T005 DR | G153: 215 | H153: 55 | I153: R | J153: 17 | K153: 98 | L153: W | M153: C | N153: A | O153: B | P153: 72 | Q153: 234.5 | R153: 167.6675
A154: 13920 | B154: 3286341392012 | C154: PN BRI 225/55R17 97W RFT TRZ T001 X1 | D154: 2255517WT001*X197RU | E154: TOURISME ÉTÉ | F154: BS T001 | G154: 225 | H154: 55 | I154: R | J154: 17 | K154: 97 | L154: W | M154: C | N154: B | O154: B | P154: 70 | Q154: 240 | R154: 171.6
A155: 13923 | B155: 3286341392319 | C155: PN BRI 185/55R15 XL 86T TRZ ECO FIA | D155: 1855515TECO86 | E155: TOURISME ÉTÉ | F155: BS TURANZA ECO | G155: 185 | H155: 55 | I155: R | J155: 15 | K155: 86 | L155: T | M155: A | N155: B | O155: B | P155: 71 | Q155: 169 | R155: 120.835
A156: 13929 | B156: 3286341392913 | C156: PN BRI 245/75R17 112T DUEL H/T 685 JEE | D156: 2457517TD685JEE112 | E156: 4x4 | F156: BS DUELER H/T 685 | G156: 245 | H156: 75 | I156: R | J156: 17 | K156: 112 | L156: T | M156: B | N156: D | O156: B | P156: 71 | Q156: 290.5 | R156: 207.7075
A157: 13930 | B157: 3286341393019 | C157: PN BRI 255/70R18 113T DUEL H/T 685 JEE | D157: 2557018TD685JEE113 | E157: 4x4 | F157: BS DUELER H/T 685 | G157: 255 | H157: 70 | I157: R | J157: 18 | K157: 113 | L157: T | M157: B | N157: D | O157: B | P157: 71 | Q157: 246.5 | R157: 176.2475
A158: 13953 | B158: 3286341395310 | C158: PN BRI 205/55R16 91H TRZ ECO | D158: 2055516HTECO91 | E158: TOURISME ÉTÉ | F158: BS TURANZA ECO | G158: 205 | H158: 55 | I158: R | J158: 16 | K158: 91 | L158: H | M158: A | N158: B | O158: B | P158: 71 | Q158: 130.5 | R158: 93.3075
A159: 13958 | B159: 3286341395815 | C159: PN BRI 215/55R18 95T TRZ ECO NEO 1 | D159: 2155518TTECOC+95 | E159: TOURISME ÉTÉ | F159: BS TURANZA ECO | G159: 215 | H159: 55 | I159: R | J159: 18 | K159: 95 | L159: T | M159: A | N159: B | O159: B | P159: 71 | Q159: 207.5 | R159: 148.3625
A160: 13961 | B160: 3286341396119 | C160: PN BRI 185/65R15 88H TRZ ECO | D160: 1856515HTECO88 | E160: TOURISME ÉTÉ | F160: BS TURANZA ECO | G160: 185 | H160: 65 | I160: R | J160: 15 | K160: 88 | L160: H | M160: A | N160: A | O160: B | P160: 70 | Q160: 140.5 | R160: 100.4575
A161: 13962 | B161: 3286341396218 | C161: PN BRI 195/55R16 XL 91V TRZ ECO | D161: 1955516VTECO91 | E161: TOURISME ÉTÉ | F161: BS TURANZA ECO | G161: 195 | H161: 55 | I161: R | J161: 16 | K161: 91 | L161: V | M161: A | N161: A | O161: B | P161: 71 | Q161: 207.5 | R161: 148.3625
A162: 13964 | B162: 3286341396416 | C162: PN BRI 255/45R19 100V TRZ ECO SLT | D162: 2554519VTECO100 | E162: 4x4 | F162: BS TURANZA ECO | G162: 255 | H162: 45 | I162: R | J162: 19 | K162: 100 | L162: V | M162: B | N162: A | O162: B | P162: 72 | Q162: 330 | R162: 235.95
A163: 13966 | B163: 3286341396614 | C163: PN BRI 205/60R16 92V TRZ ECO T-ROC | D163: 2056016VTURANZAECO92 | E163: TOURISME ÉTÉ | F163: BS TURANZA ECO | G163: 205 | H163: 60 | I163: R | J163: 16 | K163: 92 | L163: V | M163: A | N163: A | O163: B | P163: 71 | Q163: 186.5 | R163: 133.3475
A164: 13967 | B164: 3286341396713 | C164: PN BRI 215/60R16 95V TRZ T005 T-ROC | D164: 2156016VT00595 | E164: TOURISME ÉTÉ | F164: BS T005 | G164: 215 | H164: 60 | I164: R | J164: 16 | K164: 95 | L164: V | M164: A | N164: A | O164: B | P164: 71 | Q164: 225 | R164: 160.875
A165: 13968 | B165: 3286341396812 | C165: PN BRI 215/55R17 94V TRZ T005 T-ROC | D165: 2155517VT00594 | E165: TOURISME ÉTÉ | F165: BS T005 | G165: 215 | H165: 55 | I165: R | J165: 17 | K165: 94 | L165: V | M165: A | N165: A | O165: B | P165: 71 | Q165: 209.5 | R165: 149.7925
A166: 13980 | B166: 3286341398014 | C166: PN BRI 315/35R20 XL 110Y TRZ T005 | D166: 3153520YT005110 | E166: 4x4 | F166: BS T005 | G166: 315 | H166: 35 | I166: R | J166: 20 | K166: 110 | L166: Y | M166: B | N166: A | O166: B | P166: 74 | Q166: 457.5 | R166: 327.1125
A167: 14012 | B167: 3286341401219 | C167: PN BRI 225/45R19 92W T005 LHD MAZDA | D167: 2254519WT005MAZ92 | E167: TOURISME ÉTÉ | F167: BS T005 | G167: 225 | H167: 45 | I167: R | J167: 19 | K167: 92 | L167: W | M167: C | N167: C | O167: B | P167: 69 | Q167: 282.5 | R167: 201.9875
A168: 14014 | B168: 3286341401417 | C168: PN BRI 225/55R17 97V TRZ T005A MAZD | D168: 2255517VT005A97 | E168: TOURISME ÉTÉ | F168: BS T005A | G168: 225 | H168: 55 | I168: R | J168: 17 | K168: 97 | L168: V | M168: C | N168: C | O168: B | P168: 70 | Q168: 202.5 | R168: 144.7875
A169: 14017 | B169: 3286341401714 | C169: PN BRI 215/50R17 XL 95H TRZ T005 CROSSLA | D169: 2155017HT00595 | E169: TOURISME ÉTÉ | F169: BS T005 | G169: 215 | H169: 50 | I169: R | J169: 17 | K169: 95 | L169: H | M169: A | N169: B | O169: B | P169: 72 | Q169: 198.5 | R169: 141.9275
A170: 14039 | B170: 3286341403916 | C170: PN BRI 205/55R17 XL 95W TRZ T005 2S | D170: 2055517WT005*95 | E170: TOURISME ÉTÉ | F170: BS T005 | G170: 205 | H170: 55 | I170: R | J170: 17 | K170: 95 | L170: W | M170: A | N170: B | O170: B | P170: 70 | Q170: 207.5 | R170: 148.3625
A171: 14051 | B171: 3286341405118 | C171: PN BRI 245/40R18 XL 97Y EXT S001 C-CLASS | D171: 2454018YS001MO97RU | E171: TOURISME ÉTÉ | F171: BS S001 | G171: 245 | H171: 40 | I171: R | J171: 18 | K171: 97 | L171: Y | M171: C | N171: B | O171: B | P171: 72 | Q171: 256 | R171: 183.04
A172: 14053 | B172: 3286341405316 | C172: PN BRI 215/40R18 XL 89Y TRZ T005 POLO | D172: 2154018YT005PO89 | E172: TOURISME ÉTÉ | F172: BS T005 | G172: 215 | H172: 40 | I172: R | J172: 18 | K172: 89 | L172: Y | M172: C | N172: A | O172: B | P172: 72 | Q172: 217.5 | R172: 155.5125
A173: 14064 | B173: 3286341406412 | C173: PN BRI 235/50R18 XL 101H TRZ T005 BUL | D173: 2355018HT005BU101 | E173: TOURISME ÉTÉ | F173: BS T005 | G173: 235 | H173: 50 | I173: R | J173: 18 | K173: 101 | L173: H | M173: A | N173: A | O173: B | P173: 71 | Q173: 245 | R173: 175.175
A174: 14067 | B174: 3286341406719 | C174: PN BRI 215/55R17 XL 98H T005 | D174: 2155517HT00598 | E174: TOURISME ÉTÉ | F174: BS T005 | G174: 215 | H174: 55 | I174: R | J174: 17 | K174: 98 | L174: H | M174: A | N174: A | O174: B | P174: 72 | Q174: 210 | R174: 150.15
A175: 14069 | B175: 3286341406917 | C175: PN BRI 235/60R18 103T TRZ ECO ID-CROZ | D175: 2356018TTURANZAC+103 | E175: TOURISME ÉTÉ | F175: BS TURANZA ECO | G175: 235 | H175: 60 | I175: R | J175: 18 | K175: 103 | L175: T | M175: A | N175: B | O175: B | P175: 71 | Q175: 218 | R175: 155.87
A176: 14071 | B176: 3286341407112 | C176: PN BRI 255/55R19 XL 111Y EXT D SPORT Q7 | D176: 2555519YDSPORAO111RU | E176: 4x4 | F176: BS DHPSPO | G176: 255 | H176: 55 | I176: R | J176: 19 | K176: 111 | L176: Y | M176: C | N176: C | O176: B | P176: 71 | Q176: 321 | R176: 229.515
A177: 14072 | B177: 3286341407211 | C177: PN BRI 255/45RF20 101W RFT ALZ 001 INFI | D177: 2554520WALZ001101RU | E177: 4x4 | F177: BS ALENZA 001 | G177: 255 | H177: 45 | I177: RF | J177: 20 | K177: 101 | L177: W | M177: D | N177: B | O177: B | P177: 71 | Q177: 375 | R177: 268.125
A178: 14083 | B178: 3286341408317 | C178: PN BRI 235/60R20 XL 108H ALZ 001 * | D178: 2356020HALENZA1*108 | E178: TOURISME ÉTÉ | F178: BS ALENZA 001 | G178: 235 | H178: 60 | I178: R | J178: 20 | K178: 108 | L178: H | M178: A | N178: B | O178: A | P178: 67 | Q178: 424 | R178: 303.16
A179: 14090 | B179: 3286341409017 | C179: PN BRI 205/45R17 XL 88V PTZ RE050A MINI | D179: 2054517VRE050A*88MIN | E179: TOURISME ÉTÉ | F179: BS RE050A | G179: 205 | H179: 45 | I179: R | J179: 17 | K179: 88 | L179: V | M179: D | N179: B | O179: B | P179: 71 | Q179: 192.5 | R179: 137.6375
A180: 14112 | B180: 3286341411218 | C180: PN BRI 235/55R19 101T TRZ ECO SLT | D180: 2355519TTURANZAE+101 | E180: TOURISME ÉTÉ | F180: BS TURANZA ECO | G180: 235 | H180: 55 | I180: R | J180: 19 | K180: 101 | L180: T | M180: A | N180: B | O180: B | P180: 71 | Q180: 305 | R180: 218.075
A181: 14113 | B181: 3286341411317 | C181: PN BRI 235/55R19 101T TRZ ECO ID-CROZ AO | D181: 2355519TTURANZAC+101 | E181: TOURISME ÉTÉ | F181: BS TURANZA ECO | G181: 235 | H181: 55 | I181: R | J181: 19 | K181: 101 | L181: T | M181: A | N181: B | O181: B | P181: 71 | Q181: 278.5 | R181: 199.1275
A182: 14114 | B182: 3286341411416 | C182: PN BRI 235/50R19 XL 103T TRZ T005 GL | D182: 2355019TT005MO103 | E182: TOURISME ÉTÉ | F182: BS T005 | G182: 235 | H182: 50 | I182: R | J182: 19 | K182: 103 | L182: T | M182: A | N182: B | O182: B | P182: 69 | Q182: 247.5 | R182: 176.9625
A183: 14115 | B183: 3286341411515 | C183: PN BRI 235/55R18 XL 104T TRZ T005 GL | D183: 2355518TT005MO104 | E183: TOURISME ÉTÉ | F183: BS T005 | G183: 235 | H183: 55 | I183: R | J183: 18 | K183: 104 | L183: T | M183: A | N183: B | O183: A | P183: 68 | Q183: 211 | R183: 150.865
A184: 14121 | B184: 3286341412116 | C184: PN BRI 235/50R19 99W TRZ T005 MO | D184: 2355019WT005MO99 | E184: TOURISME ÉTÉ | F184: BS T005 | G184: 235 | H184: 50 | I184: R | J184: 19 | K184: 99 | L184: W | M184: A | N184: B | O184: A | P184: 68 | Q184: 257 | R184: 183.755
A185: 14122 | B185: 3286341412215 | C185: PN BRI 235/55R19 101T A005 SLT AO | D185: 2355519TA005101 | E185: TOURISME TOUTES SAISONS | F185: BS A005 | G185: 235 | H185: 55 | I185: R | J185: 19 | K185: 101 | L185: T | M185: B | N185: A | O185: B | P185: 72 | Q185: 273.5 | R185: 195.5525
A186: 14142 | B186: 3286341414219 | C186: PN BRI 255/40R17 94Y RFT RE050A1 3SE/Z | D186: 2554017YRE050AI*94RU | E186: TOURISME ÉTÉ | F186: BS PTZ RE050A-I | G186: 255 | H186: 40 | I186: R | J186: 17 | K186: 94 | L186: Y | M186: D | N186: B | O186: B | P186: 72 | Q186: 287 | R186: 205.205
A187: 14144 | B187: 3286341414417 | C187: PN BRI 245/45R18 96Y RFT TRZ ER300 SER1 | D187: 2454518YER300*96RUS1 | E187: TOURISME ÉTÉ | F187: BS ER300 | G187: 245 | H187: 45 | I187: R | J187: 18 | K187: 96 | L187: Y | M187: D | N187: A | O187: B | P187: 71 | Q187: 259.5 | R187: 185.5425
A188: 14145 | B188: 3286341414516 | C188: PN BRI 205/50R17 89V RFT RE050A I 1SERIE | D188: 2055017VRE050AI*89RU | E188: TOURISME ÉTÉ | F188: BS PTZ RE050A-I | G188: 205 | H188: 50 | I188: R | J188: 17 | K188: 89 | L188: V | M188: D | N188: B | O188: B | P188: 71 | Q188: 219.5 | R188: 156.9425
A189: 14146 | B189: 3286341414615 | C189: PN BRI 205/55R16 91W RFT ER3001 1-3SER | D189: 2055516WER3001*91RU | E189: TOURISME ÉTÉ | F189: BS TRZ ER300-1 | G189: 205 | H189: 55 | I189: R | J189: 16 | K189: 91 | L189: W | M189: D | N189: B | O189: B | P189: 71 | Q189: 170.5 | R189: 121.9075
A190: 14148 | B190: 3286341414813 | C190: PN BRI 245/40R18 93H TRZ ECO A4 1 | D190: 2454018HECOAO93 | E190: TOURISME ÉTÉ | F190: BS TURANZA ECO | G190: 245 | H190: 40 | I190: R | J190: 18 | K190: 93 | L190: H | M190: B | N190: A | O190: B | P190: 71 | Q190: 214.5 | R190: 153.3675
A191: 14156 | B191: 3286341415612 | C191: PN BRI 235/45R19 95V EXT DUEL H/P SP GL | D191: 2354519VDHPSPMO95RU | E191: 4x4 | F191: BS DHPSPO | G191: 235 | H191: 45 | I191: R | J191: 19 | K191: 95 | L191: V | M191: C | N191: B | O191: B | P191: 71 | Q191: 373.5 | R191: 267.0525
A192: 14158 | B192: 3286341415810 | C192: PN BRI 225/50R18 XL 99W RFT TRZ T005 X1 | D192: 2255018WT005*99RU | E192: TOURISME ÉTÉ | F192: BS T005 | G192: 225 | H192: 50 | I192: R | J192: 18 | K192: 99 | L192: W | M192: A | N192: B | O192: B | P192: 70 | Q192: 326 | R192: 233.09
A193: 14178 | B193: 3286341417814 | C193: PN BRI 235/55R18 100W EXT ALENZA1 GLA | D193: 2355518WALENZMO100RU | E193: TOURISME ÉTÉ | F193: BS ALENZA 001 | G193: 235 | H193: 55 | I193: R | J193: 18 | K193: 100 | L193: W | M193: B | N193: A | O193: B | P193: 70 | Q193: 299 | R193: 213.785
A194: 14184 | B194: 3286341418415 | C194: PN BRI 205/65R16 95W T005 * | D194: 2056516WT005*952 | E194: TOURISME ÉTÉ | F194: BS T005 | G194: 205 | H194: 65 | I194: R | J194: 16 | K194: 95 | L194: W | M194: A | N194: B | O194: B | P194: 70 | Q194: 281.5 | R194: 201.2725
A195: 15938 | B195: 3286341593815 | C195: PN BRI 225/45R17 XL 94V TRZ T005 AUD A | D195: 2254517VT005AO94 | E195: TOURISME ÉTÉ | F195: BS T005 | G195: 225 | H195: 45 | I195: R | J195: 17 | K195: 94 | L195: V | M195: A | N195: A | O195: A | P195: 69 | Q195: 150 | R195: 107.25
A196: 16575 | B196: 3286341657517 | C196: PN BRI 225/50R17 94Y EXT TRZ T005 MOE | D196: 2255017YT005MOE94RU | E196: TOURISME ÉTÉ | F196: BS T005 | G196: 225 | H196: 50 | I196: R | J196: 17 | K196: 94 | L196: Y | M196: B | N196: A | O196: B | P196: 69 | Q196: 223.5 | R196: 159.8025
A197: 16610 | B197: 3286341661019 | C197: PN BRI 225/45R18 91V TRZ T005 FIA | D197: 2254518VT00591 | E197: TOURISME ÉTÉ | F197: BS T005 | G197: 225 | H197: 45 | I197: R | J197: 18 | K197: 91 | L197: V | M197: B | N197: A | O197: B | P197: 70 | Q197: 229.5 | R197: 164.0925
A198: 16881 | B198: 3286341688115 | C198: PN BRI 255/60R18 108S D H/T 684 II | D198: 2556018SDHT6842108 | E198: 4x4 | F198: BS DUEL HT 684-II | G198: 255 | H198: 60 | I198: R | J198: 18 | K198: 108 | L198: S | M198: C | N198: D | O198: B | P198: 71 | Q198: 215.5 | R198: 154.0825
A199: 16927 | B199: 3286341692716 | C199: PN BRI 225/40R18 XL 92Y RFT RE050A Z4 | D199: 2254018YRE050A92RU | E199: TOURISME ÉTÉ | G199: 225 | H199: 40 | I199: R | J199: 18 | K199: 92 | L199: Y | M199: D | N199: B | O199: B | P199: 72 | Q199: 180 | R199: 128.7
A200: 16928 | B200: 3286341692815 | C200: PN BRI 255/35R18 94Y XL RFT RE050A1 Z4 | D200: 2553518YRE050A1*94RU | E200: TOURISME ÉTÉ | F200: BS PTZ RE050A-I | G200: 255 | H200: 35 | I200: R | J200: 18 | K200: 94 | L200: Y | M200: D | N200: B | O200: B | P200: 72 | Q200: 302 | R200: 215.93
A201: 17054 | B201: 3286341705416 | C201: PN BRI 225/45R17 91Y RFT PTZ RE050A I * | D201: 2254517YRE050AI*91RU | E201: TOURISME ÉTÉ | F201: BS PTZ RE050A-I | G201: 225 | H201: 45 | I201: R | J201: 17 | K201: 91 | L201: Y | M201: D | N201: B | O201: B | P201: 71 | Q201: 174 | R201: 124.41
A202: 17364 | B202: 3286341736410 | C202: PN BRI 285/35ZR19 99Y PTZ RE050 ASY A2A | D202: 2853519YRE050AA299 | E202: TOURISME ÉTÉ | F202: BS RE050A | G202: 285 | H202: 35 | I202: ZR | J202: 19 | K202: 99 | L202: Y | M202: D | N202: B | O202: B | P202: 72 | Q202: 474 | R202: =Q202*(1-$D$3) -> 338.91
A203: 17642 | B203: 3286341764215 | C203: PN BRI 225/50R18 95W TRZ T005 | D203: 2255018WT00595 | E203: TOURISME ÉTÉ | F203: BS T005 | G203: 225 | H203: 50 | I203: R | J203: 18 | K203: 95 | L203: W | M203: B | N203: A | O203: B | P203: 71 | Q203: 276.5 | R203: 197.6975
... 853 more rows

Sheet BFG
D2: Remise
D3: =Remises!$J$8 -> 0.42
A5: Actualisation au 04/04/2024
A7: REFERENCES PNEUMATIQUES | Q7: TARIFS
A8: CAI | B8: EAN | C8: Désignation | D8: Appellation | E8: Catégorie | F8: Profil | G8: Largeur | H8: Hauteur | I8: Structure | J8: Diamètre | K8: IC | L8: IV | M8: Conso. | N8: Frein. | O8: Bruit. | P8: Décibels. | Q8: Prix BF | R8: Prix Remisé
A9: 000781 | B9: 3528700007817 | C9: PN BFG 215/65R16C 109/107T ACTIVAN 4S | D9: 2156516TACTIVAN4S109 | E9: CAMIONNETTE TOUTES SAISONS | F9: BF ACTIVAN 4S | G9: 215 | H9: 65 | I9: R | J9: 16 | K9: 109/107 | L9: T | M9: C | N9: B | O9: B | P9: 72 | Q9: 151.7 | R9: =Q9*(1-$D$3) -> 87.986
A10: 000883 | B10: 3528700008838 | C10: PN BFG 285/70R17 116/113S ATTAKO2 | D10: 2857017SATTAKO21162 | E10: 4x4 TOUTES SAISONS | F10: BF ATTAKO2 | G10: 285 | H10: 70 | I10: R | J10: 17 | K10: 116/113 | L10: S | M10: D | N10: C | O10: B | P10: 75 | Q10: 377 | R10: =Q10*(1-$D$3) -> 218.66
A11: 002666 | B11: 3528700026665 | C11: PN BFG 215/65R17 XL 103V ADVANTAGE SUV A | D11: 2156517VADVANTAGE103 | E11: 4x4 TOUTES SAISONS | F11: BF ADVANTAGE SUV A | G11: 215 | H11: 65 | I11: R | J11: 17 | K11: 103 | L11: V | M11: C | N11: B | O11: A | P11: 69 | Q11: 139.2 | R11: 80.736
A12: 002957 | B12: 3528700029574 | C12: PN BFG 215/70R15C 109/107R ACTIVAN 4S | D12: 2157015RACTIVAN4S109 | E12: CAMIONNETTE TOUTES SAISONS | F12: BF ACTIVAN 4S | G12: 215 | H12: 70 | I12: R | J12: 15 | K12: 109/107 | L12: R | M12: C | N12: B | O12: B | P12: 72 | Q12: 140.2 | R12: 81.316
A13: 003813 | B13: 3528700038132 | C13: PN BFG 255/45R20 101W ADVANTAGE SUV A | D13: 2554520WADVANTAGE101 | E13: 4x4 TOUTES SAISONS | F13: BF ADVANTAGE SUV A | G13: 255 | H13: 45 | I13: R | J13: 20 | K13: 101 | L13: W | M13: C | N13: B | O13: B | P13: 71 | Q13: 231.8 | R13: 134.444
A14: 004156 | B14: 3528700041569 | C14: PN BFG 225/65R17 XL 106V ADVANTAGE SUV A | D14: 2256517VADVANTAGE106 | E14: 4x4 TOUTES SAISONS | F14: BF ADVANTAGE SUV A | G14: 225 | H14: 65 | I14: R | J14: 17 | K14: 106 | L14: V | P14: 0 | Q14: 145 | R14: 84.1
A15: 005234 | B15: 3528700052343 | C15: PN BFG 225/45R17 XL 94W ADVANT AS | D15: 2254517WADVANTAS94 | E15: TOURISME TOUTES SAISONS | F15: BF ADVANT AS | G15: 225 | H15: 45 | I15: R | J15: 17 | K15: 94 | L15: W | M15: C | N15: B | O15: A | P15: 69 | Q15: 110.9 | R15: 64.322
A16: 005565 | B16: 3528700055658 | C16: PN BFG 195/60R16 89 H G-GRIP ALL SEA2 | D16: 1956016HGGRIP89BF | E16: TOURISME TOUTES SAISONS | F16: BF G-GRIP ALLSEA 2 | G16: 195 | H16: 60 | I16: R | J16: 16 | K16: 89 | L16: H | M16: C | N16: B | O16: A | P16: 69 | Q16: 117.5 | R16: 68.15
A17: 006711 | B17: 3528700067118 | C17: PN BFG 235/60R17 XL 106V ADVANTAGE SUV A | D17: 2356017VADVANTAGE106 | E17: 4x4 TOUTES SAISONS | F17: BF ADVANTAGE SUV A | G17: 235 | H17: 60 | I17: R | J17: 17 | K17: 106 | L17: V | P17: 0 | Q17: 158.9 | R17: 92.162
A18: 007232 | B18: 3528700072327 | C18: PN BFG 255/75R17 111/108 S AT TA KO2 L | D18: 2557517SATTA111108 | E18: 4x4 TOUTES SAISONS | F18: BF ATTAKO2 | G18: 255 | H18: 75 | I18: R | J18: 17 | K18: 111/108 | L18: S | M18: E | N18: B | O18: B | P18: 74 | Q18: 319 | R18: 185.02
A19: 007356 | B19: 3528700073560 | C19: PN BFG 225/55R16 95V ADVANTAGE | D19: 2255516VADVAN95 | E19: TOURISME ÉTÉ | F19: BF ADVANTAGE | G19: 225 | H19: 55 | I19: R | J19: 16 | K19: 95 | L19: V | M19: C | N19: A | O19: B | P19: 70 | Q19: 129.6 | R19: 75.168
A20: 010796 | B20: 3528700107968 | C20: PN BFG 215/60R16 XL 99H ADVANTAGE | D20: 2156016HADVAN99 | E20: TOURISME ÉTÉ | F20: BF ADVANTAGE | G20: 215 | H20: 60 | I20: R | J20: 16 | K20: 99 | L20: H | M20: C | N20: A | O20: B | P20: 70 | Q20: 131 | R20: 75.98
A21: 014423 | B21: 3528700144239 | C21: PN BFG 215/65R16 XL 102H ADVANTAGE SUV | D21: 2156516HADVSUV102 | E21: 4x4 | F21: BF ADVANTAGE SUV | G21: 215 | H21: 65 | I21: R | J21: 16 | K21: 102 | L21: H | M21: B | N21: A | O21: B | P21: 70 | Q21: 121.4 | R21: 70.412
A22: 015899 | B22: 3528700158991 | C22: PN BFG 195/60R18 XL 96H ADVANT AS | D22: 1956018HADVANTAS96 | E22: TOURISME TOUTES SAISONS | F22: BF ADVANT AS | G22: 195 | H22: 60 | I22: R | J22: 18 | K22: 96 | L22: H | M22: B | N22: B | P22: 69 | Q22: 151.7 | R22: 87.986
A23: 017410 | B23: 3528700174106 | C23: PN BFG 255/65R17 114/110S AT TA KO2 RWL | D23: 2556517SATTAKO2RW114 | E23: 4x4 TOUTES SAISONS | F23: BF ATTAKO2 | G23: 255 | H23: 65 | I23: R | J23: 17 | K23: 114/110 | L23: S | M23: E | N23: B | O23: B | P23: 74 | Q23: 300.5 | R23: 174.29
A24: 030984 | B24: 3528700309843 | C24: PN BFG 175/60R15 81H ADVANT AS | D24: 1756015HADVANTAS81 | E24: TOURISME TOUTES SAISONS | F24: BF ADVANT AS | G24: 175 | H24: 60 | I24: R | J24: 15 | K24: 81 | L24: H | M24: D | N24: B | O24: B | P24: 69 | Q24: 106.1 | R24: 61.538
A25: 034247 | B25: 3528700342475 | C25: PN BFG 225/55R16 XL 99W ADVANTAGE | D25: 2255516WADVAN99 | E25: TOURISME ÉTÉ | F25: BF ADVANTAGE | G25: 225 | H25: 55 | I25: R | J25: 16 | K25: 99 | L25: W | M25: C | N25: A | O25: B | P25: 70 | Q25: 139.7 | R25: 81.026
A26: 034701 | B26: 3528700347012 | C26: PN BFG 215/45R17 XL 91W ADVANT AS | D26: 2154517WADVANTAS91 | E26: TOURISME TOUTES SAISONS | F26: BF ADVANT AS | G26: 215 | H26: 45 | I26: R | J26: 17 | K26: 91 | L26: W | M26: C | N26: B | O26: A | P26: 69 | Q26: 119.5 | R26: 69.31
A27: 038786 | B27: 3528700387865 | C27: PN BFG 225/50R17 94W ADVANTAGE | D27: 2255017WADVAN94 | E27: TOURISME ÉTÉ | F27: BF ADVANTAGE | G27: 225 | H27: 50 | I27: R | J27: 17 | K27: 94 | L27: W | M27: C | N27: A | O27: B | P27: 70 | Q27: 129.1 | R27: 74.878
A28: 038787 | B28: 3528700387872 | C28: PN BFG 205/45R17 XL 88Y ADVANTAGE | D28: 2054517YADVANTAGE88 | E28: TOURISME ÉTÉ | F28: BF ADVANTAGE | G28: 205 | H28: 45 | I28: R | J28: 17 | K28: 88 | L28: Y | P28: 0 | Q28: 120.5 | R28: 69.89
A29: 040122 | B29: 3528700401226 | C29: PN BFG 195/55R16 87T ADVANTAGE | D29: 1955516TADVAN87 | E29: TOURISME ÉTÉ | F29: BF ADVANTAGE | G29: 195 | H29: 55 | I29: R | J29: 16 | K29: 87 | L29: T | M29: C | N29: A | O29: B | P29: 70 | Q29: 108 | R29: 62.64
A30: 040225 | B30: 3528700402254 | C30: PN BFG 265/60R18 110T TRAIL TER TA | D30: 2656018TTRAILTERT110 | E30: 4x4 TOUTES SAISONS | F30: BF TRAIL TER TA | G30: 265 | H30: 60 | I30: R | J30: 18 | K30: 110 | L30: T | M30: D | N30: E | O30: B | P30: 72 | Q30: 263.5 | R30: 152.83
A31: 046026 | B31: 3528700460261 | C31: PN BFG 285/60R18 118/115S A-T TA KO2 RWL | D31: 2856018SATTAKO2118 | E31: 4x4 TOUTES SAISONS | F31: BF ATTAKO2 | G31: 285 | H31: 60 | I31: R | J31: 18 | K31: 118/115 | L31: S | M31: E | N31: B | O31: B | P31: 75 | Q31: 372 | R31: 215.76
A32: 047572 | B32: 3528700475722 | C32: PN BFG 265/75R16 119Q MUD T T/A KM3 LRD | D32: 2657516QMTTAKM3LD119 | E32: 4x4 | F32: BF MT TA KM3 | G32: 265 | H32: 75 | I32: R | J32: 16 | K32: 119/116 | L32: Q | P32: 0 | Q32: 310.5 | R32: 180.09
A33: 049986 | B33: 3528700499865 | C33: PN BFG 225/75R16 XL 108T TRAIL TER TA | D33: 2257516TTRAILTERT108 | E33: 4x4 TOUTES SAISONS | F33: BF TRAIL TER TA | G33: 225 | H33: 75 | I33: R | J33: 16 | K33: 108 | L33: T | M33: E | N33: E | O33: B | P33: 72 | Q33: 210.5 | R33: 122.09
A34: 050106 | B34: 3528700501063 | C34: PN BFG 195/55R15 85V ADVANTAGE | D34: 1955515VADVAN85 | E34: TOURISME ÉTÉ | F34: BF ADVANTAGE | G34: 195 | H34: 55 | I34: R | J34: 15 | K34: 85 | L34: V | M34: D | N34: B | O34: B | P34: 69 | Q34: 111.4 | R34: 64.612
A35: 050279 | B35: 3528700502794 | C35: PN BFG 245/75R17 112T TRAIL TER TA | D35: 2457517TTRAILTERT112 | E35: 4x4 TOUTES SAISONS | F35: BF TRAIL TER TA | G35: 245 | H35: 75 | I35: R | J35: 17 | K35: 112 | L35: T | M35: E | N35: E | O35: B | P35: 72 | Q35: 280.5 | R35: 162.69
A36: 053968 | B36: 3528700539684 | C36: PN BFG 215/55R16 XL 97V ADVANT AS | D36: 2155516VADVANTAS97 | E36: TOURISME TOUTES SAISONS | F36: BF ADVANT AS | G36: 215 | H36: 55 | I36: R | J36: 16 | K36: 97 | L36: V | M36: C | N36: B | O36: A | P36: 69 | Q36: 139.7 | R36: 81.026
A37: 056872 | B37: 3528700568721 | C37: PN BFG 215/60R16C 103/101T ACTIVAN 4S | D37: 2156016TACTIVAN4S103 | E37: CAMIONNETTE TOUTES SAISONS | F37: BF ACTIVAN 4S | G37: 215 | H37: 60 | I37: R | J37: 16 | K37: 103/101 | L37: T | M37: D | N37: B | O37: B | P37: 72 | Q37: 164.6 | R37: 95.468
A38: 059981 | B38: 3528700599817 | C38: PN BFG 205/45R17 XL 88V ADVANT AS | D38: 2054517VADVANTAS88 | E38: TOURISME TOUTES SAISONS | F38: BF ADVANT AS | G38: 205 | H38: 45 | I38: R | J38: 17 | K38: 88 | L38: V | M38: C | N38: B | O38: A | P38: 69 | Q38: 130.6 | R38: 75.748
A39: 064493 | B39: 3528700644937 | C39: PN BFG 205/65R15 XL 99V ADVANT AS | D39: 2056515VADVANTAS99 | E39: TOURISME TOUTES SAISONS | F39: BF ADVANT AS | G39: 205 | H39: 65 | I39: R | J39: 15 | K39: 99 | L39: V | M39: C | N39: B | O39: A | P39: 69 | Q39: 122.9 | R39: 71.282
A40: 067573 | B40: 3528700675733 | C40: PN BFG 27X11.00 R14 MUD TER T/A KM3 | D40: 27110014NMUDKM3 | E40: 4x4 | F40: BF MT TA KM3 | G40: 11 | I40: R | J40: 14 | L40: N | P40: 0 | Q40: 285 | R40: 165.3
A41: 068594 | B41: 3528700685947 | C41: PN BFG 255/45R20 101W ADVANTAGE SUV | D41: 2554520WADVSUV101 | E41: 4x4 | F41: BF ADVANTAGE SUV | G41: 255 | H41: 45 | I41: R | J41: 20 | K41: 101 | L41: W | M41: C | N41: A | O41: B | P41: 70 | Q41: 205 | R41: 118.9
A42: 069320 | B42: 3528700693201 | C42: PN BFG 165/65R14 79T ADVANTAGE | D42: 1656514TADVAN79 | E42: TOURISME ÉTÉ | F42: BF ADVANTAGE | G42: 165 | H42: 65 | I42: R | J42: 14 | K42: 79 | L42: T | M42: D | N42: B | O42: B | P42: 69 | Q42: 71.4 | R42: 41.412
A43: 070738 | B43: 3528700707380 | C43: PN BFG 215/60R16 95V ADVANTAGE | D43: 2156016VADVAN95 | E43: TOURISME ÉTÉ | F43: BF ADVANTAGE | G43: 215 | H43: 60 | I43: R | J43: 16 | K43: 95 | L43: V | M43: C | N43: A | O43: B | P43: 70 | Q43: 130.6 | R43: 75.748
A44: 071113 | B44: 3528700711134 | C44: PN BFG 155/65R14 75T ADVANTAGE DT1 | D44: 1556514TADVANTAGDT75 | E44: TOURISME ÉTÉ | F44: BF ADVANTAGE | G44: 155 | H44: 65 | I44: R | J44: 14 | K44: 75 | L44: T | M44: D | N44: C | O44: B | P44: 69 | Q44: 73.9 | R44: 42.862
A45: 072604 | B45: 3528700726046 | C45: PN BFG 265/70R17 121Q MUD T T/A KM3 LRE | D45: 2657017QMTTAKM3LE121 | E45: 4x4 | F45: BF MT TA KM3 | G45: 265 | H45: 70 | I45: R | J45: 17 | K45: 121/118 | L45: Q | P45: 0 | Q45: 358 | R45: 207.64
A46: 072892 | B46: 3528700728927 | C46: PN BFG 215/45R17 XL 91W ADVANTAGE | D46: 2154517WADVAN91 | E46: TOURISME ÉTÉ | F46: BF ADVANTAGE | G46: 215 | H46: 45 | I46: R | J46: 17 | K46: 91 | L46: W | M46: C | N46: A | O46: B | P46: 70 | Q46: 111.8 | R46: 64.844
A47: 075010 | B47: 3528700750102 | C47: PN BFG 245/70R16 113/110Q MT T/A KM3 LRD | D47: 2457016QMTTAKM3LR113 | E47: 4x4 | F47: BF MT TA KM3 | G47: 245 | H47: 70 | I47: R | J47: 16 | K47: 113/110 | L47: Q | P47: 0 | Q47: 290.5 | R47: 168.49
A48: 075934 | B48: 3528700759341 | C48: PN BFG 225/40R18 XL 92W ADVANTAGE | D48: 2254018WADVAN92 | E48: TOURISME ÉTÉ | F48: BF ADVANTAGE | G48: 225 | H48: 40 | I48: R | J48: 18 | K48: 92 | L48: W | M48: C | N48: A | O48: B | P48: 70 | Q48: 107.5 | R48: 62.35
A49: 085753 | B49: 3528700857535 | C49: PN BFG 235/70R16 104 S AT TA KO2 LRC | D49: 2357016SATTA104 | E49: 4x4 TOUTES SAISONS | F49: BF ATTAKO2 | G49: 235 | H49: 70 | I49: R | J49: 16 | K49: 104/101 | L49: S | M49: E | N49: B | O49: B | P49: 74 | Q49: 225 | R49: 130.5
A50: 085772 | B50: 3528700857726 | C50: PN BFG 225/45R18 XL 95V ADVANT AS | D50: 2254518VADVANTAS95 | E50: TOURISME TOUTES SAISONS | F50: BF ADVANT AS | G50: 225 | H50: 45 | I50: R | J50: 18 | K50: 95 | L50: V | M50: C | N50: B | P50: 69 | Q50: 158.4 | R50: 91.872
A51: 086474 | B51: 3528700864748 | C51: PN BFG 275/55R20 115/112S AT T/A KO2 LRD | D51: 2755520SATTAKO2LD115 | E51: 4x4 TOUTES SAISONS | F51: BF ATTAKO2 | G51: 275 | H51: 55 | I51: R | J51: 20 | K51: 115/112 | L51: S | M51: E | N51: B | O51: B | P51: 75 | Q51: 337.5 | R51: 195.75
A52: 087838 | B52: 3528700878387 | C52: PN BFG 215/65R17 99V ADVANTAGE SUV | D52: 2156517VADVSUV99 | E52: 4x4 | F52: BF ADVANTAGE SUV | G52: 215 | H52: 65 | I52: R | J52: 17 | K52: 99 | L52: V | M52: C | N52: A | O52: B | P52: 70 | Q52: 121.4 | R52: 70.412
A53: 088413 | B53: 3528700884135 | C53: PN BFG 175/55R15 77T ADVANT AS | D53: 1755515TADVANTAS77 | E53: TOURISME TOUTES SAISONS | F53: BF ADVANT AS | G53: 175 | H53: 55 | I53: R | J53: 15 | K53: 77 | L53: T | M53: D | N53: B | O53: B | P53: 69 | Q53: 99.8 | R53: 57.884
A54: 093219 | B54: 3528700932195 | C54: PN BFG 175/70R14 84T ADVANTAGE | D54: 1757014TADVAN84 | E54: TOURISME ÉTÉ | F54: BF ADVANTAGE | G54: 175 | H54: 70 | I54: R | J54: 14 | K54: 84 | L54: T | M54: D | N54: B | O54: B | P54: 69 | Q54: 86.8 | R54: 50.344
A55: 094522 | B55: 3528700945225 | C55: PN BFG 275/60R20 119/116S AT T/A KO2 LRD | D55: 2756020SATTAKO2119 | E55: 4x4 TOUTES SAISONS | F55: BF ATTAKO2 | G55: 275 | H55: 60 | I55: R | J55: 20 | K55: 119/116 | L55: S | M55: E | N55: B | O55: B | P55: 75 | Q55: 311 | R55: 180.38
A56: 094994 | B56: 3528700949940 | C56: PN BFG 225/55R19 99V ADVANTAGE SUV A | D56: 2255519VADVANTAGES99 | E56: 4x4 TOUTES SAISONS | F56: BF ADVANTAGE SUV A | G56: 225 | H56: 55 | I56: R | J56: 19 | K56: 99 | L56: V | M56: C | N56: B | O56: A | P56: 69 | Q56: 156 | R56: 90.48
A57: 097168 | B57: 3528700971682 | C57: PN BFG 215/75R15 100 S AT TA KO2 LRC | D57: 2157515SATTA100 | E57: 4x4 TOUTES SAISONS | F57: BF ATTAKO2 | G57: 215 | H57: 75 | I57: R | J57: 15 | K57: 100/97 | L57: S | M57: E | N57: B | O57: B | P57: 74 | Q57: 217 | R57: 125.86
A58: 097309 | B58: 3528700973099 | C58: PN BFG 225/65R17 102H TRAIL TER TA | D58: 2256517HTRAILTERT102 | E58: 4x4 TOUTES SAISONS | F58: BF TRAIL TER TA | G58: 225 | H58: 65 | I58: R | J58: 17 | K58: 102 | L58: H | M58: E | N58: E | O58: B | P58: 72 | Q58: 215 | R58: 124.7
A59: 102881 | B59: 3528701028811 | C59: PN BFG 215/75R15 100Q MUD T T/A KM3 LRC | D59: 2157515QMTTAKM3100 | E59: 4x4 | F59: BF MT TA KM3 | G59: 215 | H59: 75 | I59: R | J59: 15 | K59: 100/97 | L59: Q | P59: 0 | Q59: 237 | R59: 137.46
A60: 103195 | B60: 3528701031958 | C60: PN BFG 235/55R17 99V ADVANTAGE SUV A | D60: 2355517VADVANTAGES99 | E60: 4x4 TOUTES SAISONS | F60: BF ADVANTAGE SUV A | G60: 235 | H60: 55 | I60: R | J60: 17 | K60: 99 | L60: V | M60: C | N60: B | O60: A | P60: 69 | Q60: 145.4 | R60: 84.332
A61: 112451 | B61: 3528701124513 | C61: PN BFG 235/70R16 110Q MUD T T/A KM3 LRD | D61: 2357016QMTTAKM3110 | E61: 4x4 | F61: BF MT TA KM3 | G61: 235 | H61: 70 | I61: R | J61: 16 | K61: 110/107 | L61: Q | P61: 0 | Q61: 254 | R61: 147.32
A62: 113329 | B62: 3528701133294 | C62: PN BFG 195/60R15 87S RADIAL T/A RWL | D62: 1956015SRADTA87 | E62: COLLECTION (TC4) | F62: BF RADIAL T/A | G62: 195 | H62: 60 | I62: R | J62: 15 | K62: 87 | L62: S | P62: 0 | Q62: 208 | R62: 120.64
A63: 115912 | B63: 3528701159126 | C63: PN BFG 205/60R15 90S RADIAL T/A RWL | D63: 2056015SRADTA90 | E63: COLLECTION (TC4) | F63: BF RADIAL T/A | G63: 205 | H63: 60 | I63: R | J63: 15 | K63: 90 | L63: S | P63: 0 | Q63: 209.5 | R63: 121.51
A64: 115913 | B64: 3528701159133 | C64: PN BFG 215/60R15 93S RADIAL T/A RWL | D64: 2156015SRADTA93 | E64: COLLECTION (TC4) | F64: BF RADIAL T/A | G64: 215 | H64: 60 | I64: R | J64: 15 | K64: 93 | L64: S | P64: 0 | Q64: 235 | R64: 136.3
A65: 115914 | B65: 3528701159140 | C65: PN BFG 225/60R15 95S RADIAL T/A RWL | D65: 2256015SRADTA95 | E65: COLLECTION (TC4) | F65: BF RADIAL T/A | G65: 225 | H65: 60 | I65: R | J65: 15 | K65: 95 | L65: S | P65: 0 | Q65: 232 | R65: 134.56
A66: 117005 | B66: 3528701170053 | C66: PN BFG 295/50R15 105 S RADIAL T/A RWL | D66: 2955015SRADTA105 | E66: COLLECTION (TC4) | F66: BF RADIAL T/A | G66: 295 | H66: 50 | I66: R | J66: 15 | K66: 105 | L66: S | P66: 0 | Q66: 326.5 | R66: 189.37
A67: 117408 | B67: 3528701174082 | C67: PN BFG 205/70R14 93S RADIAL T/A RWL | D67: 2057014SRADTA93 | E67: COLLECTION (TC4) | F67: BF RADIAL T/A | G67: 205 | H67: 70 | I67: R | J67: 14 | K67: 93 | L67: S | P67: 0 | Q67: 211 | R67: 122.38
A68: 117409 | B68: 3528701174099 | C68: PN BFG 215/60R14 91S RADIAL T/A RWL | D68: 2156014SRADTA91 | E68: COLLECTION (TC4) | F68: BF RADIAL T/A | G68: 215 | H68: 60 | I68: R | J68: 14 | K68: 91 | L68: S | P68: 0 | Q68: 223 | R68: 129.34
A69: 117410 | B69: 3528701174105 | C69: PN BFG 215/70R14 96S RADIAL T/A RWL | D69: 2157014SRADTA96 | E69: COLLECTION (TC4) | F69: BF RADIAL T/A | G69: 215 | H69: 70 | I69: R | J69: 14 | K69: 96 | L69: S | P69: 0 | Q69: 220 | R69: 127.6
A70: 117411 | B70: 3528701174112 | C70: PN BFG 225/60R14 94S RADIAL T/A RWL | D70: 2256014SRADTA94 | E70: COLLECTION (TC4) | F70: BF RADIAL T/A | G70: 225 | H70: 60 | I70: R | J70: 14 | K70: 94 | L70: S | P70: 0 | Q70: 209.5 | R70: 121.51
A71: 117412 | B71: 3528701174129 | C71: PN BFG 225/70R14 98S RADIAL T/A RWL | D71: 2257014SRADTA98 | E71: COLLECTION (TC4) | F71: BF RADIAL T/A | G71: 225 | H71: 70 | I71: R | J71: 14 | K71: 98 | L71: S | P71: 0 | Q71: 233.5 | R71: 135.43
A72: 117414 | B72: 3528701174143 | C72: PN BFG 235/60R14 96S RADIAL T/A RWL | D72: 2356014SRADTA96 | E72: COLLECTION (TC4) | F72: BF RADIAL T/A | G72: 235 | H72: 60 | I72: R | J72: 14 | K72: 96 | L72: S | P72: 0 | Q72: 232 | R72: 134.56
A73: 117415 | B73: 3528701174150 | C73: PN BFG 245/60R14 98S RADIAL T/A RWL | D73: 2456014SRADTA98 | E73: COLLECTION (TC4) | F73: BF RADIAL T/A | G73: 245 | H73: 60 | I73: R | J73: 14 | K73: 98 | L73: S | P73: 0 | Q73: 254 | R73: 147.32
A74: 117416 | B74: 3528701174167 | C74: PN BFG 215/70R15 97S RADIAL T/A RWL | D74: 2157015SRADTA97 | E74: COLLECTION (TC4) | F74: BF RADIAL T/A | G74: 215 | H74: 70 | I74: R | J74: 15 | K74: 97 | L74: S | P74: 0 | Q74: 220 | R74: =Q74*(1-$D$3) -> 127.6
A75: 117417 | B75: 3528701174174 | C75: PN BFG 225/70R15 100 S RADIAL T/A RWL | D75: 2257015SRADTA100 | E75: COLLECTION (TC4) | F75: BF RADIAL T/A | G75: 225 | H75: 70 | I75: R | J75: 15 | K75: 100 | L75: S | P75: 0 | Q75: 246 | R75: 142.68
A76: 117418 | B76: 3528701174181 | C76: PN BFG 235/60R15 98 S RADIAL T/A RWL | D76: 2356015SRADTA98 | E76: COLLECTION (TC4) | F76: BF RADIAL T/A | G76: 235 | H76: 60 | I76: R | J76: 15 | K76: 98 | L76: S | P76: 0 | Q76: 253 | R76: 146.74
A77: 117420 | B77: 3528701174204 | C77: PN BFG 235/70R15 102 S RADIAL T/A RWL | D77: 2357015SRADTA102 | E77: COLLECTION (TC4) | F77: BF RADIAL T/A | G77: 235 | H77: 70 | I77: R | J77: 15 | K77: 102 | L77: S | P77: 0 | Q77: 227.5 | R77: 131.95
A78: 117421 | B78: 3528701174211 | C78: PN BFG 245/60R15 100 S RADIAL T/A RWL | D78: 2456015SRADTA100 | E78: COLLECTION (TC4) | F78: BF RADIAL T/A | G78: 245 | H78: 60 | I78: R | J78: 15 | K78: 100 | L78: S | P78: 0 | Q78: 262 | R78: 151.96
A79: 117423 | B79: 3528701174235 | C79: PN BFG 255/70R15 108 S RADIAL T/A RWL | D79: 2557015SRADTA108 | E79: COLLECTION (TC4) | F79: BF RADIAL T/A | G79: 255 | H79: 70 | I79: R | J79: 15 | K79: 108 | L79: S | P79: 0 | Q79: 266.5 | R79: 154.57
A80: 117424 | B80: 3528701174242 | C80: PN BFG 255/60R15 108 S RADIAL T/A RWL | D80: 2556015SRADTA102 | E80: COLLECTION (TC4) | F80: BF RADIAL T/A | G80: 255 | H80: 60 | I80: R | J80: 15 | K80: 102 | L80: S | P80: 0 | Q80: 267.5 | R80: 155.15
A81: 117425 | B81: 3528701174259 | C81: PN BFG 275/60R15 107 S RADIAL T/A RWL | D81: 2756015SRADTA107 | E81: COLLECTION (TC4) | F81: BF RADIAL T/A | G81: 275 | H81: 60 | I81: R | J81: 15 | K81: 107 | L81: S | P81: 0 | Q81: 278.5 | R81: 161.53
A82: 117427 | B82: 3528701174273 | C82: PN BFG 215/65R15 95S RADIAL T/A RWL | D82: 2156515SRADTA95 | E82: COLLECTION (TC4) | F82: BF RADIAL T/A | G82: 215 | H82: 65 | I82: R | J82: 15 | K82: 95 | L82: S | P82: 0 | Q82: 229 | R82: 132.82
A83: 120829 | B83: 3528701208299 | C83: PN BFG 265/70R16 112T TRAIL TER TA | D83: 2657016TTRAILTERT112 | E83: 4x4 TOUTES SAISONS | F83: BF TRAIL TER TA | G83: 265 | H83: 70 | I83: R | J83: 16 | K83: 112 | L83: T | M83: D | N83: E | O83: B | P83: 72 | Q83: 237 | R83: 137.46
A84: 120859 | B84: 3528701208596 | C84: PN BFG 195/65R15 XL 95H ADVANT AS | D84: 1956515HADVANTAS95 | E84: TOURISME TOUTES SAISONS | F84: BF ADVANT AS | G84: 195 | H84: 65 | I84: R | J84: 15 | K84: 95 | L84: H | M84: C | N84: B | O84: A | P84: 69 | Q84: 87.8 | R84: 50.924
A85: 120861 | B85: 3528701208619 | C85: PN BFG 245/45R19 XL 102Y ADVANT AS | D85: 2454519YADVANTAS102 | E85: TOURISME TOUTES SAISONS | F85: BF ADVANT AS | G85: 245 | H85: 45 | I85: R | J85: 19 | K85: 102 | L85: Y | M85: B | N85: B | O85: A | P85: 69 | Q85: 205.4 | R85: 119.132
A86: 120967 | B86: 3528701209678 | C86: PN BFG 165/60R15 XL 81H ADVANT AS | D86: 1656015HADVANTAS81 | E86: TOURISME TOUTES SAISONS | F86: BF ADVANT AS | G86: 165 | H86: 60 | I86: R | J86: 15 | K86: 81 | L86: H | M86: C | N86: B | O86: B | P86: 69 | Q86: 97 | R86: 56.26
A87: 121014 | B87: 3528701210148 | C87: PN BFG 255/55R18 XL 109W ADVANTAGE SUV A | D87: 2555518WADVANTAGE109 | E87: 4x4 TOUTES SAISONS | F87: BF ADVANTAGE SUV A | G87: 255 | H87: 55 | I87: R | J87: 18 | K87: 109 | L87: W | P87: 0 | Q87: 167 | R87: 96.86
A88: 124215 | B88: 3528701242156 | C88: PN BFG 265/70R17 121 S AT TA KO2 LRD | D88: 2657017SATTA121 | E88: 4x4 TOUTES SAISONS | F88: BF ATTAKO2 | G88: 265 | H88: 70 | I88: R | J88: 17 | K88: 121/118 | L88: S | M88: E | N88: B | O88: B | P88: 74 | Q88: 327 | R88: 189.66
A89: 124343 | B89: 3528701243436 | C89: PN BFG 215/55R17 94V ADVANTAGE | D89: 2155517VADVAN94 | E89: TOURISME ÉTÉ | F89: BF ADVANTAGE | G89: 215 | H89: 55 | I89: R | J89: 17 | K89: 94 | L89: V | M89: D | N89: A | O89: B | P89: 70 | Q89: 128.2 | R89: 74.356
A90: 125948 | B90: 3528701259482 | C90: PN BFG 235/50R19 99V ADVANTAGE SUV A | D90: 2355019VADVANTAGES99 | E90: 4x4 TOUTES SAISONS | F90: BF ADVANTAGE SUV A | G90: 235 | H90: 50 | I90: R | J90: 19 | K90: 99 | L90: V | M90: C | N90: B | O90: A | P90: 69 | Q90: 172.3 | R90: 99.934
A91: 125962 | B91: 3528701259628 | C91: PN BFG 175/65R14 82T G-GRIP ALL SEAS 2 | D91: 1756514TGGRIPALLSE82 | E91: TOURISME TOUTES SAISONS | F91: BF G-GRIP ALLSEA 2 | G91: 175 | H91: 65 | I91: R | J91: 14 | K91: 82 | L91: T | M91: D | N91: C | O91: B | P91: 69 | Q91: 77.3 | R91: 44.834
A92: 127459 | B92: 3528701274591 | C92: PN BFG 205/45R16 83H ADVANT AS | D92: 2054516HADVANTAS83 | E92: TOURISME TOUTES SAISONS | F92: BF ADVANT AS | G92: 205 | H92: 45 | I92: R | J92: 16 | K92: 83 | L92: H | M92: D | N92: B | O92: A | P92: 69 | Q92: 125.8 | R92: 72.964
A93: 128401 | B93: 3528701284019 | C93: PN BFG 235/65R17 109/105R A/T TA KO2 RWL | D93: 2356517RATTAKO2109 | E93: 4x4 TOUTES SAISONS | F93: BF ATTAKO2 | G93: 235 | H93: 65 | I93: R | J93: 17 | K93: 109/105 | L93: R | M93: E | N93: B | O93: B | P93: 75 | Q93: 249.5 | R93: 144.71
A94: 129451 | B94: 3528701294513 | C94: PN BFG 30X9.50R15 104 S AT TA KO2 LRC | D94: 3095015SATTA104 | E94: 4x4 TOUTES SAISONS | F94: BF ATTAKO2 | G94: 9.5 | I94: R | J94: 15 | K94: 104 | L94: S | M94: E | N94: B | O94: B | P94: 75 | Q94: 248.5 | R94: 144.13
A95: 133199 | B95: 3528701331997 | C95: PN BFG 235/60R16 100H ADVANTAGE SUV A | D95: 2356016HADVANTAGE100 | E95: 4x4 TOUTES SAISONS | F95: BF ADVANTAGE SUV A | G95: 235 | H95: 60 | I95: R | J95: 16 | K95: 100 | L95: H | P95: 0 | Q95: 145 | R95: 84.1
A96: 134014 | B96: 3528701340142 | C96: PN BFG 205/60R16 92V ADVANTAGE | D96: 2056016VADVANTAGE92 | E96: TOURISME ÉTÉ | F96: BF ADVANTAGE | G96: 205 | H96: 60 | I96: R | J96: 16 | K96: 92 | L96: V | M96: C | N96: A | O96: B | P96: 70 | Q96: 114.2 | R96: 66.236
A97: 135676 | B97: 3528701356761 | C97: PN BFG 35X12.50 R17 121Q MUD T T/A KM3 | D97: 35125017QMTTAKMLE121 | E97: 4x4 | F97: BF MT TA KM3 | G97: 12.5 | H97: 70 | I97: R | J97: 17 | K97: 121 | L97: Q | P97: 0 | Q97: 449.5 | R97: 260.71
A98: 141266 | B98: 3528701412665 | C98: PN BFG 205/55R19 XL 97V ADVANTAGE | D98: 2055519VADVAN97 | E98: TOURISME ÉTÉ | F98: BF ADVANTAGE | G98: 205 | H98: 55 | I98: R | J98: 19 | K98: 97 | L98: V | M98: B | N98: A | O98: B | P98: 70 | Q98: 142.1 | R98: 82.418
A99: 146092 | B99: 3528701460925 | C99: PN BFG 275/65R17 121/118S AT T/A KO2 RWL | D99: 2756517SATTAKO2LE121 | E99: 4x4 TOUTES SAISONS | F99: BF ATTAKO2 | G99: 275 | H99: 65 | I99: R | J99: 17 | K99: 121/118 | L99: S | M99: E | N99: B | O99: B | P99: 74 | Q99: 308.5 | R99: 178.93
A100: 146104 | B100: 3528701461045 | C100: PN BFG 315/70R17 121 S AT TA KO2 LRE | D100: 3157017SATTA121 | E100: 4x4 TOUTES SAISONS | F100: BF ATTAKO2 | G100: 315 | H100: 70 | I100: R | J100: 17 | K100: 121/118 | L100: S | M100: E | N100: B | O100: B | P100: 75 | Q100: 435 | R100: 252.3
A101: 151238 | B101: 3528701512389 | C101: PN BFG 205/55R16 XL 94V ADVANTAGE | D101: 2055516VADVANTAGE94 | E101: TOURISME ÉTÉ | F101: BF ADVANTAGE | G101: 205 | H101: 55 | I101: R | J101: 16 | K101: 94 | L101: V | M101: C | N101: A | O101: B | P101: 71 | Q101: 93.6 | R101: 54.288
A102: 153439 | B102: 3528701534398 | C102: PN BFG 225/50R17 XL 98V ADVANT AS | D102: 2255017VADVANTAS98 | E102: TOURISME TOUTES SAISONS | F102: BF ADVANT AS | G102: 225 | H102: 50 | I102: R | J102: 17 | K102: 98 | L102: V | M102: C | N102: B | O102: A | P102: 69 | Q102: 139.2 | R102: 80.736
A103: 158582 | B103: 3528701585826 | C103: PN BFG 265/65R17 112T TRAIL TER TA | D103: 2656517TTRAILTERT112 | E103: 4x4 TOUTES SAISONS | F103: BF TRAIL TER TA | G103: 265 | H103: 65 | I103: R | J103: 17 | K103: 112 | L103: T | M103: D | N103: E | O103: B | P103: 72 | Q103: 277 | R103: 160.66
A104: 158604 | B104: 3528701586045 | C104: PN BFG 205/55R16 91W ADVANTAGE | D104: 2055516WADVANTAGE91 | E104: TOURISME ÉTÉ | F104: BF ADVANTAGE | G104: 205 | H104: 55 | I104: R | J104: 16 | K104: 91 | L104: W | M104: C | N104: A | O104: B | P104: 70 | Q104: 92.2 | R104: 53.476
A105: 163578 | B105: 3528701635781 | C105: PN BFG 27X9.00 R14 N MUD TER T/A KM3 NHS | D105: 2790014NMUDTAKM3NH | E105: 4x4 | F105: BF MUD TA KM3 | G105: 9 | I105: R | J105: 14 | L105: N | P105: 0 | Q105: 289.5 | R105: 167.91
A106: 163584 | B106: 3528701635842 | C106: PN BFG 225/60R18 100H ADVANTAGE SUV A | D106: 2256018HADVANTAGE100 | E106: 4x4 TOUTES SAISONS | F106: BF ADVANTAGE SUV A | G106: 225 | H106: 60 | I106: R | J106: 18 | K106: 100 | L106: H | M106: B | N106: B | O106: A | P106: 69 | Q106: 143 | R106: 82.94
A107: 168077 | B107: 3528701680774 | C107: PN BFG 285/75R17 121Q MUD T T/A KM3 LRE | D107: 2857517QMTTAKM3121 | E107: 4x4 | F107: BF MT TA KM3 | G107: 285 | H107: 75 | I107: R | J107: 17 | K107: 121/118 | L107: Q | P107: 0 | Q107: 417.5 | R107: 242.15
A108: 168791 | B108: 3528701687919 | C108: PN BFG 185/50R16 81H ADVANT AS | D108: 1855016HADVANTAS81 | E108: TOURISME TOUTES SAISONS | F108: BF ADVANT AS | G108: 185 | H108: 50 | I108: R | J108: 16 | K108: 81 | L108: H | M108: D | N108: B | O108: B | P108: 69 | Q108: 120.5 | R108: 69.89
A109: 172490 | B109: 3528701724904 | C109: PN BFG 225/70R16 102 R AT TA KO2 LRC | D109: 2257016RATTA102 | E109: 4x4 TOUTES SAISONS | F109: BF ATTAKO2 | G109: 225 | H109: 70 | I109: R | J109: 16 | K109: 102/99 | L109: R | M109: E | N109: B | O109: B | P109: 74 | Q109: 220.5 | R109: 127.89
A110: 179044 | B110: 3528701790442 | C110: PN BFG 35X12.50 R20 121Q MUD T T/A KM3 | D110: 35125020QMTTAKMLE121 | E110: 4x4 | F110: BF MT TA KM3 | G110: 12.5 | I110: R | J110: 20 | K110: 121 | L110: Q | P110: 0 | Q110: 482.5 | R110: 279.85
A111: 183882 | B111: 3528701838823 | C111: PN BFG 195/65R15 XL 95T ADVANTAGE | D111: 1956515TADVAN95 | E111: TOURISME ÉTÉ | F111: BF ADVANTAGE | G111: 195 | H111: 65 | I111: R | J111: 15 | K111: 95 | L111: T | M111: C | N111: B | O111: B | P111: 70 | Q111: 87.8 | R111: 50.924
A112: 185025 | B112: 3528701850252 | C112: PN BFG 235/60R16 104 H URBAN. TER T/A | D112: 2356016HURBAN104 | E112: 4x4 TOUTES SAISONS | F112: BF URB TERR TA | G112: 235 | H112: 60 | I112: R | J112: 16 | K112: 104 | L112: H | M112: C | N112: C | O112: B | P112: 72 | Q112: 147.4 | R112: 85.492
A113: 186714 | B113: 3528701867144 | C113: PN BFG 215/65R16 103 S AT TA KO2 LRD | D113: 2156516SATTA103 | E113: 4x4 TOUTES SAISONS | F113: BF ATTAKO2 | G113: 215 | H113: 65 | I113: R | J113: 16 | K113: 103/100 | L113: S | M113: E | N113: B | O113: B | P113: 74 | Q113: 217 | R113: 125.86
A114: 188440 | B114: 3528701884400 | C114: PN BFG 235/40R19 XL 96Y ADVANT AS | D114: 2354019YADVANTAS96 | E114: TOURISME TOUTES SAISONS | F114: BF ADVANT AS | G114: 235 | H114: 40 | I114: R | J114: 19 | K114: 96 | L114: Y | M114: C | N114: B | O114: A | P114: 69 | Q114: 200.2 | R114: 116.116
A115: 192252 | B115: 3528701922522 | C115: PN BFG 195/55R16 XL 91H ADVANT AS | D115: 1955516HADVANTAS91 | E115: TOURISME TOUTES SAISONS | F115: BF ADVANT AS | G115: 195 | H115: 55 | I115: R | J115: 16 | K115: 91 | L115: H | M115: C | N115: B | O115: A | P115: 69 | Q115: 118.1 | R115: 68.498
A116: 194893 | B116: 3528701948935 | C116: PN BFG 245/65R17 111Q MUD T T/A KM3 LRD | D116: 2456517QMTTAKM3111 | E116: 4x4 | F116: BF MT TA KM3 | G116: 245 | H116: 65 | I116: R | J116: 17 | K116: 111/108 | L116: Q | P116: 0 | Q116: 299 | R116: 173.42
A117: 197077 | B117: 3528701970776 | C117: PN BFG 175/70R14 XL 88T ADVANTAGE | D117: 1757014TADVAN88 | E117: TOURISME ÉTÉ | F117: BF ADVANTAGE | G117: 175 | H117: 70 | I117: R | J117: 14 | K117: 88 | L117: T | M117: D | N117: B | O117: B | P117: 70 | Q117: 91.1 | R117: 52.838
A118: 197574 | B118: 3528701975740 | C118: PN BFG 155/65R14 75T G-GRIP ALL SEAS 2 | D118: 1556514TGGRIPALLSE75 | E118: TOURISME TOUTES SAISONS | F118: BF G-GRIP ALLSEA 2 | G118: 155 | H118: 65 | I118: R | J118: 14 | K118: 75 | L118: T | M118: D | N118: C | O118: B | P118: 69 | Q118: 76.8 | R118: 44.544
A119: 197828 | B119: 3528701978284 | C119: PN BFG 235/55R18 100H ADVANTAGE SUV | D119: 2355518HADVSUV100 | E119: 4x4 | F119: BF ADVANTAGE SUV | G119: 235 | H119: 55 | I119: R | J119: 18 | K119: 100 | L119: H | M119: C | N119: A | O119: B | P119: 70 | Q119: 133 | R119: 77.14
A120: 202709 | B120: 3528702027097 | C120: PN BFG 215/55R17 94W ADVANTAGE | D120: 2155517WADVAN94 | E120: TOURISME ÉTÉ | F120: BF ADVANTAGE | G120: 215 | H120: 55 | I120: R | J120: 17 | K120: 94 | L120: W | M120: D | N120: A | O120: B | P120: 70 | Q120: 129.1 | R120: 74.878
A121: 211598 | B121: 3528702115985 | C121: PN BFG 285/70R17 121/118Q MT T/A KM3 LRE | D121: 2857017QMTTAKM3LE121 | E121: 4x4 | F121: BF MT TA KM3 | G121: 285 | H121: 70 | I121: R | J121: 17 | K121: 121/118 | L121: Q | P121: 0 | Q121: 406.5 | R121: 235.77
A122: 212107 | B122: 3528702121078 | C122: PN BFG 205/65R15 94H ADVANT AS | D122: 2056515HADVANTAS94 | E122: TOURISME TOUTES SAISONS | F122: BF ADVANT AS | G122: 205 | H122: 65 | I122: R | J122: 15 | K122: 94 | L122: H | M122: C | N122: B | O122: A | P122: 69 | Q122: 118.6 | R122: 68.788
A123: 215217 | B123: 3528702152171 | C123: PN BFG 205/60R16 92H ADVANTAGE | D123: 2056016HADVANTAGE92 | E123: TOURISME ÉTÉ | F123: BF ADVANTAGE | G123: 205 | H123: 60 | I123: R | J123: 16 | K123: 92 | L123: H | M123: C | N123: A | O123: B | P123: 70 | Q123: 109 | R123: 63.22
A124: 215287 | B124: 3528702152874 | C124: PN BFG 225/45R17 XL 94Y ADVANTAGE | D124: 2254517YADVANTAGE94 | E124: TOURISME ÉTÉ | F124: BF ADVANTAGE | G124: 225 | H124: 45 | I124: R | J124: 17 | K124: 94 | L124: Y | P124: 0 | Q124: 101.3 | R124: 58.754
A125: 216149 | B125: 3528702161494 | C125: PN BFG 215/45R16 XL 90V ADVANT AS | D125: 2154516VADVANTAS90 | E125: TOURISME TOUTES SAISONS | F125: BF ADVANT AS | G125: 215 | H125: 45 | I125: R | J125: 16 | K125: 90 | L125: V | M125: C | N125: B | O125: A | P125: 69 | Q125: 139.2 | R125: 80.736
A126: 216543 | B126: 3528702165430 | C126: PN BFG 215/65R16 98H ADVANTAGE SUV A | D126: 2156516HADVANTAGES98 | E126: 4x4 TOUTES SAISONS | F126: BF ADVANTAGE SUV A | G126: 215 | H126: 65 | I126: R | J126: 16 | K126: 98 | L126: H | M126: C | N126: B | O126: A | P126: 69 | Q126: 124.3 | R126: 72.094
A127: 219881 | B127: 3528702198810 | C127: PN BFG 245/45R17 XL 99Y ADVANTAGE | D127: 2454517YADVAN99 | E127: TOURISME ÉTÉ | F127: BF ADVANTAGE | G127: 245 | H127: 45 | I127: R | J127: 17 | K127: 99 | L127: Y | M127: C | N127: A | O127: B | P127: 70 | Q127: 141.6 | R127: 82.128
A128: 221263 | B128: 3528702212639 | C128: PN BFG 255/55R18 109 R AT TA KO2 LRD | D128: 2555518RATTA109 | E128: 4x4 TOUTES SAISONS | F128: BF ATTAKO2 | G128: 255 | H128: 55 | I128: R | J128: 18 | K128: 109/105 | L128: R | M128: E | N128: B | O128: B | P128: 74 | Q128: 295.5 | R128: 171.39
A129: 225269 | B129: 3528702252697 | C129: PN BFG 225/45R18 XL 95Y ADVANT AS | D129: 2254518YADVANTAS95 | E129: TOURISME TOUTES SAISONS | F129: BF ADVANT AS | G129: 225 | H129: 45 | I129: R | J129: 18 | K129: 95 | L129: Y | M129: C | N129: B | P129: 69 | Q129: 163.7 | R129: 94.946
A130: 225825 | B130: 3528702258255 | C130: PN BFG 245/70R17 XL 114T TRAIL TER TA | D130: 2457017TTRAILTERT114 | E130: 4x4 TOUTES SAISONS | F130: BF TRAIL TER TA | G130: 245 | H130: 70 | I130: R | J130: 17 | K130: 114 | L130: T | M130: D | N130: E | O130: B | P130: 72 | Q130: 280.5 | R130: 162.69
A131: 226349 | B131: 3528702263495 | C131: PN BFG 185/65R14 86T G-GRIP ALL SEAS 2 | D131: 1856514TGGRIPALLSE86 | E131: TOURISME TOUTES SAISONS | F131: BF G-GRIP ALLSEA 2 | G131: 185 | H131: 65 | I131: R | J131: 14 | K131: 86 | L131: T | M131: D | N131: C | O131: B | P131: 69 | Q131: 88.3 | R131: 51.214
A132: 228682 | B132: 3528702286821 | C132: PN BFG 165/65R14 79T ADVANTAGE DT1 | D132: 1656514TADVANTAGDT79 | E132: TOURISME ÉTÉ | F132: BF ADVANTAGE | G132: 165 | H132: 65 | I132: R | J132: 14 | K132: 79 | L132: T | M132: D | N132: C | O132: B | P132: 69 | Q132: 74.4 | R132: 43.152
A133: 228929 | B133: 3528702289297 | C133: PN BFG 37X12.50 R18 115Q MUD T/A KM3 LRC | D133: 37125018QMTTAKM3115 | E133: 4x4 | F133: BF MT TA KM3 | G133: 12.5 | I133: R | J133: 18 | K133: 115 | L133: Q | P133: 0 | Q133: 504 | R133: 292.32
A134: 230800 | B134: 3528702308004 | C134: PN BFG 225/45R18 XL 95W ADVANTAGE | D134: 2254518WADVAN95 | E134: TOURISME ÉTÉ | F134: BF ADVANTAGE | G134: 225 | H134: 45 | I134: R | J134: 18 | K134: 95 | L134: W | M134: C | N134: A | O134: B | P134: 70 | Q134: 146.9 | R134: 85.202
A135: 231923 | B135: 3528702319239 | C135: PN BFG 235/40R19 XL 96Y ADVANTAGE | D135: 2354019YADVAN96 | E135: TOURISME ÉTÉ | F135: BF ADVANTAGE | G135: 235 | H135: 40 | I135: R | J135: 19 | K135: 96 | L135: Y | M135: C | N135: A | O135: B | P135: 70 | Q135: 177.6 | R135: 103.008
A136: 238101 | B136: 3528702381014 | C136: PN BFG 185/65R15 88T ADVANTAGE | D136: 1856515TADVAN88 | E136: TOURISME ÉTÉ | F136: BF ADVANTAGE | G136: 185 | H136: 65 | I136: R | J136: 15 | K136: 88 | L136: T | M136: C | N136: B | O136: B | P136: 69 | Q136: 81.1 | R136: 47.038
A137: 238771 | B137: 3528702387719 | C137: PN BFG 175/65R15 84H ADVANTAGE | D137: 1756515HADVAN84 | E137: TOURISME ÉTÉ | F137: BF ADVANTAGE | G137: 175 | H137: 65 | I137: R | J137: 15 | K137: 84 | L137: H | M137: D | N137: B | O137: B | P137: 69 | Q137: 85.4 | R137: 49.532
A138: 242407 | B138: 3528702424070 | C138: PN BFG 235/55R19 XL 105H TRAIL TER TA | D138: 2355519HTRAILTERT105 | E138: 4x4 TOUTES SAISONS | F138: BF TRAIL TER TA | G138: 235 | H138: 55 | I138: R | J138: 19 | K138: 105 | L138: H | M138: D | N138: E | O138: B | P138: 72 | Q138: 250.5 | R138: =Q138*(1-$D$3) -> 145.29
A139: 244419 | B139: 3528702444191 | C139: PN BFG 235/50R19 99V ADVANTAGE SUV | D139: 2355019VADVSUV99 | E139: 4x4 | F139: BF ADVANTAGE SUV | G139: 235 | H139: 50 | I139: R | J139: 19 | K139: 99 | L139: V | M139: C | N139: A | O139: B | P139: 70 | Q139: 161.3 | R139: 93.554
A140: 245178 | B140: 3528702451786 | C140: PN BFG 225/70R16 103H ADVANTAGE SUV A | D140: 2257016HADVANTAGE103 | E140: 4x4 TOUTES SAISONS | F140: BF ADVANTAGE SUV A | G140: 225 | H140: 70 | I140: R | J140: 16 | K140: 103 | L140: H | P140: 0 | Q140: 145 | R140: 84.1
A141: 248742 | B141: 3528702487426 | C141: PN BFG 205/65R15 94H ADVANTAGE | D141: 2056515HADVAN94 | E141: TOURISME ÉTÉ | F141: BF ADVANTAGE | G141: 205 | H141: 65 | I141: R | J141: 15 | K141: 94 | L141: H | M141: C | N141: B | O141: B | P141: 69 | Q141: 113.3 | R141: 65.714
A142: 249671 | B142: 3528702496718 | C142: PN BFG 28X9.00 R14 MUD TER T/A KM3 | D142: 2890014NMUDKM3 | E142: 4x4 | F142: BF MT TA KM3 | G142: 9 | I142: R | J142: 14 | L142: N | P142: 0 | Q142: 289.5 | R142: 167.91
A143: 253505 | B143: 3528702535059 | C143: PN BFG 285/45R22 XL 114H TRAIL TER TA | D143: 2854522HTRAILTERT114 | E143: 4x4 TOUTES SAISONS | F143: BF TRAIL TER TA | G143: 285 | H143: 45 | I143: R | J143: 22 | K143: 114 | L143: H | M143: D | N143: E | O143: B | P143: 73 | Q143: 401.5 | R143: 232.87
A144: 253698 | B144: 3528702536988 | C144: PN BFG 29X11.00 R14 MUD TER T/A KM3 | D144: 29110014NMUDKM3 | E144: 4x4 | F144: BF MT TA KM3 | G144: 11 | I144: R | J144: 14 | L144: N | P144: 0 | Q144: 303.5 | R144: 176.03
A145: 256846 | B145: 3528702568460 | C145: PN BFG 225/55R18 98V ADVANTAGE SUV A | D145: 2255518VADVANTAGES98 | E145: 4x4 TOUTES SAISONS | F145: BF ADVANTAGE SUV A | G145: 225 | H145: 55 | I145: R | J145: 18 | K145: 98 | L145: V | M145: C | N145: B | O145: A | P145: 69 | Q145: 151.2 | R145: 87.696
A146: 259075 | B146: 3528702590751 | C146: PN BFG 225/45R18 XL 95W ADVANT AS | D146: 2254518WADVANTAS95 | E146: TOURISME TOUTES SAISONS | F146: BF ADVANT AS | G146: 225 | H146: 45 | I146: R | J146: 18 | K146: 95 | L146: W | M146: C | N146: B | P146: 69 | Q146: 163.7 | R146: 94.946
A147: 265277 | B147: 3528702652770 | C147: PN BFG 235/65R17 XL 108V ADVANTAGE SUV A | D147: 2356517VADVANTAGE108 | E147: 4x4 TOUTES SAISONS | F147: BF ADVANTAGE SUV A | G147: 235 | H147: 65 | I147: R | J147: 17 | K147: 108 | L147: V | P147: 0 | Q147: 142.6 | R147: 82.708
A148: 266177 | B148: 3528702661772 | C148: PN BFG 165/70R14 81T G-GRIP ALL SEAS 2 | D148: 1657014TGGRIPALLSE81 | E148: TOURISME TOUTES SAISONS | F148: BF G-GRIP ALLSEA 2 | G148: 165 | H148: 70 | I148: R | J148: 14 | K148: 81 | L148: T | M148: D | N148: C | O148: B | P148: 69 | Q148: 79.2 | R148: 45.936
A149: 270760 | B149: 3528702707609 | C149: PN BFG 175/65R15 84T ADVANT AS | D149: 1756515TADVANTAS84 | E149: TOURISME TOUTES SAISONS | F149: BF ADVANT AS | G149: 175 | H149: 65 | I149: R | J149: 15 | K149: 84 | L149: T | M149: D | N149: B | P149: 69 | Q149: 92.6 | R149: 53.708
A150: 273811 | B150: 3528702738115 | C150: PN BFG 265/60R18 XL 114V ADVANTAGE SUV A | D150: 2656018VADVANTAGE114 | E150: 4x4 TOUTES SAISONS | F150: BF ADVANTAGE SUV A | G150: 265 | H150: 60 | I150: R | J150: 18 | K150: 114 | L150: V | P150: 0 | Q150: 187.7 | R150: 108.866
A151: 275646 | B151: 3528702756461 | C151: PN BFG 205/55R16 XL 94W ADVANTAGE | D151: 2055516WADVANTAGE94 | E151: TOURISME ÉTÉ | F151: BF ADVANTAGE | G151: 205 | H151: 55 | I151: R | J151: 16 | K151: 94 | L151: W | M151: C | N151: A | O151: B | P151: 71 | Q151: 97.4 | R151: 56.492
A152: 276485 | B152: 3528702764855 | C152: PN BFG 205/50R17 XL 93V ADVANT AS | D152: 2055017VADVANTAS93 | E152: TOURISME TOUTES SAISONS | F152: BF ADVANT AS | G152: 205 | H152: 50 | I152: R | J152: 17 | K152: 93 | L152: V | M152: C | N152: B | O152: A | P152: 69 | Q152: 132.5 | R152: 76.85
A153: 282382 | B153: 3528702823828 | C153: PN BFG 215/75R16C 116/114R ACTIVAN 4S | D153: 2157516RACTIVAN4S116 | E153: CAMIONNETTE TOUTES SAISONS | F153: BF ACTIVAN 4S | G153: 215 | H153: 75 | I153: R | J153: 16 | K153: 116/114 | L153: R | M153: C | N153: B | O153: B | P153: 72 | Q153: 161.8 | R153: 93.844
A154: 282746 | B154: 3528702827468 | C154: PN BFG 195/65R16C 104/102R ACTIVAN 4S | D154: 1956516RACTIVAN4S104 | E154: CAMIONNETTE TOUTES SAISONS | F154: BF ACTIVAN 4S | G154: 195 | H154: 65 | I154: R | J154: 16 | K154: 104/102 | L154: R | M154: C | N154: B | O154: B | P154: 72 | Q154: 130.1 | R154: 75.458
A155: 285752 | B155: 3528702857526 | C155: PN BFG 235/45R18 XL 98W ADVANTAGE | D155: 2354518WADVAN98 | E155: TOURISME ÉTÉ | F155: BF ADVANTAGE | G155: 235 | H155: 45 | I155: R | J155: 18 | K155: 98 | L155: W | M155: C | N155: A | O155: B | P155: 70 | Q155: 150.2 | R155: 87.116
A156: 296569 | B156: 3528702965696 | C156: PN BFG 225/45R17 91Y ADVANTAGE | D156: 2254517YADVAN91 | E156: TOURISME ÉTÉ | F156: BF ADVANTAGE | G156: 225 | H156: 45 | I156: R | J156: 17 | K156: 91 | L156: Y | M156: C | N156: A | O156: B | P156: 70 | Q156: 98.9 | R156: 57.362
A157: 296922 | B157: 3528702969229 | C157: PN BFG 235/55R18 100V ADVANTAGE SUV A | D157: 2355518VADVANTAGE100 | E157: 4x4 TOUTES SAISONS | F157: BF ADVANTAGE SUV A | G157: 235 | H157: 55 | I157: R | J157: 18 | K157: 100 | L157: V | M157: C | N157: B | O157: A | P157: 69 | Q157: 151.7 | R157: 87.986
A158: 297113 | B158: 3528702971130 | C158: PN BFG 235/45R17 XL 97Y ADVANT AS | D158: 2354517YADVANTAS97 | E158: TOURISME TOUTES SAISONS | F158: BF ADVANT AS | G158: 235 | H158: 45 | I158: R | J158: 17 | K158: 97 | L158: Y | M158: C | N158: B | O158: A | P158: 69 | Q158: 125.8 | R158: 72.964
A159: 299132 | B159: 3528702991329 | C159: PN BFG 255/70R17 112T TRAIL TER TA | D159: 2557017TTRAILTERT112 | E159: 4x4 TOUTES SAISONS | F159: BF TRAIL TER TA | G159: 255 | H159: 70 | I159: R | J159: 17 | K159: 112 | L159: T | M159: D | N159: E | O159: B | P159: 72 | Q159: 218 | R159: 126.44
A160: 303560 | B160: 3528703035602 | C160: PN BFG 31X10.50 R15 109Q MUD T T/A KM3 | D160: 31105015QMTTAKMLC109 | E160: 4x4 | F160: BF MT TA KM3 | G160: 10.5 | I160: R | J160: 15 | K160: 109 | L160: Q | P160: 0 | Q160: 266 | R160: 154.28
A161: 304268 | B161: 3528703042686 | C161: PN BFG 255/65R16 113 H URBAN. TER T/A | D161: 2556516HURBAN113 | E161: 4x4 TOUTES SAISONS | F161: BF URB TERR TA | G161: 255 | H161: 65 | I161: R | J161: 16 | K161: 113 | L161: H | M161: C | N161: C | O161: B | P161: 72 | Q161: 167.5 | R161: 97.15
A162: 304793 | B162: 3528703047933 | C162: PN BFG 245/40R18 XL 97W ADVANT AS | D162: 2454018WADVANTAS97 | E162: TOURISME TOUTES SAISONS | F162: BF ADVANT AS | G162: 245 | H162: 40 | I162: R | J162: 18 | K162: 97 | L162: W | M162: C | N162: B | O162: A | P162: 69 | Q162: 155 | R162: 89.9
A163: 306153 | B163: 3528703061533 | C163: PN BFG 195/65R16C 104/102T ACTIVAN 4S | D163: 1956516TACTIVAN4S104 | E163: CAMIONNETTE TOUTES SAISONS | F163: BF ACTIVAN 4S | G163: 195 | H163: 65 | I163: R | J163: 16 | K163: 104/102 | L163: T | M163: C | N163: B | P163: 72 | Q163: 130.1 | R163: 75.458
A164: 307646 | B164: 3528703076469 | C164: PN BFG 205/50R17 XL 93Y ADVANTAGE | D164: 2055017YADVAN93 | E164: TOURISME ÉTÉ | F164: BF ADVANTAGE | G164: 205 | H164: 50 | I164: R | J164: 17 | K164: 93 | L164: Y | M164: C | N164: A | O164: B | P164: 70 | Q164: 123.8 | R164: 71.804
A165: 307672 | B165: 3528703076728 | C165: PN BFG 35X12.50 R15 113Q MT T/A KM3 LRC | D165: 35125015QMTTAKMLR113 | E165: 4x4 | F165: BF MT TA KM3 | G165: 12.5 | I165: R | J165: 15 | K165: 113 | L165: Q | P165: 0 | Q165: 368.5 | R165: 213.73
A166: 308468 | B166: 3528703084686 | C166: PN BFG 215/50R17 XL 95W ADVANT AS | D166: 2155017WADVANTAS95 | E166: TOURISME TOUTES SAISONS | F166: BF ADVANT AS | G166: 215 | H166: 50 | I166: R | J166: 17 | K166: 95 | L166: W | M166: C | N166: B | O166: A | P166: 69 | Q166: 142.1 | R166: 82.418
A167: 310171 | B167: 3528703101710 | C167: PN BFG 205/60R15 91V ADVANTAGE | D167: 2056015VADVAN91 | E167: TOURISME ÉTÉ | F167: BF ADVANTAGE | G167: 205 | H167: 60 | I167: R | J167: 15 | K167: 91 | L167: V | M167: C | N167: B | O167: B | P167: 69 | Q167: 108.5 | R167: 62.93
A168: 317072 | B168: 3528703170723 | C168: PN BFG 195/75R16C 107/105R ACTIVAN 4S | D168: 1957516RACTIVAN4S107 | E168: CAMIONNETTE TOUTES SAISONS | F168: BF ACTIVAN 4S | G168: 195 | H168: 75 | I168: R | J168: 16 | K168: 107/105 | L168: R | M168: C | N168: B | O168: B | P168: 72 | Q168: 124.8 | R168: 72.384
A169: 317675 | B169: 3528703176756 | C169: PN BFG 235/75R15 104 S AT TA KO2 LRC | D169: 2357515SATTA104 | E169: 4x4 TOUTES SAISONS | F169: BF ATTAKO2 | G169: 235 | H169: 75 | I169: R | J169: 15 | K169: 104/101 | L169: S | M169: E | N169: B | O169: B | P169: 75 | Q169: 230 | R169: 133.4
A170: 318000 | B170: 3528703180005 | C170: PN BFG 195/55R20 XL 95H ADVANT AS | D170: 1955520HADVANTAS95 | E170: TOURISME TOUTES SAISONS | F170: BF ADVANT AS | G170: 195 | H170: 55 | I170: R | J170: 20 | K170: 95 | L170: H | M170: C | N170: B | O170: A | P170: 69 | Q170: 128.2 | R170: 74.356
A171: 318627 | B171: 3528703186274 | C171: PN BFG 33X10.50 R15 114R AT T/A KO2 RWL | D171: 33105015RATTAKOLC114 | E171: 4x4 TOUTES SAISONS | F171: BF ATTAKO2 | G171: 10.5 | I171: R | J171: 15 | K171: 114 | L171: R | M171: E | N171: B | O171: B | P171: 75 | Q171: 266.5 | R171: 154.57
A172: 323080 | B172: 3528703230809 | C172: PN BFG 255/40R20 XL 101V ADVANT AS | D172: 2554020VADVANTAS101 | E172: TOURISME TOUTES SAISONS | F172: BF ADVANT AS | G172: 255 | H172: 40 | I172: R | J172: 20 | K172: 101 | L172: V | M172: C | N172: B | O172: B | P172: 71 | Q172: 179.5 | R172: 104.11
A173: 328017 | B173: 3528703280170 | C173: PN BFG 205/55R16 XL 94V ADVANT AS | D173: 2055516VADVANTAS94 | E173: TOURISME TOUTES SAISONS | F173: BF ADVANT AS | G173: 205 | H173: 55 | I173: R | J173: 16 | K173: 94 | L173: V | M173: C | N173: B | O173: A | P173: 69 | Q173: 97 | R173: 56.26
A174: 328799 | B174: 3528703287995 | C174: PN BFG 225/65R16C 112/110R ACTIVAN 4S | D174: 2256516RACTIVAN4S112 | E174: CAMIONNETTE TOUTES SAISONS | F174: BF ACTIVAN 4S | G174: 225 | H174: 65 | I174: R | J174: 16 | K174: 112/110 | L174: R | M174: C | N174: B | O174: B | P174: 72 | Q174: 166.1 | R174: 96.338
A175: 330277 | B175: 3528703302773 | C175: PN BFG 255/40R19 XL 100Y ADVANT AS | D175: 2554019YADVANTAS100 | E175: TOURISME TOUTES SAISONS | F175: BF ADVANT AS | G175: 255 | H175: 40 | I175: R | J175: 19 | K175: 100 | L175: Y | M175: C | N175: B | O175: B | P175: 71 | Q175: 192.5 | R175: 111.65
A176: 331979 | B176: 3528703319795 | C176: PN BFG 225/40R18 XL 92Y ADVANT AS | D176: 2254018YADVANTAS92 | E176: TOURISME TOUTES SAISONS | F176: BF ADVANT AS | G176: 225 | H176: 40 | I176: R | J176: 18 | K176: 92 | L176: Y | M176: D | N176: B | O176: A | P176: 69 | Q176: 119 | R176: 69.02
A177: 337832 | B177: 3528703378327 | C177: PN BFG 245/65R17 XL 111T TRAIL TER TA | D177: 2456517TTRAILTERT111 | E177: 4x4 TOUTES SAISONS | F177: BF TRAIL TER TA | G177: 245 | H177: 65 | I177: R | J177: 17 | K177: 111 | L177: T | M177: D | N177: E | O177: B | P177: 72 | Q177: 241.5 | R177: 140.07
A178: 340390 | B178: 3528703403906 | C178: PN BFG 235/55R19 XL 105V ADVANTAGE SUV | D178: 2355519VADVSUV105 | E178: 4x4 | F178: BF ADVANTAGE SUV | G178: 235 | H178: 55 | I178: R | J178: 19 | K178: 105 | L178: V | M178: B | N178: A | O178: B | P178: 70 | Q178: 151.7 | R178: 87.986
A179: 342085 | B179: 3528703420859 | C179: PN BFG 28X11.00 R14 MUD TER T/A KM3 | D179: 28110014NMUDKM3 | E179: 4x4 | F179: BF MT TA KM3 | G179: 11 | I179: R | J179: 14 | L179: N | P179: 0 | Q179: 301 | R179: 174.58
A180: 343669 | B180: 3528703436690 | C180: PN BFG 245/40R18 XL 97Y ADVANT AS | D180: 2454018YADVANTAS97 | E180: TOURISME TOUTES SAISONS | F180: BF ADVANT AS | G180: 245 | H180: 40 | I180: R | J180: 18 | K180: 97 | L180: Y | M180: C | N180: B | O180: A | P180: 69 | Q180: 155 | R180: 89.9
A181: 344529 | B181: 3528703445296 | C181: PN BFG 195/50R16 XL 88V ADVANTAGE | D181: 1955016VADVAN88 | E181: TOURISME ÉTÉ | F181: BF ADVANTAGE | G181: 195 | H181: 50 | I181: R | J181: 16 | K181: 88 | L181: V | M181: C | N181: A | O181: B | P181: 70 | Q181: 122.9 | R181: 71.282
A182: 346838 | B182: 3528703468387 | C182: PN BFG 255/70R16 120 S AT TA KO2 LRE | D182: 2557016SATTA120 | E182: 4x4 TOUTES SAISONS | F182: BF ATTAKO2 | G182: 255 | H182: 70 | I182: R | J182: 16 | K182: 120/117 | L182: S | M182: E | N182: B | O182: B | P182: 74 | Q182: 277.5 | R182: 160.95
A183: 347454 | B183: 3528703474548 | C183: PN BFG 185/55R16 83V ADVANT AS | D183: 1855516VADVANTAS83 | E183: TOURISME TOUTES SAISONS | F183: BF ADVANT AS | G183: 185 | H183: 55 | I183: R | J183: 16 | K183: 83 | L183: V | M183: D | N183: B | O183: B | P183: 69 | Q183: 132.5 | R183: 76.85
A184: 347491 | B184: 3528703474913 | C184: PN BFG 255/75R17 111Q MUD T T/A KM3 LRC | D184: 2557517QMTTAKM3111 | E184: 4x4 | F184: BF MT TA KM3 | G184: 255 | H184: 75 | I184: R | J184: 17 | K184: 111/108 | L184: Q | P184: 0 | Q184: 349.5 | R184: 202.71
A185: 348705 | B185: 3528703487050 | C185: PN BFG 205/55R17 91W ADVANTAGE | D185: 2055517WADVAN91 | E185: TOURISME ÉTÉ | F185: BF ADVANTAGE | G185: 205 | H185: 55 | I185: R | J185: 17 | K185: 91 | L185: W | M185: C | N185: A | O185: B | P185: 70 | Q185: 124.8 | R185: 72.384
A186: 349580 | B186: 3528703495802 | C186: PN BFG 175/65R14 82H ADVANTAGE DT1 | D186: 1756514HADVANTAGDT82 | E186: TOURISME ÉTÉ | F186: BF ADVANTAGE | G186: 175 | H186: 65 | I186: R | J186: 14 | K186: 82 | L186: H | M186: D | N186: C | O186: B | P186: 69 | Q186: 75.4 | R186: 43.732
A187: 350721 | B187: 3528703507215 | C187: PN BFG 265/70R16 121/118 S AT TA KO2 L | D187: 2657016SATTA121118 | E187: 4x4 TOUTES SAISONS | F187: BF ATTAKO2 | G187: 265 | H187: 70 | I187: R | J187: 16 | K187: 121/118 | L187: S | M187: E | N187: B | O187: B | P187: 74 | Q187: 284.5 | R187: 165.01
A188: 350723 | B188: 3528703507239 | C188: PN BFG 265/70R16 121Q MUD T T/A KM3 LRE | D188: 2657016QMTTAKM3121 | E188: 4x4 | F188: BF MT TA KM3 | G188: 265 | H188: 70 | I188: R | J188: 16 | K188: 121/118 | L188: Q | P188: 0 | Q188: 311.5 | R188: 180.67
A189: 353951 | B189: 3528703539513 | C189: PN BFG 235/60R18 103V ADVANTAGE SUV A | D189: 2356018VADVANTAGE103 | E189: 4x4 TOUTES SAISONS | F189: BF ADVANTAGE SUV A | G189: 235 | H189: 60 | I189: R | J189: 18 | K189: 103 | L189: V | P189: 0 | Q189: 151.7 | R189: 87.986
A190: 354026 | B190: 3528703540267 | C190: PN BFG 215/60R16 XL 99H ADVANT AS | D190: 2156016HADVANTAS99 | E190: TOURISME TOUTES SAISONS | F190: BF ADVANT AS | G190: 215 | H190: 60 | I190: R | J190: 16 | K190: 99 | L190: H | M190: B | N190: B | O190: A | P190: 69 | Q190: 137.3 | R190: 79.634
A191: 356945 | B191: 3528703569459 | C191: PN BFG 185/60R14 82H G-GRIP ALL SEAS 2 | D191: 1856014HGGRIPALLSE82 | E191: TOURISME TOUTES SAISONS | F191: BF G-GRIP ALLSEA 2 | G191: 185 | H191: 60 | I191: R | J191: 14 | K191: 82 | L191: H | M191: D | N191: C | O191: B | P191: 69 | Q191: 83.5 | R191: 48.43
A192: 358943 | B192: 3528703589433 | C192: PN BFG 225/55R17 97W ADVANTAGE | D192: 2255517WADVAN97 | E192: TOURISME ÉTÉ | F192: BF ADVANTAGE | G192: 225 | H192: 55 | I192: R | J192: 17 | K192: 97 | L192: W | M192: C | N192: A | O192: B | P192: 70 | Q192: 132.5 | R192: 76.85
A193: 360383 | B193: 3528703603832 | C193: PN BFG 245/45R18 XL 100W ADVANT AS | D193: 2454518WADVANTAS100 | E193: TOURISME TOUTES SAISONS | F193: BF ADVANT AS | G193: 245 | H193: 45 | I193: R | J193: 18 | K193: 100 | L193: W | M193: C | N193: B | O193: A | P193: 69 | Q193: 164.6 | R193: 95.468
A194: 361598 | B194: 3528703615989 | C194: PN BFG 39X13.50 R17 121Q MT T/A KM3 LRC | D194: 39135017QMTTAKMLR121 | E194: 4x4 | F194: BF MT TA KM3 | G194: 13.5 | I194: R | J194: 17 | K194: 121 | L194: Q | P194: 0 | Q194: 821.5 | R194: 476.47
A195: 361861 | B195: 3528703618614 | C195: PN BFG 245/75R17 121Q MUD T T/A KM3 LRE | D195: 2457517QMTTAKM3121 | E195: 4x4 | F195: BF MT TA KM3 | G195: 245 | H195: 75 | I195: R | J195: 17 | K195: 121/118 | L195: Q | P195: 0 | Q195: 348.5 | R195: 202.13
A196: 362041 | B196: 3528703620419 | C196: PN BFG 195/65R15 91H ADVANT AS | D196: 1956515HADVANTAS91 | E196: TOURISME TOUTES SAISONS | F196: BF ADVANT AS | G196: 195 | H196: 65 | I196: R | J196: 15 | K196: 91 | L196: H | M196: C | N196: B | O196: A | P196: 69 | Q196: 84.5 | R196: 49.01
A197: 370749 | B197: 3528703707493 | C197: PN BFG 225/75R16 115 S AT TA KO2 LRE | D197: 2257516SATTA115 | E197: 4x4 TOUTES SAISONS | F197: BF ATTAKO2 | G197: 225 | H197: 75 | I197: R | J197: 16 | K197: 115/112 | L197: S | M197: E | N197: B | O197: B | P197: 74 | Q197: 252.5 | R197: 146.45
A198: 372130 | B198: 3528703721307 | C198: PN BFG 245/50R20 102H TRAIL TER TA | D198: 2455020HTRAILTERT102 | E198: 4x4 TOUTES SAISONS | F198: BF TRAIL TER TA | G198: 245 | H198: 50 | I198: R | J198: 20 | K198: 102 | L198: H | M198: D | N198: E | O198: B | P198: 72 | Q198: 359.5 | R198: 208.51
A199: 372958 | B199: 3528703729587 | C199: PN BFG 225/55R16 XL 99V ADVANT AS | D199: 2255516VADVANTAS99 | E199: TOURISME TOUTES SAISONS | F199: BF ADVANT AS | G199: 225 | H199: 55 | I199: R | J199: 16 | K199: 99 | L199: V | M199: B | N199: B | O199: A | P199: 69 | Q199: 149.3 | R199: 86.594
A200: 373670 | B200: 3528703736707 | C200: PN BFG 235/60R18 XL 107H TRAIL TER TA | D200: 2356018HTRAILTERT107 | E200: 4x4 TOUTES SAISONS | F200: BF TRAIL TER TA | G200: 235 | H200: 60 | I200: R | J200: 18 | K200: 107 | L200: H | M200: D | N200: E | O200: B | P200: 72 | Q200: 213 | R200: 123.54
A201: 375630 | B201: 3528703756309 | C201: PN BFG 225/55R17 XL 101Y ADVANTAGE | D201: 2255517YADVAN101 | E201: TOURISME ÉTÉ | F201: BF ADVANTAGE | G201: 225 | H201: 55 | I201: R | J201: 17 | K201: 101 | L201: Y | M201: C | N201: A | O201: B | P201: 70 | Q201: 133.4 | R201: 77.372
A202: 381987 | B202: 3528703819875 | C202: PN BFG 265/60R20 121S A-TERR T/A LRE RBL | D202: 2656020SATTAKO2121 | E202: 4x4 TOUTES SAISONS | F202: BF ATTAKO2 | G202: 265 | H202: 60 | I202: R | J202: 20 | K202: 121/118 | L202: S | M202: E | N202: B | O202: B | P202: 74 | Q202: 453 | R202: =Q202*(1-$D$3) -> 262.74
A203: 384813 | B203: 3528703848134 | C203: PN BFG 285/60R18 116H TRAIL TER TA | D203: 2856018HTRAILTERT116 | E203: 4x4 TOUTES SAISONS | F203: BF TRAIL TER TA | G203: 285 | H203: 60 | I203: R | J203: 18 | K203: 116 | L203: H | M203: D | N203: E | O203: B | P203: 73 | Q203: 327.5 | R203: 189.95
... 326 more rows

Sheet CON
D2: Remise
D3: =Remises!$O$8 -> 0.31
A5: Actualisation au 04/04/2024
A7: REFERENCES PNEUMATIQUES | Q7: TARIFS
A8: CAI | B8: EAN | C8: Désignation | D8: Appellation | E8: Catégorie | F8: Profil | G8: Largeur | H8: Hauteur | I8: Structure | J8: Diamètre | K8: IC | L8: IV | M8: Conso. | N8: Frein. | O8: Bruit. | P8: Décibels. | Q8: Prix BF | R8: Prix Remisé
A9: 03110000000 | B9: 4019238030891 | C9: PN CON 215/55R17 94V ECOCONTACT 6 AO | D9: 2155517VEC6AO94 | E9: TOURISME ÉTÉ | F9: CO ECOCONTACT 6 | G9: 215 | H9: 55 | I9: R | J9: 17 | K9: 94 | L9: V | M9: A | N9: A | O9: B | P9: 71 | Q9: 207 | R9: =Q9*(1-$D$3) -> 142.83
A10: 03110010000 | B10: 4019238037470 | C10: PN CON 265/55R19 XL 113Y PREMIUM 6 AO | D10: 2655519YPC6AO113CO | E10: TOURISME ÉTÉ | F10: CO PREMIUM 6 | G10: 265 | H10: 55 | I10: R | J10: 19 | K10: 113 | L10: Y | M10: B | N10: A | O10: B | P10: 73 | Q10: 424 | R10: =Q10*(1-$D$3) -> 292.56
A11: 03110050000 | B11: 4019238030969 | C11: PN CON 275/45R21 107Y SPC-6 MO FR SIL | D11: 2754521YSC6MO107SI | E11: TOURISME ÉTÉ | F11: CO SPC6 | G11: 275 | H11: 45 | I11: R | J11: 21 | K11: 107 | L11: Y | M11: B | N11: A | O11: B | P11: 72 | Q11: 391 | R11: 269.79
A12: 03110070000 | B12: 4019238030945 | C12: PN CON 315/40R21 111Y SPC-6 MO FR SIL | D12: 3154021YSC6MO111SI | E12: TOURISME ÉTÉ | F12: CO SPC6 | G12: 315 | H12: 40 | I12: R | J12: 21 | K12: 111 | L12: Y | M12: B | N12: A | O12: B | P12: 74 | Q12: 502 | R12: 346.38
A13: 03110140000 | B13: 4019238031041 | C13: PN CON 295/30R22 XL 103Y SPORTCONT 6 MGT | D13: 2953022YSC6MG103 | E13: TOURISME ÉTÉ | F13: CO SPC6 | G13: 295 | H13: 30 | I13: R | J13: 22 | K13: 103 | L13: Y | M13: D | N13: B | O13: B | P13: 75 | Q13: 490.5 | R13: 338.445
A14: 03110270000 | B14: 4019238031225 | C14: PN CON 245/50R18 XL 104H PREMIUM 6 MO-V | D14: 2455018HPC6MO104 | E14: TOURISME ÉTÉ | F14: CO PREMIUM 6 | G14: 245 | H14: 50 | I14: R | J14: 18 | K14: 104 | L14: H | M14: A | N14: B | O14: B | P14: 72 | Q14: 292.5 | R14: 201.825
A15: 03110280000 | B15: 4019238031232 | C15: PN CON 245/55R17 XL 106H PREMIUM 6 MO-V | D15: 2455517HPC6MO106FR | E15: TOURISME ÉTÉ | F15: CO PREMIUM 6 | G15: 245 | H15: 55 | I15: R | J15: 17 | K15: 106 | L15: H | M15: A | N15: B | O15: B | P15: 72 | Q15: 255.5 | R15: 176.295
A16: 03110500000 | B16: 4019238032055 | C16: PN CON 235/50R19 99V ECOCONT 6 | D16: 2355019VEC699 | E16: TOURISME ÉTÉ | F16: CO ECOCONTACT 6 | G16: 235 | H16: 50 | I16: R | J16: 19 | K16: 99 | L16: V | M16: A | N16: A | O16: B | P16: 71 | Q16: 242 | R16: 166.98
A17: 03110510000 | B17: 4019238032062 | C17: PN CON 195/55R16 87H ECOCONT 6 REN | D17: 1955516HEC6REN87 | E17: TOURISME ÉTÉ | F17: CO ECOCONTACT 6 | G17: 195 | H17: 55 | I17: R | J17: 16 | K17: 87 | L17: H | M17: A | N17: B | O17: B | P17: 71 | Q17: 165 | R17: 113.85
A18: 03110560000 | B18: 4019238032208 | C18: PN CON 265/40ZR21 XL 105Y SPORTCONT 6*FR | D18: 2654021YSC6*105FR | E18: TOURISME ÉTÉ | F18: CO SPC6 | G18: 265 | H18: 40 | I18: R | J18: 21 | K18: 105 | L18: Y | M18: D | N18: B | O18: B | P18: 73 | Q18: 416.5 | R18: 287.385
A19: 03110570000 | B19: 4019238032215 | C19: PN CON 255/40ZR21 XL 102Y SPORTCONT 6*FR | D19: 2554021YSC6*102 | E19: TOURISME ÉTÉ | F19: CO SPC6 | G19: 255 | H19: 40 | I19: R | J19: 21 | K19: 102 | L19: Y | M19: D | N19: B | O19: B | P19: 73 | Q19: 419 | R19: 289.11
A20: 03110670000 | B20: 4019238032352 | C20: PN CON 235/65R17 XL 108V ECOCONT 6 HYU | D20: 2356517VEC6HY108 | E20: TOURISME ÉTÉ | F20: CO ECOCONTACT 6 | G20: 235 | H20: 65 | I20: R | J20: 17 | K20: 108 | L20: V | M20: A | N20: A | O20: B | P20: 72 | Q20: 193 | R20: 133.17
A21: 03110690000 | B21: 4019238032468 | C21: PN CON 165/60R15 XL 81H ECOCONT 5 TOY | D21: 1656015HCEC5TO81 | E21: TOURISME ÉTÉ | F21: CO CEC5 | G21: 165 | H21: 60 | I21: R | J21: 15 | K21: 81 | L21: H | M21: B | N21: B | O21: B | P21: 71 | Q21: 169.5 | R21: 116.955
A22: 03110700000 | B22: 4019238032475 | C22: PN CON 165/65R14 XL 83T ECOCONT 5 TOY | D22: 1656514TCEC5TO83 | E22: TOURISME ÉTÉ | F22: CO CEC5 | G22: 165 | H22: 65 | I22: R | J22: 14 | K22: 83 | L22: T | M22: B | N22: B | O22: B | P22: 71 | Q22: 121.5 | R22: 83.835
A23: 03110760000 | B23: 4019238032536 | C23: PN CON 235/55R17 XL 103W PREMIUM 6 FR | D23: 2355517WPC6103FR | E23: TOURISME ÉTÉ | F23: CO PREMIUM 6 | G23: 235 | H23: 55 | I23: R | J23: 17 | K23: 103 | L23: W | M23: C | N23: A | O23: B | P23: 72 | Q23: 209 | R23: 144.21
A24: 03110770000 | B24: 4019238032543 | C24: PN CON 235/55R17 XL 103W PREMIUM 6 CS FR | D24: 2355517WPC6CS103FR | E24: TOURISME ÉTÉ | F24: CO PREMIUM 6 | G24: 235 | H24: 55 | I24: R | J24: 17 | K24: 103 | L24: W | M24: C | N24: A | O24: B | P24: 72 | Q24: 228 | R24: 157.32
A25: 03110910000 | B25: 4019238032789 | C25: PN CON 215/60R16 95V ECOCONT 6 AO | D25: 2156016VEC6AO95 | E25: TOURISME ÉTÉ | F25: CO ECOCONTACT 6 | G25: 215 | H25: 60 | I25: R | J25: 16 | K25: 95 | L25: V | M25: A | N25: B | O25: B | P25: 71 | Q25: 220 | R25: 151.8
A26: 03110950000 | B26: 4019238032796 | C26: PN CON 225/55R17 97Y ECOCONT 6 MO | D26: 2255517YEC6MO97 | E26: TOURISME ÉTÉ | F26: CO ECOCONTACT 6 | G26: 225 | H26: 55 | I26: R | J26: 17 | K26: 97 | L26: Y | M26: A | N26: B | O26: B | P26: 71 | Q26: 199 | R26: 137.31
A27: 03111090000 | B27: 4019238032970 | C27: PN CON 205/60R16 XL 96H ECOCONT 6 | D27: 2056016HEC696 | E27: TOURISME ÉTÉ | F27: CO ECOCONTACT 6 | G27: 205 | H27: 60 | I27: R | J27: 16 | K27: 96 | L27: H | M27: A | N27: A | O27: B | P27: 72 | Q27: 196 | R27: 135.24
A28: 03111100000 | B28: 4019238034134 | C28: PN CON 255/45R19 XL 104Y SPORTC-6 AO FR | D28: 2554519YSC6AO104FR | E28: TOURISME ÉTÉ | F28: CO SPC6 | G28: 255 | H28: 45 | I28: R | J28: 19 | K28: 104 | L28: Y | M28: B | N28: A | O28: B | P28: 73 | Q28: 327.5 | R28: 225.975
A29: 03111280000 | B29: 4019238034295 | C29: PN CON 225/45R19 XL 96W EC 6 * | D29: 2254519WEC6*962 | E29: TOURISME ÉTÉ | F29: CO ECOCONTACT 6 | G29: 225 | H29: 45 | I29: R | J29: 19 | K29: 96 | L29: W | M29: A | N29: B | O29: B | P29: 72 | Q29: 277 | R29: 191.13
A30: 03111310000 | B30: 4019238034226 | C30: PN CON 245/45R19 XL 102Y PREMIUM 6 MOV F | D30: 2454519YPC6MOV102FR | E30: TOURISME ÉTÉ | F30: CO PREMIUM 6 | G30: 245 | H30: 45 | I30: R | J30: 19 | K30: 102 | L30: Y | M30: B | N30: A | O30: B | P30: 72 | Q30: 300.5 | R30: 207.345
A31: 03111430000 | B31: 4019238034752 | C31: PN CON 285/45R22 XL 114Y PREMIUM6 MO FR | D31: 2854522YPC6MO114FR | E31: TOURISME ÉTÉ | F31: CO PREMIUM 6 | G31: 285 | H31: 45 | I31: R | J31: 22 | K31: 114 | L31: Y | M31: B | N31: A | O31: B | P31: 73 | Q31: 489 | R31: 337.41
A32: 03111440000 | B32: 4019238034769 | C32: PN CON 325/40R22 114Y PREMIUM-6 MO FR | D32: 3254022YPC6MO114FR | E32: TOURISME ÉTÉ | F32: CO PREMIUM 6 | G32: 325 | H32: 40 | I32: R | J32: 22 | K32: 114 | L32: Y | M32: B | N32: A | O32: B | P32: 73 | Q32: 542 | R32: 373.98
A33: 03111540000 | B33: 4019238034684 | C33: PN CON 205/65R16 95H ECOCONT-6 | D33: 2056516HEC6FO95 | E33: TOURISME ÉTÉ | F33: CO ECOCONTACT 6 | G33: 205 | H33: 65 | I33: R | J33: 16 | K33: 95 | L33: H | M33: A | N33: B | O33: B | P33: 71 | Q33: 193.5 | R33: 133.515
A34: 03111730000 | B34: 4019238048933 | C34: PN CON 235/40R19 XL 96Y SPORTCONT 5 FR | D34: 2354019YSC5S96FR | E34: TOURISME ÉTÉ | F34: CO CSPC5 | G34: 235 | H34: 40 | I34: R | J34: 19 | K34: 96 | L34: Y | M34: D | N34: A | O34: B | P34: 72 | Q34: 285.5 | R34: 196.995
A35: 03111770000 | B35: 4019238038088 | C35: PN CON 235/50R18 XL 101H PREMIUM 6 KIA F | D35: 2355018HPC6KI101FR | E35: TOURISME ÉTÉ | F35: CO PREMIUM 6 | G35: 235 | H35: 50 | I35: R | J35: 18 | K35: 101 | L35: H | M35: B | N35: A | O35: B | P35: 72 | Q35: 241.5 | R35: 166.635
A36: 03111790000 | B36: 4019238035322 | C36: PN CON 235/40R19 XL 96W PREMIUM 6 FOR FR | D36: 2354019WPC6FO96FR | E36: TOURISME ÉTÉ | F36: CO PREMIUM 6 | G36: 235 | H36: 40 | I36: R | J36: 19 | K36: 96 | L36: W | M36: B | N36: A | O36: B | P36: 72 | Q36: 285.5 | R36: 196.995
A37: 03111830000 | B37: 4019238039511 | C37: PN CON 235/55R17 XL 103V ECOCONT 5 FOR | D37: 2355517VCEC5FO103 | E37: TOURISME ÉTÉ | F37: CO CEC5 | G37: 235 | H37: 55 | I37: R | J37: 17 | K37: 103 | L37: V | M37: B | N37: B | O37: B | P37: 72 | Q37: 207 | R37: 142.83
A38: 03112070000 | B38: 4019238035568 | C38: PN CON 245/40R17 XL 95Y PREMIUM 6 FR | D38: 2454017YPC695FR | E38: TOURISME ÉTÉ | F38: CO PREMIUM 6 | G38: 245 | H38: 40 | I38: R | J38: 17 | K38: 95 | L38: Y | M38: C | N38: A | O38: B | P38: 72 | Q38: 216 | R38: 149.04
A39: 03112090000 | B39: 4019238036954 | C39: PN CON 235/40R18 XL 95Y SSR SPORTCO 6 GM | D39: 2354018YSC6GM95RUFR | E39: TOURISME ÉTÉ | F39: CO SPC6 | G39: 235 | H39: 40 | I39: R | J39: 18 | K39: 95 | L39: Y | M39: D | N39: A | O39: B | P39: 72 | Q39: 266.5 | R39: 183.885
A40: 03112110000 | B40: 4019238097689 | C40: PN CON 255/35R19 XL 96Y SC6 * FR | D40: 2553519YSC6*96FR2 | E40: TOURISME ÉTÉ | F40: CO SPC6 | G40: 255 | H40: 35 | I40: R | J40: 19 | K40: 96 | L40: Y | M40: D | N40: A | O40: B | P40: 73 | Q40: 250.5 | R40: 172.845
A41: 03112200000 | B41: 4019238037081 | C41: PN CON 255/40R18 XL 99Y PREMIUM 6 MO | D41: 2554018YPC6MO99 | E41: TOURISME ÉTÉ | F41: CO PREMIUM 6 | G41: 255 | H41: 40 | I41: R | J41: 18 | K41: 99 | L41: Y | M41: C | N41: A | O41: B | P41: 73 | Q41: 295.5 | R41: 203.895
A42: 03112260000 | B42: 4019238036688 | C42: PN CON 255/40R22 XL 103V PREM 6 CS SIL J | D42: 2554022VPC6JCS103 | E42: TOURISME ÉTÉ | F42: CO PREMIUM 6 | G42: 255 | H42: 40 | I42: R | J42: 22 | K42: 103 | L42: V | M42: C | N42: A | O42: B | P42: 73 | Q42: 479 | R42: 330.51
A43: 03112400000 | B43: 4019238097597 | C43: PN CON 235/35R19 XL 91Y SC6 * FR | D43: 2353519YSC6*91FR2 | E43: TOURISME ÉTÉ | F43: CO SPC6 | G43: 235 | H43: 35 | I43: R | J43: 19 | K43: 91 | L43: Y | M43: B | N43: B | O43: B | P43: 72 | Q43: 229 | R43: 158.01
A44: 03112480000 | B44: 4019238037364 | C44: PN CON 175/65R14 XL 86T ECOCONT 6 | D44: 1756514TEC686 | E44: TOURISME ÉTÉ | F44: CO ECOCONTACT 6 | G44: 175 | H44: 65 | I44: R | J44: 14 | K44: 86 | L44: T | M44: B | N44: B | O44: B | P44: 70 | Q44: 118 | R44: 81.42
A45: 03112550000 | B45: 4019238037524 | C45: PN CON 275/35ZR21 XL 103Y SPORTCO 5P N11 | D45: 2753521YSC5PN1103 | E45: TOURISME ÉTÉ | F45: CO CSC5P | G45: 275 | H45: 35 | I45: R | J45: 21 | K45: 103 | L45: Y | M45: C | N45: A | O45: B | P45: 73 | Q45: 441 | R45: 304.29
A46: 03112560000 | B46: 4019238037517 | C46: PN CON 315/30ZR21 XL 105Y SPORTCO 5P N11 | D46: 3153021YSC5PN1105 | E46: TOURISME ÉTÉ | F46: CO CSC5P | G46: 315 | H46: 30 | I46: R | J46: 21 | K46: 105 | L46: Y | M46: C | N46: A | O46: B | P46: 74 | Q46: 502.5 | R46: 346.725
A47: 03112580000 | B47: 4019238037876 | C47: PN CON 225/35ZR20 XL 90Y SSR SPORTCONT 6 | D47: 2253520YSC690RUFR | E47: TOURISME ÉTÉ | F47: CO SPC6 | G47: 225 | H47: 35 | I47: R | J47: 20 | K47: 90 | L47: Y | M47: C | N47: A | O47: B | P47: 72 | Q47: 373.5 | R47: 257.715
A48: 03112600000 | B48: 4019238037852 | C48: PN CON 245/50R19 101Y SSR PREMIUM 6 FR | D48: 2455019YPC6101RUFR | E48: TOURISME ÉTÉ | F48: CO PREMIUM 6 | G48: 245 | H48: 50 | I48: R | J48: 19 | K48: 101 | L48: Y | M48: C | N48: A | O48: B | P48: 71 | Q48: 367 | R48: 253.23
A49: 03112720000 | B49: 4019238038057 | C49: PN CON 215/65R17 99V ECOCONT 6 AO1 | D49: 2156517VECO6AO99 | E49: TOURISME ÉTÉ | F49: CO ECOCONTACT 6 | G49: 215 | H49: 65 | I49: R | J49: 17 | K49: 99 | L49: V | M49: A | N49: B | O49: B | P49: 71 | Q49: 183.5 | R49: 126.615
A50: 03112730000 | B50: 4019238038095 | C50: PN CON 235/55R18 100V ECOCONT 6 AO | D50: 2355518VECO6AO100 | E50: TOURISME ÉTÉ | F50: CO ECOCONTACT 6 | G50: 235 | H50: 55 | I50: R | J50: 18 | K50: 100 | L50: V | M50: A | N50: A | O50: B | P50: 71 | Q50: 210 | R50: 144.9
A51: 03112740000 | B51: 4019238043808 | C51: PN CON 205/55R16 91H ECOCONTACT 6 | D51: 2055516HEC691CO | E51: TOURISME ÉTÉ | F51: CO ECOCONTACT 6 | G51: 205 | H51: 55 | I51: R | J51: 16 | K51: 91 | L51: H | M51: A | N51: A | O51: B | P51: 71 | Q51: 129 | R51: 89.01
A52: 03112960000 | B52: 4019238038361 | C52: PN CON 235/55R18 100Y ECOCONT 6 AO | D52: 2355518YEC6AO100 | E52: TOURISME ÉTÉ | F52: CO ECOCONTACT 6 | G52: 235 | H52: 55 | I52: R | J52: 18 | K52: 100 | L52: Y | M52: B | N52: A | O52: B | P52: 71 | Q52: 227 | R52: 156.63
A53: 03113350000 | B53: 4019238038576 | C53: PN CON 215/55R18 95T ECOCONT 6 VW | D53: 2155518TEC6VW95 | E53: TOURISME ÉTÉ | F53: CO ECOCONTACT 6 | G53: 215 | H53: 55 | I53: R | J53: 18 | K53: 95 | L53: T | M53: A | N53: A | O53: B | P53: 71 | Q53: 203.5 | R53: 140.415
A54: 03113380000 | B54: 4019238038583 | C54: PN CON 215/50R19 93T ECO 6 CS VW | D54: 2155019TEC6CSVW93 | E54: TOURISME ÉTÉ | F54: CO ECOCONTACT 6 | G54: 215 | H54: 50 | I54: R | J54: 19 | K54: 93 | L54: T | M54: A | N54: A | O54: B | P54: 71 | Q54: 240.5 | R54: 165.945
A55: 03113490000 | B55: 4019238038385 | C55: PN CON 155/80R19 114M SCONTACT | D55: 1558019MSCONTACT114 | E55: TOURISME ÉTÉ | F55: CO SCONTACT | G55: 155 | H55: 80 | I55: R | J55: 19 | K55: 114 | L55: M | P55: 0 | Q55: 153.5 | R55: 105.915
A56: 03113630000 | B56: 4019238038637 | C56: PN CON 115/95R17 95M SCONTACT | D56: 1159517MSCONTACT95 | E56: TOURISME ÉTÉ | F56: CO SCONTACT | G56: 115 | H56: 95 | I56: R | J56: 17 | K56: 95 | L56: M | P56: 0 | Q56: 100 | R56: 69
A57: 03113650000 | B57: 4019238038644 | C57: PN CON 125/70R15 95M SCONTACT | D57: 1257015MSCONTACT95 | E57: TOURISME ÉTÉ | F57: CO SCONTACT | G57: 125 | H57: 70 | I57: R | J57: 15 | K57: 95 | L57: M | P57: 0 | Q57: 118 | R57: 81.42
A58: 03113660000 | B58: 4019238038651 | C58: PN CON 125/70R17 98M SCONTACT | D58: 1257017MSCONTACT98 | E58: TOURISME ÉTÉ | F58: CO SCONTACT | G58: 125 | H58: 70 | I58: R | J58: 17 | K58: 98 | L58: M | P58: 0 | Q58: 102 | R58: 70.38
A59: 03113690000 | B59: 4019238039092 | C59: PN CON 125/70R19 100M SCONTACT | D59: 1257019MSCONTACT100 | E59: TOURISME ÉTÉ | F59: CO SCONTACT | G59: 125 | H59: 70 | I59: R | J59: 19 | K59: 100 | L59: M | P59: 0 | Q59: 118 | R59: 81.42
A60: 03113700000 | B60: 4019238039115 | C60: PN CON 125/80R15 95M SCONTACT | D60: 1258015MSCONTACT95 | E60: TOURISME ÉTÉ | F60: CO SCONTACT | G60: 125 | H60: 80 | I60: R | J60: 15 | K60: 95 | L60: M | P60: 0 | Q60: 123.5 | R60: 85.215
A61: 03113740000 | B61: 4019238040517 | C61: PN CON 235/35R19 XL 91Y SPORTCONTACT 7 F | D61: 2353519YSPORTCON91FR | E61: TOURISME ÉTÉ | F61: CO SPORTCONTACT 7 | G61: 235 | H61: 35 | I61: R | J61: 19 | K61: 91 | L61: Y | M61: D | N61: A | O61: B | P61: 72 | Q61: 229 | R61: 158.01
A62: 03113750000 | B62: 4019238040524 | C62: PN CON 255/40R19 XL 100Y SPORTCONTACT 7 | D62: 2554019YSPORTCO100FR | E62: TOURISME ÉTÉ | F62: CO SPORTCONTACT 7 | G62: 255 | H62: 40 | I62: R | J62: 19 | K62: 100 | L62: Y | M62: C | N62: A | O62: B | P62: 73 | Q62: 272 | R62: 187.68
A63: 03113760000 | B63: 4019238040531 | C63: PN CON 255/35R19 XL 96Y SPORTCONTACT 7 F | D63: 2553519YSPORTCON96FR | E63: TOURISME ÉTÉ | F63: CO SPORTCONTACT 7 | G63: 255 | H63: 35 | I63: R | J63: 19 | K63: 96 | L63: Y | M63: D | N63: A | O63: B | P63: 73 | Q63: 250.5 | R63: 172.845
A64: 03113770000 | B64: 4019238040548 | C64: PN CON 225/35R19 XL 88Y SPORTCONTACT 7 F | D64: 2253519YSPORTCON88FR | E64: TOURISME ÉTÉ | F64: CO SPORTCONTACT 7 | G64: 225 | H64: 35 | I64: R | J64: 19 | K64: 88 | L64: Y | M64: D | N64: A | O64: B | P64: 72 | Q64: 252 | R64: 173.88
A65: 03113780000 | B65: 4019238040555 | C65: PN CON 245/40R19 XL 98Y SPORTCONTACT 7 F | D65: 2454019YSPORTCON98FR | E65: TOURISME ÉTÉ | F65: CO SPORTCONTACT 7 | G65: 245 | H65: 40 | I65: R | J65: 19 | K65: 98 | L65: Y | M65: C | N65: A | O65: B | P65: 72 | Q65: 261.5 | R65: 180.435
A66: 03113790000 | B66: 4019238040562 | C66: PN CON 255/35R20 XL 97Y SPORTCONTACT 7 F | D66: 2553520YSPORTCON97FR | E66: TOURISME ÉTÉ | F66: CO SPORTCONTACT 7 | G66: 255 | H66: 35 | I66: R | J66: 20 | K66: 97 | L66: Y | M66: C | N66: A | O66: B | P66: 73 | Q66: 273.5 | R66: 188.715
A67: 03113800000 | B67: 4019238039207 | C67: PN CON 275/40R20 XL 106Y SPORTCONTACT 7 | D67: 2754020YSPORTCO106FR | E67: TOURISME ÉTÉ | F67: CO SPORTCONTACT 7 | G67: 275 | H67: 40 | I67: R | J67: 20 | K67: 106 | L67: Y | M67: C | N67: A | O67: B | P67: 73 | Q67: 307 | R67: 211.83
A68: 03113810000 | B68: 4019238040579 | C68: PN CON 245/35R20 XL 95Y SPORTCONTACT 7 F | D68: 2453520YSPORTCON95FR | E68: TOURISME ÉTÉ | F68: CO SPORTCONTACT 7 | G68: 245 | H68: 35 | I68: R | J68: 20 | K68: 95 | L68: Y | M68: C | N68: A | O68: B | P68: 72 | Q68: 310 | R68: 213.9
A69: 03113820000 | B69: 4019238040586 | C69: PN CON 225/40R19 XL 93Y SPORTCONTACT 7 F | D69: 2254019YSPORTCON93FR | E69: TOURISME ÉTÉ | F69: CO SPORTCONTACT 7 | G69: 225 | H69: 40 | I69: R | J69: 19 | K69: 93 | L69: Y | M69: C | N69: A | O69: B | P69: 72 | Q69: 271.5 | R69: 187.335
A70: 03113830000 | B70: 4019238040593 | C70: PN CON 245/35R19 XL 93Y SPORTCONTACT 7 F | D70: 2453519YSPTCON93FR | E70: TOURISME ÉTÉ | F70: CO SPORTCONTACT 7 | G70: 245 | H70: 35 | I70: R | J70: 19 | K70: 93 | L70: Y | M70: D | N70: A | O70: B | P70: 72 | Q70: 295.5 | R70: 203.895
A71: 03113840000 | B71: 4019238040609 | C71: PN CON 255/30R20 XL 92Y SPORTCONTACT 7 F | D71: 2553020YSPORTCON92FR | E71: TOURISME ÉTÉ | F71: CO SPORTCONTACT 7 | G71: 255 | H71: 30 | I71: R | J71: 20 | K71: 92 | L71: Y | M71: D | N71: A | O71: B | P71: 73 | Q71: 370.5 | R71: 255.645
A72: 03113850000 | B72: 4019238040616 | C72: PN CON 275/35R19 XL 100Y SPORTCONTACT 7 | D72: 2753519YSPORTCO100FR | E72: TOURISME ÉTÉ | F72: CO SPORTCONTACT 7 | G72: 275 | H72: 35 | I72: R | J72: 19 | K72: 100 | L72: Y | M72: D | N72: A | O72: B | P72: 73 | Q72: 347.5 | R72: 239.775
A73: 03113860000 | B73: 4019238040623 | C73: PN CON 295/30R22 XL 103Y SPORTCONTACT 7 | D73: 2953022YSPORTCO103FR | E73: TOURISME ÉTÉ | F73: CO SPORTCONTACT 7 | G73: 295 | H73: 30 | I73: R | J73: 22 | K73: 103 | L73: Y | M73: C | N73: A | O73: B | P73: 73 | Q73: 490.5 | R73: 338.445
A74: 03113870000 | B74: 4019238040630 | C74: PN CON 255/30R19 XL 91Y SPORTCONTACT 7 F | D74: 2553019YSPORTCON91FR | E74: TOURISME ÉTÉ | F74: CO SPORTCONTACT 7 | G74: 255 | H74: 30 | I74: R | J74: 19 | K74: 91 | L74: Y | M74: D | N74: A | O74: B | P74: 73 | Q74: 325.5 | R74: =Q74*(1-$D$3) -> 224.595
A75: 03113880000 | B75: 4019238040647 | C75: PN CON 265/35R20 XL 99Y SPORTCONTACT 7 F | D75: 2653520YSPORTCON99FR | E75: TOURISME ÉTÉ | F75: CO SPORTCONTACT 7 | G75: 265 | H75: 35 | I75: R | J75: 20 | K75: 99 | L75: Y | M75: C | N75: A | O75: B | P75: 73 | Q75: 389.5 | R75: 268.755
A76: 03113890000 | B76: 4019238040654 | C76: PN CON 335/25R22 XL 105Y SPORTCONTACT 7 | D76: 3352522YSPORTCO105FR | E76: TOURISME ÉTÉ | F76: CO SPORTCONTACT 7 | G76: 335 | H76: 25 | I76: R | J76: 22 | K76: 105 | L76: Y | M76: C | N76: A | O76: B | P76: 74 | Q76: 554 | R76: 382.26
A77: 03113900000 | B77: 4019238039191 | C77: PN CON 275/30R20 XL 97Y SPORTCONTACT 7 F | D77: 2753020YSPORTCON97FR | E77: TOURISME ÉTÉ | F77: CO SPORTCONTACT 7 | G77: 275 | H77: 30 | I77: R | J77: 20 | K77: 97 | L77: Y | M77: D | N77: A | O77: B | P77: 73 | Q77: 401 | R77: 276.69
A78: 03113910000 | B78: 4019238040661 | C78: PN CON 265/30R19 XL 93Y SPORTCONTACT 7 F | D78: 2653019YSPORTCON93FR | E78: TOURISME ÉTÉ | F78: CO SPORTCONTACT 7 | G78: 265 | H78: 30 | I78: R | J78: 19 | K78: 93 | L78: Y | M78: D | N78: A | O78: B | P78: 73 | Q78: 341.5 | R78: 235.635
A79: 03113920000 | B79: 4019238040678 | C79: PN CON 275/30R19 XL 96Y SPORTCONTACT 7 F | D79: 2753019YSPORTCON96FR | E79: TOURISME ÉTÉ | F79: CO SPORTCONTACT 7 | G79: 275 | H79: 30 | I79: R | J79: 19 | K79: 96 | L79: Y | M79: D | N79: A | O79: B | P79: 73 | Q79: 325.5 | R79: 224.595
A80: 03113930000 | B80: 4019238040685 | C80: PN CON 245/45R19 XL 102Y SPORTCONTACT 7 | D80: 2454519YSPORTCO102FR | E80: TOURISME ÉTÉ | F80: CO SPORTCONTACT 7 | G80: 245 | H80: 45 | I80: R | J80: 19 | K80: 102 | L80: Y | M80: C | N80: A | O80: B | P80: 72 | Q80: 300.5 | R80: 207.345
A81: 03113940000 | B81: 4019238040692 | C81: PN CON 245/30R20 XL 90Y SPORTCONTACT 7 F | D81: 2453020YSPORTCON90FR | E81: TOURISME ÉTÉ | F81: CO SPORTCONTACT 7 | G81: 245 | H81: 30 | I81: R | J81: 20 | K81: 90 | L81: Y | M81: D | N81: A | O81: B | P81: 72 | Q81: 372.5 | R81: 257.025
A82: 03113950000 | B82: 4019238040708 | C82: PN CON 235/40R19 XL 96Y SPORTCONTACT 7 F | D82: 2354019YSPORTCON96FR | E82: TOURISME ÉTÉ | F82: CO SPORTCONTACT 7 | G82: 235 | H82: 40 | I82: R | J82: 19 | K82: 96 | L82: Y | M82: D | N82: A | O82: B | P82: 72 | Q82: 285.5 | R82: 196.995
A83: 03113960000 | B83: 4019238040715 | C83: PN CON 235/30R20 XL 88Y SPORTCONTACT 7 F | D83: 2353020YSPORTCON88FR | E83: TOURISME ÉTÉ | F83: CO SPORTCONTACT 7 | G83: 235 | H83: 30 | I83: R | J83: 20 | K83: 88 | L83: Y | M83: D | N83: A | O83: B | P83: 72 | Q83: 370 | R83: 255.3
A84: 03113970000 | B84: 4019238039153 | C84: PN CON 255/35R21 XL 98Y SPORTCONTACT 7 F | D84: 2553521YSPORTCON98FR | E84: TOURISME ÉTÉ | F84: CO SPORTCONTACT 7 | G84: 255 | H84: 35 | I84: R | J84: 21 | K84: 98 | L84: Y | M84: C | N84: A | O84: B | P84: 73 | Q84: 416.5 | R84: 287.385
A85: 03113980000 | B85: 4019238040722 | C85: PN CON 285/30R20 XL 99Y SPORTCONTACT 7 F | D85: 2853020YSPORTCON99FR | E85: TOURISME ÉTÉ | F85: CO SPORTCONTACT 7 | G85: 285 | H85: 30 | I85: R | J85: 20 | K85: 99 | L85: Y | M85: C | N85: A | O85: B | P85: 75 | Q85: 379.5 | R85: 261.855
A86: 03113990000 | B86: 4019238040739 | C86: PN CON 255/30R21 XL 93Y SPORTCONTACT 7 F | D86: 2553021YSPORTCON93FR | E86: TOURISME ÉTÉ | F86: CO SPORTCONTACT 7 | G86: 255 | H86: 30 | I86: R | J86: 21 | K86: 93 | L86: Y | M86: C | N86: A | O86: B | P86: 73 | Q86: 451.5 | R86: 311.535
A87: 03114000000 | B87: 4019238040746 | C87: PN CON 225/35R20 XL 90Y SPORTCONTACT 7 F | D87: 2253520YSPORTCON90FR | E87: TOURISME ÉTÉ | F87: CO SPORTCONTACT 7 | G87: 225 | H87: 35 | I87: R | J87: 20 | K87: 90 | L87: Y | M87: D | N87: A | O87: B | P87: 72 | Q87: 325.5 | R87: 224.595
A88: 03114010000 | B88: 4019238039160 | C88: PN CON 265/30R20 XL 94Y SPORTCONTACT 7 F | D88: 2653020YSPORTCON94FR | E88: TOURISME ÉTÉ | F88: CO SPORTCONTACT 7 | G88: 265 | H88: 30 | I88: R | J88: 20 | K88: 94 | L88: Y | M88: D | N88: A | O88: B | P88: 73 | Q88: 385.5 | R88: 265.995
A89: 03114020000 | B89: 4019238039221 | C89: PN CON 295/25R21 XL 96Y SPORTCONTACT 7 F | D89: 2952521YSPORTCON96FR | E89: TOURISME ÉTÉ | F89: CO SPORTCONTACT 7 | G89: 295 | H89: 25 | I89: R | J89: 21 | K89: 96 | L89: Y | M89: C | N89: A | O89: B | P89: 73 | Q89: 487.5 | R89: 336.375
A90: 03114030000 | B90: 4019238039238 | C90: PN CON 295/30R21 XL 102Y SPORTCONTACT 7 | D90: 2953021YSPORTCONT102 | E90: TOURISME ÉTÉ | F90: CO SPORTCONTACT 7 | G90: 295 | H90: 30 | I90: R | J90: 21 | K90: 102 | L90: Y | M90: C | N90: A | O90: B | P90: 75 | Q90: 503 | R90: 347.07
A91: 03114040000 | B91: 4019238039214 | C91: PN CON 295/25R20 XL 95Y SPORTCONTACT 7 F | D91: 2952520YSPORTCON95FR | E91: TOURISME ÉTÉ | F91: CO SPORTCONTACT 7 | G91: 295 | H91: 25 | I91: R | J91: 20 | K91: 95 | L91: Y | M91: D | N91: A | O91: B | P91: 73 | Q91: 434.5 | R91: 299.805
A92: 03114050000 | B92: 4019238039177 | C92: PN CON 265/30R21 XL 96Y SPORTCONTACT 7 F | D92: 2653021YSPORTCON96FR | E92: TOURISME ÉTÉ | F92: CO SPORTCONTACT 7 | G92: 265 | H92: 30 | I92: R | J92: 21 | K92: 96 | L92: Y | M92: D | N92: A | O92: B | P92: 73 | Q92: 449 | R92: 309.81
A93: 03114060000 | B93: 4019238040753 | C93: PN CON 285/35R19 XL 103Y SPORTCONTACT 7 | D93: 2853519YSPORTCO103FR | E93: TOURISME ÉTÉ | F93: CO SPORTCONTACT 7 | G93: 285 | H93: 35 | I93: R | J93: 19 | K93: 103 | L93: Y | M93: C | N93: A | O93: B | P93: 73 | Q93: 409 | R93: 282.21
A94: 03114070000 | B94: 4019238040760 | C94: PN CON 265/35R19 XL 98Y SPORTCONTACT 7 F | D94: 2653519YSPORTCON98FR | E94: TOURISME ÉTÉ | F94: CO SPORTCONTACT 7 | G94: 265 | H94: 35 | I94: R | J94: 19 | K94: 98 | L94: Y | M94: C | N94: A | O94: B | P94: 73 | Q94: 391 | R94: 269.79
A95: 03114080000 | B95: 4019238039184 | C95: PN CON 265/30R22 XL 97Y SPORTCONTACT 7 F | D95: 2653022YSPORTCON97FR | E95: TOURISME ÉTÉ | F95: CO SPORTCONTACT 7 | G95: 265 | H95: 30 | I95: R | J95: 22 | K95: 97 | L95: Y | M95: D | N95: A | O95: B | P95: 73 | Q95: 497 | R95: 342.93
A96: 03114090000 | B96: 4019238040777 | C96: PN CON 275/40R22 XL 107Y SPORTCONTACT 7 | D96: 2754022YSPORTCO107FR | E96: TOURISME ÉTÉ | F96: CO SPORTCONTACT 7 | G96: 275 | H96: 40 | I96: R | J96: 22 | K96: 107 | L96: Y | M96: C | N96: A | O96: B | P96: 73 | Q96: 453.5 | R96: 312.915
A97: 03114100000 | B97: 4019238040784 | C97: PN CON 305/30R19 XL 102Y SPORTCONTACT 7 | D97: 3053019YSPORTCO102FR | E97: TOURISME ÉTÉ | F97: CO SPORTCONTACT 7 | G97: 305 | H97: 30 | I97: R | J97: 19 | K97: 102 | L97: Y | M97: C | N97: A | O97: B | P97: 73 | Q97: 399 | R97: 275.31
A98: 03114110000 | B98: 4019238040791 | C98: PN CON 295/30R19 XL 100Y SPORTCONTACT 7 | D98: 2953019YSPORTCO100FR | E98: TOURISME ÉTÉ | F98: CO SPORTCONTACT 7 | G98: 295 | H98: 30 | I98: R | J98: 19 | K98: 100 | L98: Y | M98: C | N98: A | O98: B | P98: 73 | Q98: 419 | R98: 289.11
A99: 03114120000 | B99: 4019238040807 | C99: PN CON 325/25R20 XL 101Y SPORTCONTACT 7 | D99: 3252520YSPORTCO101FR | E99: TOURISME ÉTÉ | F99: CO SPORTCONTACT 7 | G99: 325 | H99: 25 | I99: R | J99: 20 | K99: 101 | L99: Y | M99: C | N99: A | O99: B | P99: 74 | Q99: 486 | R99: 335.34
A100: 03114130000 | B100: 4019238040814 | C100: PN CON 305/30R20 XL 103Y SPORTCONTACT 7 | D100: 3053020YSPORTCO103FR | E100: TOURISME ÉTÉ | F100: CO SPORTCONTACT 7 | G100: 305 | H100: 30 | I100: R | J100: 20 | K100: 103 | L100: Y | M100: C | N100: A | O100: A | P100: 72 | Q100: 440 | R100: 303.6
A101: 03114140000 | B101: 4019238039252 | C101: PN CON 315/25R23 XL 102Y SPORTCONTACT 7 | D101: 3152523YSPORTCO102FR | E101: TOURISME ÉTÉ | F101: CO SPORTCONTACT 7 | G101: 315 | H101: 25 | I101: R | J101: 23 | K101: 102 | L101: Y | M101: C | N101: A | O101: B | P101: 75 | Q101: 530.5 | R101: 366.045
A102: 03114150000 | B102: 4019238039245 | C102: PN CON 305/25R20 XL 97Y SPORTCONTACT 7 F | D102: 3052520YSPORTCON97FR | E102: TOURISME ÉTÉ | F102: CO SPORTCONTACT 7 | G102: 305 | H102: 25 | I102: R | J102: 20 | K102: 97 | L102: Y | M102: D | N102: A | O102: B | P102: 74 | Q102: 439 | R102: 302.91
A103: 03114170000 | B103: 4019238039139 | C103: PN CON 125/80R17 99M SCONTACT | D103: 1258017MSCONTACT99 | E103: TOURISME ÉTÉ | F103: CO SCONTACT | G103: 125 | H103: 80 | I103: R | J103: 17 | K103: 99 | L103: M | P103: 0 | Q103: 109.5 | R103: 75.555
A104: 03114180000 | B104: 4019238039146 | C104: PN CON 175/80R19 122M SCONTACT | D104: 1758019MSCONTACT122 | E104: TOURISME ÉTÉ | F104: CO SCONTACT | G104: 175 | H104: 80 | I104: R | J104: 19 | K104: 122 | L104: M | P104: 0 | Q104: 174.5 | R104: 120.405
A105: 03114200000 | B105: 4019238039313 | C105: PN CON 155/70R17 110M SCONTACT | D105: 1557017MSCONTACT110 | E105: TOURISME ÉTÉ | F105: CO SCONTACT | G105: 155 | H105: 70 | I105: R | J105: 17 | K105: 110 | L105: M | P105: 0 | Q105: 131 | R105: 90.39
A106: 03114220000 | B106: 4019238039283 | C106: PN CON 135/90R16 102M SCONTACT | D106: 1359016MSCONTACT102 | E106: TOURISME ÉTÉ | F106: CO SCONTACT | G106: 135 | H106: 90 | I106: R | J106: 16 | K106: 102 | L106: M | P106: 0 | Q106: 151.5 | R106: 104.535
A107: 03114260000 | B107: 4019238039269 | C107: PN CON 135/80R17 102M SCONTACT | D107: 1358017MSCONTACT102 | E107: TOURISME ÉTÉ | F107: CO SCONTACT | G107: 135 | H107: 80 | I107: R | J107: 17 | K107: 102 | L107: M | P107: 0 | Q107: 110.5 | R107: 76.245
A108: 03114270000 | B108: 4019238039276 | C108: PN CON 135/80R17 103M SCONTACT | D108: 1358017MSCONTACT103 | E108: TOURISME ÉTÉ | F108: CO SCONTACT | G108: 135 | H108: 80 | I108: R | J108: 17 | K108: 103 | L108: M | P108: 0 | Q108: 110.5 | R108: 76.245
A109: 03114280000 | B109: 4019238039290 | C109: PN CON 145/65R20 105M SCONTACT | D109: 1456520MSCONTACT105 | E109: TOURISME ÉTÉ | F109: CO SCONTACT | G109: 145 | H109: 65 | I109: R | J109: 20 | K109: 105 | L109: M | P109: 0 | Q109: 129 | R109: 89.01
A110: 03114290000 | B110: 4019238039320 | C110: PN CON 155/85R18 115M SCONTACT | D110: 1558518MSCONTACT115 | E110: TOURISME ÉTÉ | F110: CO SCONTACT | G110: 155 | H110: 85 | I110: R | J110: 18 | K110: 115 | L110: M | P110: 0 | Q110: 97.5 | R110: 67.275
A111: 03114360000 | B111: 4019238039375 | C111: PN CON 205/55R16 XL 94V ECOCONT 6 FIA | D111: 2055516VEC6FI94 | E111: TOURISME ÉTÉ | F111: CO ECOCONTACT 6 | G111: 205 | H111: 55 | I111: R | J111: 16 | K111: 94 | L111: V | M111: A | N111: A | O111: B | P111: 72 | Q111: 150.5 | R111: 103.845
A112: 03114400000 | B112: 4019238039344 | C112: PN CON 235/55R19 XL 105V ECOCONT 6 VOL | D112: 2355519VEC6VO105 | E112: TOURISME ÉTÉ | F112: CO ECOCONTACT 6 | G112: 235 | H112: 55 | I112: R | J112: 19 | K112: 105 | L112: V | M112: A | N112: A | O112: B | P112: 72 | Q112: 234.5 | R112: 161.805
A113: 03114480000 | B113: 4019238039405 | C113: PN CON 255/45R20 101V ECOCONT 6 | D113: 2554520VEC6101 | E113: TOURISME ÉTÉ | F113: CO ECOCONTACT 6 | G113: 255 | H113: 45 | I113: R | J113: 20 | K113: 101 | L113: V | M113: A | N113: B | O113: B | P113: 72 | Q113: 361 | R113: 249.09
A114: 03114490000 | B114: 4019238039528 | C114: PN CON 285/40R21 XL 109Y SPORTCONT 5 AO | D114: 2854021YSC5SAO109 | E114: TOURISME ÉTÉ | F114: CO CSPC5 | G114: 285 | H114: 40 | I114: R | J114: 21 | K114: 109 | L114: Y | M114: B | N114: A | O114: B | P114: 75 | Q114: 450 | R114: 310.5
A115: 03114520000 | B115: 4019238039542 | C115: PN CON 265/40R22 XL 106V PREMIUM 6 FR | D115: 2654022VPC6106FR | E115: TOURISME ÉTÉ | F115: CO PREMIUM 6 | G115: 265 | H115: 40 | I115: R | J115: 22 | K115: 106 | L115: V | M115: A | N115: B | O115: B | P115: 73 | Q115: 417 | R115: 287.73
A116: 03114530000 | B116: 4019238039535 | C116: PN CON 255/45R21 XL 105V PREMIUM 6 FR | D116: 2554521VPC6105FR | E116: TOURISME ÉTÉ | F116: CO PREMIUM 6 | G116: 255 | H116: 45 | I116: R | J116: 21 | K116: 105 | L116: V | M116: B | N116: B | O116: B | P116: 73 | Q116: 421.5 | R116: 290.835
A117: 03114580000 | B117: 4019238039993 | C117: PN CON 245/45R21 XL 104Y PREMIUM 6 FR | D117: 2454521YPC6104FR | E117: TOURISME ÉTÉ | F117: CO PREMIUM 6 | G117: 245 | H117: 45 | I117: R | J117: 21 | K117: 104 | L117: Y | M117: C | N117: A | O117: B | P117: 72 | Q117: 437 | R117: 301.53
A118: 03114660000 | B118: 4019238040852 | C118: PN CON 235/45R18 XL 98W PREMIUM 6 FOR FR | D118: 2354518WPC6FO98FR | E118: TOURISME ÉTÉ | F118: CO PREMIUM 6 | G118: 235 | H118: 45 | I118: R | J118: 18 | K118: 98 | L118: W | M118: B | N118: A | O118: B | P118: 72 | Q118: 239 | R118: 164.91
A119: 03114750000 | B119: 4019238040999 | C119: PN CON 245/45ZR19 98Y PREMIUM 6 MGT FR | D119: 2454519YPC6MGT98FR | E119: TOURISME ÉTÉ | F119: CO PREMIUM 6 | G119: 245 | H119: 45 | I119: R | J119: 19 | K119: 98 | L119: Y | M119: B | N119: A | O119: B | P119: 71 | Q119: 298 | R119: 205.62
A120: 03114760000 | B120: 4019238040982 | C120: PN CON 275/40ZR19 101Y PREMIUM 6 MGT FR | D120: 2754019YPC6MGT101FR | E120: TOURISME ÉTÉ | F120: CO PREMIUM 6 | G120: 275 | H120: 40 | I120: R | J120: 19 | K120: 101 | L120: Y | M120: B | N120: A | O120: B | P120: 72 | Q120: 327 | R120: 225.63
A121: 03114940000 | B121: 4019238041026 | C121: PN CON 115/70R15 90M SCONTACT | D121: 1157015MSCONTACT90 | E121: TOURISME ÉTÉ | F121: CO SCONTACT | G121: 115 | H121: 70 | I121: R | J121: 15 | K121: 90 | L121: M | P121: 0 | Q121: 109.5 | R121: 75.555
A122: 03114960000 | B122: 4019238041040 | C122: PN CON 125/70R16 96M SCONTACT | D122: 1257016MSCONTACT96 | E122: TOURISME ÉTÉ | F122: CO SCONTACT | G122: 125 | H122: 70 | I122: R | J122: 16 | K122: 96 | L122: M | P122: 0 | Q122: 123 | R122: 84.87
A123: 03114970000 | B123: 4019238041002 | C123: PN CON 265/45ZR20 XL 108Y SPORTCO 6 MGT | D123: 2654520YSC6MGT108 | E123: TOURISME ÉTÉ | F123: CO SPC6 | G123: 265 | H123: 45 | I123: R | J123: 20 | K123: 108 | L123: Y | M123: B | N123: A | O123: B | P123: 73 | Q123: 400.5 | R123: 276.345
A124: 03114980000 | B124: 4019238041019 | C124: PN CON 295/40ZR20 XL 110Y SPORTCO 6 MGT | D124: 2954020YSC6MGT110FR | E124: TOURISME ÉTÉ | F124: CO SPC6 | G124: 295 | H124: 40 | I124: R | J124: 20 | K124: 110 | L124: Y | M124: B | N124: A | O124: B | P124: 75 | Q124: 376.5 | R124: 259.785
A125: 03115030000 | B125: 4019238041071 | C125: PN CON 135/70R16 100M SCONTACT | D125: 1357016MSCONTACT100 | E125: TOURISME ÉTÉ | F125: CO SCONTACT | G125: 135 | H125: 70 | I125: R | J125: 16 | K125: 100 | L125: M | P125: 0 | Q125: 130.5 | R125: 90.045
A126: 03115040000 | B126: 4019238041088 | C126: PN CON 125/90R16 98M SCONTACT | D126: 1259016MSCONTACT98 | E126: TOURISME ÉTÉ | F126: CO SCONTACT | G126: 125 | H126: 90 | I126: R | J126: 16 | K126: 98 | L126: M | P126: 0 | Q126: 119.5 | R126: 82.455
A127: 03115110000 | B127: 4019238041118 | C127: PN CON 235/50R18 97Y ECOCONT 6 MGT | D127: 2355018YEC6MG97 | E127: TOURISME ÉTÉ | F127: CO ECOCONTACT 6 | G127: 235 | H127: 50 | I127: R | J127: 18 | K127: 97 | L127: Y | M127: A | N127: A | O127: B | P127: 71 | Q127: 246.5 | R127: 170.085
A128: 03115130000 | B128: 4019238041095 | C128: PN CON 245/35R20 XL 95W ECOCONT 6 OPE FR | D128: 2453520WEC6OP95FR | E128: TOURISME ÉTÉ | F128: CO ECOCONTACT 6 | G128: 245 | H128: 35 | I128: R | J128: 20 | K128: 95 | L128: W | M128: A | N128: B | O128: B | P128: 72 | Q128: 310 | R128: 213.9
A129: 03115140000 | B129: 4019238041101 | C129: PN CON 245/35R20 XL 95W ECO 6 SIL OPE FR | D129: 2453520WEC6SILOPE95F | E129: TOURISME ÉTÉ | F129: CO ECOCONTACT 6 | G129: 245 | H129: 35 | I129: R | J129: 20 | K129: 95 | L129: W | M129: A | N129: B | O129: B | P129: 72 | Q129: 344.5 | R129: 237.705
A130: 03115170000 | B130: 4019238041194 | C130: PN CON 235/55R18 XL 104T ECOCONT 6 MO | D130: 2355518TEC6MO104 | E130: TOURISME ÉTÉ | F130: CO ECOCONTACT 6 | G130: 235 | H130: 55 | I130: R | J130: 18 | K130: 104 | L130: T | M130: A | N130: B | O130: B | P130: 71 | Q130: 204 | R130: 140.76
A131: 03115180000 | B131: 4019238041200 | C131: PN CON 235/50R19 XL 103T ECOCONT 6 MO | D131: 2355019TEC6MO103 | E131: TOURISME ÉTÉ | F131: CO ECOCONTACT 6 | G131: 235 | H131: 50 | I131: R | J131: 19 | K131: 103 | L131: T | M131: A | N131: B | O131: B | P131: 71 | Q131: 238.5 | R131: 164.565
A132: 03115200000 | B132: 4019238041361 | C132: PN CON 125/85R16 99M SCONTACT | D132: 1258516MSCONTACT99 | E132: TOURISME ÉTÉ | F132: CO SCONTACT | G132: 125 | H132: 85 | I132: R | J132: 16 | K132: 99 | L132: M | P132: 0 | Q132: 105 | R132: 72.45
A133: 03115210000 | B133: 4019238041316 | C133: PN CON 135/90R17 104M SCONTACT | D133: 1359017MSCONTACT104 | E133: TOURISME ÉTÉ | F133: CO SCONTACT | G133: 135 | H133: 90 | I133: R | J133: 17 | K133: 104 | L133: M | P133: 0 | Q133: 128 | R133: 88.32
A134: 03115230000 | B134: 4019238041330 | C134: PN CON 125/60R18 94M SCONTACT | D134: 1256018MSCONTACT94 | E134: TOURISME ÉTÉ | F134: CO SCONTACT | G134: 125 | H134: 60 | I134: R | J134: 18 | K134: 94 | L134: M | P134: 0 | Q134: 110.5 | R134: 76.245
A135: 03115240000 | B135: 4019238041347 | C135: PN CON 155/90R18 113M SCONTACT | D135: 1559018MSCONTACT113 | E135: TOURISME ÉTÉ | F135: CO SCONTACT | G135: 155 | H135: 90 | I135: R | J135: 18 | K135: 113 | L135: M | P135: 0 | Q135: 153 | R135: 105.57
A136: 03115250000 | B136: 4019238041354 | C136: PN CON 125/70R18 99M SCONTACT | D136: 1257018MSCONTACT99 | E136: TOURISME ÉTÉ | F136: CO SCONTACT | G136: 125 | H136: 70 | I136: R | J136: 18 | K136: 99 | L136: M | P136: 0 | Q136: 105 | R136: 72.45
A137: 03115270000 | B137: 4019238041385 | C137: PN CON 115/70R16 92M SCONTACT | D137: 1157016MSCONTACT92 | E137: TOURISME ÉTÉ | F137: CO SCONTACT | G137: 115 | H137: 70 | I137: R | J137: 16 | K137: 92 | L137: M | P137: 0 | Q137: 118.5 | R137: 81.765
A138: 03115300000 | B138: 4019238041477 | C138: PN CON 275/35ZR21 XL 103Y SPORT 6 SIL AO | D138: 2753521YSC6SILAO103 | E138: TOURISME ÉTÉ | F138: CO SPC6 | G138: 275 | H138: 35 | I138: R | J138: 21 | K138: 103 | L138: Y | M138: C | N138: A | O138: B | P138: 73 | Q138: 469 | R138: =Q138*(1-$D$3) -> 323.61
A139: 03115310000 | B139: 4019238041422 | C139: PN CON 135/80R18 104M SCONTACT | D139: 1358018MSCONTACT104 | E139: TOURISME ÉTÉ | F139: CO SCONTACT | G139: 135 | H139: 80 | I139: R | J139: 18 | K139: 104 | L139: M | P139: 0 | Q139: 108.5 | R139: 74.865
A140: 03115320000 | B140: 4019238041439 | C140: PN CON 145/85R18 103M SCONTACT | D140: 1458518MSCONTACT103 | E140: TOURISME ÉTÉ | F140: CO SCONTACT | G140: 145 | H140: 85 | I140: R | J140: 18 | K140: 103 | L140: M | P140: 0 | Q140: 113.5 | R140: 78.315
A141: 03115330000 | B141: 4019238041828 | C141: PN CON 245/35R21 XL 96Y SPORTCONTACT 7 M | D141: 2453521YSPORTCONMG96 | E141: TOURISME ÉTÉ | F141: CO SPORTCONTACT 7 | G141: 245 | H141: 35 | I141: R | J141: 21 | K141: 96 | L141: Y | M141: C | N141: A | O141: B | P141: 72 | Q141: 390 | R141: 269.1
A142: 03115340000 | B142: 4019238041835 | C142: PN CON 285/30R21 XL 100Y SPORTCONTACT 7 | D142: 2853021YSPORTCOMG100 | E142: TOURISME ÉTÉ | F142: CO SPORTCONTACT 7 | G142: 285 | H142: 30 | I142: R | J142: 21 | K142: 100 | L142: Y | M142: C | N142: A | O142: B | P142: 75 | Q142: 469.5 | R142: 323.955
A143: 03115520000 | B143: 4019238041798 | C143: PN CON 255/45R20 101W SPORTCONT 5 AO FR | D143: 2554520WSC5SAO101FR | E143: 4x4 | F143: CO CSPC5 | G143: 255 | H143: 45 | I143: R | J143: 20 | K143: 101 | L143: W | M143: C | N143: A | O143: B | P143: 72 | Q143: 363.5 | R143: 250.815
A144: 03115610000 | B144: 4019238041842 | C144: PN CON 215/45R20 XL 95T ECO 6 C_S VW FR | D144: 2154520TEC6CSVW95FR | E144: TOURISME ÉTÉ | F144: CO ECOCONTACT 6 | G144: 215 | H144: 45 | I144: R | J144: 20 | K144: 95 | L144: T | M144: A | N144: A | O144: B | P144: 72 | Q144: 247.5 | R144: 170.775
A145: 03115650000 | B145: 4019238041910 | C145: PN CON 215/60R16 95H ECOCONTACT 6 | D145: 2156016HEC695 | E145: TOURISME ÉTÉ | F145: CO ECOCONTACT 6 | G145: 215 | H145: 60 | I145: R | J145: 16 | K145: 95 | L145: H | M145: A | N145: A | O145: B | P145: 71 | Q145: 214.5 | R145: 148.005
A146: 03115690000 | B146: 4019238042047 | C146: PN CON 225/40R18 XL 92Y ECOCONT 6 AR FR | D146: 2254018YEC6AR92FR | E146: TOURISME ÉTÉ | F146: CO ECOCONTACT 6 | G146: 225 | H146: 40 | I146: R | J146: 18 | K146: 92 | L146: Y | M146: A | N146: B | O146: B | P146: 72 | Q146: 147.5 | R146: 101.775
A147: 03115700000 | B147: 4019238041996 | C147: PN CON 255/50R19 XL 107W ECO 6 Q | D147: 2555019WECO6Q107 | E147: TOURISME ÉTÉ | F147: CO ECO 6 Q | G147: 255 | H147: 50 | I147: R | J147: 19 | K147: 107 | L147: W | M147: A | N147: B | O147: A | P147: 69 | Q147: 271 | R147: 186.99
A148: 03115730000 | B148: 4019238042023 | C148: PN CON 235/55R19 XL 105W ECO 6 Q | D148: 2355519WECO6Q105 | E148: TOURISME ÉTÉ | F148: CO ECO 6 Q | G148: 235 | H148: 55 | I148: R | J148: 19 | K148: 105 | L148: W | M148: A | N148: B | O148: A | P148: 69 | Q148: 242 | R148: 166.98
A149: 03115740000 | B149: 4019238043891 | C149: PN CON 235/60R18 103W ECO 6 Q MO | D149: 2356018WECO6QMO103 | E149: TOURISME ÉTÉ | F149: CO ECO 6 Q | G149: 235 | H149: 60 | I149: R | J149: 18 | K149: 103 | L149: W | M149: A | N149: B | O149: B | P149: 69 | Q149: 213 | R149: 146.97
A150: 03115750000 | B150: 4019238042016 | C150: PN CON 285/40R20 XL 108W ECO 6 Q | D150: 2854020WECO6Q108 | E150: TOURISME ÉTÉ | F150: CO ECO 6 Q | G150: 285 | H150: 40 | I150: R | J150: 20 | K150: 108 | L150: W | M150: A | N150: B | O150: A | P150: 69 | Q150: 409 | R150: 282.21
A151: 03115780000 | B151: 4019238042061 | C151: PN CON 215/50R18 92W ECOCONT 6 Q AO | D151: 2155018WECO6QAO92 | E151: TOURISME ÉTÉ | F151: CO ECO 6 Q | G151: 215 | H151: 50 | I151: R | J151: 18 | K151: 92 | L151: W | M151: B | N151: A | O151: B | P151: 70 | Q151: 237.5 | R151: 163.875
A152: 03115990000 | B152: 4019238042351 | C152: PN CON 285/35R22 XL 106Y SPORTCONT 6 T0 | D152: 2853522YSC6T0106CO | E152: TOURISME ÉTÉ | F152: CO SPC6 | G152: 285 | H152: 35 | I152: R | J152: 22 | K152: 106 | L152: Y | M152: C | N152: A | O152: B | P152: 75 | Q152: 496 | R152: 342.24
A153: 03116000000 | B153: 4019238042887 | C153: PN CON 265/35R22 XL 102Y SPORT 6 SIL T0 | D153: 2653522YSC6T0SIL102 | E153: TOURISME ÉTÉ | F153: CO SPC6 | G153: 265 | H153: 35 | I153: R | J153: 22 | K153: 102 | L153: Y | M153: C | N153: A | O153: B | P153: 73 | Q153: 503.5 | R153: 347.415
A154: 03116010000 | B154: 4019238042368 | C154: PN CON 265/35R22 XL 102Y SPORTCONT 6 T0 | D154: 2653522YSC6T0102CO | E154: TOURISME ÉTÉ | F154: CO SPC6 | G154: 265 | H154: 35 | I154: R | J154: 22 | K154: 102 | L154: Y | M154: C | N154: A | O154: B | P154: 73 | Q154: 462.5 | R154: 319.125
A155: 03116020000 | B155: 4019238042894 | C155: PN CON 285/35R22 XL 106Y SPORT 6 SIL T0 | D155: 2853522YSC6T0SIL106 | E155: TOURISME ÉTÉ | F155: CO SPC6 | G155: 285 | H155: 35 | I155: R | J155: 22 | K155: 106 | L155: Y | M155: C | N155: A | O155: B | P155: 75 | Q155: 540 | R155: 372.6
A156: 03116500000 | B156: 4019238042924 | C156: PN CON 225/55R18 XL 102Y ECOCONT 6 AO1 | D156: 2255518YEC6AO1102 | E156: TOURISME ÉTÉ | F156: CO ECOCONTACT 6 | G156: 225 | H156: 55 | I156: R | J156: 18 | K156: 102 | L156: Y | M156: B | N156: A | O156: B | P156: 71 | Q156: 229 | R156: 158.01
A157: 03116510000 | B157: 4019238042900 | C157: PN CON 225/60R17 99Y ECOCONT 6 AO | D157: 2256017YECO6AO99 | E157: TOURISME ÉTÉ | F157: CO ECOCONTACT 6 | G157: 225 | H157: 60 | I157: R | J157: 17 | K157: 99 | L157: Y | M157: B | N157: A | O157: B | P157: 71 | Q157: 235 | R157: 162.15
A158: 03116540000 | B158: 4019238043129 | C158: PN CON 215/55R17 94V ECOCONT 6 | D158: 2155517VEC694 | E158: TOURISME ÉTÉ | F158: CO ECOCONTACT 6 | G158: 215 | H158: 55 | I158: R | J158: 17 | K158: 94 | L158: V | M158: A | N158: A | O158: B | P158: 71 | Q158: 207 | R158: 142.83
A159: 03116830000 | B159: 4019238043709 | C159: PN CON 195/55R16 87V ECOCONT 6 | D159: 1955516VEC687CONT | E159: TOURISME ÉTÉ | F159: CO ECOCONTACT 6 | G159: 195 | H159: 55 | I159: R | J159: 16 | K159: 87 | L159: V | M159: A | N159: B | O159: B | P159: 71 | Q159: 187 | R159: 129.03
A160: 03116880000 | B160: 4019238050196 | C160: PN CON 125/80R16 97M SCONTACT | D160: 1258016MSCONTACT97 | E160: TOURISME ÉTÉ | F160: CO SCONTACT | G160: 125 | H160: 80 | I160: R | J160: 16 | K160: 97 | L160: M | P160: 0 | Q160: 121.5 | R160: 83.835
A161: 03117010000 | B161: 4019238044133 | C161: PN CON 275/35R21 XL 103Y SPORTCONTACT 7 | D161: 2753521YSPORTCOND103 | E161: TOURISME ÉTÉ | F161: CO SPORTCONTACT 7 | G161: 275 | H161: 35 | I161: R | J161: 21 | K161: 103 | L161: Y | M161: C | N161: A | O161: B | P161: 73 | Q161: 441 | R161: 304.29
A162: 03117020000 | B162: 4019238044126 | C162: PN CON 325/30R21 XL 108Y SPORTCONTACT 7 | D162: 3253021YSPORTCOND108 | E162: TOURISME ÉTÉ | F162: CO SPORTCONTACT 7 | G162: 325 | H162: 30 | I162: R | J162: 21 | K162: 108 | L162: Y | M162: C | N162: A | O162: B | P162: 75 | Q162: 470.5 | R162: 324.645
A163: 03117030000 | B163: 4019238044218 | C163: PN CON 255/45R19 100T CS ECO 6 Q + | D163: 2554519TECO6Q+100RU | E163: TOURISME ÉTÉ | F163: CO ECO 6 Q | G163: 255 | H163: 45 | I163: R | J163: 19 | K163: 100 | L163: T | M163: A | N163: A | P163: 72 | Q163: 300.5 | R163: 207.345
A164: 03117040000 | B164: 4019238044195 | C164: PN CON 255/40R20 XL 101T ECO 6 Q CS + | D164: 2554020TECO6Q+101 | E164: TOURISME ÉTÉ | F164: CO ECO 6 Q | G164: 255 | H164: 40 | I164: R | J164: 20 | K164: 101 | L164: T | M164: A | N164: A | P164: 72 | Q164: 335 | R164: 231.15
A165: 03117050000 | B165: 4019238044171 | C165: PN CON 235/50R19 99T ECO 6 Q CS + | D165: 2355019TECO6Q+99 | E165: TOURISME ÉTÉ | F165: CO ECO 6 Q | G165: 235 | H165: 50 | I165: R | J165: 19 | K165: 99 | L165: T | M165: A | N165: B | P165: 71 | Q165: 249.5 | R165: 172.155
A166: 03117090000 | B166: 4019238044157 | C166: PN CON 235/45R20 XL 100T ECO 6 Q CS + | D166: 2354520TECO6Q+100 | E166: TOURISME ÉTÉ | F166: CO ECO 6 Q | G166: 235 | H166: 45 | I166: R | J166: 20 | K166: 100 | L166: T | M166: A | N166: A | P166: 71 | Q166: 339.5 | R166: 234.255
A167: 03117120000 | B167: 4019238045949 | C167: PN CON 225/60R18 XL 104V PREMIUM 6 FR | D167: 2256018VPC6104FR | E167: TOURISME ÉTÉ | F167: CO PREMIUM 6 | G167: 225 | H167: 60 | I167: R | J167: 18 | K167: 104 | L167: V | M167: B | N167: A | O167: B | P167: 72 | Q167: 250 | R167: 172.5
A168: 03117150000 | B168: 4019238046083 | C168: PN CON 265/45R20 XL 108T ECO 6 Q CS + | D168: 2654520TECO6Q+108 | E168: TOURISME ÉTÉ | F168: CO ECO 6 Q | G168: 265 | H168: 45 | I168: R | J168: 20 | K168: 108 | L168: T | M168: A | N168: B | O168: B | P168: 73 | Q168: 360.5 | R168: 248.745
A169: 03117180000 | B169: 4019238046052 | C169: PN CON 235/55R19 XL 105T ECO 6 Q CS + | D169: 2355519TECO6Q+105 | E169: TOURISME ÉTÉ | F169: CO ECO 6 Q | G169: 235 | H169: 55 | I169: R | J169: 19 | K169: 105 | L169: T | M169: A | N169: B | O169: B | P169: 72 | Q169: 253 | R169: 174.57
A170: 03117200000 | B170: 4019238046069 | C170: PN CON 255/50R19 XL 107T ECO 6 Q CS + | D170: 2555019TECO6Q+107 | E170: TOURISME ÉTÉ | F170: CO ECO 6 Q | G170: 255 | H170: 50 | I170: R | J170: 19 | K170: 107 | L170: T | M170: A | N170: A | O170: B | P170: 73 | Q170: 284 | R170: 195.96
A171: 03117210000 | B171: 4019238046076 | C171: PN CON 235/50R20 XL 104T ECO 6 Q CS + | D171: 2355020TECO6Q+104 | E171: TOURISME ÉTÉ | F171: CO ECO 6 Q | G171: 235 | H171: 50 | I171: R | J171: 20 | K171: 104 | L171: T | M171: A | N171: B | O171: B | P171: 72 | Q171: 259.5 | R171: 179.055
A172: 03117340000 | B172: 4019238046359 | C172: PN CON 255/35R19 XL 96Y SPORTCONTACT 7 F | D172: 2553519YSPTCON96FR | E172: TOURISME ÉTÉ | F172: CO SPORTCONTACT 7 | G172: 255 | H172: 35 | I172: R | J172: 19 | K172: 96 | L172: Y | M172: D | N172: A | O172: B | P172: 73 | Q172: 250.5 | R172: 172.845
A173: 03117490000 | B173: 4019238046823 | C173: PN CON 205/55R17 XL 95V PREM 6 | D173: 2055517VPC695 | E173: TOURISME ÉTÉ | F173: CO PREMIUM 6 | G173: 205 | H173: 55 | I173: R | J173: 17 | K173: 95 | L173: V | M173: C | N173: A | O173: B | P173: 72 | Q173: 185 | R173: 127.65
A174: 03117680000 | B174: 4019238048483 | C174: PN CON 255/50R19 103Y SPORTCONT 5 MO1 FR | D174: 2555019YMO1103FR | E174: TOURISME ÉTÉ | F174: CO CSPC5 | G174: 255 | H174: 50 | I174: R | J174: 19 | K174: 103 | L174: Y | M174: C | N174: A | O174: B | P174: 72 | Q174: 258.5 | R174: 178.365
A175: 03117690000 | B175: 4019238048490 | C175: PN CON 235/55R19 101Y SPORTCONT 5 MO1 FR | D175: 2355519YMO1101FR | E175: TOURISME ÉTÉ | F175: CO CSPC5 | G175: 235 | H175: 55 | I175: R | J175: 19 | K175: 101 | L175: Y | M175: C | N175: A | O175: B | P175: 71 | Q175: 232.5 | R175: 160.425
A176: 03117710000 | B176: 4019238048452 | C176: PN CON 265/40R19 XL 102Y SPORTCONTACT 7 | D176: 2654019YSPORTCOMO102 | E176: TOURISME ÉTÉ | F176: CO SPORTCONTACT 7 | G176: 265 | H176: 40 | I176: R | J176: 19 | K176: 102 | L176: Y | M176: C | N176: B | O176: B | P176: 73 | Q176: 395.5 | R176: 272.895
A177: 03117720000 | B177: 4019238048438 | C177: PN CON 265/35R19 XL 98Y SPORTCONTACT 7 M | D177: 2653519YSPORTCONMO98 | E177: TOURISME ÉTÉ | F177: CO SPORTCONTACT 7 | G177: 265 | H177: 35 | I177: R | J177: 19 | K177: 98 | L177: Y | M177: C | N177: A | P177: 73 | Q177: 391 | R177: 269.79
A178: 03117780000 | B178: 4019238048537 | C178: PN CON 235/45R18 94V PREMIUMC 6 FR | D178: 2354518VPC694FR | E178: TOURISME ÉTÉ | F178: CO PREMIUM 6 | G178: 235 | H178: 45 | I178: R | J178: 18 | K178: 94 | L178: V | M178: B | N178: A | O178: B | P178: 71 | Q178: 238 | R178: 164.22
A179: 03117790000 | B179: 4019238048780 | C179: PN CON 275/35R20 XL 102Y ECO 6 Q *MO | D179: 2753520YECO6Q*M102 | E179: TOURISME ÉTÉ | F179: CO ECO 6 Q | G179: 275 | H179: 35 | I179: R | J179: 20 | K179: 102 | L179: Y | M179: A | N179: B | O179: A | P179: 70 | Q179: 355.5 | R179: 245.295
A180: 03117830000 | B180: 4019238097658 | C180: PN CON 245/45R19 XL 102Y ECO 6 Q *MO FR | D180: 2454519YECO6Q*M102FR | E180: TOURISME ÉTÉ | F180: CO ECO 6 Q | G180: 245 | H180: 45 | I180: R | J180: 19 | K180: 102 | L180: Y | M180: A | N180: B | O180: A | P180: 69 | Q180: 300.5 | R180: 207.345
A181: 03117840000 | B181: 4019238097771 | C181: PN CON 275/35R20 XL 102Y ECO 6 Q *MO FR | D181: 2753520YECO6Q*M102FR | E181: TOURISME ÉTÉ | F181: CO ECO 6 Q | G181: 275 | H181: 35 | I181: R | J181: 20 | K181: 102 | L181: Y | M181: A | N181: B | O181: A | P181: 70 | Q181: 368 | R181: 253.92
A182: 03117880000 | B182: 4019238048704 | C182: PN CON 145/60R20 105M SCONTACT | D182: 1456020MSCONTACT105 | E182: TOURISME ÉTÉ | F182: CO SCONTACT | G182: 145 | H182: 60 | I182: R | J182: 20 | K182: 105 | L182: M | P182: 0 | Q182: 132.5 | R182: 91.425
A183: 03117900000 | B183: 4019238097627 | C183: PN CON 245/40R20 XL 99Y ECO 6 Q *MO FR | D183: 2454020YECO6Q*M99FR | E183: TOURISME ÉTÉ | F183: CO ECO 6 Q | G183: 245 | H183: 40 | I183: R | J183: 20 | K183: 99 | L183: Y | M183: A | N183: B | O183: A | P183: 69 | Q183: 355.5 | R183: 245.295
A184: 03117910000 | B184: 4019238048797 | C184: PN CON 275/30ZR20 XL 97Y SPORT 6 AO SIL | D184: 2753020YSC6AO97SIL | E184: TOURISME ÉTÉ | F184: CO SPC6 | G184: 275 | H184: 30 | I184: R | J184: 20 | K184: 97 | L184: Y | M184: C | N184: A | O184: B | P184: 73 | Q184: 441.5 | R184: 304.635
A185: 03117930000 | B185: 4019238048940 | C185: PN CON 145/80R19 110M SCONTACT | D185: 1458019MSCONTACT110 | E185: TOURISME ÉTÉ | F185: CO SCONTACT | G185: 145 | H185: 80 | I185: R | J185: 19 | K185: 110 | L185: M | P185: 0 | Q185: 113.5 | R185: 78.315
A186: 03117960000 | B186: 4019238049046 | C186: PN CON 235/55R18 100V ECOCONT 6 | D186: 2355518VEC6100 | E186: TOURISME ÉTÉ | F186: CO ECOCONTACT 6 | G186: 235 | H186: 55 | I186: R | J186: 18 | K186: 100 | L186: V | M186: A | N186: B | O186: B | P186: 71 | Q186: 210 | R186: 144.9
A187: 03117980000 | B187: 4019238049220 | C187: PN CON 275/40R19 XL 105Y ECO 6 Q MO FR | D187: 2754019YECO6QMO105FR | E187: TOURISME ÉTÉ | F187: CO ECO 6 Q | G187: 275 | H187: 40 | I187: R | J187: 19 | K187: 105 | L187: Y | M187: A | N187: B | O187: A | P187: 70 | Q187: 328 | R187: 226.32
A188: 03118030000 | B188: 4019238049282 | C188: PN CON 275/40R19 XL 105Y ECO 6 Q *MO | D188: 2754019YECO6Q*M105 | E188: TOURISME ÉTÉ | F188: CO ECO 6 Q | G188: 275 | H188: 40 | I188: R | J188: 19 | K188: 105 | L188: Y | M188: A | N188: B | O188: A | P188: 70 | Q188: 328 | R188: 226.32
A189: 03118070000 | B189: 4019238097818 | C189: PN CON 275/40R19 XL 105Y ECO 6 Q *MO FR | D189: 2754019YECO6Q*M105FR | E189: TOURISME ÉTÉ | F189: CO ECO 6 Q | G189: 275 | H189: 40 | I189: R | J189: 19 | K189: 105 | L189: Y | M189: A | N189: B | O189: A | P189: 70 | Q189: 328 | R189: 226.32
A190: 03118180000 | B190: 4019238097504 | C190: PN CON 225/45R18 XL 95Y EC 6 * | D190: 2254518YEC6*952 | E190: TOURISME ÉTÉ | F190: CO ECOCONTACT 6 | G190: 225 | H190: 45 | I190: R | J190: 18 | K190: 95 | L190: Y | M190: A | N190: A | O190: B | P190: 72 | Q190: 222 | R190: 153.18
A191: 03118190000 | B191: 4019238049954 | C191: PN CON 245/45R18 XL 100Y SPORTCONTACT 7 | D191: 2454518YSPORTCOMO100 | E191: TOURISME ÉTÉ | F191: CO SPORTCONTACT 7 | G191: 245 | H191: 45 | I191: R | J191: 18 | K191: 100 | L191: Y | M191: B | N191: A | O191: B | P191: 72 | Q191: 219 | R191: 151.11
A192: 03118200000 | B192: 4019238097542 | C192: PN CON 225/50R18 XL 99W PC6 * | D192: 2255018WPC6*9922 | E192: TOURISME ÉTÉ | F192: CO PREMIUM 6 | G192: 225 | H192: 50 | I192: R | J192: 18 | K192: 99 | L192: W | M192: A | N192: B | O192: B | P192: 72 | Q192: 253.5 | R192: 174.915
A193: 03118240000 | B193: 4019238049985 | C193: PN CON 245/45R18 96W ECOCONT 5 CS | D193: 2454518WCEC5962 | E193: TOURISME ÉTÉ | F193: CO CEC5 | G193: 245 | H193: 45 | I193: R | J193: 18 | K193: 96 | L193: W | M193: B | N193: B | O193: B | P193: 71 | Q193: 242 | R193: 166.98
A194: 03118250000 | B194: 4019238049978 | C194: PN CON 245/45R18 96W ECOCONT 5 | D194: 2454518WCEC5963 | E194: TOURISME ÉTÉ | F194: CO CEC5 | G194: 245 | H194: 45 | I194: R | J194: 18 | K194: 96 | L194: W | M194: B | N194: B | O194: B | P194: 71 | Q194: 218 | R194: 150.42
A195: 03118390000 | B195: 4019238064537 | C195: PN CON 235/45R18 94W SC5S FR | D195: 2354518WSC5SFR94 | E195: TOURISME ÉTÉ | F195: CO CSPC5 | G195: 235 | H195: 45 | I195: R | J195: 18 | K195: 94 | L195: W | M195: C | N195: A | O195: B | P195: 71 | Q195: 238.5 | R195: 164.565
A196: 03118470000 | B196: 4019238051124 | C196: PN CON 225/50R17 94Y SSR ECOCONT 6 MOE | D196: 2255017YEC6MOE94RU | E196: TOURISME ÉTÉ | F196: CO ECOCONTACT 6 | G196: 225 | H196: 50 | I196: R | J196: 17 | K196: 94 | L196: Y | M196: B | N196: B | O196: B | P196: 71 | Q196: 218 | R196: 150.42
A197: 03118500000 | B197: 4019238051179 | C197: PN CON 225/50R17 XL 98Y ECOCONT 6 AR | D197: 2255017YEC6AR98 | E197: TOURISME ÉTÉ | F197: CO ECOCONTACT 6 | G197: 225 | H197: 50 | I197: R | J197: 17 | K197: 98 | L197: Y | M197: A | N197: B | O197: B | P197: 72 | Q197: 196 | R197: 135.24
A198: 03118520000 | B198: 4019238051216 | C198: PN CON 285/30R21 XL 103Y ECO 6 Q * FR | D198: 2853021YECO6Q*103FR | E198: TOURISME ÉTÉ | F198: CO ECO 6 Q | G198: 285 | H198: 30 | I198: R | J198: 21 | K198: 103 | L198: Y | M198: B | N198: B | O198: A | P198: 72 | Q198: 466.5 | R198: 321.885
A199: 03118530000 | B199: 4019238051186 | C199: PN CON 215/60R17 96V EC 6 AR | D199: 2156017VEC6AR96 | E199: TOURISME ÉTÉ | F199: CO ECOCONTACT 6 | G199: 215 | H199: 60 | I199: R | J199: 17 | K199: 96 | L199: V | M199: A | N199: A | O199: B | P199: 71 | Q199: 193 | R199: 133.17
A200: 03118570000 | B200: 4019238097863 | C200: PN CON 285/30R21 XL 103Y ECO 6 Q * FR | D200: 2853021YECO6Q*103FR2 | E200: TOURISME ÉTÉ | F200: CO ECO 6 Q | G200: 285 | H200: 30 | I200: R | J200: 21 | K200: 103 | L200: Y | M200: B | N200: B | O200: A | P200: 72 | Q200: 493 | R200: 340.17
A201: 03118610000 | B201: 4019238051445 | C201: PN CON 265/45R21 XL 108W SPORT 5 J FR LR | D201: 2654521WSC5J108LR | E201: TOURISME ÉTÉ | F201: CO CSPC5 | G201: 265 | H201: 45 | I201: R | J201: 21 | K201: 108 | L201: W | M201: B | N201: A | O201: B | P201: 73 | Q201: 474 | R201: 327.06
A202: 03118630000 | B202: 4019238051704 | C202: PN CON 235/50R18 97V EC 6 AR | D202: 2355018VEC6AR97 | E202: TOURISME ÉTÉ | F202: CO ECOCONTACT 6 | G202: 235 | H202: 50 | I202: R | J202: 18 | K202: 97 | L202: V | M202: B | N202: A | O202: B | P202: 71 | Q202: 223.5 | R202: =Q202*(1-$D$3) -> 154.215
A203: 03118640000 | B203: 4019238051780 | C203: PN CON 285/35R20 100Y SPORT 6 FR MGT | D203: 2853520YSC6FR100 | E203: TOURISME ÉTÉ | F203: CO SPC6 | G203: 285 | H203: 35 | I203: R | J203: 20 | K203: 100 | L203: Y | M203: D | N203: A | O203: B | P203: 74 | Q203: 378.5 | R203: 261.165
... 1723 more rows

Sheet DUN
D2: Remise
D3: =Remises!$T$8 -> 0.345
A5: Actualisation au 04/04/2024
A7: REFERENCES PNEUMATIQUES | Q7: TARIFS
A8: CAI | B8: EAN | C8: Désignation | D8: Appellation | E8: Catégorie | F8: Profil | G8: Largeur | H8: Hauteur | I8: Structure | J8: Diamètre | K8: IC | L8: IV | M8: Conso. | N8: Frein. | O8: Bruit. | P8: Décibels. | Q8: Prix BF | R8: Prix Remisé
A9: 514949 | B9: 4038526248633 | C9: PN DUN 255/40R17 XL 98 Y SP MAXX MFS | D9: 2554017YSPMAX98XL | E9: TOURISME ÉTÉ | F9: DU SP MAX | G9: 255 | H9: 40 | I9: ZR | J9: 17 | K9: 98 | L9: Y | M9: D | N9: B | O9: B | P9: 73 | Q9: 207 | R9: =Q9*(1-$D$3) -> 135.585
A10: 520511 | B10: 4038526277633 | C10: PN DUN 245/50R18 100 W SP MAXX GT*ROF | D10: 2455018WSPMAX100 | E10: TOURISME ÉTÉ | F10: DU SP MAXX GT | G10: 245 | H10: 50 | I10: R | J10: 18 | K10: 100 | L10: W | M10: D | N10: B | O10: B | P10: 69 | Q10: 303.5 | R10: =Q10*(1-$D$3) -> 198.7925
A11: 521476 | B11: 4038526294517 | C11: PN DUN 265/30R20 94 Y SP MAXX GT RO1 | D11: 2653020YSPMAX94 | E11: TOURISME ÉTÉ | F11: DU SP MAXX GT | G11: 265 | H11: 30 | I11: ZR | J11: 20 | K11: 94 | L11: Y | M11: D | N11: B | O11: A | P11: 70 | Q11: 399 | R11: 261.345
A12: 522990 | B12: 4038526318398 | C12: PN DUN 185/55R16 XL 87 H FASTR | D12: 1855516HFASTR87XL | E12: TOURISME ÉTÉ | F12: DU FAST.RESP | G12: 185 | H12: 55 | I12: R | J12: 16 | K12: 87 | L12: H | M12: D | N12: C | O12: B | P12: 69 | Q12: 152 | R12: 99.56
A13: 523122 | B13: 4038526319326 | C13: PN DUN 225/55R17 97 Y SP01 AO MFS | D13: 2255517YSP01A97 | E13: TOURISME ÉTÉ | F13: DU SP 01 | G13: 225 | H13: 55 | I13: R | J13: 17 | K13: 97 | L13: Y | M13: D | N13: C | O13: B | P13: 70 | Q13: 209.5 | R13: 137.2225
A14: 523284 | B14: 4038526320438 | C14: PN DUN 255/35R19 XL 96 Y MAXX GT MFS A | D14: 2553519YMAXXGAO96XL | E14: TOURISME ÉTÉ | F14: DU SP MAXX GT | G14: 255 | H14: 35 | I14: ZR | J14: 19 | K14: 96 | L14: Y | M14: D | N14: C | O14: B | P14: 71 | Q14: 262.5 | R14: 171.9375
A15: 524313 | B15: 4038526011268 | C15: PN DUN 225/45R17 91 W FASTR AO MFS | D15: 2254517WFASTRAO91 | E15: TOURISME ÉTÉ | F15: DU FAST.RESP | G15: 225 | H15: 45 | I15: R | J15: 17 | K15: 91 | L15: W | M15: D | N15: B | O15: B | P15: 71 | Q15: 145 | R15: 94.975
A16: 524599 | B16: 3188649805143 | C16: PN DUN 265/45R20 XL 108 Y SP MAXX GT B | D16: 2654520YSPMAX108XL | E16: 4x4 | F16: DU SP MAXX GT | G16: 265 | H16: 45 | I16: ZR | J16: 20 | K16: 108 | L16: Y | M16: D | N16: B | O16: A | P16: 70 | Q16: 397.5 | R16: 260.3625
A17: 524704 | B17: 3188649804979 | C17: PN DUN 185/55R16 83 V FASTR | D17: 1855516VFASTR83 | E17: TOURISME ÉTÉ | F17: DU FAST.RESP | G17: 185 | H17: 55 | I17: R | J17: 16 | K17: 83 | L17: V | M17: D | N17: B | O17: B | P17: 70 | Q17: 146.5 | R17: 95.9575
A18: 524796 | B18: 3188649805327 | C18: PN DUN 215/55R17 94 W FASTR | D18: 2155517WFASTR94 | E18: TOURISME ÉTÉ | F18: DU FAST.RESP | G18: 215 | H18: 55 | I18: R | J18: 17 | K18: 94 | L18: W | M18: D | N18: C | O18: B | P18: 71 | Q18: 175 | R18: 114.625
A19: 525875 | B19: 3188649806959 | C19: PN DUN 275/35R21 XL 103Y MAXX GT MFS RO1 | D19: 2753521YMAXXG103XL | E19: TOURISME ÉTÉ | F19: DU SP MAXX GT | G19: 275 | H19: 35 | I19: ZR | J19: 21 | K19: 103 | L19: Y | M19: D | N19: B | O19: B | P19: 73 | Q19: 431 | R19: 282.305
A20: 526376 | B20: 3188649810161 | C20: PN DUN 225/45R17 91 W ROF FASTR MOE | D20: 2254517WFASTR91RU | E20: TOURISME ÉTÉ | F20: DU FAST.RESP | G20: 225 | H20: 45 | I20: R | J20: 17 | K20: 91 | L20: W | M20: D | N20: B | O20: B | P20: 71 | Q20: 164 | R20: 107.42
A21: 526391 | B21: 3188649809967 | C21: PN DUN 225/60R17 99 V SP MAXX TT* | D21: 2256017VSPMAX99 | E21: TOURISME ÉTÉ | F21: DU SP MAX TT | G21: 225 | H21: 60 | I21: R | J21: 17 | K21: 99 | L21: V | M21: D | N21: B | O21: B | P21: 71 | Q21: 235 | R21: 153.925
A22: 526392 | B22: 3188649809974 | C22: PN DUN 225/60R17 99 V ROF SP MAXX TT* | D22: 2256017VSPMAX99RU | E22: TOURISME ÉTÉ | F22: DU SP MAX TT | G22: 225 | H22: 60 | I22: R | J22: 17 | K22: 99 | L22: V | M22: D | N22: C | O22: B | P22: 71 | Q22: 291 | R22: 190.605
A23: 526746 | B23: 3188649811113 | C23: PN DUN 235/45 ZR 18 94 Y SP MAXX GT N0 | D23: 2354518YSPMAX94 | E23: TOURISME ÉTÉ | F23: DU SP MAXX GT | G23: 235 | H23: 45 | I23: ZR | J23: 18 | K23: 94 | L23: Y | M23: D | N23: C | O23: B | P23: 71 | Q23: 255 | R23: 167.025
A24: 526773 | B24: 3188649811298 | C24: PN DUN 225/65R17 XL 106 V GR.TOUR.A/S | D24: 2256517VGRTOU106XL | E24: 4x4 | F24: DU GRTREK TOUR A/S | G24: 225 | H24: 65 | I24: R | J24: 17 | K24: 106 | L24: V | M24: C | N24: C | O24: B | P24: 71 | Q24: 180.5 | R24: 118.2275
A25: 526777 | B25: 3188649811311 | C25: PN DUN 265/45 ZR 18 101 Y SP MAXX GT N0 | D25: 2654518YSPMAX101 | E25: TOURISME ÉTÉ | F25: DU SP MAXX GT | G25: 265 | H25: 45 | I25: ZR | J25: 18 | K25: 101 | L25: Y | M25: D | N25: B | O25: B | P25: 71 | Q25: 328.5 | R25: 215.1675
A26: 526782 | B26: 3188649811151 | C26: PN DUN 175/65R15 84 H FASTR | D26: 1756515HFASTR84 | E26: TOURISME ÉTÉ | F26: DU FAST.RESP | G26: 175 | H26: 65 | I26: R | J26: 15 | K26: 84 | L26: H | M26: C | N26: B | O26: B | P26: 70 | Q26: 98 | R26: 64.19
A27: 526861 | B27: 3188649811403 | C27: PN DUN 225/45R17 91 W ROF SP MAXX TT M | D27: 2254517WSPMAX91RU | E27: TOURISME ÉTÉ | F27: DU SP MAX TT | G27: 225 | H27: 45 | I27: R | J27: 17 | K27: 91 | L27: W | M27: D | N27: C | O27: B | P27: 70 | Q27: 164 | R27: 107.42
A28: 527142 | B28: 4038526318152 | C28: PN DUN 255/35R20 XL 97 Y QUATMAX RO1 | D28: 2553520YQUATMA97XL | E28: 4x4 | F28: DU QUAT.MAX MFS | G28: 255 | H28: 35 | I28: R | J28: 20 | K28: 97 | L28: Y | M28: D | N28: B | O28: B | P28: 72 | Q28: 304.5 | R28: 199.4475
A29: 527143 | B29: 3188649812707 | C29: PN DUN 255/40R19 XL 100 Y QUAT.MAX RO1 | D29: 2554019YQUATM100XL | E29: 4x4 | F29: DU QUAT.MAX MFS | G29: 255 | H29: 40 | I29: R | J29: 19 | K29: 100 | L29: Y | M29: D | N29: B | O29: B | P29: 73 | Q29: 288 | R29: 188.64
A30: 527624 | B30: 3188649815227 | C30: PN DUN 225/45 ZR 17 91 Y SP MAXX TT MO | D30: 2254517YSPMAX91MO | E30: TOURISME ÉTÉ | F30: DU SP MAX TT | G30: 225 | H30: 45 | I30: R | J30: 17 | K30: 91 | L30: Y | M30: C | N30: B | O30: B | P30: 71 | Q30: 145 | R30: 94.975
A31: 527721 | B31: 3188649815593 | C31: PN DUN 205/45R16 83 W SP MAXX RT MFS | D31: 2054516WSPMAXRT83 | E31: TOURISME ÉTÉ | F31: DU MAXRT | G31: 205 | H31: 45 | I31: R | J31: 16 | K31: 83 | L31: W | M31: D | N31: A | O31: B | P31: 70 | Q31: 153 | R31: 100.215
A32: 527722 | B32: 3188649815609 | C32: PN DUN 205/50R16 87 W SP MAXX RT | D32: 2055016WSPMAX87 | E32: TOURISME ÉTÉ | F32: DU MAXRT | G32: 205 | H32: 50 | I32: R | J32: 16 | K32: 87 | L32: W | M32: D | N32: B | O32: B | P32: 70 | Q32: 163.5 | R32: 107.0925
A33: 527744 | B33: 3188649815715 | C33: PN DUN 225/50R16 92 Y SP MAXX RT MFS | D33: 2255016YSPMAXRT92 | E33: TOURISME ÉTÉ | F33: DU MAXRT | G33: 225 | H33: 50 | I33: R | J33: 16 | K33: 92 | L33: Y | M33: D | N33: A | O33: B | P33: 70 | Q33: 199 | R33: 130.345
A34: 528118 | B34: 3188649817467 | C34: PN DUN 205/55R16 91 W SP MAXX RT AO | D34: 2055516WSPMAX91AO | E34: TOURISME ÉTÉ | F34: DU MAXRT | G34: 205 | H34: 55 | I34: R | J34: 16 | K34: 91 | L34: W | M34: C | N34: B | O34: B | P34: 69 | Q34: 141.5 | R34: 92.6825
A35: 528329 | B35: 3188649818549 | C35: PN DUN 185/55R14 80 H SPT BLURESP | D35: 1855514HSPTBL80 | E35: TOURISME ÉTÉ | F35: DU BLURES | G35: 185 | H35: 55 | I35: R | J35: 14 | K35: 80 | L35: H | M35: C | N35: A | O35: B | P35: 70 | Q35: 128.5 | R35: 84.1675
A36: 528427 | B36: 3188649819171 | C36: PN DUN 185/60R15 84 H BLURESP | D36: 1856015HBLURES84 | E36: TOURISME ÉTÉ | F36: DU BLURES | G36: 185 | H36: 60 | I36: R | J36: 15 | K36: 84 | L36: H | M36: B | N36: B | O36: B | P36: 70 | Q36: 102.5 | R36: 67.1375
A37: 528433 | B37: 3188649818679 | C37: PN DUN 195/55R15 85 V BLURESP | D37: 1955515VBLURES85 | E37: TOURISME ÉTÉ | F37: DU BLURES | G37: 195 | H37: 55 | I37: R | J37: 15 | K37: 85 | L37: V | M37: C | N37: A | O37: B | P37: 71 | Q37: 134 | R37: 87.77
A38: 528438 | B38: 3188649818723 | C38: PN DUN 195/65R15 XL 95 H BLURESP | D38: 1956515HBLURES95XL | E38: TOURISME ÉTÉ | F38: DU BLURES | G38: 195 | H38: 65 | I38: R | J38: 15 | K38: 95 | L38: H | M38: B | N38: A | O38: B | P38: 71 | Q38: 104 | R38: 68.12
A39: 528439 | B39: 3188649818730 | C39: PN DUN 205/50R16 87 V BLURESP | D39: 2055016VBLURES87 | E39: TOURISME ÉTÉ | F39: DU BLURES | G39: 205 | H39: 50 | I39: R | J39: 16 | K39: 87 | L39: V | M39: B | N39: A | O39: B | P39: 71 | Q39: 154.5 | R39: 101.1975
A40: 528440 | B40: 3188649818556 | C40: PN DUN 185/55R15 82 H BLURESP | D40: 1855515HBLURES82 | E40: TOURISME ÉTÉ | F40: DU BLURES | G40: 185 | H40: 55 | I40: R | J40: 15 | K40: 82 | L40: H | M40: C | N40: B | O40: B | P40: 70 | Q40: 119.5 | R40: 78.2725
A41: 528441 | B41: 3188649818563 | C41: PN DUN 185/55R15 82 V BLURESP | D41: 1855515VBLURES82 | E41: TOURISME ÉTÉ | F41: DU BLURES | G41: 185 | H41: 55 | I41: R | J41: 15 | K41: 82 | L41: V | M41: C | N41: B | O41: B | P41: 70 | Q41: 125 | R41: 81.875
A42: 528442 | B42: 3188649818570 | C42: PN DUN 185/60R14 82 H BLURESP | D42: 1856014HBLURES82 | E42: TOURISME ÉTÉ | F42: DU BLURES | G42: 185 | H42: 60 | I42: R | J42: 14 | K42: 82 | L42: H | M42: C | N42: B | O42: B | P42: 70 | Q42: 89 | R42: 58.295
A43: 528443 | B43: 3188649818587 | C43: PN DUN 185/60R15 XL 88 H BLURESP | D43: 1856015HBLURES88XL | E43: TOURISME ÉTÉ | F43: DU BLURES | G43: 185 | H43: 60 | I43: R | J43: 15 | K43: 88 | L43: H | M43: B | N43: A | O43: B | P43: 71 | Q43: 108 | R43: 70.74
A44: 528444 | B44: 3188649818594 | C44: PN DUN 185/65R14 86 H SPT BLURESP | D44: 1856514HSPTBL86 | E44: TOURISME ÉTÉ | F44: DU BLURES | G44: 185 | H44: 65 | I44: R | J44: 14 | K44: 86 | L44: H | M44: C | N44: B | O44: B | P44: 70 | Q44: 117 | R44: 76.635
A45: 528445 | B45: 3188649818600 | C45: PN DUN 185/65R15 88 H SPT BLURESP | D45: 1856515HSPTBL88 | E45: TOURISME ÉTÉ | F45: DU BLURES | G45: 185 | H45: 65 | I45: R | J45: 15 | K45: 88 | L45: H | M45: B | N45: A | O45: B | P45: 70 | Q45: 103 | R45: 67.465
A46: 528446 | B46: 3188649818617 | C46: PN DUN 195/45R16 XL 84 V SPT BLURESP | D46: 1954516VSPTBL84XL | E46: TOURISME ÉTÉ | F46: DU BLURES | G46: 195 | H46: 45 | I46: R | J46: 16 | K46: 84 | L46: V | M46: C | N46: B | O46: B | P46: 71 | Q46: 130 | R46: 85.15
A47: 528450 | B47: 3188649818648 | C47: PN DUN 195/50R16 84 V BLURESP | D47: 1955016VBLURES84 | E47: TOURISME ÉTÉ | F47: DU BLURES | G47: 195 | H47: 50 | I47: R | J47: 16 | K47: 84 | L47: V | M47: C | N47: A | O47: B | P47: 71 | Q47: 151 | R47: 98.905
A48: 528451 | B48: 3188649818655 | C48: PN DUN 195/50R16 XL 88 V BLURESP | D48: 1955016VBLURES88XL | E48: TOURISME ÉTÉ | F48: DU BLURES | G48: 195 | H48: 50 | I48: R | J48: 16 | K48: 88 | L48: V | M48: B | N48: A | O48: B | P48: 71 | Q48: 158.5 | R48: 103.8175
A49: 528452 | B49: 3188649818662 | C49: PN DUN 195/55R15 85 H BLURESP | D49: 1955515HBLURES85 | E49: TOURISME ÉTÉ | F49: DU BLURES | G49: 195 | H49: 55 | I49: R | J49: 15 | K49: 85 | L49: H | M49: C | N49: A | O49: B | P49: 71 | Q49: 129.5 | R49: 84.8225
A50: 528461 | B50: 3188649818754 | C50: PN DUN 205/55R16 91 H BLURESP | D50: 2055516HBLURES91 | E50: TOURISME ÉTÉ | F50: DU BLURES | G50: 205 | H50: 55 | I50: R | J50: 16 | K50: 91 | L50: H | M50: B | N50: A | O50: A | P50: 68 | Q50: 102 | R50: 66.81
A51: 528464 | B51: 3188649818778 | C51: PN DUN 205/60R15 91 H BLURESP | D51: 2056015HBLURES91 | E51: TOURISME ÉTÉ | F51: DU BLURES | G51: 205 | H51: 60 | I51: R | J51: 15 | K51: 91 | L51: H | M51: B | N51: A | O51: B | P51: 69 | Q51: 124.5 | R51: 81.5475
A52: 528465 | B52: 3188649818785 | C52: PN DUN 205/60R15 91 V BLURESP | D52: 2056015VBLURES91 | E52: TOURISME ÉTÉ | F52: DU BLURES | G52: 205 | H52: 60 | I52: R | J52: 15 | K52: 91 | L52: V | M52: B | N52: B | O52: B | P52: 71 | Q52: 131.5 | R52: 86.1325
A53: 528469 | B53: 3188649818846 | C53: PN DUN 205/65R15 94 H BLURESP | D53: 2056515HBLURES94 | E53: TOURISME ÉTÉ | F53: DU BLURES | G53: 205 | H53: 65 | I53: R | J53: 15 | K53: 94 | L53: H | M53: B | N53: B | O53: B | P53: 71 | Q53: 139.5 | R53: 91.3725
A54: 528473 | B54: 3188649818884 | C54: PN DUN 215/60R16 95 V BLURESP | D54: 2156016VBLURES95 | E54: TOURISME ÉTÉ | F54: DU BLURES | G54: 215 | H54: 60 | I54: R | J54: 16 | K54: 95 | L54: V | M54: C | N54: A | O54: B | P54: 71 | Q54: 174.5 | R54: 114.2975
A55: 528474 | B55: 3188649818891 | C55: PN DUN 215/60R16 XL 99 H BLURESP | D55: 2156016HBLURES99XL | E55: TOURISME ÉTÉ | F55: DU BLURES | G55: 215 | H55: 60 | I55: R | J55: 16 | K55: 99 | L55: H | M55: B | N55: A | O55: B | P55: 72 | Q55: 172.5 | R55: 112.9875
A56: 528475 | B56: 3188649818907 | C56: PN DUN 215/60R16 XL 99 V BLURESP | D56: 2156016VBLURES99XL | E56: TOURISME ÉTÉ | F56: DU BLURES | G56: 215 | H56: 60 | I56: R | J56: 16 | K56: 99 | L56: V | M56: B | N56: A | O56: B | P56: 72 | Q56: 179.5 | R56: 117.5725
A57: 528476 | B57: 3188649818914 | C57: PN DUN 215/65R15 96 H BLURESP | D57: 2156515HBLURES96 | E57: TOURISME ÉTÉ | F57: DU BLURES | G57: 215 | H57: 65 | I57: R | J57: 15 | K57: 96 | L57: H | M57: B | N57: A | O57: B | P57: 71 | Q57: 152.5 | R57: 99.8875
A58: 528478 | B58: 3188649818938 | C58: PN DUN 225/55R16 95 V BLURESP | D58: 2255516VBLURES95 | E58: TOURISME ÉTÉ | F58: DU BLURES | G58: 225 | H58: 55 | I58: R | J58: 16 | K58: 95 | L58: V | M58: C | N58: A | O58: B | P58: 71 | Q58: 180 | R58: 117.9
A59: 528520 | B59: 3188649819225 | C59: PN DUN 195/65R15 91 H BLURESP | D59: 1956515HBLURES91 | E59: TOURISME ÉTÉ | F59: DU BLURES | G59: 195 | H59: 65 | I59: R | J59: 15 | K59: 91 | L59: H | M59: B | N59: B | O59: B | P59: 71 | Q59: 90 | R59: 58.95
A60: 528521 | B60: 5452000655943 | C60: PN DUN 195/65R15 91 V BLURESP | D60: 1956515VBLURES91 | E60: TOURISME ÉTÉ | F60: DU BLURES | G60: 195 | H60: 65 | I60: R | J60: 15 | K60: 91 | L60: V | M60: B | N60: B | O60: B | P60: 71 | Q60: 92.5 | R60: 60.5875
A61: 528523 | B61: 3188649819256 | C61: PN DUN 205/55R16 91 V BLURESP | D61: 2055516VBLURES91 | E61: TOURISME ÉTÉ | F61: DU BLURES | G61: 205 | H61: 55 | I61: R | J61: 16 | K61: 91 | L61: V | M61: B | N61: A | O61: A | P61: 68 | Q61: 103.5 | R61: 67.7925
A62: 528524 | B62: 3188649819263 | C62: PN DUN 205/55R16 91 W BLURESP | D62: 2055516WBLURES91 | E62: TOURISME ÉTÉ | F62: DU BLURES | G62: 205 | H62: 55 | I62: R | J62: 16 | K62: 91 | L62: W | M62: B | N62: A | O62: A | P62: 68 | Q62: 111 | R62: 72.705
A63: 528526 | B63: 3188649819287 | C63: PN DUN 215/55R16 93 V BLURESP | D63: 2155516VBLURES93 | E63: TOURISME ÉTÉ | F63: DU BLURES | G63: 215 | H63: 55 | I63: R | J63: 16 | K63: 93 | L63: V | M63: B | N63: B | O63: B | P63: 71 | Q63: 163 | R63: 106.765
A64: 528550 | B64: 3188649819324 | C64: PN DUN 215/50R17 91 Y SP MAXX RT MFS | D64: 2155017YSPMAX91DU | E64: TOURISME ÉTÉ | F64: DU MAXRT | G64: 215 | H64: 50 | I64: R | J64: 17 | K64: 91 | L64: Y | M64: C | N64: A | O64: B | P64: 70 | Q64: 158 | R64: 103.49
A65: 528708 | B65: 3188649805457 | C65: PN DUN 275/30R20 XL 97Y ROF SP MAXX GT | D65: 2753020YSPMAXG97XLRU | E65: TOURISME ÉTÉ | F65: DU SP MAXX GT | G65: 275 | H65: 30 | I65: R | J65: 20 | K65: 97 | L65: Y | M65: D | N65: B | O65: A | P65: 68 | Q65: 477 | R65: 312.435
A66: 528716 | B66: 4038526308689 | C66: PN DUN 235/40R18 91 Y SP MAXX GT MO MF | D66: 2354018YSPMAXGT91 | E66: TOURISME ÉTÉ | F66: DU SP MAXX GT | G66: 235 | H66: 40 | I66: R | J66: 18 | K66: 91 | L66: Y | M66: D | N66: B | O66: B | P66: 69 | Q66: 198.5 | R66: 130.0175
A67: 528751 | B67: 4038526275110 | C67: PN DUN 255/40R20 XL 101 W SP MAXX GT M | D67: 2554020WSPMAX101XLDU | E67: 4x4 | F67: DU SP MAXX GT | G67: 255 | H67: 40 | I67: R | J67: 20 | K67: 101 | L67: W | M67: D | N67: C | O67: B | P67: 72 | Q67: 329.5 | R67: 215.8225
A68: 529101 | B68: 3188649821723 | C68: PN DUN 235/50R18 97 V ROF SP MAXX GT M | D68: 2355018VSPMAX97RU | E68: 4x4 | F68: DU SP MAXX GT | G68: 235 | H68: 50 | I68: R | J68: 18 | K68: 97 | L68: V | M68: C | N68: B | O68: B | P68: 71 | Q68: 275.5 | R68: 180.4525
A69: 529109 | B69: 3188649821822 | C69: PN DUN 205/40R18 XL 86 W ROF MAXX RT M | D69: 2054018WMAXXR86XLRU | E69: TOURISME ÉTÉ | F69: DU MAXRT | G69: 205 | H69: 40 | I69: R | J69: 18 | K69: 86 | L69: W | M69: C | N69: B | O69: A | P69: 68 | Q69: 318.5 | R69: 208.6175
A70: 529123 | B70: 3188649821785 | C70: PN DUN 205/45R17 88 W SP MAXX RT MFS* | D70: 2054517WSPMAX88 | E70: TOURISME ÉTÉ | F70: DU MAXRT | G70: 205 | H70: 45 | I70: R | J70: 17 | K70: 88 | L70: W | M70: B | N70: C | O70: A | P70: 68 | Q70: 197.5 | R70: 129.3625
A71: 529125 | B71: 3188649821808 | C71: PN DUN 205/45R17 XL 88 W ROF MAXX* RT | D71: 2054517WMAXX*88XLRU | E71: TOURISME ÉTÉ | F71: DU SP MAX | G71: 205 | H71: 45 | I71: R | J71: 17 | K71: 88 | L71: W | M71: C | N71: B | O71: A | P71: 68 | Q71: 226.5 | R71: 148.3575
A72: 529133 | B72: 3188649821839 | C72: PN DUN 285/35R21 XL 105 Y ROF MAXX GT | D72: 2853521YMAXXG105XLRU | E72: TOURISME ÉTÉ | F72: DU SP MAXX GT | G72: 285 | H72: 35 | I72: R | J72: 21 | K72: 105 | L72: Y | M72: C | N72: B | O72: A | P72: 70 | Q72: 607.5 | R72: 397.9125
A73: 529134 | B73: 3188649821846 | C73: PN DUN 325/30R21 XL 108 Y ROF MAXX GT | D73: 3253021YMAXXG108XLRU | E73: TOURISME ÉTÉ | F73: DU SP MAXX GT | G73: 325 | H73: 30 | I73: R | J73: 21 | K73: 108 | L73: Y | M73: C | N73: B | O73: A | P73: 72 | Q73: 734 | R73: 480.77
A74: 529136 | B74: 3188649821860 | C74: PN DUN 315/35R20 XL 110W ROF SP MAXX GT | D74: 3153520WSPMAX110XLRU | E74: 4x4 | F74: DU SP MAXX GT | G74: 315 | H74: 35 | I74: R | J74: 20 | K74: 110 | L74: W | M74: C | N74: B | O74: A | P74: 72 | Q74: 502.5 | R74: =Q74*(1-$D$3) -> 329.1375
A75: 529137 | B75: 3188649821877 | C75: PN DUN 275/40R20 XL 106W ROF SP MAXX GT | D75: 2754020WSPMAX106XLRU | E75: 4x4 | F75: DU SP MAXX GT | G75: 275 | H75: 40 | I75: R | J75: 20 | K75: 106 | L75: W | M75: C | N75: B | O75: B | P75: 71 | Q75: 376 | R75: 246.28
A76: 529156 | B76: 3188649822010 | C76: PN DUN 175/65R15 84 H BLURESP* | D76: 1756515HBLURES84 | E76: TOURISME ÉTÉ | F76: DU BLURES | G76: 175 | H76: 65 | I76: R | J76: 15 | K76: 84 | L76: H | M76: C | N76: B | O76: B | P76: 69 | Q76: 136.5 | R76: 89.4075
A77: 529238 | B77: 5452000421333 | C77: PN DUN 245/45R19 XL 102 Y MAXX MO RT M | D77: 2454519YMAXXM102XL | E77: TOURISME ÉTÉ | F77: DU MAXRT | G77: 245 | H77: 45 | I77: R | J77: 19 | K77: 102 | L77: Y | M77: C | N77: A | O77: B | P77: 70 | Q77: 310 | R77: 203.05
A78: 529399 | B78: 5452000425157 | C78: PN DUN 235/40R19 XL 96 Y SP MAXX RT MF | D78: 2354019YSPMAX96XL | E78: TOURISME ÉTÉ | F78: DU MAXRT | G78: 235 | H78: 40 | I78: ZR | J78: 19 | K78: 96 | L78: Y | M78: C | N78: A | O78: B | P78: 71 | Q78: 247 | R78: 161.785
A79: 529442 | B79: 5452000427670 | C79: PN DUN 205/55R16 91 V SPT BLURESP LRR | D79: 2055516VSPTBL91DU | E79: TOURISME ÉTÉ | F79: DU BLURES | G79: 205 | H79: 55 | I79: R | J79: 16 | K79: 91 | L79: V | M79: B | N79: B | O79: B | P79: 70 | Q79: 103.5 | R79: 67.7925
A80: 529567 | B80: 5452000429773 | C80: PN DUN 225/45R17 XL 94 W SPT BLURESP M | D80: 2254517WSPTBL94XL | E80: TOURISME ÉTÉ | F80: DU BLURES | G80: 225 | H80: 45 | I80: R | J80: 17 | K80: 94 | L80: W | M80: B | N80: A | O80: B | P80: 72 | Q80: 124.5 | R80: 81.5475
A81: 529568 | B81: 5452000429780 | C81: PN DUN 225/50R17 XL 98 W SPT BLURESP | D81: 2255017WSPTBL98XL | E81: TOURISME ÉTÉ | F81: DU BLURES | G81: 225 | H81: 50 | I81: R | J81: 17 | K81: 98 | L81: W | M81: B | N81: A | O81: B | P81: 71 | Q81: 170 | R81: 111.35
A82: 529726 | B82: 5452000432094 | C82: PN DUN 215/55R16 XL 97 Y MAXX RT MFS | D82: 2155516YMAXXR97XL | E82: TOURISME ÉTÉ | F82: DU MAXRT | G82: 215 | H82: 55 | I82: R | J82: 16 | K82: 97 | L82: Y | M82: C | N82: B | O82: B | P82: 70 | Q82: 173 | R82: 113.315
A83: 529728 | B83: 5452000432117 | C83: PN DUN 225/55R16 95 Y MAXX RT MFS | D83: 2255516YMAXXR95 | E83: TOURISME ÉTÉ | F83: DU MAXRT | G83: 225 | H83: 55 | I83: R | J83: 16 | K83: 95 | L83: Y | M83: C | N83: A | O83: B | P83: 70 | Q83: 182 | R83: 119.21
A84: 529966 | B84: 5452000436740 | C84: PN DUN 275/40R19 101 Y MAXX MO RT MB M | D84: 2754019YMAXXM101 | E84: TOURISME ÉTÉ | F84: DU MAXRT | G84: 275 | H84: 40 | I84: R | J84: 19 | K84: 101 | L84: Y | M84: C | N84: C | O84: B | P84: 72 | Q84: 317 | R84: 207.635
A85: 530099 | B85: 5452000437716 | C85: PN DUN 205/55R16 91 Y MAXX RT MFS | D85: 2055516YMAXXR91 | E85: TOURISME ÉTÉ | F85: DU MAXRT | G85: 205 | H85: 55 | I85: R | J85: 16 | K85: 91 | L85: Y | M85: C | N85: B | O85: B | P85: 70 | Q85: 113 | R85: 74.015
A86: 531394 | B86: 5452000457639 | C86: PN DUN 215/35R18 XL 84 Y SP MAXX MFS | D86: 2153518YSPMAX84XL | E86: TOURISME ÉTÉ | F86: DU SP MAX | G86: 215 | H86: 35 | I86: ZR | J86: 18 | K86: 84 | L86: Y | M86: D | N86: C | O86: B | P86: 70 | Q86: 174.5 | R86: 114.2975
A87: 531638 | B87: 5452000463531 | C87: PN DUN 225/40R18 XL 92 Y MAXX RT MO MF | D87: 2254018YMAXXR92XL2 | E87: TOURISME ÉTÉ | F87: DU MAXRT | G87: 225 | H87: 40 | I87: R | J87: 18 | K87: 92 | L87: Y | M87: C | N87: A | O87: B | P87: 70 | Q87: 155 | R87: 101.525
A88: 531850 | B88: 5452000468284 | C88: PN DUN 225/45R18 XL 95 Y SPT MAXX RT J | D88: 2254518YSPTMA95XL | E88: TOURISME ÉTÉ | F88: DU MAXRT | G88: 225 | H88: 45 | I88: R | J88: 18 | K88: 95 | L88: Y | M88: B | N88: A | O88: B | P88: 70 | Q88: 236 | R88: 154.58
A89: 531852 | B89: 5452000468291 | C89: PN DUN 225/40R19 XL 93 Y SP MAXX RT J | D89: 2254019YSPMAX93XL | E89: TOURISME ÉTÉ | F89: DU MAXRT | G89: 225 | H89: 40 | I89: R | J89: 19 | K89: 93 | L89: Y | M89: C | N89: A | O89: B | P89: 70 | Q89: 285.5 | R89: 187.0025
A90: 531854 | B90: 5452000468314 | C90: PN DUN 225/50R17 XL 98 Y SPT MAXX RT J | D90: 2255017YSPTMA98XL | E90: TOURISME ÉTÉ | F90: DU MAXRT | G90: 225 | H90: 50 | I90: R | J90: 17 | K90: 98 | L90: Y | M90: B | N90: A | O90: B | P90: 70 | Q90: 214.5 | R90: 140.4975
A91: 531865 | B91: 5452000468529 | C91: PN DUN 225/45R17 91 Y SP MAX RT AO MFS | D91: 2254517YSPMAX91D | E91: TOURISME ÉTÉ | F91: DU MAXRT | G91: 225 | H91: 45 | I91: R | J91: 17 | K91: 91 | L91: Y | M91: D | N91: A | O91: B | P91: 69 | Q91: 145 | R91: 94.975
A92: 532007 | B92: 5452000471048 | C92: PN DUN 255/60R18 108Y MAXX RT2 SUV | D92: 2556018YMAXRT2S108 | E92: 4x4 | F92: DU MAXX RT2 SUV | G92: 255 | H92: 60 | I92: R | J92: 18 | K92: 108 | L92: Y | M92: D | N92: A | O92: B | P92: 70 | Q92: 187.5 | R92: 122.8125
A93: 532008 | B93: 5452000471055 | C93: PN DUN 295/35R21 XL 107Y SP MAXX RT2 SUV | D93: 2953521YMAXRT2S107 | E93: 4x4 | F93: DU SPORT MAXX RT 2 | G93: 295 | H93: 35 | I93: R | J93: 21 | K93: 107 | L93: Y | M93: C | N93: A | O93: B | P93: 73 | Q93: 317.5 | R93: 207.9625
A94: 532009 | B94: 5452000471062 | C94: PN DUN 275/45R20 XL 110Y SP MAXX RT2 SUV | D94: 2754520YMAXRT2S110 | E94: 4x4 | F94: DU SPORT MAXX RT 2 | G94: 275 | H94: 45 | I94: R | J94: 20 | K94: 110 | L94: Y | M94: C | N94: A | O94: B | P94: 71 | Q94: 303 | R94: 198.465
A95: 532010 | B95: 5452000471079 | C95: PN DUN 275/45R19 XL 108Y SP MAXX RT2 SUV | D95: 2754519YMAXRT2S108 | E95: 4x4 | F95: DU SPORT MAXX RT 2 | G95: 275 | H95: 45 | I95: R | J95: 19 | K95: 108 | L95: Y | M95: C | N95: A | O95: B | P95: 72 | Q95: 246.5 | R95: 161.4575
A96: 532011 | B96: 5452000471086 | C96: PN DUN 275/40R20 XL 106Y SP MAXX RT2 SUV | D96: 2754020YMAXRT2S106 | E96: 4x4 | F96: DU SPORT MAXX RT 2 | G96: 275 | H96: 40 | I96: R | J96: 20 | K96: 106 | L96: Y | M96: C | N96: A | O96: B | P96: 71 | Q96: 270.5 | R96: 177.1775
A97: 532012 | B97: 5452000471093 | C97: PN DUN 255/55R18 XL 109Y MAXX RT2 SUV | D97: 2555518YMRT2S109MFS | E97: 4x4 | F97: DU SPORT MAXX RT 2 | G97: 255 | H97: 55 | I97: R | J97: 18 | K97: 109 | L97: Y | M97: C | N97: A | O97: B | P97: 71 | Q97: 193 | R97: 126.415
A98: 532064 | B98: 5452000471116 | C98: PN DUN 235/60R18 XL 107W MAXX RT2 SUV | D98: 2356018WMRT2S107MFS | E98: 4x4 | F98: DU SPORT MAXX RT 2 | G98: 235 | H98: 60 | I98: R | J98: 18 | K98: 107 | L98: W | M98: D | N98: A | O98: B | P98: 71 | Q98: 190.5 | R98: 124.7775
A99: 532066 | B99: 5452000471635 | C99: PN DUN 235/50R18 97V MAXX RT2 SUV MFS | D99: 2355018VMAXRT2S97MFS | E99: 4x4 | F99: DU SPORT MAXX RT 2 | G99: 235 | H99: 50 | I99: R | J99: 18 | K99: 97 | L99: V | M99: C | N99: B | O99: B | P99: 71 | Q99: 195 | R99: 127.725
A100: 532241 | B100: 5452000477606 | C100: PN DUN 215/65R16 98 S ST20 | D100: 2156516SST2098 | E100: 4x4 | F100: DU GTREK ST20 | G100: 215 | H100: 65 | I100: R | J100: 16 | K100: 98 | L100: S | M100: D | N100: D | O100: B | P100: 71 | Q100: 156.5 | R100: 102.5075
A101: 532242 | B101: 5452000477613 | C101: PN DUN 215/65R16 98 H ST20 | D101: 2156516HST2098 | E101: 4x4 | F101: DU GTREK ST20 | G101: 215 | H101: 65 | I101: R | J101: 16 | K101: 98 | L101: H | M101: D | N101: D | O101: B | P101: 70 | Q101: 168 | R101: 110.04
A102: 532428 | B102: 5452000488213 | C102: PN DUN 215/40R17 XL 87 W SPT MAXX RT A | D102: 2154017WSPTMA87XL | E102: TOURISME ÉTÉ | F102: DU MAXRT | G102: 215 | H102: 40 | I102: R | J102: 17 | K102: 87 | L102: W | M102: C | N102: A | O102: B | P102: 70 | Q102: 211.5 | R102: 138.5325
A103: 532433 | B103: 5452000488268 | C103: PN DUN 225/55R17 97Y SP MAXX RT2*MO | D103: 2255517YRT2MA97 | E103: TOURISME ÉTÉ | F103: DU SPORT MAXX RT 2 | G103: 225 | H103: 55 | I103: R | J103: 17 | K103: 97 | L103: Y | M103: B | N103: B | O103: B | P103: 70 | Q103: 209.5 | R103: 137.2225
A104: 532437 | B104: 5452000488367 | C104: PN DUN 235/55R17 99 V SPT MAXX RT AO | D104: 2355517VSPTMA99 | E104: TOURISME ÉTÉ | F104: DU MAXRT | G104: 235 | H104: 55 | I104: R | J104: 17 | K104: 99 | L104: V | M104: C | N104: A | O104: B | P104: 69 | Q104: 227.5 | R104: 149.0125
A105: 532575 | B105: 5452000492814 | C105: PN DUN 235/65R17 XL 108V MAXX RT2 SUV | D105: 2356517VMRT2S108MFS | E105: 4x4 | F105: DU SPORT MAXX RT 2 | G105: 235 | H105: 65 | I105: R | J105: 17 | K105: 108 | L105: V | M105: C | N105: A | O105: B | P105: 71 | Q105: 170 | R105: 111.35
A106: 532578 | B106: 5452000495648 | C106: PN DUN 315/35R20 XL 110Y MAXX RT2 SUV | D106: 3153520YMRT2S110MFS | E106: 4x4 | F106: DU SPORT MAXX RT 2 | G106: 315 | H106: 35 | I106: R | J106: 20 | K106: 110 | L106: Y | M106: C | N106: A | O106: B | P106: 73 | Q106: 375.5 | R106: 245.9525
A107: 532579 | B107: 5452000495655 | C107: PN DUN 285/45R19 XL 111W SP MAXX RT2 SUV | D107: 2854519WMAXRT2S111FP | E107: 4x4 | F107: DU SPORT MAXX RT 2 | G107: 285 | H107: 45 | I107: R | J107: 19 | K107: 111 | L107: W | M107: C | N107: A | O107: A | P107: 71 | Q107: 250.5 | R107: 164.0775
A108: 532582 | B108: 5452000495679 | C108: PN DUN 255/55R19 XL 111W SP MAXX RT2 SUV | D108: 2555519WMAXRT2S111FP | E108: 4x4 | F108: DU SPORT MAXX RT 2 | G108: 255 | H108: 55 | I108: R | J108: 19 | K108: 111 | L108: W | M108: C | N108: A | O108: A | P108: 70 | Q108: 217 | R108: 142.135
A109: 532644 | B109: 5452000496393 | C109: PN DUN 215/50R17 XL 95Y MAXX RT2 | D109: 2155017YMAXRT295 | E109: TOURISME ÉTÉ | F109: DU SPORT MAXX RT 2 | G109: 215 | H109: 50 | I109: ZR | J109: 17 | K109: 95 | L109: Y | M109: D | N109: A | O109: B | P109: 72 | Q109: 162.5 | R109: 106.4375
A110: 532645 | B110: 5452000496409 | C110: PN DUN 215/55R17 94Y SP MAXX RT 2 FP | D110: 2155517YSPMAX94DU | E110: TOURISME ÉTÉ | F110: DU SPORT MAXX RT 2 | G110: 215 | H110: 55 | I110: ZR | J110: 17 | K110: 94 | L110: Y | M110: C | N110: A | O110: B | P110: 71 | Q110: 175 | R110: 114.625
A111: 532646 | B111: 5452000496416 | C111: PN DUN 235/45R17 XL 97Y SP MAXX RT 2 FP | D111: 2354517YSPMAX97XLDU | E111: TOURISME ÉTÉ | F111: DU SPORT MAXX RT 2 | G111: 235 | H111: 45 | I111: ZR | J111: 17 | K111: 97 | L111: Y | M111: C | N111: A | O111: B | P111: 71 | Q111: 144.5 | R111: 94.6475
A112: 532650 | B112: 5452000497055 | C112: PN DUN 245/35R19 XL 93 Y RT2 MAXX MFS | D112: 2453519YSPMAX93XLDU2 | E112: TOURISME ÉTÉ | F112: DU SPORT MAXX RT 2 | G112: 245 | H112: 35 | I112: ZR | J112: 19 | K112: 93 | L112: Y | M112: C | N112: A | O112: B | P112: 70 | Q112: 268.5 | R112: 175.8675
A113: 532651 | B113: 5452000497062 | C113: PN DUN 245/40R17 91Y MAXX RT2 SL | D113: 2454017YMAXRT2SL91 | E113: TOURISME ÉTÉ | F113: DU SPORT MAXX RT 2 | G113: 245 | H113: 40 | I113: ZR | J113: 17 | K113: 91 | L113: Y | M113: D | N113: A | O113: B | P113: 71 | Q113: 177.5 | R113: 116.2625
A114: 532652 | B114: 5452000497079 | C114: PN DUN 245/40R17 XL 95Y MAXX RT2 | D114: 2454017YMAXRT295 | E114: TOURISME ÉTÉ | F114: DU SPORT MAXX RT 2 | G114: 245 | H114: 40 | I114: ZR | J114: 17 | K114: 95 | L114: Y | M114: D | N114: A | O114: B | P114: 72 | Q114: 180.5 | R114: 118.2275
A115: 532668 | B115: 5452000496720 | C115: PN DUN 205/45R17 XL 88W SP MAXX RT 2 FP | D115: 2054517WSPMAX88XLRUD | E115: TOURISME ÉTÉ | F115: DU SPORT MAXX RT 2 | G115: 205 | H115: 45 | I115: R | J115: 17 | K115: 88 | L115: W | M115: C | N115: A | O115: B | P115: 71 | Q115: 162.5 | R115: 106.4375
A116: 532670 | B116: 5452000496744 | C116: PN DUN 215/45R17 XL 91Y SP MAXX RT 2 FP | D116: 2154517YSPMAX91XLDU | E116: TOURISME ÉTÉ | F116: DU SPORT MAXX RT 2 | G116: 215 | H116: 45 | I116: ZR | J116: 17 | K116: 91 | L116: Y | M116: C | N116: A | O116: B | P116: 72 | Q116: 141.5 | R116: 92.6825
A117: 532671 | B117: 5452000496751 | C117: PN DUN 205/50R17 XL 93 Y SP MAXX RT2 M | D117: 2055017YSPMAX93XLDU | E117: TOURISME ÉTÉ | F117: DU SPORT MAXX RT 2 | G117: 205 | H117: 50 | I117: ZR | J117: 17 | K117: 93 | L117: Y | M117: C | N117: A | O117: B | P117: 72 | Q117: 160 | R117: 104.8
A118: 532672 | B118: 5452000496768 | C118: PN DUN 215/55R17 XL 98W SP MAXX RT 2 FP | D118: 2155517WSPMAX98XLRUD | E118: TOURISME ÉTÉ | F118: DU SPORT MAXX RT 2 | G118: 215 | H118: 55 | I118: R | J118: 17 | K118: 98 | L118: W | M118: C | N118: A | O118: B | P118: 70 | Q118: 180.5 | R118: 118.2275
A119: 532673 | B119: 5452000496775 | C119: PN DUN 225/35R19 XL 88Y SP MAXX RT 2 FP | D119: 2253519YSPMAX88XLDU | E119: TOURISME ÉTÉ | F119: DU SPORT MAXX RT 2 | G119: 225 | H119: 35 | I119: ZR | J119: 19 | K119: 88 | L119: Y | M119: C | N119: A | O119: B | P119: 72 | Q119: 216 | R119: 141.48
A120: 532674 | B120: 5452000496782 | C120: PN DUN 225/40R18 XL 92Y SP MAXX RT2 | D120: 2254018YRT2MA92XL | E120: TOURISME ÉTÉ | F120: DU SPORT MAXX RT 2 | G120: 225 | H120: 40 | I120: ZR | J120: 18 | K120: 92 | L120: Y | M120: C | N120: A | O120: B | P120: 71 | Q120: 136.5 | R120: 89.4075
A121: 532678 | B121: 5452000496928 | C121: PN DUN 225/45R18 XL 95Y SP MAXX RT2 | D121: 2254518YRT2MA95XL | E121: TOURISME ÉTÉ | F121: DU SPORT MAXX RT 2 | G121: 225 | H121: 45 | I121: ZR | J121: 18 | K121: 95 | L121: Y | M121: C | N121: B | O121: B | P121: 72 | Q121: 200 | R121: 131
A122: 532679 | B122: 5452000496935 | C122: PN DUN 225/50R17 94Y SP MAXX RT2 | D122: 2255017YRT2MA94 | E122: TOURISME ÉTÉ | F122: DU SPORT MAXX RT 2 | G122: 225 | H122: 50 | I122: ZR | J122: 17 | K122: 94 | L122: Y | M122: C | N122: B | O122: B | P122: 71 | Q122: 167.5 | R122: 109.7125
A123: 532680 | B123: 5452000496942 | C123: PN DUN 225/50R17 XL 98Y SP MAXX RT2 | D123: 2255017YRT2MA98XL | E123: TOURISME ÉTÉ | F123: DU SPORT MAXX RT 2 | G123: 225 | H123: 50 | I123: ZR | J123: 17 | K123: 98 | L123: Y | M123: C | N123: B | O123: B | P123: 72 | Q123: 170 | R123: 111.35
A124: 532681 | B124: 5452000496959 | C124: PN DUN 225/55R17 XL 101Y SP MAXX RT2 | D124: 2255517YRT2MA101XL | E124: TOURISME ÉTÉ | F124: DU SPORT MAXX RT 2 | G124: 225 | H124: 55 | I124: ZR | J124: 17 | K124: 101 | L124: Y | M124: C | N124: A | O124: B | P124: 72 | Q124: 176 | R124: 115.28
A125: 532682 | B125: 5452000496966 | C125: PN DUN 225/55R17 97 Y RT2 MAXX MFS | D125: 2255517YSPMAX97DU3 | E125: TOURISME ÉTÉ | F125: DU SPORT MAXX RT 2 | G125: 225 | H125: 55 | I125: ZR | J125: 17 | K125: 97 | L125: Y | M125: C | N125: A | O125: B | P125: 71 | Q125: 169 | R125: 110.695
A126: 532684 | B126: 5452000496980 | C126: PN DUN 235/35R19 XL 91 Y RT2 MAXX MFS | D126: 2353519YSPMAX91XLDU2 | E126: TOURISME ÉTÉ | F126: DU SPORT MAXX RT 2 | G126: 235 | H126: 35 | I126: ZR | J126: 19 | K126: 91 | L126: Y | M126: C | N126: A | O126: B | P126: 72 | Q126: 218 | R126: 142.79
A127: 532694 | B127: 5452000497093 | C127: PN DUN 245/40R18 XL 97 Y RT2 MAXX MFS | D127: 2454018YSPMAX97XLDU | E127: TOURISME ÉTÉ | F127: DU SPORT MAXX RT 2 | G127: 245 | H127: 40 | I127: ZR | J127: 18 | K127: 97 | L127: Y | M127: C | N127: B | O127: B | P127: 71 | Q127: 179 | R127: 117.245
A128: 532695 | B128: 5452000497109 | C128: PN DUN 245/40R19 XL 98 Y RT2 MAXX MFS | D128: 2454019YSPMAX98XLDU2 | E128: TOURISME ÉTÉ | F128: DU SPORT MAXX RT 2 | G128: 245 | H128: 40 | I128: ZR | J128: 19 | K128: 98 | L128: Y | M128: C | N128: B | O128: B | P128: 72 | Q128: 232.5 | R128: 152.2875
A129: 532696 | B129: 5452000497116 | C129: PN DUN 245/45R17 95 Y SP MAXX RT2 MFS | D129: 2454517YSPMAX952 | E129: TOURISME ÉTÉ | F129: DU SPORT MAXX RT 2 | G129: 245 | H129: 45 | I129: ZR | J129: 17 | K129: 95 | L129: Y | M129: C | N129: A | O129: B | P129: 71 | Q129: 193.5 | R129: 126.7425
A130: 532697 | B130: 5452000497123 | C130: PN DUN 245/45R17 XL 99Y SP MAXX RT 2 FP | D130: 2454517YSPMAX99XLDU | E130: TOURISME ÉTÉ | F130: DU SPORT MAXX RT 2 | G130: 245 | H130: 45 | I130: ZR | J130: 17 | K130: 99 | L130: Y | M130: C | N130: A | O130: B | P130: 72 | Q130: 196 | R130: 128.38
A131: 532699 | B131: 5452000497147 | C131: PN DUN 245/45R19 XL 102 Y SP MAXX RT2 | D131: 2454519YSPMAX102XLDU | E131: TOURISME ÉTÉ | F131: DU SPORT MAXX RT 2 | G131: 245 | H131: 45 | I131: ZR | J131: 19 | K131: 102 | L131: Y | M131: C | N131: A | O131: B | P131: 72 | Q131: 274 | R131: 179.47
A132: 532701 | B132: 5452000497161 | C132: PN DUN 255/30R19 XL 91 Y SP MAXX RT2 M | D132: 2553019YSPMAX91XLDU | E132: TOURISME ÉTÉ | F132: DU SPORT MAXX RT 2 | G132: 255 | H132: 30 | I132: ZR | J132: 19 | K132: 91 | L132: Y | M132: C | N132: A | O132: B | P132: 72 | Q132: 271.5 | R132: 177.8325
A133: 532702 | B133: 5452000497178 | C133: PN DUN 255/30R20 XL 92 Y RT2 MAXX MFS | D133: 2553020YSPMAX92XLDU | E133: TOURISME ÉTÉ | F133: DU SPORT MAXX RT 2 | G133: 255 | H133: 30 | I133: ZR | J133: 20 | K133: 92 | L133: Y | M133: D | N133: A | O133: B | P133: 72 | Q133: 316 | R133: 206.98
A134: 532703 | B134: 5452000497185 | C134: PN DUN 255/35R18 XL 94Y SP MAXX RT 2 FP | D134: 2553518YSPMAX94XLDU | E134: TOURISME ÉTÉ | F134: DU SPORT MAXX RT 2 | G134: 255 | H134: 35 | I134: ZR | J134: 18 | K134: 94 | L134: Y | M134: C | N134: A | O134: B | P134: 72 | Q134: 200.5 | R134: 131.3275
A135: 532704 | B135: 5452000497192 | C135: PN DUN 255/35R19 XL 96 Y RT2 MAXX MFS | D135: 2553519YSPMAX96XLDU2 | E135: TOURISME ÉTÉ | F135: DU SPORT MAXX RT 2 | G135: 255 | H135: 35 | I135: ZR | J135: 19 | K135: 96 | L135: Y | M135: C | N135: B | O135: B | P135: 73 | Q135: 241.5 | R135: 158.1825
A136: 532705 | B136: 5452000497208 | C136: PN DUN 255/35R20 XL 97Y SP MAXX RT 2 FP | D136: 2553520YSPMAX97XL2 | E136: TOURISME ÉTÉ | F136: DU SPORT MAXX RT 2 | G136: 255 | H136: 35 | I136: ZR | J136: 20 | K136: 97 | L136: Y | M136: C | N136: A | O136: B | P136: 72 | Q136: 266.5 | R136: 174.5575
A137: 532706 | B137: 5452000497215 | C137: PN DUN 255/40R19 XL 100Y SP MAXX RT 2 FP | D137: 2554019YSPMAX100XLDU | E137: TOURISME ÉTÉ | F137: DU SPORT MAXX RT 2 | G137: 255 | H137: 40 | I137: ZR | J137: 19 | K137: 100 | L137: Y | M137: C | N137: A | O137: B | P137: 72 | Q137: 252 | R137: 165.06
A138: 532707 | B138: 5452000497321 | C138: PN DUN 255/45R18 XL 103Y SP MAXX RT 2 FP | D138: 2554518YSPMAX103XLDU | E138: TOURISME ÉTÉ | F138: DU SPORT MAXX RT 2 | G138: 255 | H138: 45 | I138: ZR | J138: 18 | K138: 103 | L138: Y | M138: C | N138: A | O138: B | P138: 72 | Q138: 247.5 | R138: =Q138*(1-$D$3) -> 162.1125
A139: 532708 | B139: 5452000497338 | C139: PN DUN 255/45R18 99Y SP MAXX RT 2 FP | D139: 2554518YSPMAX99DU | E139: TOURISME ÉTÉ | F139: DU SPORT MAXX RT 2 | G139: 255 | H139: 45 | I139: ZR | J139: 18 | K139: 99 | L139: Y | M139: C | N139: A | O139: B | P139: 71 | Q139: 229.5 | R139: 150.3225
A140: 532709 | B140: 5452000497345 | C140: PN DUN 265/35R18 XL 97 Y RT2 MAXX MFS | D140: 2653518YSPMAX97XLDU | E140: TOURISME ÉTÉ | F140: DU SPORT MAXX RT 2 | G140: 265 | H140: 35 | I140: ZR | J140: 18 | K140: 97 | L140: Y | M140: C | N140: A | O140: B | P140: 72 | Q140: 236.5 | R140: 154.9075
A141: 532710 | B141: 5452000497352 | C141: PN DUN 275/35R18 95 Y RT2 MAXX MFS | D141: 2753518YSPMAX95 | E141: TOURISME ÉTÉ | F141: DU SPORT MAXX RT 2 | G141: 275 | H141: 35 | I141: ZR | J141: 18 | K141: 95 | L141: Y | M141: C | N141: A | O141: B | P141: 71 | Q141: 217.5 | R141: 142.4625
A142: 532712 | B142: 5452000497376 | C142: PN DUN 285/30R19 XL 98Y MAXX RT2 | D142: 2853019YMAXRT298 | E142: TOURISME ÉTÉ | F142: DU SPORT MAXX RT 2 | G142: 285 | H142: 30 | I142: ZR | J142: 19 | K142: 98 | L142: Y | M142: D | N142: A | O142: B | P142: 73 | Q142: 324.5 | R142: 212.5475
A143: 532713 | B143: 5452000497383 | C143: PN DUN 285/30R20 XL 99Y MAXX RT2 | D143: 2853020YMAXRT299 | E143: TOURISME ÉTÉ | F143: DU SPORT MAXX RT 2 | G143: 285 | H143: 30 | I143: ZR | J143: 20 | K143: 99 | L143: Y | M143: C | N143: A | O143: B | P143: 73 | Q143: 343 | R143: 224.665
A144: 532812 | B144: 5452000533852 | C144: PN DUN 185/60R15 84 H BLURESP INMETRO | D144: 1856015HBLURES84DU | E144: TOURISME ÉTÉ | F144: DU BLURES | G144: 185 | H144: 60 | I144: R | J144: 15 | K144: 84 | L144: H | M144: B | N144: B | O144: B | P144: 70 | Q144: 102.5 | R144: 67.1375
A145: 532900 | B145: 5452000534583 | C145: PN DUN 275/35 ZR 21 XL 103 Y SP MAXX GT | D145: 2753521YSPMAX103XL | E145: TOURISME ÉTÉ | F145: DU SP MAXX GT | G145: 275 | H145: 35 | I145: ZR | J145: 21 | K145: 103 | L145: Y | M145: D | N145: B | O145: B | P145: 73 | Q145: 474.5 | R145: 310.7975
A146: 532936 | B146: 5452000535047 | C146: PN DUN 285/45R20 XL 112Y SP MAXX RT2 SUV | D146: 2854520YMAXRT2S112 | E146: 4x4 | F146: DU SPORT MAXX RT 2 | G146: 285 | H146: 45 | I146: R | J146: 20 | K146: 112 | L146: Y | M146: C | N146: A | O146: B | P146: 73 | Q146: 312 | R146: 204.36
A147: 532941 | B147: 5452000536327 | C147: PN DUN 265/65R17 112S GRANDTREK AT 20 | D147: 2656517SGAT20112 | E147: 4x4 | F147: DU AT20 | G147: 265 | H147: 65 | I147: R | J147: 17 | K147: 112 | L147: S | M147: C | N147: D | O147: B | P147: 72 | Q147: 188 | R147: 123.14
A148: 533047 | B148: 5452000536655 | C148: PN DUN 225/45R17 XL 94 W SP MAX RT2* M | D148: 2254517WRT2MA94XL | E148: TOURISME ÉTÉ | F148: DU MAXRT | G148: 225 | H148: 45 | I148: R | J148: 17 | K148: 94 | L148: W | M148: C | N148: A | O148: B | P148: 72 | Q148: 145 | R148: 94.975
A149: 533050 | B149: 5452000536686 | C149: PN DUN 225/45R19 92 W ROF RT2 MAXX MFS | D149: 2254519WRT2MA92RU | E149: TOURISME ÉTÉ | F149: DU MAXRT | G149: 225 | H149: 45 | I149: R | J149: 19 | K149: 92 | L149: W | M149: C | N149: A | O149: B | P149: 71 | Q149: 327.5 | R149: 214.5125
A150: 533158 | B150: 5452000538062 | C150: PN DUN 265/30R21 XL 96 Y SP MAXX RT RO | D150: 2653021YSPMAX96XL | E150: TOURISME ÉTÉ | F150: DU MAXRT | G150: 265 | H150: 30 | I150: R | J150: 21 | K150: 96 | L150: Y | M150: D | N150: A | O150: B | P150: 73 | Q150: 424.5 | R150: 278.0475
A151: 533159 | B151: 5452000538079 | C151: PN DUN 255/35R19 XL 96 Y SP MAXX RT J | D151: 2553519YSPMAX96XLD | E151: TOURISME ÉTÉ | F151: DU MAXRT | G151: 255 | H151: 35 | I151: R | J151: 19 | K151: 96 | L151: Y | M151: C | N151: A | O151: B | P151: 71 | Q151: 262.5 | R151: 171.9375
A152: 533160 | B152: 5452000538086 | C152: PN DUN 265/40 ZR 21 XL 105 Y SPT MAXX GT | D152: 2654021YSPTMA105XL | E152: TOURISME ÉTÉ | F152: DU SP MAXX GT | G152: 265 | H152: 40 | I152: ZR | J152: 21 | K152: 105 | L152: Y | M152: D | N152: B | O152: B | P152: 73 | Q152: 449 | R152: 294.095
A153: 533467 | B153: 5452000543332 | C153: PN DUN 245/35 ZR 19 XL 93 Y SP MAXX RT M | D153: 2453519YSPMAX93XLDU | E153: TOURISME ÉTÉ | F153: DU MAXRT | G153: 245 | H153: 35 | I153: ZR | J153: 19 | K153: 93 | L153: Y | M153: D | N153: A | O153: B | P153: 71 | Q153: 310.5 | R153: 203.3775
A154: 533468 | B154: 5452000543349 | C154: PN DUN 265/35 ZR 19 XL 98 Y SP MAXX RT M | D154: 2653519YSPMAX98XLDU | E154: TOURISME ÉTÉ | F154: DU MAXRT | G154: 265 | H154: 35 | I154: ZR | J154: 19 | K154: 98 | L154: Y | M154: D | N154: A | O154: B | P154: 72 | Q154: 358.5 | R154: 234.8175
A155: 535585 | B155: 5452000561305 | C155: PN DUN 235/50R19 99 H GRTREK T.A/S MO | D155: 2355019HGRTREK99 | E155: 4x4 | F155: DU GRTREK TOUR A/S | G155: 235 | H155: 50 | I155: R | J155: 19 | K155: 99 | L155: H | M155: D | N155: C | O155: B | P155: 71 | Q155: 229.5 | R155: 150.3225
A156: 536032 | B156: 5452000563781 | C156: PN DUN 265/45R21 104W SP MAXX RT2 FP | D156: 2654521WSPTMAX104RUD | E156: 4x4 | F156: DU SPORT MAXX RT 2 | G156: 265 | H156: 45 | I156: R | J156: 21 | K156: 104 | L156: W | M156: C | N156: A | O156: B | P156: 71 | Q156: 340.5 | R156: 223.0275
A157: 536083 | B157: 5452000564115 | C157: PN DUN 205/45R18 XL 90Y MAXX RT2 | D157: 2054518YMAXRT290 | E157: TOURISME ÉTÉ | F157: DU SPORT MAXX RT 2 | G157: 205 | H157: 45 | I157: ZR | J157: 18 | K157: 90 | L157: Y | M157: D | N157: A | O157: B | P157: 72 | Q157: 191.5 | R157: 125.4325
A158: 536087 | B158: 5452000564207 | C158: PN DUN 225/40R18 XL 92Y SPT MAXX RT MFS | D158: 2254018YSPTMA92XL | E158: TOURISME ÉTÉ | F158: DU MAXRT | G158: 225 | H158: 40 | I158: R | J158: 18 | K158: 92 | L158: Y | M158: B | N158: A | O158: B | P158: 71 | Q158: 136.5 | R158: 89.4075
A159: 537078 | B159: 5452000572325 | C159: PN DUN 235/55R18 100 H SP SPORT 270 | D159: 2355518HSPSPO100DU | E159: 4x4 | F159: DU SP SPORT 270 | G159: 235 | H159: 55 | I159: R | J159: 18 | K159: 100 | L159: H | M159: D | N159: D | O159: B | P159: 71 | Q159: 171.5 | R159: 112.3325
A160: 537095 | B160: 5452000572813 | C160: PN DUN 245/40R18 XL 97 Y SP MAXX RT MF | D160: 2454018YSPMAX97XLD | E160: TOURISME ÉTÉ | F160: DU MAXRT | G160: 245 | H160: 40 | I160: ZR | J160: 18 | K160: 97 | L160: Y | M160: D | N160: B | O160: B | P160: 72 | Q160: 208.5 | R160: 136.5675
A161: 537096 | B161: 5452000572820 | C161: PN DUN 225/45R18 XL 95 Y SP MAXX RT MF | D161: 2254518YSPMAX95XLD | E161: TOURISME ÉTÉ | F161: DU MAXRT | G161: 225 | H161: 45 | I161: ZR | J161: 18 | K161: 95 | L161: Y | M161: D | N161: B | O161: B | P161: 71 | Q161: 236 | R161: 154.58
A162: 537699 | B162: 5452000574978 | C162: PN DUN 275/40R22 XL 108Y QUATTROMAXX NST | D162: 2754022YQUATTNS108 | E162: 4x4 | F162: DU QUAT.MAX MFS | G162: 275 | H162: 40 | I162: R | J162: 22 | K162: 108 | L162: Y | M162: B | N162: B | O162: B | P162: 71 | Q162: 407 | R162: 266.585
A163: 537700 | B163: 5452000574985 | C163: PN DUN 275/40R22 XL 108 Y QUATTROMAXX | D163: 2754022YQUATTR108XLD | E163: 4x4 | F163: DU QUAT.MAX MFS | G163: 275 | H163: 40 | I163: R | J163: 22 | K163: 108 | L163: Y | M163: B | N163: B | O163: B | P163: 71 | Q163: 370 | R163: 242.35
A164: 537880 | B164: 5452000578334 | C164: PN DUN 285/35R21 XL 105 Y SPTMAXXRT2 | D164: 2853521YSPTMAX105XLD | E164: 4x4 | F164: DU SPTMAXXRT2 | G164: 285 | H164: 35 | I164: ZR | J164: 21 | K164: 105 | L164: Y | M164: C | N164: B | O164: B | P164: 73 | Q164: 470 | R164: 307.85
A165: 537882 | B165: 5452000578358 | C165: PN DUN 255/40R21 XL 102 Y RT2 MAXX MFS | D165: 2554021YSPMAX102XLDU | E165: 4x4 | F165: DU SPORT MAXX RT 2 | G165: 255 | H165: 40 | I165: ZR | J165: 21 | K165: 102 | L165: Y | M165: C | N165: A | O165: B | P165: 72 | Q165: 407.5 | R165: 266.9125
A166: 539111 | B166: 5452000583895 | C166: PN DUN 215/40R18 XL 89W SP MAXX RT 2 | D166: 2154018WMAXRT289 | E166: TOURISME ÉTÉ | F166: DU SPORT MAXX RT 2 | G166: 215 | H166: 40 | I166: R | J166: 18 | K166: 89 | L166: W | M166: C | N166: A | O166: B | P166: 72 | Q166: 168 | R166: 110.04
A167: 539239 | B167: 5452000587411 | C167: PN DUN 195/60R16 89 V SPT BLURESP | D167: 1956016VSPTBL89 | E167: TOURISME ÉTÉ | F167: DU BLURES | G167: 195 | H167: 60 | I167: R | J167: 16 | K167: 89 | L167: V | M167: C | N167: A | O167: B | P167: 71 | Q167: 162.5 | R167: 106.4375
A168: 539554 | B168: 5452000591845 | C168: PN DUN 275/50 ZR 20 XL 113 W SP SPT MAXX | D168: 2755020WSPSPT113XL | E168: 4x4 | F168: DU SP MAX | G168: 275 | H168: 50 | I168: R | J168: 20 | K168: 113 | L168: W | M168: C | N168: C | O168: B | P168: 73 | Q168: 413 | R168: 270.515
A169: 539641 | B169: 5452000594570 | C169: PN DUN 215/65R16 98 H SPT FASTRESP | D169: 2156516HSPTFA98 | E169: TOURISME ÉTÉ | F169: DU FAST.RESP | G169: 215 | H169: 65 | I169: R | J169: 16 | K169: 98 | L169: H | M169: B | N169: B | O169: B | P169: 70 | Q169: 150.5 | R169: 98.5775
A170: 540431 | B170: 5452000664068 | C170: PN DUN 275/35ZR19 XL 100Y SP MAXX RT 2 | D170: 2753519YMAXRT2100 | E170: TOURISME ÉTÉ | F170: DU SPORT MAXX RT 2 | G170: 275 | H170: 35 | I170: ZR | J170: 19 | K170: 100 | L170: Y | M170: C | N170: A | O170: B | P170: 73 | Q170: 293 | R170: 191.915
A171: 541246 | B171: 5452000672247 | C171: PN DUN 265/30R21 XL 96 Y SPT MAXX RT R | D171: 2653021YSPTMA96XLDU | E171: TOURISME ÉTÉ | F171: DU SPT MAXX RT RO1 | G171: 265 | H171: 30 | I171: R | J171: 21 | K171: 96 | L171: Y | M171: D | N171: A | O171: B | P171: 73 | Q171: 469 | R171: 307.195
A172: 541247 | B172: 5452000672254 | C172: PN DUN 265/40R21 XL 105 Y SP MAXX GT B | D172: 2654021YSPTMA105XLDU | E172: TOURISME ÉTÉ | F172: DU SP MAXX GT | G172: 265 | H172: 40 | I172: ZR | J172: 21 | K172: 105 | L172: Y | M172: D | N172: B | O172: B | P172: 73 | Q172: 496 | R172: 324.88
A173: 541248 | B173: 5452000672261 | C173: PN DUN 265/45R20 XL 108Y MAXX GT B | D173: 2654520YMAXGT108 | E173: 4x4 | F173: DU SP MAXX GT | G173: 265 | H173: 45 | I173: ZR | J173: 20 | K173: 108 | L173: Y | M173: D | N173: B | O173: A | P173: 70 | Q173: 432.5 | R173: 283.2875
A174: 541453 | B174: 5452000673084 | C174: PN DUN 255/40R18 XL 99Y SP MAXX RT2 MFS | D174: 2554018YMAXRT2MFS99 | E174: TOURISME ÉTÉ | F174: DU SPORT MAXX RT 2 | G174: 255 | H174: 40 | I174: R | J174: 18 | K174: 99 | L174: Y | M174: C | N174: A | O174: B | P174: 73 | Q174: 253.5 | R174: 166.0425
A175: 542076 | B175: 5452000680204 | C175: PN DUN 225/40R18 XL 92Y MAXX RT AO1 MFS | D175: 2254018YMAXRTAO192MF | E175: TOURISME ÉTÉ | F175: DU MAXRT | G175: 225 | H175: 40 | I175: R | J175: 18 | K175: 92 | L175: Y | M175: C | N175: A | O175: B | P175: 71 | Q175: 155 | R175: 101.525
A176: 542099 | B176: 5452000679796 | C176: PN DUN 165/80R15 87H SP CLASSIC | D176: 1658015HSPCLAS87 | E176: COLLECTION (TC4) | F176: DU SPCLAS | G176: 165 | H176: 80 | I176: R | J176: 15 | K176: 87 | L176: H | M176: C | N176: C | O176: B | P176: 69 | Q176: 219 | R176: 143.445
A177: 542100 | B177: 5452000679802 | C177: PN DUN 185/70R15 89V SP CLASSIC | D177: 1857015VSPCLAS89 | E177: COLLECTION (TC4) | F177: DU SPCLAS | G177: 185 | H177: 70 | I177: R | J177: 15 | K177: 89 | L177: V | M177: C | N177: B | O177: 2 | P177: 68 | Q177: 325 | R177: 212.875
A178: 542101 | B178: 5452000679819 | C178: PN DUN 185/80R14 91H SP CLASSIC | D178: 1858014HSPCLAS91 | E178: COLLECTION (TC4) | F178: DU SPCLAS | G178: 185 | H178: 80 | I178: R | J178: 14 | K178: 91 | L178: H | M178: D | N178: C | O178: B | P178: 70 | Q178: 258.5 | R178: 169.3175
A179: 542102 | B179: 5452000679826 | C179: PN DUN 185/80R15 93W SP CLASSIC | D179: 1858015WSPCLAS93 | E179: COLLECTION (TC4) | F179: DU SPCLAS | G179: 185 | H179: 80 | I179: R | J179: 15 | K179: 93 | L179: W | M179: D | N179: C | O179: B | P179: 69 | Q179: 335 | R179: 219.425
A180: 542116 | B180: 5452000679741 | C180: PN DUN 255/35R20 XL 97Y MAXX RT2 NST MFS | D180: 2553520YMAXRT2NS97MF | E180: TOURISME ÉTÉ | F180: DU SPORT MAXX RT 2 | G180: 255 | H180: 35 | I180: ZR | J180: 20 | K180: 97 | L180: Y | M180: C | N180: A | O180: B | P180: 72 | Q180: 293.5 | R180: 192.2425
A181: 542123 | B181: 5452000679833 | C181: PN DUN 195/70R14 91V SP CLASSIC | D181: 1957014VSPCLAS91 | E181: COLLECTION (TC4) | F181: DU SPCLAS | G181: 195 | H181: 70 | I181: R | J181: 14 | K181: 91 | L181: V | M181: C | N181: B | O181: 1 | P181: 68 | Q181: 290.5 | R181: 190.2775
A182: 542125 | B182: 5452000679857 | C182: PN DUN 205/60R13 86V SP CLASSIC | D182: 2056013VSPCLAS86 | E182: COLLECTION (TC4) | F182: DU SPCLAS | G182: 205 | H182: 60 | I182: R | J182: 13 | K182: 86 | L182: V | M182: C | N182: B | O182: B | P182: 69 | Q182: 209 | R182: 136.895
A183: 542127 | B183: 5452000679871 | C183: PN DUN 205/70R15 96W SP CLASSIC | D183: 2057015WSPCLAS96 | E183: COLLECTION (TC4) | F183: DU SPCLAS | G183: 205 | H183: 70 | I183: R | J183: 15 | K183: 96 | L183: W | M183: C | N183: B | O183: B | P183: 69 | Q183: 384.5 | R183: 251.8475
A184: 542128 | B184: 5452000679888 | C184: PN DUN 215/60R15 94V SP CLASSIC | D184: 2156015VSPCLAS94 | E184: COLLECTION (TC4) | F184: DU SPCLAS | G184: 215 | H184: 60 | I184: R | J184: 15 | K184: 94 | L184: V | M184: C | N184: B | O184: 2 | P184: 69 | Q184: 509.5 | R184: 333.7225
A185: 542129 | B185: 5452000679895 | C185: PN DUN 215/70R15 98W SP CLASSIC | D185: 2157015WSPCLAS98 | E185: COLLECTION (TC4) | F185: DU SPCLAS | G185: 215 | H185: 70 | I185: R | J185: 15 | K185: 98 | L185: W | M185: C | N185: C | O185: B | P185: 70 | Q185: 452.5 | R185: 296.3875
A186: 542256 | B186: 5452000681317 | C186: PN DUN 245/40R18 XL 97Y MAXX RT2 NST MFS | D186: 2454018YMAXRT2NS97MF | E186: TOURISME ÉTÉ | F186: DU SPORT MAXX RT 2 | G186: 245 | H186: 40 | I186: ZR | J186: 18 | K186: 97 | L186: Y | M186: C | N186: B | O186: B | P186: 71 | Q186: 197 | R186: 129.035
A187: 542257 | B187: 5452000681324 | C187: PN DUN 255/35R19 XL 96Y MAXX RT2 NST MFS | D187: 2553519YMAXRT2NS96MF | E187: TOURISME ÉTÉ | F187: DU SPORT MAXX RT 2 | G187: 255 | H187: 35 | I187: ZR | J187: 19 | K187: 96 | L187: Y | M187: C | N187: B | O187: B | P187: 73 | Q187: 265.5 | R187: 173.9025
A188: 542260 | B188: 5452000681355 | C188: PN DUN 255/40R19 XL 100Y MAXXRT2 NST MFS | D188: 2554019YMAXRTNS100MF | E188: TOURISME ÉTÉ | F188: DU SPORT MAXX RT 2 | G188: 255 | H188: 40 | I188: ZR | J188: 19 | K188: 100 | L188: Y | M188: C | N188: A | O188: B | P188: 72 | Q188: 277 | R188: 181.435
A189: 542697 | B189: 5452000686428 | C189: PN DUN 205/45R17 XL 88Y SP MAXX RT 2 | D189: 2054517YMAXRT288 | E189: TOURISME ÉTÉ | F189: DU SPORT MAXX RT 2 | G189: 205 | H189: 45 | I189: R | J189: 17 | K189: 88 | L189: Y | M189: C | N189: A | O189: B | P189: 71 | Q189: 162.5 | R189: 106.4375
A190: 542698 | B190: 5452000686435 | C190: PN DUN 225/55R18 XL 102V SP MAXX RT2 MFS | D190: 2255518VMAXRT2MFS102 | E190: TOURISME ÉTÉ | F190: DU SPORT MAXX RT 2 | G190: 225 | H190: 55 | I190: R | J190: 18 | K190: 102 | L190: V | M190: B | N190: B | O190: B | P190: 72 | Q190: 189 | R190: 123.795
A191: 542700 | B191: 5452000686459 | C191: PN DUN 235/60R17 XL 106V SP MAXX RT2 MFS | D191: 2356017VMAXRT2MFS106 | E191: TOURISME ÉTÉ | F191: DU SPORT MAXX RT 2 | G191: 235 | H191: 60 | I191: R | J191: 17 | K191: 106 | L191: V | M191: C | N191: A | O191: B | P191: 71 | Q191: 175.5 | R191: 114.9525
A192: 542923 | B192: 5452000701794 | C192: PN DUN 225/55R17C 109/107H ECONODRIVE MO | D192: 2255517HECOND109 | E192: CAMIONNETTE ETE | F192: DU ECONODRIVE | G192: 225 | H192: 55 | I192: R | J192: 17 | K192: 109/107 | L192: H | M192: B | N192: B | O192: B | P192: 72 | Q192: 203.5 | R192: 133.2925
A193: 543000 | B193: 5452000703941 | C193: PN DUN 235/55R19 101Y SP MAXX RT2 SUV | D193: 2355519YMAXRT2S101 | E193: 4x4 | F193: DU SPORT MAXX RT 2 | G193: 235 | H193: 55 | I193: R | J193: 19 | K193: 101 | L193: Y | M193: C | N193: A | O193: B | P193: 71 | Q193: 204 | R193: 133.62
A194: 543028 | B194: 5452000703705 | C194: PN DUN 205/55R16 XL 94V SP BLURESPONSE | D194: 2055516VSPBLU94 | E194: TOURISME ÉTÉ | F194: DU BLURES | G194: 205 | H194: 55 | I194: R | J194: 16 | K194: 94 | L194: V | M194: A | N194: B | O194: B | P194: 72 | Q194: 112 | R194: 73.36
A195: 543029 | B195: 5452000703712 | C195: PN DUN 205/55R17 XL 95V SP BLURESPONSE | D195: 2055517VSPBLU95 | E195: TOURISME ÉTÉ | F195: DU BLURES | G195: 205 | H195: 55 | I195: R | J195: 17 | K195: 95 | L195: V | M195: A | N195: B | O195: B | P195: 72 | Q195: 162.5 | R195: 106.4375
A196: 543030 | B196: 5452000703729 | C196: PN DUN 215/55R16 XL 97H SP BLURESPONSE | D196: 2155516HSPBLU97 | E196: TOURISME ÉTÉ | F196: DU BLURES | G196: 215 | H196: 55 | I196: R | J196: 16 | K196: 97 | L196: H | M196: A | N196: B | O196: B | P196: 70 | Q196: 163 | R196: 106.765
A197: 543043 | B197: 5452000704078 | C197: PN DUN 265/50R19 XL 110Y MAXX RT2 SUV | D197: 2655019YMRT2S110MFS | E197: 4x4 | F197: DU SPORT MAXX RT 2 | G197: 265 | H197: 50 | I197: R | J197: 19 | K197: 110 | L197: Y | M197: C | N197: A | O197: B | P197: 71 | Q197: 250.5 | R197: 164.0775
A198: 543056 | B198: 5452000703149 | C198: PN DUN 275/45R21 XL 110Y SP MAXX RT2 SUV | D198: 2754521YMAXRT2S110 | E198: 4x4 | F198: DU SPORT MAXX RT 2 | G198: 275 | H198: 45 | I198: R | J198: 21 | K198: 110 | L198: Y | M198: C | N198: A | O198: B | P198: 71 | Q198: 334.5 | R198: 219.0975
A199: 543736 | B199: 5452000711885 | C199: PN DUN 245/40ZR18 93Y SP MAXX RT 2 | D199: 2454018YMAXRT293FP | E199: TOURISME ÉTÉ | F199: DU SPORT MAXX RT 2 | G199: 245 | H199: 40 | I199: ZR | J199: 18 | K199: 93 | L199: Y | M199: D | N199: A | O199: B | P199: 71 | Q199: 174 | R199: 113.97
A200: 543906 | B200: 5452000714077 | C200: PN DUN 325/30ZR21 XL 108Y MAXX RACE 2 N1 | D200: 3253021YMAXRAC2N1108 | E200: TOURISME ÉTÉ | F200: DU MAXRAC2 | G200: 325 | H200: 30 | I200: ZR | J200: 21 | K200: 108 | L200: Y | M200: D | N200: D | O200: B | P200: 74 | Q200: 697.5 | R200: 456.8625
A201: 543907 | B201: 5452000714084 | C201: PN DUN 265/35ZR20 XL 99Y MAXX RACE 2 N1 | D201: 2653520YMAXRAC2N199 | E201: TOURISME ÉTÉ | F201: DU MAXRAC2 | G201: 265 | H201: 35 | I201: ZR | J201: 20 | K201: 99 | L201: Y | M201: D | N201: C | O201: B | P201: 71 | Q201: 499 | R201: 326.845
A202: 544158 | B202: 5452000716613 | C202: PN DUN 275/45ZR18 XL 107Y MAXX GT J FP | D202: 2754518YMAXGT107FP | E202: TOURISME ÉTÉ | F202: DU SP MAXX GT | G202: 275 | H202: 45 | I202: ZR | J202: 18 | K202: 107 | L202: Y | M202: D | N202: B | O202: B | P202: 72 | Q202: 326 | R202: =Q202*(1-$D$3) -> 213.53
A203: 544324 | B203: 5452000719362 | C203: PN DUN 255/45ZR20 XL 105Y SP MAXX RT MFS | D203: 2554520YMAXRTMO105MF | E203: 4x4 | F203: DU SPORT MAXX RT 2 | G203: 255 | H203: 45 | I203: ZR | J203: 20 | K203: 105 | L203: Y | M203: C | N203: A | O203: B | P203: 71 | Q203: 401 | R203: 262.655
... 273 more rows

Sheet FIR
D2: Remise
D3: =Remises!$E$10 -> 0.32
A5: Actualisation au 04/04/2024
A7: REFERENCES PNEUMATIQUES | Q7: TARIFS
A8: CAI | B8: EAN | C8: Désignation | D8: Appellation | E8: Catégorie | F8: Profil | G8: Largeur | H8: Hauteur | I8: Structure | J8: Diamètre | K8: IC | L8: IV | M8: Conso. | N8: Frein. | O8: Bruit. | P8: Décibels. | Q8: Prix BF | R8: Prix Remisé
A9: 10446 | B9: 3286341044614 | C9: PN FIR 215/65R15C 104/102T VANHAWK 2 | D9: 2156515TVANH26104 | E9: CAMIONNETTE ETE | F9: FI VANHAWK 2 | G9: 215 | H9: 65 | I9: R | J9: 15 | K9: 104/102 | L9: T | M9: C | N9: B | O9: B | P9: 71 | Q9: 171.5 | R9: =Q9*(1-$D$3) -> 116.62
A10: 11103 | B10: 3286341110319 | C10: PN FIR 185/65R15 88H ROADHAWK | D10: 1856515HRHAWK88 | E10: TOURISME ÉTÉ | F10: FI ROADHAWK | G10: 185 | H10: 65 | I10: R | J10: 15 | K10: 88 | L10: H | M10: C | N10: A | O10: B | P10: 70 | Q10: 99 | R10: =Q10*(1-$D$3) -> 67.32
A11: 11104 | B11: 3286341110418 | C11: PN FIR 185/55R15 82V ROADHAWK | D11: 1855515VRHAWK82 | E11: TOURISME ÉTÉ | F11: FI ROADHAWK | G11: 185 | H11: 55 | I11: R | J11: 15 | K11: 82 | L11: V | M11: C | N11: A | O11: B | P11: 70 | Q11: 119 | R11: 80.92
A12: 11108 | B12: 3286341110814 | C12: PN FIR 175/60R15 81V ROADHAWK | D12: 1756015VRHAWK81 | E12: TOURISME ÉTÉ | F12: FI ROADHAWK | G12: 175 | H12: 60 | I12: R | J12: 15 | K12: 81 | L12: V | M12: C | N12: A | O12: B | P12: 70 | Q12: 120 | R12: 81.6
A13: 11109 | B13: 3286341110913 | C13: PN FIR 205/65R15 94V ROADHAWK | D13: 2056515VRHAWK94 | E13: TOURISME ÉTÉ | F13: FI ROADHAWK | G13: 205 | H13: 65 | I13: R | J13: 15 | K13: 94 | L13: V | M13: C | N13: A | O13: B | P13: 70 | Q13: 135.5 | R13: 92.14
A14: 11110 | B14: 3286341111019 | C14: PN FIR 195/60R15 88V ROADHAWK | D14: 1956015VRHAWK88 | E14: TOURISME ÉTÉ | F14: FI ROADHAWK | G14: 195 | H14: 60 | I14: R | J14: 15 | K14: 88 | L14: V | M14: C | N14: A | O14: B | P14: 71 | Q14: 110 | R14: 74.8
A15: 11111 | B15: 3286341111118 | C15: PN FIR 175/65R15 84T ROADHAWK | D15: 1756515TRHAWK84 | E15: TOURISME ÉTÉ | F15: FI ROADHAWK | G15: 175 | H15: 65 | I15: R | J15: 15 | K15: 84 | L15: T | M15: C | N15: A | O15: B | P15: 70 | Q15: 92.5 | R15: 62.9
A16: 11113 | B16: 3286341111316 | C16: PN FIR 205/60R15 91V ROADHAWK | D16: 2056015VRHAWK91 | E16: TOURISME ÉTÉ | F16: FI ROADHAWK | G16: 205 | H16: 60 | I16: R | J16: 15 | K16: 91 | L16: V | M16: C | N16: A | O16: B | P16: 70 | Q16: 121 | R16: 82.28
A17: 11114 | B17: 3286341111415 | C17: PN FIR 165/65R15 81T ROADHAWK | D17: 1656515TRHAWK81 | E17: TOURISME ÉTÉ | F17: FI ROADHAWK | G17: 165 | H17: 65 | I17: R | J17: 15 | K17: 81 | L17: T | M17: C | N17: A | O17: B | P17: 70 | Q17: 97.5 | R17: 66.3
A18: 11118 | B18: 3286341111811 | C18: PN FIR 185/65R15 88T ROADHAWK | D18: 1856515TRHAWK88 | E18: TOURISME ÉTÉ | F18: FI ROADHAWK | G18: 185 | H18: 65 | I18: R | J18: 15 | K18: 88 | L18: T | M18: C | N18: A | O18: B | P18: 70 | Q18: 87 | R18: 59.16
A19: 11119 | B19: 3286341111910 | C19: PN FIR 195/55R15 85H ROADHAWK | D19: 1955515HRHAWK85 | E19: TOURISME ÉTÉ | F19: FI ROADHAWK | G19: 195 | H19: 55 | I19: R | J19: 15 | K19: 85 | L19: H | M19: C | N19: A | O19: B | P19: 71 | Q19: 125.5 | R19: 85.34
A20: 11124 | B20: 3286341112412 | C20: PN FIR 195/50R15 82V ROADHAWK | D20: 1955015VRHAWK82 | E20: TOURISME ÉTÉ | F20: FI ROADHAWK | G20: 195 | H20: 50 | I20: R | J20: 15 | K20: 82 | L20: V | M20: C | N20: A | O20: B | P20: 70 | Q20: 92.5 | R20: 62.9
A21: 11125 | B21: 3286341112511 | C21: PN FIR 185/60R15 XL 88H ROADHAWK | D21: 1856015HRHAWK88 | E21: TOURISME ÉTÉ | F21: FI ROADHAWK | G21: 185 | H21: 60 | I21: R | J21: 15 | K21: 88 | L21: H | M21: C | N21: A | O21: B | P21: 70 | Q21: 105 | R21: 71.4
A22: 11127 | B22: 3286341112719 | C22: PN FIR 225/60R16 98Y ROADHAWK | D22: 2256016YRHAWK98 | E22: TOURISME ÉTÉ | F22: FI ROADHAWK | G22: 225 | H22: 60 | I22: R | J22: 16 | K22: 98 | L22: Y | M22: C | N22: A | O22: B | P22: 71 | Q22: 177 | R22: 120.36
A23: 11128 | B23: 3286341112818 | C23: PN FIR 195/60R16 XL 93V ROADHAWK | D23: 1956016VRHAWK93 | E23: TOURISME ÉTÉ | F23: FI ROADHAWK | G23: 195 | H23: 60 | I23: R | J23: 16 | K23: 93 | L23: V | M23: C | N23: A | O23: B | P23: 70 | Q23: 152.5 | R23: 103.7
A24: 11129 | B24: 3286341112917 | C24: PN FIR 195/50R16 XL 88V ROADHAWK | D24: 1955016VRHAWK88 | E24: TOURISME ÉTÉ | F24: FI ROADHAWK | G24: 195 | H24: 50 | I24: R | J24: 16 | K24: 88 | L24: V | M24: C | N24: A | O24: B | P24: 70 | Q24: 135.5 | R24: 92.14
A25: 11130 | B25: 3286341113013 | C25: PN FIR 205/50R16 87V ROADHAWK | D25: 2055016VRHAWK87 | E25: TOURISME ÉTÉ | F25: FI ROADHAWK | G25: 205 | H25: 50 | I25: R | J25: 16 | K25: 87 | L25: V | M25: C | N25: A | O25: B | P25: 71 | Q25: 129.5 | R25: 88.06
A26: 11131 | B26: 3286341113112 | C26: PN FIR 185/55R16 83V ROADHAWK | D26: 1855516VRHAWK83 | E26: TOURISME ÉTÉ | F26: FI ROADHAWK | G26: 185 | H26: 55 | I26: R | J26: 16 | K26: 83 | L26: V | M26: C | N26: A | O26: B | P26: 70 | Q26: 127 | R26: 86.36
A27: 11132 | B27: 3286341113211 | C27: PN FIR 205/50R16 87W ROADHAWK | D27: 2055016WRHAWK87 | E27: TOURISME ÉTÉ | F27: FI ROADHAWK | G27: 205 | H27: 50 | I27: R | J27: 16 | K27: 87 | L27: W | M27: C | N27: A | O27: B | P27: 71 | Q27: 135 | R27: 91.8
A28: 11133 | B28: 3286341113310 | C28: PN FIR 215/45R16 XL 90V ROADHAWK | D28: 2154516VRHAWK90 | E28: TOURISME ÉTÉ | F28: FI ROADHAWK | G28: 215 | H28: 45 | I28: R | J28: 16 | K28: 90 | L28: V | M28: C | N28: A | O28: B | P28: 72 | Q28: 142.5 | R28: 96.9
A29: 11134 | B29: 3286341113419 | C29: PN FIR 215/40R17 XL 87Y ROADHAWK | D29: 2154017YRHAWK87 | E29: TOURISME ÉTÉ | F29: FI ROADHAWK | G29: 215 | H29: 40 | I29: R | J29: 17 | K29: 87 | L29: Y | M29: C | N29: A | O29: B | P29: 72 | Q29: 135.5 | R29: 92.14
A30: 11135 | B30: 3286341113518 | C30: PN FIR 205/40R17 XL 84W ROADHAWK | D30: 2054017WRHAWK84 | E30: TOURISME ÉTÉ | F30: FI ROADHAWK | G30: 205 | H30: 40 | I30: R | J30: 17 | K30: 84 | L30: W | M30: C | N30: A | O30: B | P30: 72 | Q30: 111.5 | R30: 75.82
A31: 11137 | B31: 3286341113716 | C31: PN FIR 235/50R18 XL 101Y ROADHAWK | D31: 2355018YRHAWK101 | E31: TOURISME ÉTÉ | F31: FI ROADHAWK | G31: 235 | H31: 50 | I31: R | J31: 18 | K31: 101 | L31: Y | M31: C | N31: A | O31: B | P31: 71 | Q31: 170.5 | R31: 115.94
A32: 11140 | B32: 3286341114010 | C32: PN FIR 235/45R18 XL 98Y ROADHAWK | D32: 2354518YRHAWK98 | E32: TOURISME ÉTÉ | F32: FI ROADHAWK | G32: 235 | H32: 45 | I32: R | J32: 18 | K32: 98 | L32: Y | M32: C | N32: A | O32: B | P32: 71 | Q32: 166.5 | R32: 113.22
A33: 11141 | B33: 3286341114119 | C33: PN FIR 255/45R18 XL 103Y ROADHAWK | D33: 2554518YRHAWK103 | E33: TOURISME ÉTÉ | F33: FI ROADHAWK | G33: 255 | H33: 45 | I33: R | J33: 18 | K33: 103 | L33: Y | M33: C | N33: A | O33: B | P33: 71 | Q33: 201.5 | R33: 137.02
A34: 11143 | B34: 3286341114317 | C34: PN FIR 245/40R19 XL 98Y ROADHAWK | D34: 2454019YRHAWK98 | E34: TOURISME ÉTÉ | F34: FI ROADHAWK | G34: 245 | H34: 40 | I34: R | J34: 19 | K34: 98 | L34: Y | M34: C | N34: A | O34: B | P34: 71 | Q34: 193.5 | R34: 131.58
A35: 12987 | B35: 3286341298710 | C35: PN FIR 165/60R14 75H MULTIHAWK 2 | D35: 1656014HMULH275FI | E35: TOURISME ÉTÉ | F35: FI MULH2 | G35: 165 | H35: 60 | I35: R | J35: 14 | K35: 75 | L35: H | M35: D | N35: C | O35: B | P35: 69 | Q35: 104 | R35: 70.72
A36: 12994 | B36: 3286341299410 | C36: PN FIR 185/55R14 80H MULTIHAWK 2 | D36: 1855514HMULH280FI | E36: TOURISME ÉTÉ | F36: FI MULH2 | G36: 185 | H36: 55 | I36: R | J36: 14 | K36: 80 | L36: H | M36: D | N36: C | O36: B | P36: 69 | Q36: 120.5 | R36: 81.94
A37: 13835 | B37: 3286341383515 | C37: PN FIR 215/65R16 98H ROADHAWK | D37: 2156516HRHAWK98 | E37: 4x4 | F37: FI ROADHAWK | G37: 215 | H37: 65 | I37: R | J37: 16 | K37: 98 | L37: H | M37: C | N37: A | O37: B | P37: 71 | Q37: 121 | R37: 82.28
A38: 13836 | B38: 3286341383614 | C38: PN FIR 215/70R16 100H ROADHAWK | D38: 2157016HRHAWK100 | E38: 4x4 | F38: FI ROADHAWK | G38: 215 | H38: 70 | I38: R | J38: 16 | K38: 100 | L38: H | M38: C | N38: A | O38: B | P38: 71 | Q38: 132.5 | R38: 90.1
A39: 13837 | B39: 3286341383713 | C39: PN FIR 235/60R16 XL 104H ROADHAWK | D39: 2356016HRHAWK104 | E39: 4x4 | F39: FI ROADHAWK | G39: 235 | H39: 60 | I39: R | J39: 16 | K39: 104 | L39: H | M39: C | N39: A | O39: B | P39: 71 | Q39: 131 | R39: 89.08
A40: 13838 | B40: 3286341383812 | C40: PN FIR 225/65R17 102H ROADHAWK | D40: 2256517HRHAWK102 | E40: 4x4 | F40: FI ROADHAWK | G40: 225 | H40: 65 | I40: R | J40: 17 | K40: 102 | L40: H | M40: C | N40: A | O40: B | P40: 71 | Q40: 132.5 | R40: 90.1
A41: 13840 | B41: 3286341384017 | C41: PN FIR 235/65R17 104V ROADHAWK | D41: 2356517VRHAWK104 | E41: 4x4 | F41: FI ROADHAWK | G41: 235 | H41: 65 | I41: R | J41: 17 | K41: 104 | L41: V | M41: C | N41: A | O41: B | P41: 71 | Q41: 143.5 | R41: 97.58
A42: 13843 | B42: 3286341384314 | C42: PN FIR 235/65R17 XL 108V ROADHAWK | D42: 2356517VRHAWK108 | E42: 4x4 | F42: FI ROADHAWK | G42: 235 | H42: 65 | I42: R | J42: 17 | K42: 108 | L42: V | M42: C | N42: A | O42: B | P42: 71 | Q42: 146.5 | R42: 99.62
A43: 13844 | B43: 3286341384413 | C43: PN FIR 225/60R17 99H ROADHAWK | D43: 2256017HRHAWK99 | E43: 4x4 | F43: FI ROADHAWK | G43: 225 | H43: 60 | I43: R | J43: 17 | K43: 99 | L43: H | M43: C | N43: A | O43: B | P43: 71 | Q43: 154.5 | R43: 105.06
A44: 13847 | B44: 3286341384710 | C44: PN FIR 215/55R18 XL 99V ROADHAWK | D44: 2155518VRHAWK99 | E44: 4x4 | F44: FI ROADHAWK | G44: 215 | H44: 55 | I44: R | J44: 18 | K44: 99 | L44: V | M44: C | N44: A | O44: B | P44: 71 | Q44: 153.5 | R44: 104.38
A45: 13848 | B45: 3286341384819 | C45: PN FIR 255/60R18 XL 112V ROADHAWK | D45: 2556018VRHAWK112 | E45: 4x4 | F45: FI ROADHAWK | G45: 255 | H45: 60 | I45: R | J45: 18 | K45: 112 | L45: V | M45: C | N45: A | O45: B | P45: 71 | Q45: 164 | R45: 111.52
A46: 13849 | B46: 3286341384918 | C46: PN FIR 255/55R18 XL 109W ROADHAWK | D46: 2555518WRHAWK109 | E46: 4x4 | F46: FI ROADHAWK | G46: 255 | H46: 55 | I46: R | J46: 18 | K46: 109 | L46: W | M46: C | N46: A | O46: B | P46: 71 | Q46: 159.5 | R46: 108.46
A47: 13851 | B47: 3286341385113 | C47: PN FIR 235/55R18 100V ROADHAWK | D47: 2355518VRHAWK100 | E47: 4x4 | F47: FI ROADHAWK | G47: 235 | H47: 55 | I47: R | J47: 18 | K47: 100 | L47: V | M47: C | N47: A | O47: B | P47: 71 | Q47: 154.5 | R47: 105.06
A48: 13852 | B48: 3286341385212 | C48: PN FIR 255/50R19 XL 107Y ROADHAWK | D48: 2555019YRHAWK107 | E48: 4x4 | F48: FI ROADHAWK | G48: 255 | H48: 50 | I48: R | J48: 19 | K48: 107 | L48: Y | M48: C | N48: A | O48: B | P48: 71 | Q48: 189 | R48: 128.52
A49: 13853 | B49: 3286341385311 | C49: PN FIR 255/55R19 XL 111V ROADHAWK | D49: 2555519VRHAWK111 | E49: 4x4 | F49: FI ROADHAWK | G49: 255 | H49: 55 | I49: R | J49: 19 | K49: 111 | L49: V | M49: C | N49: A | O49: B | P49: 71 | Q49: 180.5 | R49: 122.74
A50: 13856 | B50: 3286341385618 | C50: PN FIR 235/55R19 XL 105W ROADHAWK | D50: 2355519WRHAWK105 | E50: 4x4 | F50: FI ROADHAWK | G50: 235 | H50: 55 | I50: R | J50: 19 | K50: 105 | L50: W | M50: C | N50: A | O50: B | P50: 71 | Q50: 180 | R50: 122.4
A51: 16724 | B51: 3286341672411 | C51: PN FIR 205/50R17 XL 93V MULTISEAS-2 | D51: 2055017VMULS293 | E51: TOURISME TOUTES SAISONS | F51: FI MULTISEASON2 | G51: 205 | H51: 50 | I51: R | J51: 17 | K51: 93 | L51: V | M51: C | N51: B | O51: B | P51: 72 | Q51: 152.5 | R51: 103.7
A52: 16726 | B52: 3286341672619 | C52: PN FIR 165/60R15 XL 81H MULTISEAS-2 | D52: 1656015HMULS281 | E52: TOURISME TOUTES SAISONS | F52: FI MULTISEASON2 | G52: 165 | H52: 60 | I52: R | J52: 15 | K52: 81 | L52: H | M52: D | N52: B | O52: B | P52: 71 | Q52: 102 | R52: 69.36
A53: 16727 | B53: 3286341672718 | C53: PN FIR 195/60R16 89H MULTISEAS-2 | D53: 1956016HMULS289 | E53: TOURISME TOUTES SAISONS | F53: FI MULTISEASON2 | G53: 195 | H53: 60 | I53: R | J53: 16 | K53: 89 | L53: H | M53: C | N53: B | O53: B | P53: 71 | Q53: 131 | R53: 89.08
A54: 16729 | B54: 3286341672916 | C54: PN FIR 155/65R14 XL 79T MULTISEAS-2 | D54: 1556514TMULS279 | E54: TOURISME TOUTES SAISONS | F54: FI MULTISEASON2 | G54: 155 | H54: 65 | I54: R | J54: 14 | K54: 79 | L54: T | M54: D | N54: B | O54: B | P54: 71 | Q54: 78 | R54: 53.04
A55: 16730 | B55: 3286341673012 | C55: PN FIR 195/55R16 XL 91H MULTISEAS-2 | D55: 1955516HMULS291 | E55: TOURISME TOUTES SAISONS | F55: FI MULTISEASON2 | G55: 195 | H55: 55 | I55: R | J55: 16 | K55: 91 | L55: H | M55: C | N55: B | O55: B | P55: 71 | Q55: 127 | R55: 86.36
A56: 16731 | B56: 3286341673111 | C56: PN FIR 175/65R14 XL 86T MULTISEAS-2 | D56: 1756514TMULS286 | E56: TOURISME TOUTES SAISONS | F56: FI MULTISEASON2 | G56: 175 | H56: 65 | I56: R | J56: 14 | K56: 86 | L56: T | M56: C | N56: B | O56: B | P56: 71 | Q56: 87.5 | R56: 59.5
A57: 16733 | B57: 3286341673319 | C57: PN FIR 185/60R15 XL 88H MULTISEAS-2 | D57: 1856015HMULS288 | E57: TOURISME TOUTES SAISONS | F57: FI MULTISEASON2 | G57: 185 | H57: 60 | I57: R | J57: 15 | K57: 88 | L57: H | M57: D | N57: B | O57: B | P57: 71 | Q57: 107.5 | R57: 73.1
A58: 16734 | B58: 3286341673418 | C58: PN FIR 205/55R16 91H MULTISEAS-2 | D58: 2055516HMULS291 | E58: TOURISME TOUTES SAISONS | F58: FI MULTISEASON2 | G58: 205 | H58: 55 | I58: R | J58: 16 | K58: 91 | L58: H | M58: C | N58: B | O58: B | P58: 71 | Q58: 95.5 | R58: 64.94
A59: 16735 | B59: 3286341673517 | C59: PN FIR 215/55R16 XL 97V MULTISEAS-2 | D59: 2155516VMULS297 | E59: TOURISME TOUTES SAISONS | F59: FI MULTISEASON2 | G59: 215 | H59: 55 | I59: R | J59: 16 | K59: 97 | L59: V | M59: C | N59: B | O59: B | P59: 72 | Q59: 156 | R59: 106.08
A60: 16736 | B60: 3286341673616 | C60: PN FIR 205/55R16 XL 94V MULTISEAS-2 | D60: 2055516VMULS294 | E60: TOURISME TOUTES SAISONS | F60: FI MULTISEASON2 | G60: 205 | H60: 55 | I60: R | J60: 16 | K60: 94 | L60: V | M60: C | N60: B | O60: B | P60: 71 | Q60: 98 | R60: 66.64
A61: 16737 | B61: 3286341673715 | C61: PN FIR 225/55R16 XL 99V MULTISEAS-2 | D61: 2255516VMULS299 | E61: TOURISME TOUTES SAISONS | F61: FI MULTISEASON2 | G61: 225 | H61: 55 | I61: R | J61: 16 | K61: 99 | L61: V | M61: C | N61: B | O61: B | P61: 72 | Q61: 171 | R61: 116.28
A62: 16738 | B62: 3286341673814 | C62: PN FIR 195/60R15 88H MULTISEAS-2 | D62: 1956015HMULS288 | E62: TOURISME TOUTES SAISONS | F62: FI MULTISEASON2 | G62: 195 | H62: 60 | I62: R | J62: 15 | K62: 88 | L62: H | M62: D | N62: B | O62: B | P62: 71 | Q62: 108.5 | R62: 73.78
A63: 16739 | B63: 3286341673913 | C63: PN FIR 185/65R15 XL 92H MULTISEAS-2 | D63: 1856515HMULS292 | E63: TOURISME TOUTES SAISONS | F63: FI MULTISEASON2 | G63: 185 | H63: 65 | I63: R | J63: 15 | K63: 92 | L63: H | M63: C | N63: B | O63: B | P63: 71 | Q63: 100 | R63: 68
A64: 16740 | B64: 3286341674019 | C64: PN FIR 225/60R17 99V MULTISEAS-2 | D64: 2256017VMULS299 | E64: TOURISME TOUTES SAISONS | F64: FI MULTISEASON2 | G64: 225 | H64: 60 | I64: R | J64: 17 | K64: 99 | L64: V | M64: C | N64: B | O64: B | P64: 72 | Q64: 170 | R64: 115.6
A65: 16742 | B65: 3286341674217 | C65: PN FIR 195/50R15 XL 86H MULTISEAS-2 | D65: 1955015HMULS286 | E65: TOURISME TOUTES SAISONS | F65: FI MULTISEASON2 | G65: 195 | H65: 50 | I65: R | J65: 15 | K65: 86 | L65: H | M65: C | N65: B | O65: B | P65: 71 | Q65: 94 | R65: 63.92
A66: 16743 | B66: 3286341674316 | C66: PN FIR 185/60R14 XL 86H MULTISEAS-2 | D66: 1856014HMULS282 | E66: TOURISME TOUTES SAISONS | F66: FI MULTISEASON2 | G66: 185 | H66: 60 | I66: R | J66: 14 | K66: 86 | L66: H | M66: C | N66: B | O66: B | P66: 72 | Q66: 91.5 | R66: 62.22
A67: 16745 | B67: 3286341674514 | C67: PN FIR 165/65R14 XL 83T MULTISEAS-2 | D67: 1656514TMULS283 | E67: TOURISME TOUTES SAISONS | F67: FI MULTISEASON2 | G67: 165 | H67: 65 | I67: R | J67: 14 | K67: 83 | L67: T | M67: D | N67: B | O67: B | P67: 71 | Q67: 84 | R67: 57.12
A68: 16747 | B68: 3286341674712 | C68: PN FIR 195/45R16 XL 84V MULTISEAS-2 | D68: 1954516VMULS284 | E68: TOURISME TOUTES SAISONS | F68: FI MULTISEASON2 | G68: 195 | H68: 45 | I68: R | J68: 16 | K68: 84 | L68: V | M68: C | N68: B | O68: B | P68: 71 | Q68: 124.5 | R68: 84.66
A69: 16748 | B69: 3286341674811 | C69: PN FIR 215/60R16 XL 99V MULTISEAS-2 | D69: 2156016VMULS299 | E69: TOURISME TOUTES SAISONS | F69: FI MULTISEASON2 | G69: 215 | H69: 60 | I69: R | J69: 16 | K69: 99 | L69: V | M69: C | N69: B | O69: B | P69: 72 | Q69: 164 | R69: 111.52
A70: 16749 | B70: 3286341674910 | C70: PN FIR 225/45R17 XL 94V MULTISEAS-2 | D70: 2254517VMULS294 | E70: TOURISME TOUTES SAISONS | F70: FI MULTISEASON2 | G70: 225 | H70: 45 | I70: R | J70: 17 | K70: 94 | L70: V | M70: C | N70: B | O70: B | P70: 72 | Q70: 117.5 | R70: 79.9
A71: 16750 | B71: 3286341675016 | C71: PN FIR 185/55R15 XL 86H MULTISEAS-2 | D71: 1855515HMULS286 | E71: TOURISME TOUTES SAISONS | F71: FI MULTISEASON2 | G71: 185 | H71: 55 | I71: R | J71: 15 | K71: 86 | L71: H | M71: D | N71: B | O71: B | P71: 71 | Q71: 121.5 | R71: 82.62
A72: 16751 | B72: 3286341675115 | C72: PN FIR 195/55R16 XL 91V MULTISEAS-2 | D72: 1955516VMULS291 | E72: TOURISME TOUTES SAISONS | F72: FI MULTISEASON2 | G72: 195 | H72: 55 | I72: R | J72: 16 | K72: 91 | L72: V | M72: C | N72: B | O72: B | P72: 71 | Q72: 134 | R72: 91.12
A73: 16752 | B73: 3286341675214 | C73: PN FIR 225/55R17 XL 101W MULTISEAS-2 | D73: 2255517WMULS2101 | E73: TOURISME TOUTES SAISONS | F73: FI MULTISEASON2 | G73: 225 | H73: 55 | I73: R | J73: 17 | K73: 101 | L73: W | M73: C | N73: B | O73: B | P73: 72 | Q73: 169 | R73: 114.92
A74: 16753 | B74: 3286341675313 | C74: PN FIR 215/55R17 XL 98W MULTISEAS-2 | D74: 2155517WMULS298 | E74: TOURISME TOUTES SAISONS | F74: FI MULTISEASON2 | G74: 215 | H74: 55 | I74: R | J74: 17 | K74: 98 | L74: W | M74: C | N74: B | O74: B | P74: 72 | Q74: 168 | R74: =Q74*(1-$D$3) -> 114.24
A75: 16754 | B75: 3286341675412 | C75: PN FIR 185/65R15 XL 92T MULTISEAS-2 | D75: 1856515TMULS292 | E75: TOURISME TOUTES SAISONS | F75: FI MULTISEASON2 | G75: 185 | H75: 65 | I75: R | J75: 15 | K75: 92 | L75: T | M75: C | N75: B | O75: B | P75: 71 | Q75: 97 | R75: 65.96
A76: 16755 | B76: 3286341675511 | C76: PN FIR 225/40R18 XL 92Y MULTISEAS-2 | D76: 2254018YMULS292 | E76: TOURISME TOUTES SAISONS | F76: FI MULTISEASON2 | G76: 225 | H76: 40 | I76: R | J76: 18 | K76: 92 | L76: Y | M76: C | N76: B | O76: B | P76: 72 | Q76: 127 | R76: 86.36
A77: 16756 | B77: 3286341675610 | C77: PN FIR 225/50R17 XL 98V MULTISEAS-2 | D77: 2255017VMULS298 | E77: TOURISME TOUTES SAISONS | F77: FI MULTISEASON2 | G77: 225 | H77: 50 | I77: R | J77: 17 | K77: 98 | L77: V | M77: C | N77: B | O77: B | P77: 72 | Q77: 163.5 | R77: 111.18
A78: 16757 | B78: 3286341675719 | C78: PN FIR 215/50R17 XL 95W MULTISEAS-2 | D78: 2155017WMULS295 | E78: TOURISME TOUTES SAISONS | F78: FI MULTISEASON2 | G78: 215 | H78: 50 | I78: R | J78: 17 | K78: 95 | L78: W | M78: C | N78: B | O78: B | P78: 72 | Q78: 166.5 | R78: 113.22
A79: 16759 | B79: 3286341675917 | C79: PN FIR 175/65R15 XL 88H MULTISEAS-2 | D79: 1756515HMULS288 | E79: TOURISME TOUTES SAISONS | F79: FI MULTISEASON2 | G79: 175 | H79: 65 | I79: R | J79: 15 | K79: 88 | L79: H | M79: C | N79: B | O79: B | P79: 71 | Q79: 100.5 | R79: 68.34
A80: 16760 | B80: 3286341676013 | C80: PN FIR 175/70R14 XL 88T MULTISEAS-2 | D80: 1757014TMULS288 | E80: TOURISME TOUTES SAISONS | F80: FI MULTISEASON2 | G80: 175 | H80: 70 | I80: R | J80: 14 | K80: 88 | L80: T | M80: C | N80: B | O80: B | P80: 71 | Q80: 108 | R80: 73.44
A81: 16761 | B81: 3286341676112 | C81: PN FIR 185/65R14 XL 90H MULTISEAS-2 | D81: 1856514HMULS290 | E81: TOURISME TOUTES SAISONS | F81: FI MULTISEASON2 | G81: 185 | H81: 65 | I81: R | J81: 14 | K81: 90 | L81: H | M81: C | N81: B | O81: B | P81: 71 | Q81: 102.5 | R81: 69.7
A82: 16762 | B82: 3286341676211 | C82: PN FIR 205/55R17 XL 95V MULTISEAS-2 | D82: 2055517VMULS295 | E82: TOURISME TOUTES SAISONS | F82: FI MULTISEASON2 | G82: 205 | H82: 55 | I82: R | J82: 17 | K82: 95 | L82: V | M82: C | N82: B | O82: B | P82: 72 | Q82: 153 | R82: 104.04
A83: 16764 | B83: 3286341676419 | C83: PN FIR 165/70R14 XL 85T MULTISEAS-2 | D83: 1657014TMULS285 | E83: TOURISME TOUTES SAISONS | F83: FI MULTISEASON2 | G83: 165 | H83: 70 | I83: R | J83: 14 | K83: 85 | L83: T | M83: C | N83: B | O83: B | P83: 71 | Q83: 82.5 | R83: 56.1
A84: 16765 | B84: 3286341676518 | C84: PN FIR 195/55R15 XL 89V MULTISEAS-2 | D84: 1955515VMULS289 | E84: TOURISME TOUTES SAISONS | F84: FI MULTISEASON2 | G84: 195 | H84: 55 | I84: R | J84: 15 | K84: 89 | L84: V | M84: C | N84: B | O84: B | P84: 71 | Q84: 138 | R84: 93.84
A85: 16766 | B85: 3286341676617 | C85: PN FIR 195/60R15 XL 92V MULTISEAS-2 | D85: 1956015VMULS292 | E85: TOURISME TOUTES SAISONS | F85: FI MULTISEASON2 | G85: 195 | H85: 60 | I85: R | J85: 15 | K85: 92 | L85: V | M85: C | N85: B | O85: B | P85: 71 | Q85: 113.5 | R85: 77.18
A86: 16767 | B86: 3286341676716 | C86: PN FIR 225/65R17 102H MULTISEAS-2 | D86: 2256517HMULS2102 | E86: 4x4 TOUTES SAISONS | F86: FI MULTISEASON2 | G86: 225 | H86: 65 | I86: R | J86: 17 | K86: 102 | L86: H | M86: C | N86: B | O86: B | P86: 72 | Q86: 159 | R86: 108.12
A87: 16768 | B87: 3286341676815 | C87: PN FIR 215/60R17 XL 100V MULTISEAS-2 | D87: 2156017VMULS2100 | E87: 4x4 TOUTES SAISONS | F87: FI MULTISEASON2 | G87: 215 | H87: 60 | I87: R | J87: 17 | K87: 100 | L87: V | M87: C | N87: B | O87: B | P87: 72 | Q87: 155.5 | R87: 105.74
A88: 16769 | B88: 3286341676914 | C88: PN FIR 235/65R17 XL 108V MULTISEAS-2 | D88: 2356517VMULS2108 | E88: 4x4 TOUTES SAISONS | F88: FI MULTISEASON2 | G88: 235 | H88: 65 | I88: R | J88: 17 | K88: 108 | L88: V | M88: C | N88: B | O88: B | P88: 72 | Q88: 163 | R88: 110.84
A89: 16770 | B89: 3286341677010 | C89: PN FIR 215/55R18 XL 99V MULTISEAS-2 | D89: 2155518VMULS299 | E89: 4x4 TOUTES SAISONS | F89: FI MULTISEASON2 | G89: 215 | H89: 55 | I89: R | J89: 18 | K89: 99 | L89: V | M89: C | N89: B | O89: B | P89: 72 | Q89: 178.5 | R89: 121.38
A90: 16771 | B90: 3286341677119 | C90: PN FIR 235/60R18 XL 107V MULTISEAS-2 | D90: 2356018VMULS2107 | E90: 4x4 TOUTES SAISONS | F90: FI MULTISEASON2 | G90: 235 | H90: 60 | I90: R | J90: 18 | K90: 107 | L90: V | M90: C | N90: B | O90: B | P90: 72 | Q90: 180 | R90: 122.4
A91: 16772 | B91: 3286341677218 | C91: PN FIR 215/65R16 XL 102V MULTISEAS-2 | D91: 2156516VMULS2102 | E91: 4x4 TOUTES SAISONS | F91: FI MULTISEASON2 | G91: 215 | H91: 65 | I91: R | J91: 16 | K91: 102 | L91: V | M91: C | N91: B | O91: B | P91: 72 | Q91: 137.5 | R91: 93.5
A92: 16773 | B92: 3286341677317 | C92: PN FIR 235/55R17 XL 103V MULTISEAS-2 | D92: 2355517VMULS2103 | E92: 4x4 TOUTES SAISONS | F92: FI MULTISEASON2 | G92: 235 | H92: 55 | I92: R | J92: 17 | K92: 103 | L92: V | M92: C | N92: B | O92: B | P92: 72 | Q92: 170 | R92: 115.6
A93: 16774 | B93: 3286341677416 | C93: PN FIR 255/55R18 XL 109V MULTISEAS-2 | D93: 2555518VMULS2109 | E93: 4x4 TOUTES SAISONS | F93: FI MULTISEASON2 | G93: 255 | H93: 55 | I93: R | J93: 18 | K93: 109 | L93: V | M93: C | N93: B | O93: B | P93: 72 | Q93: 187 | R93: 127.16
A94: 17062 | B94: 3286341706215 | C94: PN FIR 265/65R17 112H ROADHAWK | D94: 2656517HRHAWK112 | E94: 4x4 | F94: FI ROADHAWK | G94: 265 | H94: 65 | I94: R | J94: 17 | K94: 112 | L94: H | M94: C | N94: B | O94: B | P94: 71 | Q94: 176 | R94: 119.68
A95: 18009 | B95: 3286341800913 | C95: PN FIR 215/70R15C 109/107S VANHAWK 2 | D95: 2157015SVANH2109FS | E95: CAMIONNETTE ETE | F95: FI VANHAWK 2 | G95: 215 | H95: 70 | I95: R | J95: 15 | K95: 109/107 | L95: S | M95: C | N95: B | O95: B | P95: 72 | Q95: 152 | R95: 103.36
A96: 18097 | B96: 3286341809718 | C96: PN FIR 185/75R16C 104/102R VANHAWK 2 | D96: 1857516RVANHK2104 | E96: CAMIONNETTE ETE | F96: FI VANHAWK 2 | G96: 185 | H96: 75 | I96: R | J96: 16 | K96: 104/102 | L96: R | M96: C | N96: B | O96: B | P96: 71 | Q96: 136 | R96: 92.48
A97: 18098 | B97: 3286341809817 | C97: PN FIR 215/65R16C 109/107T VANHAWK 2 | D97: 2156516TVANH2109FS | E97: CAMIONNETTE ETE | F97: FI VANHAWK 2 | G97: 215 | H97: 65 | I97: R | J97: 16 | K97: 109/107 | L97: T | M97: C | N97: B | O97: B | P97: 71 | Q97: 157.5 | R97: 107.1
A98: 18099 | B98: 3286341809916 | C98: PN FIR 195/70R15C 104/102R VANHAWK 2 | D98: 1957015RVANH2104FS | E98: CAMIONNETTE ETE | F98: FI VANHAWK 2 | G98: 195 | H98: 70 | I98: R | J98: 15 | K98: 104/102 | L98: R | M98: C | N98: B | O98: B | P98: 71 | Q98: 109 | R98: 74.12
A99: 18100 | B99: 3286341810011 | C99: PN FIR 195/65R16C 104/102T VANHAWK 2 | D99: 1956516TVANHK2104 | E99: CAMIONNETTE ETE | F99: FI VANHAWK 2 | G99: 195 | H99: 65 | I99: R | J99: 16 | K99: 104/102 | L99: T | M99: C | N99: B | O99: B | P99: 72 | Q99: 132.5 | R99: 90.1
A100: 18101 | B100: 3286341810110 | C100: PN FIR 205/70R15C 106/104R VANHAWK 2 | D100: 2057015RVANH2106FS | E100: CAMIONNETTE ETE | F100: FI VANHAWK 2 | G100: 205 | H100: 70 | I100: R | J100: 15 | K100: 106/104 | L100: R | M100: C | N100: B | O100: B | P100: 72 | Q100: 138.5 | R100: 94.18
A101: 18102 | B101: 3286341810219 | C101: PN FIR 175/75R16C 101/99R VANHAWK 2 | D101: 1757516RVANH2101FS | E101: CAMIONNETTE ETE | F101: FI VANHAWK 2 | G101: 175 | H101: 75 | I101: R | J101: 16 | K101: 101/99 | L101: R | M101: C | N101: B | O101: B | P101: 72 | Q101: 122.5 | R101: 83.3
A102: 18103 | B102: 3286341810318 | C102: PN FIR 205/65R16C 107/105T VANHAWK 2 | D102: 2056516TVANHK2107 | E102: CAMIONNETTE ETE | F102: FI VANHAWK 2 | G102: 205 | H102: 65 | I102: R | J102: 16 | K102: 107/105 | L102: T | M102: C | N102: B | O102: B | P102: 72 | Q102: 155 | R102: 105.4
A103: 18163 | B103: 3286341816310 | C103: PN FIR 205/60R16 92V ROADHAWK | D103: 2056016VROADHAWK92 | E103: TOURISME ÉTÉ | F103: FI ROADHAWK | G103: 205 | H103: 60 | I103: R | J103: 16 | K103: 92 | L103: V | M103: C | N103: A | O103: B | P103: 70 | Q103: 123.5 | R103: 83.98
A104: 18164 | B104: 3286341816419 | C104: PN FIR 175/65R15 84H ROADHAWK | D104: 1756515HROADHAWK84 | E104: TOURISME ÉTÉ | F104: FI ROADHAWK | G104: 175 | H104: 65 | I104: R | J104: 15 | K104: 84 | L104: H | M104: C | N104: A | O104: B | P104: 70 | Q104: 98.5 | R104: 66.98
A105: 18165 | B105: 3286341816518 | C105: PN FIR 195/55R16 87H ROADHAWK | D105: 1955516HROADHAWKH87 | E105: TOURISME ÉTÉ | F105: FI ROADHAWK | G105: 195 | H105: 55 | I105: R | J105: 16 | K105: 87 | L105: H | M105: C | N105: A | O105: B | P105: 70 | Q105: 114 | R105: 77.52
A106: 18166 | B106: 3286341816617 | C106: PN FIR 185/65R15 88V ROADHAWK | D106: 1856515VROADHAWK88 | E106: TOURISME ÉTÉ | F106: FI ROADHAWK | G106: 185 | H106: 65 | I106: R | J106: 15 | K106: 88 | L106: V | M106: C | N106: A | O106: B | P106: 70 | Q106: 128 | R106: 87.04
A107: 18167 | B107: 3286341816716 | C107: PN FIR 175/70R14 88T MULH2 | D107: 1757014TMULH288 | E107: TOURISME ÉTÉ | F107: FI MULH2 | G107: 175 | H107: 70 | I107: R | J107: 14 | K107: 88 | L107: T | M107: D | N107: C | O107: B | P107: 69 | Q107: 106 | R107: 72.08
A108: 18168 | B108: 3286341816815 | C108: PN FIR 185/70R14 88T MULH2 | D108: 1857014TMULH2882 | E108: TOURISME ÉTÉ | F108: FI MULH2 | G108: 185 | H108: 70 | I108: R | J108: 14 | K108: 88 | L108: T | M108: D | N108: C | O108: B | P108: 69 | Q108: 112.5 | R108: 76.5
A109: 18169 | B109: 3286341816914 | C109: PN FIR 185/65R14 86H MULH2 | D109: 1856514HMULH2862 | E109: TOURISME ÉTÉ | F109: FI MULH2 | G109: 185 | H109: 65 | I109: R | J109: 14 | K109: 86 | L109: H | M109: D | N109: C | O109: B | P109: 69 | Q109: 104 | R109: 70.72
A110: 18172 | B110: 3286341817218 | C110: PN FIR 185/60R14 82H MULH2 | D110: 1856014HMULH2822 | E110: TOURISME ÉTÉ | F110: FI MULH2 | G110: 185 | H110: 60 | I110: R | J110: 14 | K110: 82 | L110: H | M110: D | N110: C | O110: B | P110: 70 | Q110: 87 | R110: 59.16
A111: 18173 | B111: 3286341817317 | C111: PN FIR 185/60R15 84H ROADHAWK | D111: 1856015HROADHAWK84 | E111: TOURISME ÉTÉ | F111: FI ROADHAWK | G111: 185 | H111: 60 | I111: R | J111: 15 | K111: 84 | L111: H | M111: C | N111: A | O111: B | P111: 70 | Q111: 97.5 | R111: 66.3
A112: 18175 | B112: 3286341817515 | C112: PN FIR 215/60R16 XL 99V ROADHAWK | D112: 2156016VROADHAWK99 | E112: TOURISME ÉTÉ | F112: FI ROADHAWK | G112: 215 | H112: 60 | I112: R | J112: 16 | K112: 99 | L112: V | M112: C | N112: A | O112: B | P112: 72 | Q112: 152.5 | R112: 103.7
A113: 18176 | B113: 3286341817614 | C113: PN FIR 195/60R15 88H ROADHAWK | D113: 1956015HROADHAWK88 | E113: TOURISME ÉTÉ | F113: FI ROADHAWK | G113: 195 | H113: 60 | I113: R | J113: 15 | K113: 88 | L113: H | M113: C | N113: A | O113: B | P113: 71 | Q113: 101 | R113: 68.68
A114: 18177 | B114: 3286341817713 | C114: PN FIR 195/55R15 85V ROADHAWK | D114: 1955515VROADHAWK85 | E114: TOURISME ÉTÉ | F114: FI ROADHAWK | G114: 195 | H114: 55 | I114: R | J114: 15 | K114: 85 | L114: V | M114: C | N114: A | O114: B | P114: 71 | Q114: 130 | R114: 88.4
A115: 18178 | B115: 3286341817812 | C115: PN FIR 195/70R14 91T MULH2 | D115: 1957014TMULH2912 | E115: TOURISME ÉTÉ | F115: FI MULH2 | G115: 195 | H115: 70 | I115: R | J115: 14 | K115: 91 | L115: T | M115: D | N115: C | O115: B | P115: 69 | Q115: 127 | R115: 86.36
A116: 18181 | B116: 3286341818116 | C116: PN FIR 215/65R15 96H ROADHAWK | D116: 2156515HROADHAWK96 | E116: TOURISME ÉTÉ | F116: FI ROADHAWK | G116: 215 | H116: 65 | I116: R | J116: 15 | K116: 96 | L116: H | M116: C | N116: A | O116: B | P116: 71 | Q116: 142 | R116: 96.56
A117: 18182 | B117: 3286341818215 | C117: PN FIR 225/60R16 XL 102V ROADHAWK | D117: 2256016VROADHAWK102 | E117: TOURISME ÉTÉ | F117: FI ROADHAWK | G117: 225 | H117: 60 | I117: R | J117: 16 | K117: 102 | L117: V | M117: C | N117: A | O117: B | P117: 72 | Q117: 179 | R117: 121.72
A118: 18183 | B118: 3286341818314 | C118: PN FIR 215/55R16 XL 97Y ROADHAWK | D118: 2155516YROADHAWK97 | E118: TOURISME ÉTÉ | F118: FI ROADHAWK | G118: 215 | H118: 55 | I118: R | J118: 16 | K118: 97 | L118: Y | M118: C | N118: A | O118: B | P118: 72 | Q118: 149.5 | R118: 101.66
A119: 18184 | B119: 3286341818413 | C119: PN FIR 205/65R15 94H ROADHAWK | D119: 2056515HROADHAWK94 | E119: TOURISME ÉTÉ | F119: FI ROADHAWK | G119: 205 | H119: 65 | I119: R | J119: 15 | K119: 94 | L119: H | M119: C | N119: A | O119: B | P119: 70 | Q119: 129.5 | R119: 88.06
A120: 18186 | B120: 3286341818611 | C120: PN FIR 225/55R16 XL 99Y ROADHAWK | D120: 2255516YROADHAWK99 | E120: TOURISME ÉTÉ | F120: FI ROADHAWK | G120: 225 | H120: 55 | I120: R | J120: 16 | K120: 99 | L120: Y | M120: C | N120: A | O120: B | P120: 72 | Q120: 157 | R120: 106.76
A121: 18187 | B121: 3286341818710 | C121: PN FIR 205/60R15 91H ROADHAWK | D121: 2056015HROADHAWK91 | E121: TOURISME ÉTÉ | F121: FI ROADHAWK | G121: 205 | H121: 60 | I121: R | J121: 15 | K121: 91 | L121: H | M121: C | N121: A | O121: B | P121: 70 | Q121: 119 | R121: 80.92
A122: 18188 | B122: 3286341818819 | C122: PN FIR 195/65R15 91H ROADHAWK | D122: 1956515HROADHAWK91 | E122: TOURISME ÉTÉ | F122: FI ROADHAWK | G122: 195 | H122: 65 | I122: R | J122: 15 | K122: 91 | L122: H | M122: C | N122: A | O122: B | P122: 71 | Q122: 86 | R122: 58.48
A123: 18193 | B123: 3286341819311 | C123: PN FIR 245/35R20 XL 95Y ROADHAWK | D123: 2453520YRHAWK95 | E123: TOURISME ÉTÉ | F123: FI ROADHAWK | G123: 245 | H123: 35 | I123: R | J123: 20 | K123: 95 | L123: Y | M123: C | N123: A | O123: B | P123: 71 | Q123: 219 | R123: 148.92
A124: 18194 | B124: 3286341819410 | C124: PN FIR 265/45R20 XL 108Y ROADHAWK | D124: 2654520YRHAWK108 | E124: 4x4 | F124: FI ROADHAWK | G124: 265 | H124: 45 | I124: R | J124: 20 | K124: 108 | L124: Y | M124: B | N124: A | O124: B | P124: 73 | Q124: 262 | R124: 178.16
A125: 18195 | B125: 3286341819519 | C125: PN FIR 255/45R20 XL 105W ROADHAWK | D125: 2554520WRHAWK105 | E125: 4x4 | F125: FI ROADHAWK | G125: 255 | H125: 45 | I125: R | J125: 20 | K125: 105 | L125: W | M125: B | N125: A | O125: B | P125: 73 | Q125: 263 | R125: 178.84
A126: 18196 | B126: 3286341819618 | C126: PN FIR 275/40R20 XL 106Y ROADHAWK | D126: 2754020YRHAWK106 | E126: 4x4 | F126: FI ROADHAWK | G126: 275 | H126: 40 | I126: R | J126: 20 | K126: 106 | L126: Y | M126: C | N126: A | O126: B | P126: 73 | Q126: 218.5 | R126: 148.58
A127: 18197 | B127: 3286341819717 | C127: PN FIR 275/45R20 XL 110Y ROADHAWK | D127: 2754520YRHAWK110 | E127: 4x4 | F127: FI ROADHAWK | G127: 275 | H127: 45 | I127: R | J127: 20 | K127: 110 | L127: Y | M127: B | N127: A | O127: B | P127: 73 | Q127: 229.5 | R127: 156.06
A128: 18199 | B128: 3286341819915 | C128: PN FIR 255/35R20 XL 97Y ROADHAWK | D128: 2553520YRHAWK97 | E128: TOURISME ÉTÉ | F128: FI ROADHAWK | G128: 255 | H128: 35 | I128: R | J128: 20 | K128: 97 | L128: Y | M128: C | N128: A | O128: B | P128: 73 | Q128: 208 | R128: 141.44
A129: 18200 | B129: 3286341820010 | C129: PN FIR 265/35R18 XL 97Y ROADHAWK | D129: 2653518YRHAWK97 | E129: TOURISME ÉTÉ | F129: FI ROADHAWK | G129: 265 | H129: 35 | I129: R | J129: 18 | K129: 97 | L129: Y | M129: C | N129: A | O129: B | P129: 73 | Q129: 195 | R129: 132.6
A130: 18201 | B130: 3286341820119 | C130: PN FIR 275/45R19 XL 108Y ROADHAWK | D130: 2754519YRHAWK108 | E130: 4x4 | F130: FI ROADHAWK | G130: 275 | H130: 45 | I130: R | J130: 19 | K130: 108 | L130: Y | M130: B | N130: A | O130: B | P130: 73 | Q130: 195 | R130: 132.6
A131: 18202 | B131: 3286341820218 | C131: PN FIR 215/45R18 XL 93Y ROADHAWK | D131: 2154518YRHAWK93 | E131: TOURISME ÉTÉ | F131: FI ROADHAWK | G131: 215 | H131: 45 | I131: R | J131: 18 | K131: 93 | L131: Y | M131: C | N131: A | O131: B | P131: 71 | Q131: 166 | R131: 112.88
A132: 18203 | B132: 3286341820317 | C132: PN FIR 255/30R19 XL 91Y ROADHAWK | D132: 2553019YRHAWK91 | E132: TOURISME ÉTÉ | F132: FI ROADHAWK | G132: 255 | H132: 30 | I132: R | J132: 19 | K132: 91 | L132: Y | M132: C | N132: A | O132: B | P132: 73 | Q132: 221 | R132: 150.28
A133: 18204 | B133: 3286341820416 | C133: PN FIR 225/35R18 XL 87Y ROADHAWK | D133: 2253518YRHAWK87 | E133: TOURISME ÉTÉ | F133: FI ROADHAWK | G133: 225 | H133: 35 | I133: R | J133: 18 | K133: 87 | L133: Y | M133: C | N133: A | O133: B | P133: 71 | Q133: 173 | R133: 117.64
A134: 18205 | B134: 3286341820515 | C134: PN FIR 215/40R18 XL 89Y ROADHAWK | D134: 2154018YRHAWK89 | E134: TOURISME ÉTÉ | F134: FI ROADHAWK | G134: 215 | H134: 40 | I134: R | J134: 18 | K134: 89 | L134: Y | M134: C | N134: A | O134: B | P134: 71 | Q134: 152.5 | R134: 103.7
A135: 18206 | B135: 3286341820614 | C135: PN FIR 245/35R18 XL 92Y ROADHAWK | D135: 2453518YRHAWK92 | E135: TOURISME ÉTÉ | F135: FI ROADHAWK | G135: 245 | H135: 35 | I135: R | J135: 18 | K135: 92 | L135: Y | M135: C | N135: A | O135: B | P135: 71 | Q135: 168 | R135: 114.24
A136: 18207 | B136: 3286341820713 | C136: PN FIR 245/45R19 XL 102Y ROADHAWK | D136: 2454519YRHAWK102 | E136: TOURISME ÉTÉ | F136: FI ROADHAWK | G136: 245 | H136: 45 | I136: R | J136: 19 | K136: 102 | L136: Y | M136: C | N136: A | O136: B | P136: 71 | Q136: 203.5 | R136: 138.38
A137: 18209 | B137: 3286341820911 | C137: PN FIR 255/35R18 XL 94Y ROADHAWK | D137: 2553518YRHAWK94 | E137: TOURISME ÉTÉ | F137: FI ROADHAWK | G137: 255 | H137: 35 | I137: R | J137: 18 | K137: 94 | L137: Y | M137: C | N137: A | O137: B | P137: 73 | Q137: 170 | R137: 115.6
A138: 18210 | B138: 3286341821017 | C138: PN FIR 255/35R19 XL 96Y ROADHAWK | D138: 2553519YRHAWK96 | E138: TOURISME ÉTÉ | F138: FI ROADHAWK | G138: 255 | H138: 35 | I138: R | J138: 19 | K138: 96 | L138: Y | M138: C | N138: A | O138: B | P138: 73 | Q138: 185.5 | R138: =Q138*(1-$D$3) -> 126.14
A139: 18211 | B139: 3286341821116 | C139: PN FIR 245/45R17 XL 99Y ROADHAWK | D139: 2454517YRHAWK99 | E139: TOURISME ÉTÉ | F139: FI ROADHAWK | G139: 245 | H139: 45 | I139: R | J139: 17 | K139: 99 | L139: Y | M139: C | N139: A | O139: B | P139: 71 | Q139: 157 | R139: 106.76
A140: 18213 | B140: 3286341821314 | C140: PN FIR 235/35R19 XL 91Y ROADHAWK | D140: 2353519YRHAWK91 | E140: TOURISME ÉTÉ | F140: FI ROADHAWK | G140: 235 | H140: 35 | I140: R | J140: 19 | K140: 91 | L140: Y | M140: C | N140: A | O140: B | P140: 71 | Q140: 169.5 | R140: 115.26
A141: 18214 | B141: 3286341821413 | C141: PN FIR 245/35R19 XL 93Y ROADHAWK | D141: 2453519YRHAWK93 | E141: TOURISME ÉTÉ | F141: FI ROADHAWK | G141: 245 | H141: 35 | I141: R | J141: 19 | K141: 93 | L141: Y | M141: C | N141: A | O141: B | P141: 71 | Q141: 203.5 | R141: 138.38
A142: 18268 | B142: 3286341826814 | C142: PN FIR 225/35R19 XL 88Y ROADHAWK | D142: 2253519YRHAWK88 | E142: TOURISME ÉTÉ | F142: FI ROADHAWK | G142: 225 | H142: 35 | I142: R | J142: 19 | K142: 88 | L142: Y | M142: C | N142: A | O142: B | P142: 71 | Q142: 167.5 | R142: 113.9
A143: 18777 | B143: 3286341877717 | C143: PN FIR 265/70R16 112H ROADHAWK | D143: 2657016HROADHAWK112 | E143: 4x4 | F143: FI ROADHAWK | G143: 265 | H143: 70 | I143: R | J143: 16 | K143: 112 | L143: H | M143: C | N143: B | O143: B | P143: 71 | Q143: 180 | R143: 122.4
A144: 18782 | B144: 3286341878219 | C144: PN FIR 245/70R16 XL 111H ROADHAWK | D144: 2457016HROADHAWK111 | E144: 4x4 | F144: FI ROADHAWK | G144: 245 | H144: 70 | I144: R | J144: 16 | K144: 111 | L144: H | M144: B | N144: B | O144: B | P144: 71 | Q144: 173.5 | R144: 117.98
A145: 18788 | B145: 3286341878813 | C145: PN FIR 255/50R20 XL 109Y ROADHAWK | D145: 2555020YROADHAWK109 | E145: 4x4 | F145: FI ROADHAWK | G145: 255 | H145: 50 | I145: R | J145: 20 | K145: 109 | L145: Y | M145: C | N145: A | O145: B | P145: 71 | Q145: 250.5 | R145: 170.34
